Workbook

Sheet Index
C1: JEN RIN Consistency Model | J1: Key: | K1: Input (hard code) | L1: External Link | M1: Internal Link | N1: Drop down Selection | O1: Calculation | P1: Unique calculation | Q1: Empty cell
C2: =MID(CELL("filename",A1),FIND("]",CELL("filename",A1))+1,255) -> Index | E2: Overall Check: | F2: ='Validation & Checks'!F2 -> OK
B5: Table Of Contents
C7: Worksheet | F7: Description
C9: Index | F9: Provides a table of contents, model key legend and activity log (version control)
C10: Validation & Checks | F10: List summary of sheet check outcomes and calculation of overall model check
C11: DATA--> | F11: Blank divider worksheet
C12: Input|Project Costs | F12: List of Forecast Projects with Costs
C13: Input|Other | F13: Mapping between categories and lists
C14: Input|CPI | F14: Input of CPI series and calculation of inflation indices to be used for conversion between different dollar basis
C15: 2.1-6 Capex | F15: Inputs and calculations for tables in output 2.1 through 2.6 (Capex Only)
C16: 2.1&10 Opex | F16: Inputs and calculations for tables in output 2.1 and 2.10 (Opex Only)
C17: 2.11 | F17: Inputs and calculations for tables in output 2.11
C18: 2.14 | F18: Inputs and calculations for tables in output 2.14
C19: 2.16&2.17 | F19: Inputs and calculations for tables in output 2.16 and 2.17
C20: 3.2 | F20: Inputs and calculations for tables in output 3.2
C21: 3.3 Nom | F21: Inputs and calculations for tables in 3.3 Real 2026 basis
C22: 3.3 Real26 | F22: Inputs and calculations for tables in output 3.3
C23: Asset Check | F23: Checks relating to Inputs and Outputs for Asset tables
C24: RIN--> | F24: Blank divider worksheet
C25: 2.1 Expenditure Summary | F25: Output as labelled
C26: 2.10 Overheads | F26: Output as labelled
C27: 2.11 Labour | F27: Output as labelled
C28: 2.14 Forecast price changes | F28: Output as labelled
C29: 2.16 Opex Summary | F29: Output as labelled
C30: 2.17 Step Changes | F30: Output as labelled
C31: 3.2 Operating expenditure | F31: Output as labelled
C32: 3.3 Assets (RAB) | F32: Output as labelled
C33: Lookup | F33: Provides Timing calculations for use across the model, and defines Named Ranges for use across the model
B35: Model Key Legend
C37: Model key | F37: Description
C39: Input | E39: ---------> | F39: Input assumption (hardcode)
C40: External link | E40: ---------> | F40: External link (outside the model)
C41: Internal link | E41: ---------> | F41: Internal link (different sheet within the model)
C42: Drop-down | E42: ---------> | F42: Choice from a drop-down list
C43: Calculation | E43: ---------> | F43: Calculation (general formula driven)
C44: Unique | E44: ---------> | F44: Unique calculation
C45: Empty | E45: ---------> | F45: Not applicable/Empty cell
B47: End

Sheet Validation & Checks
C1: =Index!C1 -> JEN RIN Consistency Model | H1: Back to Index | K1: Key: | L1: Input (hard code) | M1: External Link | N1: Internal Link | O1: Drop down Selection | P1: Calculation | Q1: Unique calculation | R1: Empty cell
C2: =MID(CELL("filename",A1),FIND("]",CELL("filename",A1))+1,255) -> Validation & Checks | E2: Overall Check: | F2: =IF(COUNTA($G$11:$G$23)=COUNTIF($G$11:$G$23,"OK"),"OK","Check") -> OK
B5: Copyright Jemena Limited. All rights reserved. Jemena is not liable for any loss caused by reliance on this document.
B7: Check List
C9: Sheet | G9: Status
C11: =+Index!C12 -> Input|Project Costs | G11: =+'Input|Project Costs'!$H$1 -> Ok | H11: =IF(G11<>"Ok","Please check","This sheet currently contains no errors") -> This sheet currently contains no errors
C12: =+Index!C13 -> Input|Other | G12: =+'Input|Other'!$H$1 -> Ok | H12: =IF(G12<>"Ok","Please check","This sheet currently contains no errors") -> This sheet currently contains no errors
C13: =+Index!C14 -> Input|CPI | G13: =+'Input|CPI'!$H$1 -> Ok | H13: This sheet currently contains no errors
C14: =+Index!C15 -> 2.1-6 Capex | G14: =+'2.1-6 Capex'!$H$1 -> Ok | H14: This sheet currently contains no errors
C15: =+Index!C16 -> 2.1&10 Opex | G15: =+'2.1&10 Opex'!$H$1 -> Ok | H15: This sheet currently contains no errors
C16: ="'"&Index!C17 -> '2.11 | G16: =+'2.11'!$H$1 -> Ok | H16: This sheet currently contains no errors
C17: ="'"&Index!C18 -> '2.14 | G17: =+'2.14'!$H$1 -> Ok | H17: This sheet currently contains no errors
C18: =+Index!C19 -> 2.16&2.17 | G18: =+'2.16&17'!$H$1 -> Ok | H18: This sheet currently contains no errors
C19: ="'"&Index!C20 -> '3.2 | G19: =+'3.2'!$H$1 -> Ok | H19: This sheet currently contains no errors
C20: =+Index!C21 -> 3.3 Nom | G20: =+'3.3 Nom'!$E$1 -> OK | H20: This sheet currently contains no errors
C21: =+Index!C22 -> 3.3 Real26 | G21: =+'3.3 Real26'!$E$1 -> OK | H21: This sheet currently contains no errors
C22: =+Index!C23 -> Asset Check | G22: =+'Asset Check'!$H$1 -> Ok | H22: This sheet currently contains no errors
C23: =+Index!C33 -> Lookup | G23: =+Lookup!$G$1 -> Ok | H23: This sheet currently contains no errors
B25: End

Sheet DATA-->

Sheet Input|Project Costs
D1: =Model_Name -> JEN RIN Consistency Model | G1: Section Check: | H1: =IF(SUM(A7:A1018)=0,"Ok","Check") -> Ok | L1: Legend: | M1: Input | N1: Internal links | O1: External links | P1: Drop-down | Q1: Calculation | R1: Unique | S1: Empty
D2: =RIGHT(CELL("filename",D1),LEN(CELL("filename",D1))-FIND("]",CELL("filename",D1))) -> Input|Project Costs | G2: Overall Check: | H2: =+Overall_Check -> OK
E3: Source | F3: Unit | G3: Basis | H3: Timing | K3: Year
B5: Copyright Jemena Limited. All rights reserved. Jemena is not liable for any loss caused by reliance on this document.
B7: Input: Capex Model - Calc|Project Costs
V9: 48. Direct escalated costs ($'000s June 2026) | AF9: 54. Total escalated costs (excl. type 2 capcons) ($'000s June 2026) | AP9: 49. Direct escalated type 1 (cash) capcons ($'000s June 2026) | AY9: 50. Network overheads ($'000s June 2026) | BH9: 53. Total overheads allocated to type 1 contributions ($'000s June 2026) | BQ9: % Allocation by Cost Category
D10: Project/Program Inputs | E10: =Lookup!$F$15 -> Source | F10: =Lookup!$G$15 -> Unit | G10: =Lookup!$H$15 -> Basis | H10: =Lookup!$I$15 -> Timing | L10: Unique ID | M10: AER reset RIN categories (Level One) | N10: AER reset RIN categories (Level Two) | O10: RAB Asset Class | P10: AER reset RIN categories (Reset) | S10: IT Type | V10: =+Lookup!$P$15 -> FY25 | W10: =+Lookup!$Q$15 -> FY26 | X10: =+Lookup!$R$15 -> FY27 | Y10: =+Lookup!$S$15 -> FY28 | Z10: =+Lookup!$T$15 -> FY29 | AA10: =+Lookup!$U$15 -> FY30 | AB10: =+Lookup!$V$15 -> FY31 | AC10: Total (25-31) | AD10: Total (25-31) by Unique ID | AF10: =+Lookup!$P$15 -> FY25 | AG10: =+Lookup!$Q$15 -> FY26 | AH10: =+Lookup!$R$15 -> FY27 | AI10: =+Lookup!$S$15 -> FY28 | AJ10: =+Lookup!$T$15 -> FY29 | AK10: =+Lookup!$U$15 -> FY30 | AL10: =+Lookup!$V$15 -> FY31 | AM10: Total (25-31) | AN10: Total (25-31) by Unique ID | AP10: =+Lookup!$P$15 -> FY25 | AQ10: =+Lookup!$Q$15 -> FY26 | AR10: =+Lookup!$R$15 -> FY27 | AS10: =+Lookup!$S$15 -> FY28 | AT10: =+Lookup!$T$15 -> FY29 | AU10: =+Lookup!$U$15 -> FY30 | AV10: =+Lookup!$V$15 -> FY31 | AW10: Total (27-31) | AY10: =+Lookup!$P$15 -> FY25 | AZ10: =+Lookup!$Q$15 -> FY26 | BA10: =+Lookup!$R$15 -> FY27 | BB10: =+Lookup!$S$15 -> FY28 | BC10: =+Lookup!$T$15 -> FY29 | BD10: =+Lookup!$U$15 -> FY30 | BE10: =+Lookup!$V$15 -> FY31 | BF10: Total (27-31) | BH10: =+Lookup!$P$15 -> FY25 | BI10: =+Lookup!$Q$15 -> FY26 | BJ10: =+Lookup!$R$15 -> FY27 | BK10: =+Lookup!$S$15 -> FY28 | BL10: =+Lookup!$T$15 -> FY29 | BM10: =+Lookup!$U$15 -> FY30 | BN10: =+Lookup!$V$15 -> FY31 | BO10: Total (27-31) | BQ10: Internal labour | BR10: Contract labour | BS10: Non-labour | BT10: Check: Completeness (100%)
D12: ='[4]Calc| Project Costs'!C10 -> Ampact Connectors | E12: JEN | F12: =+Thousands -> $'000s | G12: =+Submission_Dollars -> Real 2026 | H12: =+End_Year -> End Year | L12: ='[4]Calc| Project Costs'!D10 -> A444 | M12: ='[4]Input| JEN Mapping'!G10 -> Replacement | N12: ='[4]Input| JEN Mapping'!F10 -> Replacement | O12: ='[4]Input| Projects'!G10 -> Distribution system assets | P12: Replacement expenditure | S12: ='[4]Input| JEN Mapping'!H10 -> Non-IT | V12: ='[4]Calc| Project Costs'!V10 -> 30.80817364 | W12: ='[4]Calc| Project Costs'!W10 -> 34.60720997 | X12: ='[4]Calc| Project Costs'!X10 -> 33.25409239 | Y12: ='[4]Calc| Project Costs'!Y10 -> 33.46418887 | Z12: ='[4]Calc| Project Costs'!Z10 -> 33.7241139 | AA12: ='[4]Calc| Project Costs'!AA10 -> 34.03753767 | AB12: ='[4]Calc| Project Costs'!AB10 -> 34.33515506 | AC12: =SUM(V12:AB12) -> 234.2304715 | AD12: =+SUMIFS(AC$12:AC$1011,$L$12:$L$1011,$L12) -> 234.2304715 | AF12: ='[4]Calc| Project Costs'!BR10 -> 35.88665089 | AG12: ='[4]Calc| Project Costs'!BS10 -> 39.10757399 | AH12: ='[4]Calc| Project Costs'!BT10 -> 37.16664682 | AI12: ='[4]Calc| Project Costs'!BU10 -> 37.44774894 | AJ12: ='[4]Calc| Project Costs'!BV10 -> 37.74137541 | AK12: ='[4]Calc| Project Costs'!BW10 -> 38.26740247 | AL12: ='[4]Calc| Project Costs'!BX10 -> 39.17798539 | AM12: =SUM(AF12:AL12) -> 264.7953839 | AN12: =+SUMIFS(AM$12:AM$1011,$L$12:$L$1011,$L12) -> 264.7953839 | AP12: ='[4]Calc| Project Costs'!AD10 -> 0 | AQ12: ='[4]Calc| Project Costs'!AE10 -> 0 | AR12: ='[4]Calc| Project Costs'!AF10 -> 0 | AS12: ='[4]Calc| Project Costs'!AG10 -> 0 | AT12: ='[4]Calc| Project Costs'!AH10 -> 0 | AU12: ='[4]Calc| Project Costs'!AI10 -> 0 | AV12: ='[4]Calc| Project Costs'!AJ10 -> 0 | AW12: =SUM(AR12:AV12) -> 0 | AY12: ='[4]Calc| Project Costs'!AL10 -> 5.078477247 | AZ12: ='[4]Calc| Project Costs'!AM10 -> 4.500364026 | BA12: ='[4]Calc| Project Costs'!AN10 -> 3.912554438 | BB12: ='[4]Calc| Project Costs'!AO10 -> 3.983560069 | BC12: ='[4]Calc| Project Costs'!AP10 -> 4.01726152 | BD12: ='[4]Calc| Project Costs'!AQ10 -> 4.229864805 | BE12: ='[4]Calc| Project Costs'!AR10 -> 4.842830331 | BF12: =SUM(BA12:BE12) -> 20.98607116 | BH12: ='[4]Calc| Project Costs'!BJ10 -> 0 | BI12: ='[4]Calc| Project Costs'!BK10 -> 0 | BJ12: ='[4]Calc| Project Costs'!BL10 -> 0 | BK12: ='[4]Calc| Project Costs'!BM10 -> 0 | BL12: ='[4]Calc| Project Costs'!BN10 -> 0 | BM12: ='[4]Calc| Project Costs'!BO10 -> 0 | BN12: ='[4]Calc| Project Costs'!BP10 -> 0 | BO12: =SUM(BJ12:BN12) -> 0 | BQ12: ='[4]Input| Projects'!Y10 -> 0.7086701207 | BR12: ='[4]Input| Projects'!Z10 -> 0.04060608461 | BS12: ='[4]Input| Projects'!AA10 -> 0.2507237947 | BT12: =+_xlfn.SWITCH(TRUE,LEN(L12)>0,IF(SUM(BQ12:BS12)<>1,1,0), 0) -> 0
D13: ='[4]Calc| Project Costs'!C11 -> LV Line Clash Mitigation | E13: JEN | F13: $'000s | G13: Real 2026 | H13: End Year | L13: ='[4]Calc| Project Costs'!D11 -> A109 | M13: ='[4]Input| JEN Mapping'!G11 -> Replacement | N13: ='[4]Input| JEN Mapping'!F11 -> Replacement | O13: ='[4]Input| Projects'!G11 -> Distribution system assets | P13: Replacement expenditure | S13: ='[4]Input| JEN Mapping'!H11 -> Non-IT | V13: ='[4]Calc| Project Costs'!V11 -> 14.20410974 | W13: ='[4]Calc| Project Costs'!W11 -> 15.95072435 | X13: ='[4]Calc| Project Costs'!X11 -> 15.32370628 | Y13: ='[4]Calc| Project Costs'!Y11 -> 15.4175015 | Z13: ='[4]Calc| Project Costs'!Z11 -> 15.53354211 | AA13: ='[4]Calc| Project Costs'!AA11 -> 15.67346664 | AB13: ='[4]Calc| Project Costs'!AB11 -> 15.80633459 | AC13: =SUM(V13:AB13) -> 107.9093852 | AD13: =+SUMIFS(AC$12:AC$1011,$L$12:$L$1011,$L13) -> 107.9093852 | AF13: ='[4]Calc| Project Costs'!BR11 -> 16.54554188 | AG13: ='[4]Calc| Project Costs'!BS11 -> 18.02497611 | AH13: ='[4]Calc| Project Costs'!BT11 -> 17.12663731 | AI13: ='[4]Calc| Project Costs'!BU11 -> 17.25279306 | AJ13: ='[4]Calc| Project Costs'!BV11 -> 17.38391841 | AK13: ='[4]Calc| Project Costs'!BW11 -> 17.62121755 | AL13: ='[4]Calc| Project Costs'!BX11 -> 18.03575212 | AM13: =SUM(AF13:AL13) -> 121.9908364 | AN13: =+SUMIFS(AM$12:AM$1011,$L$12:$L$1011,$L13) -> 121.9908364 | AP13: ='[4]Calc| Project Costs'!AD11 -> 0 | AQ13: ='[4]Calc| Project Costs'!AE11 -> 0 | AR13: ='[4]Calc| Project Costs'!AF11 -> 0 | AS13: ='[4]Calc| Project Costs'!AG11 -> 0 | AT13: ='[4]Calc| Project Costs'!AH11 -> 0 | AU13: ='[4]Calc| Project Costs'!AI11 -> 0 | AV13: ='[4]Calc| Project Costs'!AJ11 -> 0 | AW13: =SUM(AR13:AV13) -> 0 | AY13: ='[4]Calc| Project Costs'!AL11 -> 2.341432146 | AZ13: ='[4]Calc| Project Costs'!AM11 -> 2.074251756 | BA13: ='[4]Calc| Project Costs'!AN11 -> 1.802931029 | BB13: ='[4]Calc| Project Costs'!AO11 -> 1.835291558 | BC13: ='[4]Calc| Project Costs'!AP11 -> 1.850376297 | BD13: ='[4]Calc| Project Costs'!AQ11 -> 1.947750909 | BE13: ='[4]Calc| Project Costs'!AR11 -> 2.22941753 | BF13: =SUM(BA13:BE13) -> 9.665767323 | BH13: ='[4]Calc| Project Costs'!BJ11 -> 0 | BI13: ='[4]Calc| Project Costs'!BK11 -> 0 | BJ13: ='[4]Calc| Project Costs'!BL11 -> 0 | BK13: ='[4]Calc| Project Costs'!BM11 -> 0 | BL13: ='[4]Calc| Project Costs'!BN11 -> 0 | BM13: ='[4]Calc| Project Costs'!BO11 -> 0 | BN13: ='[4]Calc| Project Costs'!BP11 -> 0 | BO13: =SUM(BJ13:BN13) -> 0 | BQ13: ='[4]Input| Projects'!Y11 -> 0.6182578624 | BR13: ='[4]Input| Projects'!Z11 -> 0.107044332 | BS13: ='[4]Input| Projects'!AA11 -> 0.2746978056 | BT13: =+_xlfn.SWITCH(TRUE,LEN(L13)>0,IF(SUM(BQ13:BS13)<>1,1,0), 0) -> 0
D14: ='[4]Calc| Project Costs'!C12 -> Bird/Animal Proofing Net Assets | E14: JEN | F14: $'000s | G14: Real 2026 | H14: End Year | L14: ='[4]Calc| Project Costs'!D12 -> A110 | M14: ='[4]Input| JEN Mapping'!G12 -> Replacement | N14: ='[4]Input| JEN Mapping'!F12 -> Replacement | O14: ='[4]Input| Projects'!G12 -> Distribution system assets | P14: Replacement expenditure | S14: ='[4]Input| JEN Mapping'!H12 -> Non-IT | V14: ='[4]Calc| Project Costs'!V12 -> 33.24075805 | W14: ='[4]Calc| Project Costs'!W12 -> 37.30035474 | X14: ='[4]Calc| Project Costs'!X12 -> 35.81511796 | Y14: ='[4]Calc| Project Costs'!Y12 -> 36.01727142 | Z14: ='[4]Calc| Project Costs'!Z12 -> 36.26736957 | AA14: ='[4]Calc| Project Costs'!AA12 -> 36.56894387 | AB14: ='[4]Calc| Project Costs'!AB12 -> 36.85530938 | AC14: 252.065125 | AD14: 252.065125 | AF14: ='[4]Calc| Project Costs'!BR12 -> 38.72022708 | AG14: ='[4]Calc| Project Costs'!BS12 -> 42.15093862 | AH14: ='[4]Calc| Project Costs'!BT12 -> 40.02899327 | AI14: ='[4]Calc| Project Costs'!BU12 -> 40.30474914 | AJ14: ='[4]Calc| Project Costs'!BV12 -> 40.58758711 | AK14: ='[4]Calc| Project Costs'!BW12 -> 41.11338801 | AL14: ='[4]Calc| Project Costs'!BX12 -> 42.05359696 | AM14: 284.9594802 | AN14: 284.9594802 | AP14: ='[4]Calc| Project Costs'!AD12 -> 0 | AQ14: ='[4]Calc| Project Costs'!AE12 -> 0 | AR14: ='[4]Calc| Project Costs'!AF12 -> 0 | AS14: ='[4]Calc| Project Costs'!AG12 -> 0 | AT14: ='[4]Calc| Project Costs'!AH12 -> 0 | AU14: ='[4]Calc| Project Costs'!AI12 -> 0 | AV14: ='[4]Calc| Project Costs'!AJ12 -> 0 | AW14: 0 | AY14: ='[4]Calc| Project Costs'!AL12 -> 5.479469032 | AZ14: ='[4]Calc| Project Costs'!AM12 -> 4.850583875 | BA14: ='[4]Calc| Project Costs'!AN12 -> 4.213875306 | BB14: ='[4]Calc| Project Costs'!AO12 -> 4.28747772 | BC14: ='[4]Calc| Project Costs'!AP12 -> 4.320217535 | BD14: ='[4]Calc| Project Costs'!AQ12 -> 4.544444142 | BE14: ='[4]Calc| Project Costs'!AR12 -> 5.19828758 | BF14: 22.56430228 | BH14: ='[4]Calc| Project Costs'!BJ12 -> 0 | BI14: ='[4]Calc| Project Costs'!BK12 -> 0 | BJ14: ='[4]Calc| Project Costs'!BL12 -> 0 | BK14: ='[4]Calc| Project Costs'!BM12 -> 0 | BL14: ='[4]Calc| Project Costs'!BN12 -> 0 | BM14: ='[4]Calc| Project Costs'!BO12 -> 0 | BN14: ='[4]Calc| Project Costs'!BP12 -> 0 | BO14: 0 | BQ14: ='[4]Input| Projects'!Y12 -> 0.5275922981 | BR14: ='[4]Input| Projects'!Z12 -> 0.1398786569 | BS14: ='[4]Input| Projects'!AA12 -> 0.332529045 | BT14: =+_xlfn.SWITCH(TRUE,LEN(L14)>0,IF(SUM(BQ14:BS14)<>1,1,0), 0) -> 0
D15: ='[4]Calc| Project Costs'!C13 -> Trans Pole Mounted Repl | E15: JEN | F15: $'000s | G15: Real 2026 | H15: End Year | L15: ='[4]Calc| Project Costs'!D13 -> A140 | M15: ='[4]Input| JEN Mapping'!G13 -> Replacement | N15: ='[4]Input| JEN Mapping'!F13 -> Replacement | O15: ='[4]Input| Projects'!G13 -> Distribution system assets | P15: Replacement expenditure | S15: ='[4]Input| JEN Mapping'!H13 -> Non-IT | V15: ='[4]Calc| Project Costs'!V13 -> 797.3645307 | W15: ='[4]Calc| Project Costs'!W13 -> 919.9147639 | X15: ='[4]Calc| Project Costs'!X13 -> 912.9317184 | Y15: ='[4]Calc| Project Costs'!Y13 -> 916.7920124 | Z15: ='[4]Calc| Project Costs'!Z13 -> 921.5678517 | AA15: ='[4]Calc| Project Costs'!AA13 -> 927.3266721 | AB15: ='[4]Calc| Project Costs'!AB13 -> 932.7950676 | AC15: 6328.692617 | AD15: 6328.692617 | AF15: ='[4]Calc| Project Costs'!BR13 -> 928.8035986 | AG15: ='[4]Calc| Project Costs'!BS13 -> 1039.541608 | AH15: ='[4]Calc| Project Costs'!BT13 -> 1020.343913 | AI15: ='[4]Calc| Project Costs'!BU13 -> 1025.926469 | AJ15: ='[4]Calc| Project Costs'!BV13 -> 1031.346246 | AK15: ='[4]Calc| Project Costs'!BW13 -> 1042.566103 | AL15: ='[4]Calc| Project Costs'!BX13 -> 1064.361919 | AM15: 7152.889856 | AN15: 7152.889856 | AP15: ='[4]Calc| Project Costs'!AD13 -> 0 | AQ15: ='[4]Calc| Project Costs'!AE13 -> 0 | AR15: ='[4]Calc| Project Costs'!AF13 -> 0 | AS15: ='[4]Calc| Project Costs'!AG13 -> 0 | AT15: ='[4]Calc| Project Costs'!AH13 -> 0 | AU15: ='[4]Calc| Project Costs'!AI13 -> 0 | AV15: ='[4]Calc| Project Costs'!AJ13 -> 0 | AW15: 0 | AY15: ='[4]Calc| Project Costs'!AL13 -> 131.4390679 | AZ15: ='[4]Calc| Project Costs'!AM13 -> 119.6268441 | BA15: ='[4]Calc| Project Costs'!AN13 -> 107.4121947 | BB15: ='[4]Calc| Project Costs'!AO13 -> 109.1344561 | BC15: ='[4]Calc| Project Costs'!AP13 -> 109.7783942 | BD15: ='[4]Calc| Project Costs'!AQ13 -> 115.2394304 | BE15: ='[4]Calc| Project Costs'!AR13 -> 131.5668515 | BF15: 573.1313269 | BH15: ='[4]Calc| Project Costs'!BJ13 -> 0 | BI15: ='[4]Calc| Project Costs'!BK13 -> 0 | BJ15: ='[4]Calc| Project Costs'!BL13 -> 0 | BK15: ='[4]Calc| Project Costs'!BM13 -> 0 | BL15: ='[4]Calc| Project Costs'!BN13 -> 0 | BM15: ='[4]Calc| Project Costs'!BO13 -> 0 | BN15: ='[4]Calc| Project Costs'!BP13 -> 0 | BO15: 0 | BQ15: ='[4]Input| Projects'!Y13 -> 0.35795902 | BR15: ='[4]Input| Projects'!Z13 -> 0.1390705913 | BS15: ='[4]Input| Projects'!AA13 -> 0.5029703887 | BT15: =+_xlfn.SWITCH(TRUE,LEN(L15)>0,IF(SUM(BQ15:BS15)<>1,1,0), 0) -> 0
D16: ='[4]Calc| Project Costs'!C14 -> Trans Ground/Indoor Repl | E16: JEN | F16: $'000s | G16: Real 2026 | H16: End Year | L16: ='[4]Calc| Project Costs'!D14 -> A243 | M16: ='[4]Input| JEN Mapping'!G14 -> Replacement | N16: ='[4]Input| JEN Mapping'!F14 -> Replacement | O16: ='[4]Input| Projects'!G14 -> Distribution system assets | P16: Replacement expenditure | S16: ='[4]Input| JEN Mapping'!H14 -> Non-IT | V16: ='[4]Calc| Project Costs'!V14 -> 477.3073186 | W16: ='[4]Calc| Project Costs'!W14 -> 414.2685701 | X16: ='[4]Calc| Project Costs'!X14 -> 450.579097 | Y16: ='[4]Calc| Project Costs'!Y14 -> 451.9200725 | Z16: ='[4]Calc| Project Costs'!Z14 -> 453.5790869 | AA16: ='[4]Calc| Project Costs'!AA14 -> 455.5795659 | AB16: ='[4]Calc| Project Costs'!AB14 -> 457.479158 | AC16: 3160.712869 | AD16: 3160.712869 | AF16: ='[4]Calc| Project Costs'!BR14 -> 555.9875541 | AG16: ='[4]Calc| Project Costs'!BS14 -> 468.140563 | AH16: ='[4]Calc| Project Costs'!BT14 -> 503.5925795 | AI16: ='[4]Calc| Project Costs'!BU14 -> 505.7164087 | AJ16: ='[4]Calc| Project Costs'!BV14 -> 507.6100339 | AK16: ='[4]Calc| Project Costs'!BW14 -> 512.1947062 | AL16: ='[4]Calc| Project Costs'!BX14 -> 522.0046841 | AM16: 3575.24653 | AN16: 3575.24653 | AP16: ='[4]Calc| Project Costs'!AD14 -> 0 | AQ16: ='[4]Calc| Project Costs'!AE14 -> 0 | AR16: ='[4]Calc| Project Costs'!AF14 -> 0 | AS16: ='[4]Calc| Project Costs'!AG14 -> 0 | AT16: ='[4]Calc| Project Costs'!AH14 -> 0 | AU16: ='[4]Calc| Project Costs'!AI14 -> 0 | AV16: ='[4]Calc| Project Costs'!AJ14 -> 0 | AW16: 0 | AY16: ='[4]Calc| Project Costs'!AL14 -> 78.68023548 | AZ16: ='[4]Calc| Project Costs'!AM14 -> 53.87199291 | BA16: ='[4]Calc| Project Costs'!AN14 -> 53.01348253 | BB16: ='[4]Calc| Project Costs'!AO14 -> 53.7963362 | BC16: ='[4]Calc| Project Costs'!AP14 -> 54.03094704 | BD16: ='[4]Calc| Project Costs'!AQ14 -> 56.61514033 | BE16: ='[4]Calc| Project Costs'!AR14 -> 64.52552606 | BF16: 281.9814322 | BH16: ='[4]Calc| Project Costs'!BJ14 -> 0 | BI16: ='[4]Calc| Project Costs'!BK14 -> 0 | BJ16: ='[4]Calc| Project Costs'!BL14 -> 0 | BK16: ='[4]Calc| Project Costs'!BM14 -> 0 | BL16: ='[4]Calc| Project Costs'!BN14 -> 0 | BM16: ='[4]Calc| Project Costs'!BO14 -> 0 | BN16: ='[4]Calc| Project Costs'!BP14 -> 0 | BO16: 0 | BQ16: ='[4]Input| Projects'!Y14 -> 0.2893376929 | BR16: ='[4]Input| Projects'!Z14 -> 0.05863726527 | BS16: ='[4]Input| Projects'!AA14 -> 0.6520250419 | BT16: =+_xlfn.SWITCH(TRUE,LEN(L16)>0,IF(SUM(BQ16:BS16)<>1,1,0), 0) -> 0
D17: ='[4]Calc| Project Costs'!C15 -> Indoor/Kiosk Switch Repl | E17: JEN | F17: $'000s | G17: Real 2026 | H17: End Year | L17: ='[4]Calc| Project Costs'!D15 -> A143 | M17: ='[4]Input| JEN Mapping'!G15 -> Replacement | N17: ='[4]Input| JEN Mapping'!F15 -> Replacement | O17: ='[4]Input| Projects'!G15 -> Distribution system assets | P17: Replacement expenditure | S17: ='[4]Input| JEN Mapping'!H15 -> Non-IT | V17: ='[4]Calc| Project Costs'!V15 -> 114.0233663 | W17: ='[4]Calc| Project Costs'!W15 -> 0 | X17: ='[4]Calc| Project Costs'!X15 -> 230.0773032 | Y17: ='[4]Calc| Project Costs'!Y15 -> 346.2710852 | Z17: ='[4]Calc| Project Costs'!Z15 -> 347.7001777 | AA17: ='[4]Calc| Project Costs'!AA15 -> 349.4234114 | AB17: ='[4]Calc| Project Costs'!AB15 -> 351.0597401 | AC17: 1738.555084 | AD17: 1738.555084 | AF17: ='[4]Calc| Project Costs'!BR15 -> 132.8191923 | AG17: ='[4]Calc| Project Costs'!BS15 -> 0 | AH17: ='[4]Calc| Project Costs'!BT15 -> 257.1473541 | AI17: ='[4]Calc| Project Costs'!BU15 -> 387.4910196 | AJ17: ='[4]Calc| Project Costs'!BV15 -> 389.1186876 | AK17: ='[4]Calc| Project Costs'!BW15 -> 392.846464 | AL17: ='[4]Calc| Project Costs'!BX15 -> 400.5752513 | AM17: 1959.997969 | AN17: 1959.997969 | AP17: ='[4]Calc| Project Costs'!AD15 -> 0 | AQ17: ='[4]Calc| Project Costs'!AE15 -> 0 | AR17: ='[4]Calc| Project Costs'!AF15 -> 0 | AS17: ='[4]Calc| Project Costs'!AG15 -> 0 | AT17: ='[4]Calc| Project Costs'!AH15 -> 0 | AU17: ='[4]Calc| Project Costs'!AI15 -> 0 | AV17: ='[4]Calc| Project Costs'!AJ15 -> 0 | AW17: 0 | AY17: ='[4]Calc| Project Costs'!AL15 -> 18.795826 | AZ17: ='[4]Calc| Project Costs'!AM15 -> 0 | BA17: ='[4]Calc| Project Costs'!AN15 -> 27.07005091 | BB17: ='[4]Calc| Project Costs'!AO15 -> 41.21993435 | BC17: ='[4]Calc| Project Costs'!AP15 -> 41.41850987 | BD17: ='[4]Calc| Project Costs'!AQ15 -> 43.42305264 | BE17: ='[4]Calc| Project Costs'!AR15 -> 49.51551127 | BF17: 202.647059 | BH17: ='[4]Calc| Project Costs'!BJ15 -> 0 | BI17: ='[4]Calc| Project Costs'!BK15 ->  | BJ17: ='[4]Calc| Project Costs'!BL15 -> 0 | BK17: ='[4]Calc| Project Costs'!BM15 -> 0 | BL17: ='[4]Calc| Project Costs'!BN15 -> 0 | BM17: ='[4]Calc| Project Costs'!BO15 -> 0 | BN17: ='[4]Calc| Project Costs'!BP15 -> 0 | BO17: 0 | BQ17: ='[4]Input| Projects'!Y15 -> 0.3367240405 | BR17: ='[4]Input| Projects'!Z15 -> 0.05523869757 | BS17: ='[4]Input| Projects'!AA15 -> 0.608037262 | BT17: =+_xlfn.SWITCH(TRUE,LEN(L17)>0,IF(SUM(BQ17:BS17)<>1,1,0), 0) -> 0
D18: ='[4]Calc| Project Costs'!C16 -> LV Switchgear Replacement | E18: JEN | F18: $'000s | G18: Real 2026 | H18: End Year | L18: ='[4]Calc| Project Costs'!D16 -> A142 | M18: ='[4]Input| JEN Mapping'!G16 -> Replacement | N18: ='[4]Input| JEN Mapping'!F16 -> Replacement | O18: ='[4]Input| Projects'!G16 -> Distribution system assets | P18: Replacement expenditure | S18: ='[4]Input| JEN Mapping'!H16 -> Non-IT | V18: ='[4]Calc| Project Costs'!V16 -> 17.3151266 | W18: ='[4]Calc| Project Costs'!W16 -> 34.77937849 | X18: ='[4]Calc| Project Costs'!X16 -> 34.83995106 | Y18: ='[4]Calc| Project Costs'!Y16 -> 35.03984649 | Z18: ='[4]Calc| Project Costs'!Z16 -> 35.28715108 | AA18: ='[4]Calc| Project Costs'!AA16 -> 35.58535683 | AB18: ='[4]Calc| Project Costs'!AB16 -> 35.86852367 | AC18: 228.7153342 | AD18: 228.7153342 | AF18: ='[4]Calc| Project Costs'!BR16 -> 20.16938461 | AG18: ='[4]Calc| Project Costs'!BS16 -> 39.30213152 | AH18: ='[4]Calc| Project Costs'!BT16 -> 38.93909181 | AI18: ='[4]Calc| Project Costs'!BU16 -> 39.21097204 | AJ18: ='[4]Calc| Project Costs'!BV16 -> 39.49060368 | AK18: ='[4]Calc| Project Costs'!BW16 -> 40.00757003 | AL18: ='[4]Calc| Project Costs'!BX16 -> 40.92762925 | AM18: 258.0473829 | AN18: 258.0473829 | AP18: ='[4]Calc| Project Costs'!AD16 -> 0 | AQ18: ='[4]Calc| Project Costs'!AE16 -> 0 | AR18: ='[4]Calc| Project Costs'!AF16 -> 0 | AS18: ='[4]Calc| Project Costs'!AG16 -> 0 | AT18: ='[4]Calc| Project Costs'!AH16 -> 0 | AU18: ='[4]Calc| Project Costs'!AI16 -> 0 | AV18: ='[4]Calc| Project Costs'!AJ16 -> 0 | AW18: 0 | AY18: ='[4]Calc| Project Costs'!AL16 -> 2.854258012 | AZ18: ='[4]Calc| Project Costs'!AM16 -> 4.522753032 | BA18: ='[4]Calc| Project Costs'!AN16 -> 4.099140748 | BB18: ='[4]Calc| Project Costs'!AO16 -> 4.171125552 | BC18: ='[4]Calc| Project Costs'!AP16 -> 4.203452598 | BD18: ='[4]Calc| Project Costs'!AQ16 -> 4.422213202 | BE18: ='[4]Calc| Project Costs'!AR16 -> 5.059105575 | BF18: 21.95503768 | BH18: ='[4]Calc| Project Costs'!BJ16 -> 0 | BI18: ='[4]Calc| Project Costs'!BK16 -> 0 | BJ18: ='[4]Calc| Project Costs'!BL16 -> 0 | BK18: ='[4]Calc| Project Costs'!BM16 -> 0 | BL18: ='[4]Calc| Project Costs'!BN16 -> 0 | BM18: ='[4]Calc| Project Costs'!BO16 -> 0 | BN18: ='[4]Calc| Project Costs'!BP16 -> 0 | BO18: 0 | BQ18: ='[4]Input| Projects'!Y16 -> 0.6787591652 | BR18: ='[4]Input| Projects'!Z16 -> 0 | BS18: ='[4]Input| Projects'!AA16 -> 0.3212408348 | BT18: =+_xlfn.SWITCH(TRUE,LEN(L18)>0,IF(SUM(BQ18:BS18)<>1,1,0), 0) -> 0
D19: ='[4]Calc| Project Costs'!C17 -> Gas Switch Replacement | E19: JEN | F19: $'000s | G19: Real 2026 | H19: End Year | L19: ='[4]Calc| Project Costs'!D17 -> A144 | M19: ='[4]Input| JEN Mapping'!G17 -> Replacement | N19: ='[4]Input| JEN Mapping'!F17 -> Replacement | O19: ='[4]Input| Projects'!G17 -> Distribution system assets | P19: Replacement expenditure | S19: ='[4]Input| JEN Mapping'!H17 -> Non-IT | V19: ='[4]Calc| Project Costs'!V17 -> 226.0081235 | W19: ='[4]Calc| Project Costs'!W17 -> 0 | X19: ='[4]Calc| Project Costs'!X17 -> 370.5303019 | Y19: ='[4]Calc| Project Costs'!Y17 -> 779.0551791 | Z19: ='[4]Calc| Project Costs'!Z17 -> 783.8642853 | AA19: ='[4]Calc| Project Costs'!AA17 -> 789.6632197 | AB19: ='[4]Calc| Project Costs'!AB17 -> 795.1697062 | AC19: 3744.290816 | AD19: 3744.290816 | AF19: ='[4]Calc| Project Costs'!BR17 -> 263.2637274 | AG19: ='[4]Calc| Project Costs'!BS17 -> 0 | AH19: ='[4]Calc| Project Costs'!BT17 -> 414.125537 | AI19: ='[4]Calc| Project Costs'!BU17 -> 871.7935124 | AJ19: ='[4]Calc| Project Costs'!BV17 -> 877.2392466 | AK19: ='[4]Calc| Project Costs'!BW17 -> 887.795132 | AL19: ='[4]Calc| Project Costs'!BX17 -> 907.3250748 | AM19: 4221.54223 | AN19: 4221.54223 | AP19: ='[4]Calc| Project Costs'!AD17 -> 0 | AQ19: ='[4]Calc| Project Costs'!AE17 -> 0 | AR19: ='[4]Calc| Project Costs'!AF17 -> 0 | AS19: ='[4]Calc| Project Costs'!AG17 -> 0 | AT19: ='[4]Calc| Project Costs'!AH17 -> 0 | AU19: ='[4]Calc| Project Costs'!AI17 -> 0 | AV19: ='[4]Calc| Project Costs'!AJ17 -> 0 | AW19: 0 | AY19: ='[4]Calc| Project Costs'!AL17 -> 37.25560386 | AZ19: ='[4]Calc| Project Costs'!AM17 -> 0 | BA19: ='[4]Calc| Project Costs'!AN17 -> 43.59523514 | BB19: ='[4]Calc| Project Costs'!AO17 -> 92.73833335 | BC19: ='[4]Calc| Project Costs'!AP17 -> 93.3749613 | BD19: ='[4]Calc| Project Costs'!AQ17 -> 98.13191229 | BE19: ='[4]Calc| Project Costs'!AR17 -> 112.1553686 | BF19: 439.9958107 | BH19: ='[4]Calc| Project Costs'!BJ17 -> 0 | BI19: ='[4]Calc| Project Costs'!BK17 ->  | BJ19: ='[4]Calc| Project Costs'!BL17 -> 0 | BK19: ='[4]Calc| Project Costs'!BM17 -> 0 | BL19: ='[4]Calc| Project Costs'!BN17 -> 0 | BM19: ='[4]Calc| Project Costs'!BO17 -> 0 | BN19: ='[4]Calc| Project Costs'!BP17 -> 0 | BO19: 0 | BQ19: ='[4]Input| Projects'!Y17 -> 0.4661741506 | BR19: ='[4]Input| Projects'!Z17 -> 0.1252386906 | BS19: ='[4]Input| Projects'!AA17 -> 0.4085871588 | BT19: =+_xlfn.SWITCH(TRUE,LEN(L19)>0,IF(SUM(BQ19:BS19)<>1,1,0), 0) -> 0
D20: ='[4]Calc| Project Costs'!C18 -> HV Isolators Replacement | E20: JEN | F20: $'000s | G20: Real 2026 | H20: End Year | L20: ='[4]Calc| Project Costs'!D18 -> A147 | M20: ='[4]Input| JEN Mapping'!G18 -> Replacement | N20: ='[4]Input| JEN Mapping'!F18 -> Replacement | O20: ='[4]Input| Projects'!G18 -> Distribution system assets | P20: Replacement expenditure | S20: ='[4]Input| JEN Mapping'!H18 -> Non-IT | V20: ='[4]Calc| Project Costs'!V18 -> 326.4691111 | W20: ='[4]Calc| Project Costs'!W18 -> 446.8276526 | X20: ='[4]Calc| Project Costs'!X18 -> 521.1281006 | Y20: ='[4]Calc| Project Costs'!Y18 -> 524.4975719 | Z20: ='[4]Calc| Project Costs'!Z18 -> 528.6661801 | AA20: ='[4]Calc| Project Costs'!AA18 -> 533.6927869 | AB20: ='[4]Calc| Project Costs'!AB18 -> 538.4658952 | AC20: 3419.747298 | AD20: 3419.747298 | AF20: ='[4]Calc| Project Costs'!BR18 -> 380.284893 | AG20: ='[4]Calc| Project Costs'!BS18 -> 504.9336685 | AH20: ='[4]Calc| Project Costs'!BT18 -> 582.4421199 | AI20: ='[4]Calc| Project Costs'!BU18 -> 586.9334968 | AJ20: ='[4]Calc| Project Costs'!BV18 -> 591.6416021 | AK20: ='[4]Calc| Project Costs'!BW18 -> 600.0151031 | AL20: ='[4]Calc| Project Costs'!BX18 -> 614.4142626 | AM20: 3860.665146 | AN20: 3860.665146 | AP20: ='[4]Calc| Project Costs'!AD18 -> 0 | AQ20: ='[4]Calc| Project Costs'!AE18 -> 0 | AR20: ='[4]Calc| Project Costs'!AF18 -> 0 | AS20: ='[4]Calc| Project Costs'!AG18 -> 0 | AT20: ='[4]Calc| Project Costs'!AH18 -> 0 | AU20: ='[4]Calc| Project Costs'!AI18 -> 0 | AV20: ='[4]Calc| Project Costs'!AJ18 -> 0 | AW20: 0 | AY20: ='[4]Calc| Project Costs'!AL18 -> 53.81578187 | AZ20: ='[4]Calc| Project Costs'!AM18 -> 58.10601592 | BA20: ='[4]Calc| Project Costs'!AN18 -> 61.31401932 | BB20: ='[4]Calc| Project Costs'!AO18 -> 62.43592492 | BC20: ='[4]Calc| Project Costs'!AP18 -> 62.97542194 | BD20: ='[4]Calc| Project Costs'!AQ18 -> 66.3223162 | BE20: ='[4]Calc| Project Costs'!AR18 -> 75.94836736 | BF20: 328.9960497 | BH20: ='[4]Calc| Project Costs'!BJ18 -> 0 | BI20: ='[4]Calc| Project Costs'!BK18 -> 0 | BJ20: ='[4]Calc| Project Costs'!BL18 -> 0 | BK20: ='[4]Calc| Project Costs'!BM18 -> 0 | BL20: ='[4]Calc| Project Costs'!BN18 -> 0 | BM20: ='[4]Calc| Project Costs'!BO18 -> 0 | BN20: ='[4]Calc| Project Costs'!BP18 -> 0 | BO20: 0 | BQ20: ='[4]Input| Projects'!Y18 -> 0.5386705125 | BR20: ='[4]Input| Projects'!Z18 -> 0.2286211396 | BS20: ='[4]Input| Projects'!AA18 -> 0.2327083479 | BT20: =+_xlfn.SWITCH(TRUE,LEN(L20)>0,IF(SUM(BQ20:BS20)<>1,1,0), 0) -> 0
D21: ='[4]Calc| Project Costs'!C19 -> Transformer/Subs Kiosk Repl | E21: JEN | F21: $'000s | G21: Real 2026 | H21: End Year | L21: ='[4]Calc| Project Costs'!D19 -> A148 | M21: ='[4]Input| JEN Mapping'!G19 -> Replacement | N21: ='[4]Input| JEN Mapping'!F19 -> Replacement | O21: ='[4]Input| Projects'!G19 -> Distribution system assets | P21: Replacement expenditure | S21: ='[4]Input| JEN Mapping'!H19 -> Non-IT | V21: ='[4]Calc| Project Costs'!V19 -> 264.6735724 | W21: ='[4]Calc| Project Costs'!W19 -> 265.623394 | X21: ='[4]Calc| Project Costs'!X19 -> 527.7335498 | Y21: ='[4]Calc| Project Costs'!Y19 -> 528.9615104 | Z21: ='[4]Calc| Project Costs'!Z19 -> 530.4807063 | AA21: ='[4]Calc| Project Costs'!AA19 -> 532.3125887 | AB21: ='[4]Calc| Project Costs'!AB19 -> 534.0520868 | AC21: 3183.837409 | AD21: 3183.837409 | AF21: ='[4]Calc| Project Costs'!BR19 -> 308.3028616 | AG21: ='[4]Calc| Project Costs'!BS19 -> 300.1653859 | AH21: ='[4]Calc| Project Costs'!BT19 -> 589.824742 | AI21: ='[4]Calc| Project Costs'!BU19 -> 591.9288203 | AJ21: ='[4]Calc| Project Costs'!BV19 -> 593.672277 | AK21: ='[4]Calc| Project Costs'!BW19 -> 598.4633868 | AL21: ='[4]Calc| Project Costs'!BX19 -> 609.3779049 | AM21: 3591.735379 | AN21: 3591.735379 | AP21: ='[4]Calc| Project Costs'!AD19 -> 0 | AQ21: ='[4]Calc| Project Costs'!AE19 -> 0 | AR21: ='[4]Calc| Project Costs'!AF19 -> 0 | AS21: ='[4]Calc| Project Costs'!AG19 -> 0 | AT21: ='[4]Calc| Project Costs'!AH19 -> 0 | AU21: ='[4]Calc| Project Costs'!AI19 -> 0 | AV21: ='[4]Calc| Project Costs'!AJ19 -> 0 | AW21: 0 | AY21: ='[4]Calc| Project Costs'!AL19 -> 43.62928913 | AZ21: ='[4]Calc| Project Costs'!AM19 -> 34.54199191 | BA21: ='[4]Calc| Project Costs'!AN19 -> 62.09119222 | BB21: ='[4]Calc| Project Costs'!AO19 -> 62.96730989 | BC21: ='[4]Calc| Project Costs'!AP19 -> 63.19157072 | BD21: ='[4]Calc| Project Costs'!AQ19 -> 66.15079816 | BE21: ='[4]Calc| Project Costs'!AR19 -> 75.3258181 | BF21: 329.7266891 | BH21: ='[4]Calc| Project Costs'!BJ19 -> 0 | BI21: ='[4]Calc| Project Costs'!BK19 -> 0 | BJ21: ='[4]Calc| Project Costs'!BL19 -> 0 | BK21: ='[4]Calc| Project Costs'!BM19 -> 0 | BL21: ='[4]Calc| Project Costs'!BN19 -> 0 | BM21: ='[4]Calc| Project Costs'!BO19 -> 0 | BN21: ='[4]Calc| Project Costs'!BP19 -> 0 | BO21: 0 | BQ21: ='[4]Input| Projects'!Y19 -> 0.1989005701 | BR21: ='[4]Input| Projects'!Z19 -> 0.07241785301 | BS21: ='[4]Input| Projects'!AA19 -> 0.7286815769 | BT21: =+_xlfn.SWITCH(TRUE,LEN(L21)>0,IF(SUM(BQ21:BS21)<>1,1,0), 0) -> 0
D22: ='[4]Calc| Project Costs'!C20 -> LV Isolator Replacement | E22: JEN | F22: $'000s | G22: Real 2026 | H22: End Year | L22: ='[4]Calc| Project Costs'!D20 -> A149 | M22: ='[4]Input| JEN Mapping'!G20 -> Replacement | N22: ='[4]Input| JEN Mapping'!F20 -> Replacement | O22: ='[4]Input| Projects'!G20 -> Distribution system assets | P22: Replacement expenditure | S22: ='[4]Input| JEN Mapping'!H20 -> Non-IT | V22: ='[4]Calc| Project Costs'!V20 -> 374.5055234 | W22: ='[4]Calc| Project Costs'!W20 -> 442.0060746 | X22: ='[4]Calc| Project Costs'!X20 -> 455.6282402 | Y22: ='[4]Calc| Project Costs'!Y20 -> 457.9993259 | Z22: ='[4]Calc| Project Costs'!Z20 -> 461.2073063 | AA22: ='[4]Calc| Project Costs'!AA20 -> 466.2761089 | AB22: ='[4]Calc| Project Costs'!AB20 -> 470.8961437 | AC22: 3128.518723 | AD22: 3128.518723 | AF22: ='[4]Calc| Project Costs'!BR20 -> 436.2397178 | AG22: ='[4]Calc| Project Costs'!BS20 -> 499.4850866 | AH22: ='[4]Calc| Project Costs'!BT20 -> 509.2357864 | AI22: ='[4]Calc| Project Costs'!BU20 -> 512.5193333 | AJ22: ='[4]Calc| Project Costs'!BV20 -> 516.146937 | AK22: ='[4]Calc| Project Costs'!BW20 -> 524.220515 | AL22: ='[4]Calc| Project Costs'!BX20 -> 537.3140796 | AM22: 3535.161456 | AN22: 3535.161456 | AP22: ='[4]Calc| Project Costs'!AD20 -> 0 | AQ22: ='[4]Calc| Project Costs'!AE20 -> 0 | AR22: ='[4]Calc| Project Costs'!AF20 -> 0 | AS22: ='[4]Calc| Project Costs'!AG20 -> 0 | AT22: ='[4]Calc| Project Costs'!AH20 -> 0 | AU22: ='[4]Calc| Project Costs'!AI20 -> 0 | AV22: ='[4]Calc| Project Costs'!AJ20 -> 0 | AW22: 0 | AY22: ='[4]Calc| Project Costs'!AL20 -> 61.73419436 | AZ22: ='[4]Calc| Project Costs'!AM20 -> 57.479012 | BA22: ='[4]Calc| Project Costs'!AN20 -> 53.60754619 | BB22: ='[4]Calc| Project Costs'!AO20 -> 54.52000744 | BC22: ='[4]Calc| Project Costs'!AP20 -> 54.93963073 | BD22: ='[4]Calc| Project Costs'!AQ20 -> 57.94440603 | BE22: ='[4]Calc| Project Costs'!AR20 -> 66.4179359 | BF22: 287.4295263 | BH22: ='[4]Calc| Project Costs'!BJ20 -> 0 | BI22: ='[4]Calc| Project Costs'!BK20 -> 0 | BJ22: ='[4]Calc| Project Costs'!BL20 -> 0 | BK22: ='[4]Calc| Project Costs'!BM20 -> 0 | BL22: ='[4]Calc| Project Costs'!BN20 -> 0 | BM22: ='[4]Calc| Project Costs'!BO20 -> 0 | BN22: ='[4]Calc| Project Costs'!BP20 -> 0 | BO22: 0 | BQ22: ='[4]Input| Projects'!Y20 -> 0.7064313244 | BR22: ='[4]Input| Projects'!Z20 -> 0.06937119387 | BS22: ='[4]Input| Projects'!AA20 -> 0.2241974817 | BT22: =+_xlfn.SWITCH(TRUE,LEN(L22)>0,IF(SUM(BQ22:BS22)<>1,1,0), 0) -> 0
D23: ='[4]Calc| Project Costs'!C21 -> Kiosk Refurbishment | E23: JEN | F23: $'000s | G23: Real 2026 | H23: End Year | L23: ='[4]Calc| Project Costs'!D21 -> A108 | M23: ='[4]Input| JEN Mapping'!G21 -> Replacement | N23: ='[4]Input| JEN Mapping'!F21 -> Replacement | O23: ='[4]Input| Projects'!G21 -> Distribution system assets | P23: Replacement expenditure | S23: ='[4]Input| JEN Mapping'!H21 -> Non-IT | V23: ='[4]Calc| Project Costs'!V21 -> 77.3580673 | W23: ='[4]Calc| Project Costs'!W21 -> 77.25195142 | X23: ='[4]Calc| Project Costs'!X21 -> 77.84396306 | Y23: ='[4]Calc| Project Costs'!Y21 -> 78.3802079 | Z23: ='[4]Calc| Project Costs'!Z21 -> 79.04363383 | AA23: ='[4]Calc| Project Costs'!AA21 -> 79.84360858 | AB23: ='[4]Calc| Project Costs'!AB21 -> 80.60323954 | AC23: 550.3246716 | AD23: 550.3246716 | AF23: ='[4]Calc| Project Costs'!BR21 -> 90.1099165 | AG23: ='[4]Calc| Project Costs'!BS21 -> 87.29788993 | AH23: ='[4]Calc| Project Costs'!BT21 -> 87.002798 | AI23: ='[4]Calc| Project Costs'!BU21 -> 87.71054809 | AJ23: ='[4]Calc| Project Costs'!BV21 -> 88.45941714 | AK23: ='[4]Calc| Project Costs'!BW21 -> 89.76582073 | AL23: ='[4]Calc| Project Costs'!BX21 -> 91.9719901 | AM23: 622.3183805 | AN23: 622.3183805 | AP23: ='[4]Calc| Project Costs'!AD21 -> 0 | AQ23: ='[4]Calc| Project Costs'!AE21 -> 0 | AR23: ='[4]Calc| Project Costs'!AF21 -> 0 | AS23: ='[4]Calc| Project Costs'!AG21 -> 0 | AT23: ='[4]Calc| Project Costs'!AH21 -> 0 | AU23: ='[4]Calc| Project Costs'!AI21 -> 0 | AV23: ='[4]Calc| Project Costs'!AJ21 -> 0 | AW23: 0 | AY23: ='[4]Calc| Project Costs'!AL21 -> 12.75184921 | AZ23: ='[4]Calc| Project Costs'!AM21 -> 10.0459385 | BA23: ='[4]Calc| Project Costs'!AN21 -> 9.158834937 | BB23: ='[4]Calc| Project Costs'!AO21 -> 9.330340191 | BC23: ='[4]Calc| Project Costs'!AP21 -> 9.415783304 | BD23: ='[4]Calc| Project Costs'!AQ21 -> 9.922212151 | BE23: ='[4]Calc| Project Costs'!AR21 -> 11.36875056 | BF23: 49.19592114 | BH23: ='[4]Calc| Project Costs'!BJ21 -> 0 | BI23: ='[4]Calc| Project Costs'!BK21 -> 0 | BJ23: ='[4]Calc| Project Costs'!BL21 -> 0 | BK23: ='[4]Calc| Project Costs'!BM21 -> 0 | BL23: ='[4]Calc| Project Costs'!BN21 -> 0 | BM23: ='[4]Calc| Project Costs'!BO21 -> 0 | BN23: ='[4]Calc| Project Costs'!BP21 -> 0 | BO23: 0 | BQ23: ='[4]Input| Projects'!Y21 -> 0.7471338853 | BR23: ='[4]Input| Projects'!Z21 -> 0.07183830982 | BS23: ='[4]Input| Projects'!AA21 -> 0.1810278049 | BT23: =+_xlfn.SWITCH(TRUE,LEN(L23)>0,IF(SUM(BQ23:BS23)<>1,1,0), 0) -> 0
D24: ='[4]Calc| Project Costs'!C22 -> Service Fault Replacement | E24: JEN | F24: $'000s | G24: Real 2026 | H24: End Year | L24: ='[4]Calc| Project Costs'!D22 -> A152 | M24: ='[4]Input| JEN Mapping'!G22 -> Replacement | N24: ='[4]Input| JEN Mapping'!F22 -> Replacement | O24: ='[4]Input| Projects'!G22 -> Distribution system assets | P24: Replacement expenditure | S24: ='[4]Input| JEN Mapping'!H22 -> Non-IT | V24: ='[4]Calc| Project Costs'!V22 -> 581.1416044 | W24: ='[4]Calc| Project Costs'!W22 -> 590.1549023 | X24: ='[4]Calc| Project Costs'!X22 -> 863.0494375 | Y24: ='[4]Calc| Project Costs'!Y22 -> 868.9123871 | Z24: ='[4]Calc| Project Costs'!Z22 -> 876.5792147 | AA24: ='[4]Calc| Project Costs'!AA22 -> 869.3369595 | AB24: ='[4]Calc| Project Costs'!AB22 -> 855.6422976 | AC24: 5504.816803 | AD24: 5504.816803 | AF24: ='[4]Calc| Project Costs'!BR22 -> 676.9380787 | AG24: ='[4]Calc| Project Costs'!BS22 -> 666.8993695 | AH24: ='[4]Calc| Project Costs'!BT22 -> 964.5926662 | AI24: ='[4]Calc| Project Costs'!BU22 -> 972.3472769 | AJ24: ='[4]Calc| Project Costs'!BV22 -> 980.9985023 | AK24: ='[4]Calc| Project Costs'!BW22 -> 977.3699743 | AL24: ='[4]Calc| Project Costs'!BX22 -> 976.3270729 | AM24: 6215.472941 | AN24: 6215.472941 | AP24: ='[4]Calc| Project Costs'!AD22 -> 0 | AQ24: ='[4]Calc| Project Costs'!AE22 -> 0 | AR24: ='[4]Calc| Project Costs'!AF22 -> 0 | AS24: ='[4]Calc| Project Costs'!AG22 -> 0 | AT24: ='[4]Calc| Project Costs'!AH22 -> 0 | AU24: ='[4]Calc| Project Costs'!AI22 -> 0 | AV24: ='[4]Calc| Project Costs'!AJ22 -> 0 | AW24: 0 | AY24: ='[4]Calc| Project Costs'!AL22 -> 95.79647432 | AZ24: ='[4]Calc| Project Costs'!AM22 -> 76.74446725 | BA24: ='[4]Calc| Project Costs'!AN22 -> 101.5432287 | BB24: ='[4]Calc| Project Costs'!AO22 -> 103.4348898 | BC24: ='[4]Calc| Project Costs'!AP22 -> 104.4192876 | BD24: ='[4]Calc| Project Costs'!AQ22 -> 108.0330147 | BE24: ='[4]Calc| Project Costs'!AR22 -> 120.6847753 | BF24: 538.1151961 | BH24: ='[4]Calc| Project Costs'!BJ22 -> 0 | BI24: ='[4]Calc| Project Costs'!BK22 -> 0 | BJ24: ='[4]Calc| Project Costs'!BL22 -> 0 | BK24: ='[4]Calc| Project Costs'!BM22 -> 0 | BL24: ='[4]Calc| Project Costs'!BN22 -> 0 | BM24: ='[4]Calc| Project Costs'!BO22 -> 0 | BN24: ='[4]Calc| Project Costs'!BP22 -> 0 | BO24: 0 | BQ24: ='[4]Input| Projects'!Y22 -> 0.853997688 | BR24: ='[4]Input| Projects'!Z22 -> 0.03307109494 | BS24: ='[4]Input| Projects'!AA22 -> 0.112931217 | BT24: =+_xlfn.SWITCH(TRUE,LEN(L24)>0,IF(SUM(BQ24:BS24)<>1,1,0), 0) -> 0
D25: ='[4]Calc| Project Costs'!C23 -> Replace Serv and Alter Terms | E25: JEN | F25: $'000s | G25: Real 2026 | H25: End Year | L25: ='[4]Calc| Project Costs'!D23 -> A153 | M25: ='[4]Input| JEN Mapping'!G23 -> Replacement | N25: ='[4]Input| JEN Mapping'!F23 -> Replacement | O25: ='[4]Input| Projects'!G23 -> Distribution system assets | P25: Replacement expenditure | S25: ='[4]Input| JEN Mapping'!H23 -> Non-IT | V25: ='[4]Calc| Project Costs'!V23 -> 613.489785 | W25: ='[4]Calc| Project Costs'!W23 -> 582.4860891 | X25: ='[4]Calc| Project Costs'!X23 -> 575.8251878 | Y25: ='[4]Calc| Project Costs'!Y23 -> 577.5081485 | Z25: ='[4]Calc| Project Costs'!Z23 -> 579.5902568 | AA25: ='[4]Calc| Project Costs'!AA23 -> 582.1009124 | AB25: ='[4]Calc| Project Costs'!AB23 -> 584.4849524 | AC25: 4095.485332 | AD25: 4095.485332 | AF25: ='[4]Calc| Project Costs'!BR23 -> 714.6185942 | AG25: ='[4]Calc| Project Costs'!BS23 -> 658.2332945 | AH25: ='[4]Calc| Project Costs'!BT23 -> 643.5746656 | AI25: ='[4]Calc| Project Costs'!BU23 -> 646.2544256 | AJ25: ='[4]Calc| Project Costs'!BV23 -> 648.6318228 | AK25: ='[4]Calc| Project Costs'!BW23 -> 654.4389349 | AL25: ='[4]Calc| Project Costs'!BX23 -> 666.9241157 | AM25: 4632.675853 | AN25: 4632.675853 | AP25: ='[4]Calc| Project Costs'!AD23 -> 0 | AQ25: ='[4]Calc| Project Costs'!AE23 -> 0 | AR25: ='[4]Calc| Project Costs'!AF23 -> 0 | AS25: ='[4]Calc| Project Costs'!AG23 -> 0 | AT25: ='[4]Calc| Project Costs'!AH23 -> 0 | AU25: ='[4]Calc| Project Costs'!AI23 -> 0 | AV25: ='[4]Calc| Project Costs'!AJ23 -> 0 | AW25: 0 | AY25: ='[4]Calc| Project Costs'!AL23 -> 101.1288092 | AZ25: ='[4]Calc| Project Costs'!AM23 -> 75.74720538 | BA25: ='[4]Calc| Project Costs'!AN23 -> 67.7494778 | BB25: ='[4]Calc| Project Costs'!AO23 -> 68.74627707 | BC25: ='[4]Calc| Project Costs'!AP23 -> 69.04156602 | BD25: ='[4]Calc| Project Costs'!AQ23 -> 72.33802241 | BE25: ='[4]Calc| Project Costs'!AR23 -> 82.43916332 | BF25: 360.3145066 | BH25: ='[4]Calc| Project Costs'!BJ23 -> 0 | BI25: ='[4]Calc| Project Costs'!BK23 -> 0 | BJ25: ='[4]Calc| Project Costs'!BL23 -> 0 | BK25: ='[4]Calc| Project Costs'!BM23 -> 0 | BL25: ='[4]Calc| Project Costs'!BN23 -> 0 | BM25: ='[4]Calc| Project Costs'!BO23 -> 0 | BN25: ='[4]Calc| Project Costs'!BP23 -> 0 | BO25: 0 | BQ25: ='[4]Input| Projects'!Y23 -> 0.3154907908 | BR25: ='[4]Input| Projects'!Z23 -> 0.02616092155 | BS25: ='[4]Input| Projects'!AA23 -> 0.6583482877 | BT25: =+_xlfn.SWITCH(TRUE,LEN(L25)>0,IF(SUM(BQ25:BS25)<>1,1,0), 0) -> 0
D26: ='[4]Calc| Project Costs'!C24 -> Install Disconnect Device | E26: JEN | F26: $'000s | G26: Real 2026 | H26: End Year | L26: ='[4]Calc| Project Costs'!D24 -> A155 | M26: ='[4]Input| JEN Mapping'!G24 -> Replacement | N26: ='[4]Input| JEN Mapping'!F24 -> Replacement | O26: ='[4]Input| Projects'!G24 -> Distribution system assets | P26: Replacement expenditure | S26: ='[4]Input| JEN Mapping'!H24 -> Non-IT | V26: ='[4]Calc| Project Costs'!V24 -> 9.98276972 | W26: ='[4]Calc| Project Costs'!W24 -> 25.57338644 | X26: ='[4]Calc| Project Costs'!X24 -> 43.28096066 | Y26: ='[4]Calc| Project Costs'!Y24 -> 43.58678115 | Z26: ='[4]Calc| Project Costs'!Z24 -> 43.96513303 | AA26: ='[4]Calc| Project Costs'!AA24 -> 29.69819272 | AB26: ='[4]Calc| Project Costs'!AB24 -> 13.75258237 | AC26: 209.8398061 | AD26: 209.8398061 | AF26: ='[4]Calc| Project Costs'!BR24 -> 11.62834824 | AG26: ='[4]Calc| Project Costs'!BS24 -> 28.89898097 | AH26: ='[4]Calc| Project Costs'!BT24 -> 48.37323961 | AI26: ='[4]Calc| Project Costs'!BU24 -> 48.77532947 | AJ26: ='[4]Calc| Project Costs'!BV24 -> 49.20231844 | AK26: ='[4]Calc| Project Costs'!BW24 -> 33.38880458 | AL26: ='[4]Calc| Project Costs'!BX24 -> 15.69232672 | AM26: 235.959348 | AN26: 235.959348 | AP26: ='[4]Calc| Project Costs'!AD24 -> 0 | AQ26: ='[4]Calc| Project Costs'!AE24 -> 0 | AR26: ='[4]Calc| Project Costs'!AF24 -> 0 | AS26: ='[4]Calc| Project Costs'!AG24 -> 0 | AT26: ='[4]Calc| Project Costs'!AH24 -> 0 | AU26: ='[4]Calc| Project Costs'!AI24 -> 0 | AV26: ='[4]Calc| Project Costs'!AJ24 -> 0 | AW26: 0 | AY26: ='[4]Calc| Project Costs'!AL24 -> 1.645578523 | AZ26: ='[4]Calc| Project Costs'!AM24 -> 3.325594535 | BA26: ='[4]Calc| Project Costs'!AN24 -> 5.092278951 | BB26: ='[4]Calc| Project Costs'!AO24 -> 5.188548319 | BC26: ='[4]Calc| Project Costs'!AP24 -> 5.237185406 | BD26: ='[4]Calc| Project Costs'!AQ24 -> 3.690611859 | BE26: ='[4]Calc| Project Costs'!AR24 -> 1.93974435 | BF26: 21.14836889 | BH26: ='[4]Calc| Project Costs'!BJ24 -> 0 | BI26: ='[4]Calc| Project Costs'!BK24 -> 0 | BJ26: ='[4]Calc| Project Costs'!BL24 -> 0 | BK26: ='[4]Calc| Project Costs'!BM24 -> 0 | BL26: ='[4]Calc| Project Costs'!BN24 -> 0 | BM26: ='[4]Calc| Project Costs'!BO24 -> 0 | BN26: ='[4]Calc| Project Costs'!BP24 -> 0 | BO26: 0 | BQ26: ='[4]Input| Projects'!Y24 -> 0.3608276729 | BR26: ='[4]Input| Projects'!Z24 -> 0.4798531438 | BS26: ='[4]Input| Projects'!AA24 -> 0.1593191833 | BT26: =+_xlfn.SWITCH(TRUE,LEN(L26)>0,IF(SUM(BQ26:BS26)<>1,1,0), 0) -> 0
D27: ='[4]Calc| Project Costs'!C25 -> Replace Services - Planned | E27: JEN | F27: $'000s | G27: Real 2026 | H27: End Year | L27: ='[4]Calc| Project Costs'!D25 -> A156 | M27: ='[4]Input| JEN Mapping'!G25 -> Replacement | N27: ='[4]Input| JEN Mapping'!F25 -> Replacement | O27: ='[4]Input| Projects'!G25 -> Distribution system assets | P27: Replacement expenditure | S27: ='[4]Input| JEN Mapping'!H25 -> Non-IT | V27: ='[4]Calc| Project Costs'!V25 -> 668.0715454 | W27: ='[4]Calc| Project Costs'!W25 -> 659.208171 | X27: ='[4]Calc| Project Costs'!X25 -> 482.1983835 | Y27: ='[4]Calc| Project Costs'!Y25 -> 669.4804313 | Z27: ='[4]Calc| Project Costs'!Z25 -> 675.5206217 | AA27: ='[4]Calc| Project Costs'!AA25 -> 682.8040267 | AB27: ='[4]Calc| Project Costs'!AB25 -> 689.7201199 | AC27: 4527.0033 | AD27: 4527.0033 | AF27: ='[4]Calc| Project Costs'!BR25 -> 778.1977145 | AG27: ='[4]Calc| Project Costs'!BS25 -> 744.93241 | AH27: ='[4]Calc| Project Costs'!BT25 -> 538.9320752 | AI27: ='[4]Calc| Project Costs'!BU25 -> 749.1750423 | AJ27: ='[4]Calc| Project Costs'!BV25 -> 755.989541 | AK27: ='[4]Calc| Project Costs'!BW25 -> 767.6564843 | AL27: ='[4]Calc| Project Costs'!BX25 -> 787.0022644 | AM27: 5121.885532 | AN27: 5121.885532 | AP27: ='[4]Calc| Project Costs'!AD25 -> 0 | AQ27: ='[4]Calc| Project Costs'!AE25 -> 0 | AR27: ='[4]Calc| Project Costs'!AF25 -> 0 | AS27: ='[4]Calc| Project Costs'!AG25 -> 0 | AT27: ='[4]Calc| Project Costs'!AH25 -> 0 | AU27: ='[4]Calc| Project Costs'!AI25 -> 0 | AV27: ='[4]Calc| Project Costs'!AJ25 -> 0 | AW27: 0 | AY27: ='[4]Calc| Project Costs'!AL25 -> 110.1261692 | AZ27: ='[4]Calc| Project Costs'!AM25 -> 85.724239 | BA27: ='[4]Calc| Project Costs'!AN25 -> 56.73369171 | BB27: ='[4]Calc| Project Costs'!AO25 -> 79.69461096 | BC27: ='[4]Calc| Project Costs'!AP25 -> 80.46891929 | BD27: ='[4]Calc| Project Costs'!AQ25 -> 84.85245759 | BE27: ='[4]Calc| Project Costs'!AR25 -> 97.28214453 | BF27: 399.0318241 | BH27: ='[4]Calc| Project Costs'!BJ25 -> 0 | BI27: ='[4]Calc| Project Costs'!BK25 -> 0 | BJ27: ='[4]Calc| Project Costs'!BL25 -> 0 | BK27: ='[4]Calc| Project Costs'!BM25 -> 0 | BL27: ='[4]Calc| Project Costs'!BN25 -> 0 | BM27: ='[4]Calc| Project Costs'!BO25 -> 0 | BN27: ='[4]Calc| Project Costs'!BP25 -> 0 | BO27: 0 | BQ27: ='[4]Input| Projects'!Y25 -> 0.3128564302 | BR27: ='[4]Input| Projects'!Z25 -> 0.5622215209 | BS27: ='[4]Input| Projects'!AA25 -> 0.1249220489 | BT27: =+_xlfn.SWITCH(TRUE,LEN(L27)>0,IF(SUM(BQ27:BS27)<>1,1,0), 0) -> 0
D28: ='[4]Calc| Project Costs'!C26 -> HV Open Wire Conductor Repl | E28: JEN | F28: $'000s | G28: Real 2026 | H28: End Year | L28: ='[4]Calc| Project Costs'!D26 -> A159 | M28: ='[4]Input| JEN Mapping'!G26 -> Replacement | N28: ='[4]Input| JEN Mapping'!F26 -> Replacement | O28: ='[4]Input| Projects'!G26 -> Distribution system assets | P28: Replacement expenditure | S28: ='[4]Input| JEN Mapping'!H26 -> Non-IT | V28: ='[4]Calc| Project Costs'!V26 -> 59.15174872 | W28: ='[4]Calc| Project Costs'!W26 -> 74.08155848 | X28: ='[4]Calc| Project Costs'!X26 -> 79.91864497 | Y28: ='[4]Calc| Project Costs'!Y26 -> 80.46411953 | Z28: ='[4]Calc| Project Costs'!Z26 -> 81.13896419 | AA28: ='[4]Calc| Project Costs'!AA26 -> 121.1261023 | AB28: ='[4]Calc| Project Costs'!AB26 -> 165.4508269 | AC28: 661.3319651 | AD28: 661.3319651 | AF28: ='[4]Calc| Project Costs'!BR26 -> 68.90243416 | AG28: ='[4]Calc| Project Costs'!BS26 -> 83.7152152 | AH28: ='[4]Calc| Project Costs'!BT26 -> 89.32157937 | AI28: ='[4]Calc| Project Costs'!BU26 -> 90.0425275 | AJ28: ='[4]Calc| Project Costs'!BV26 -> 90.80434605 | AK28: ='[4]Calc| Project Costs'!BW26 -> 136.1785142 | AL28: ='[4]Calc| Project Costs'!BX26 -> 188.7869756 | AM28: 747.7515921 | AN28: 747.7515921 | AP28: ='[4]Calc| Project Costs'!AD26 -> 0 | AQ28: ='[4]Calc| Project Costs'!AE26 -> 0 | AR28: ='[4]Calc| Project Costs'!AF26 -> 0 | AS28: ='[4]Calc| Project Costs'!AG26 -> 0 | AT28: ='[4]Calc| Project Costs'!AH26 -> 0 | AU28: ='[4]Calc| Project Costs'!AI26 -> 0 | AV28: ='[4]Calc| Project Costs'!AJ26 -> 0 | AW28: 0 | AY28: ='[4]Calc| Project Costs'!AL26 -> 9.750685434 | AZ28: ='[4]Calc| Project Costs'!AM26 -> 9.633656717 | BA28: ='[4]Calc| Project Costs'!AN26 -> 9.402934395 | BB28: ='[4]Calc| Project Costs'!AO26 -> 9.578407974 | BC28: ='[4]Calc| Project Costs'!AP26 -> 9.665381857 | BD28: ='[4]Calc| Project Costs'!AQ26 -> 15.0524119 | BE28: ='[4]Calc| Project Costs'!AR26 -> 23.33614867 | BF28: 67.03528479 | BH28: ='[4]Calc| Project Costs'!BJ26 -> 0 | BI28: ='[4]Calc| Project Costs'!BK26 -> 0 | BJ28: ='[4]Calc| Project Costs'!BL26 -> 0 | BK28: ='[4]Calc| Project Costs'!BM26 -> 0 | BL28: ='[4]Calc| Project Costs'!BN26 -> 0 | BM28: ='[4]Calc| Project Costs'!BO26 -> 0 | BN28: ='[4]Calc| Project Costs'!BP26 -> 0 | BO28: 0 | BQ28: ='[4]Input| Projects'!Y26 -> 0.6155629548 | BR28: ='[4]Input| Projects'!Z26 -> 0.1956582601 | BS28: ='[4]Input| Projects'!AA26 -> 0.1887787851 | BT28: =+_xlfn.SWITCH(TRUE,LEN(L28)>0,IF(SUM(BQ28:BS28)<>1,1,0), 0) -> 0
D29: ='[4]Calc| Project Costs'!C27 -> LV Open Wire Conductor Repl | E29: JEN | F29: $'000s | G29: Real 2026 | H29: End Year | L29: ='[4]Calc| Project Costs'!D27 -> A164 | M29: ='[4]Input| JEN Mapping'!G27 -> Replacement | N29: ='[4]Input| JEN Mapping'!F27 -> Replacement | O29: ='[4]Input| Projects'!G27 -> Distribution system assets | P29: Replacement expenditure | S29: ='[4]Input| JEN Mapping'!H27 -> Non-IT | V29: ='[4]Calc| Project Costs'!V27 -> 262.1719791 | W29: ='[4]Calc| Project Costs'!W27 -> 361.8453433 | X29: ='[4]Calc| Project Costs'!X27 -> 424.8448935 | Y29: ='[4]Calc| Project Costs'!Y27 -> 427.6653085 | Z29: ='[4]Calc| Project Costs'!Z27 -> 431.1546408 | AA29: ='[4]Calc| Project Costs'!AA27 -> 435.3621606 | AB29: ='[4]Calc| Project Costs'!AB27 -> 439.3574896 | AC29: 2782.401815 | AD29: 2782.401815 | AF29: ='[4]Calc| Project Costs'!BR27 -> 305.3889009 | AG29: ='[4]Calc| Project Costs'!BS27 -> 408.9001555 | AH29: ='[4]Calc| Project Costs'!BT27 -> 474.8305841 | AI29: ='[4]Calc| Project Costs'!BU27 -> 478.5743699 | AJ29: ='[4]Calc| Project Costs'!BV27 -> 482.5143579 | AK29: ='[4]Calc| Project Costs'!BW27 -> 489.4648721 | AL29: ='[4]Calc| Project Costs'!BX27 -> 501.32703 | AM29: 3141.00027 | AN29: 3141.00027 | AP29: ='[4]Calc| Project Costs'!AD27 -> 0 | AQ29: ='[4]Calc| Project Costs'!AE27 -> 0 | AR29: ='[4]Calc| Project Costs'!AF27 -> 0 | AS29: ='[4]Calc| Project Costs'!AG27 -> 0 | AT29: ='[4]Calc| Project Costs'!AH27 -> 0 | AU29: ='[4]Calc| Project Costs'!AI27 -> 0 | AV29: ='[4]Calc| Project Costs'!AJ27 -> 0 | AW29: 0 | AY29: ='[4]Calc| Project Costs'!AL27 -> 43.21692179 | AZ29: ='[4]Calc| Project Costs'!AM27 -> 47.0548122 | BA29: ='[4]Calc| Project Costs'!AN27 -> 49.98569061 | BB29: ='[4]Calc| Project Costs'!AO27 -> 50.90906139 | BC29: ='[4]Calc| Project Costs'!AP27 -> 51.35971706 | BD29: ='[4]Calc| Project Costs'!AQ27 -> 54.10271151 | BE29: ='[4]Calc| Project Costs'!AR27 -> 61.96954036 | BF29: 268.3267209 | BH29: ='[4]Calc| Project Costs'!BJ27 -> 0 | BI29: ='[4]Calc| Project Costs'!BK27 -> 0 | BJ29: ='[4]Calc| Project Costs'!BL27 -> 0 | BK29: ='[4]Calc| Project Costs'!BM27 -> 0 | BL29: ='[4]Calc| Project Costs'!BN27 -> 0 | BM29: ='[4]Calc| Project Costs'!BO27 -> 0 | BN29: ='[4]Calc| Project Costs'!BP27 -> 0 | BO29: 0 | BQ29: ='[4]Input| Projects'!Y27 -> 0.6089901404 | BR29: ='[4]Input| Projects'!Z27 -> 0.179411971 | BS29: ='[4]Input| Projects'!AA27 -> 0.2115978885 | BT29: =+_xlfn.SWITCH(TRUE,LEN(L29)>0,IF(SUM(BQ29:BS29)<>1,1,0), 0) -> 0
D30: ='[4]Calc| Project Costs'!C28 -> Pole Replacement (Incl. Pole Top) - HV | E30: JEN | F30: $'000s | G30: Real 2026 | H30: End Year | L30: ='[4]Calc| Project Costs'!D28 -> A166 | M30: ='[4]Input| JEN Mapping'!G28 -> Replacement | N30: ='[4]Input| JEN Mapping'!F28 -> Replacement | O30: ='[4]Input| Projects'!G28 -> Distribution system assets | P30: Replacement expenditure | S30: ='[4]Input| JEN Mapping'!H28 -> Non-IT | V30: ='[4]Calc| Project Costs'!V28 -> 3305.680293 | W30: ='[4]Calc| Project Costs'!W28 -> 3343.259666 | X30: ='[4]Calc| Project Costs'!X28 -> 3490.278325 | Y30: ='[4]Calc| Project Costs'!Y28 -> 3514.007479 | Z30: ='[4]Calc| Project Costs'!Z28 -> 3543.364472 | AA30: ='[4]Calc| Project Costs'!AA28 -> 3578.763832 | AB30: ='[4]Calc| Project Costs'!AB28 -> 3612.377955 | AC30: 24387.73202 | AD30: 24387.73202 | AF30: ='[4]Calc| Project Costs'!BR28 -> 3850.594845 | AG30: ='[4]Calc| Project Costs'!BS28 -> 3778.021254 | AH30: ='[4]Calc| Project Costs'!BT28 -> 3900.93166 | AI30: ='[4]Calc| Project Costs'!BU28 -> 3932.313147 | AJ30: ='[4]Calc| Project Costs'!BV28 -> 3965.454784 | AK30: ='[4]Calc| Project Costs'!BW28 -> 4023.498916 | AL30: ='[4]Calc| Project Costs'!BX28 -> 4121.88879 | AM30: 27572.7034 | AN30: 27572.7034 | AP30: ='[4]Calc| Project Costs'!AD28 -> 0 | AQ30: ='[4]Calc| Project Costs'!AE28 -> 0 | AR30: ='[4]Calc| Project Costs'!AF28 -> 0 | AS30: ='[4]Calc| Project Costs'!AG28 -> 0 | AT30: ='[4]Calc| Project Costs'!AH28 -> 0 | AU30: ='[4]Calc| Project Costs'!AI28 -> 0 | AV30: ='[4]Calc| Project Costs'!AJ28 -> 0 | AW30: 0 | AY30: ='[4]Calc| Project Costs'!AL28 -> 544.9145524 | AZ30: ='[4]Calc| Project Costs'!AM28 -> 434.7615871 | BA30: ='[4]Calc| Project Costs'!AN28 -> 410.6533353 | BB30: ='[4]Calc| Project Costs'!AO28 -> 418.3056678 | BC30: ='[4]Calc| Project Costs'!AP28 -> 422.0903116 | BD30: ='[4]Calc| Project Costs'!AQ28 -> 444.7350841 | BE30: ='[4]Calc| Project Costs'!AR28 -> 509.5108351 | BF30: 2205.295234 | BH30: ='[4]Calc| Project Costs'!BJ28 -> 0 | BI30: ='[4]Calc| Project Costs'!BK28 -> 0 | BJ30: ='[4]Calc| Project Costs'!BL28 -> 0 | BK30: ='[4]Calc| Project Costs'!BM28 -> 0 | BL30: ='[4]Calc| Project Costs'!BN28 -> 0 | BM30: ='[4]Calc| Project Costs'!BO28 -> 0 | BN30: ='[4]Calc| Project Costs'!BP28 -> 0 | BO30: 0 | BQ30: ='[4]Input| Projects'!Y28 -> 0.4967632744 | BR30: ='[4]Input| Projects'!Z28 -> 0.3111882358 | BS30: ='[4]Input| Projects'!AA28 -> 0.1920484898 | BT30: =+_xlfn.SWITCH(TRUE,LEN(L30)>0,IF(SUM(BQ30:BS30)<>1,1,0), 0) -> 0
D31: ='[4]Calc| Project Costs'!C29 -> Pole Replacement (Incl. Pole Top) - LV | E31: JEN | F31: $'000s | G31: Real 2026 | H31: End Year | L31: ='[4]Calc| Project Costs'!D29 -> A170 | M31: ='[4]Input| JEN Mapping'!G29 -> Replacement | N31: ='[4]Input| JEN Mapping'!F29 -> Replacement | O31: ='[4]Input| Projects'!G29 -> Distribution system assets | P31: Replacement expenditure | S31: ='[4]Input| JEN Mapping'!H29 -> Non-IT | V31: ='[4]Calc| Project Costs'!V29 -> 1820.315066 | W31: ='[4]Calc| Project Costs'!W29 -> 1860.340008 | X31: ='[4]Calc| Project Costs'!X29 -> 1982.319883 | Y31: ='[4]Calc| Project Costs'!Y29 -> 1996.2299 | Z31: ='[4]Calc| Project Costs'!Z29 -> 2013.438952 | AA31: ='[4]Calc| Project Costs'!AA29 -> 2034.190036 | AB31: ='[4]Calc| Project Costs'!AB29 -> 2053.894615 | AC31: 13760.72846 | AD31: 13760.72846 | AF31: ='[4]Calc| Project Costs'!BR29 -> 2120.379223 | AG31: ='[4]Calc| Project Costs'!BS29 -> 2102.260904 | AH31: ='[4]Calc| Project Costs'!BT29 -> 2215.552364 | AI31: ='[4]Calc| Project Costs'!BU29 -> 2233.860094 | AJ31: ='[4]Calc| Project Costs'!BV29 -> 2253.282491 | AK31: ='[4]Calc| Project Costs'!BW29 -> 2286.980027 | AL31: ='[4]Calc| Project Costs'!BX29 -> 2343.587879 | AM31: 15555.90298 | AN31: 15555.90298 | AP31: ='[4]Calc| Project Costs'!AD29 -> 0 | AQ31: ='[4]Calc| Project Costs'!AE29 -> 0 | AR31: ='[4]Calc| Project Costs'!AF29 -> 0 | AS31: ='[4]Calc| Project Costs'!AG29 -> 0 | AT31: ='[4]Calc| Project Costs'!AH29 -> 0 | AU31: ='[4]Calc| Project Costs'!AI29 -> 0 | AV31: ='[4]Calc| Project Costs'!AJ29 -> 0 | AW31: 0 | AY31: ='[4]Calc| Project Costs'!AL29 -> 300.0641568 | AZ31: ='[4]Calc| Project Costs'!AM29 -> 241.9208961 | BA31: ='[4]Calc| Project Costs'!AN29 -> 233.2324806 | BB31: ='[4]Calc| Project Costs'!AO29 -> 237.6301947 | BC31: ='[4]Calc| Project Costs'!AP29 -> 239.8435389 | BD31: ='[4]Calc| Project Costs'!AQ29 -> 252.789991 | BE31: ='[4]Calc| Project Costs'!AR29 -> 289.693264 | BF31: 1253.189469 | BH31: ='[4]Calc| Project Costs'!BJ29 -> 0 | BI31: ='[4]Calc| Project Costs'!BK29 -> 0 | BJ31: ='[4]Calc| Project Costs'!BL29 -> 0 | BK31: ='[4]Calc| Project Costs'!BM29 -> 0 | BL31: ='[4]Calc| Project Costs'!BN29 -> 0 | BM31: ='[4]Calc| Project Costs'!BO29 -> 0 | BN31: ='[4]Calc| Project Costs'!BP29 -> 0 | BO31: 0 | BQ31: ='[4]Input| Projects'!Y29 -> 0.5142390664 | BR31: ='[4]Input| Projects'!Z29 -> 0.320448873 | BS31: ='[4]Input| Projects'!AA29 -> 0.1653120605 | BT31: =+_xlfn.SWITCH(TRUE,LEN(L31)>0,IF(SUM(BQ31:BS31)<>1,1,0), 0) -> 0
D32: ='[4]Calc| Project Costs'!C30 -> Pole Replacement (Incl. Pole Top) - ST | E32: JEN | F32: $'000s | G32: Real 2026 | H32: End Year | L32: ='[4]Calc| Project Costs'!D30 -> A171 | M32: ='[4]Input| JEN Mapping'!G30 -> Replacement | N32: ='[4]Input| JEN Mapping'!F30 -> Replacement | O32: ='[4]Input| Projects'!G30 -> Subtransmission | P32: Replacement expenditure | S32: ='[4]Input| JEN Mapping'!H30 -> Non-IT | V32: ='[4]Calc| Project Costs'!V30 -> 220.4937203 | W32: ='[4]Calc| Project Costs'!W30 -> 217.0967486 | X32: ='[4]Calc| Project Costs'!X30 -> 362.2323026 | Y32: ='[4]Calc| Project Costs'!Y30 -> 395.4011495 | Z32: ='[4]Calc| Project Costs'!Z30 -> 398.524342 | AA32: ='[4]Calc| Project Costs'!AA30 -> 402.2903617 | AB32: ='[4]Calc| Project Costs'!AB30 -> 405.8664561 | AC32: 2401.905081 | AD32: 2401.905081 | AF32: ='[4]Calc| Project Costs'!BR30 -> 256.8403195 | AG32: ='[4]Calc| Project Costs'!BS30 -> 245.328276 | AH32: ='[4]Calc| Project Costs'!BT30 -> 404.8512257 | AI32: ='[4]Calc| Project Costs'!BU30 -> 442.4695017 | AJ32: ='[4]Calc| Project Costs'!BV30 -> 445.9970942 | AK32: ='[4]Calc| Project Costs'!BW30 -> 452.2832213 | AL32: ='[4]Calc| Project Costs'!BX30 -> 463.1122259 | AM32: 2710.881864 | AN32: 2710.881864 | AP32: ='[4]Calc| Project Costs'!AD30 -> 0 | AQ32: ='[4]Calc| Project Costs'!AE30 -> 0 | AR32: ='[4]Calc| Project Costs'!AF30 -> 0 | AS32: ='[4]Calc| Project Costs'!AG30 -> 0 | AT32: ='[4]Calc| Project Costs'!AH30 -> 0 | AU32: ='[4]Calc| Project Costs'!AI30 -> 0 | AV32: ='[4]Calc| Project Costs'!AJ30 -> 0 | AW32: 0 | AY32: ='[4]Calc| Project Costs'!AL30 -> 36.34659926 | AZ32: ='[4]Calc| Project Costs'!AM30 -> 28.23152743 | BA32: ='[4]Calc| Project Costs'!AN30 -> 42.61892301 | BB32: ='[4]Calc| Project Costs'!AO30 -> 47.06835227 | BC32: ='[4]Calc| Project Costs'!AP30 -> 47.47275225 | BD32: ='[4]Calc| Project Costs'!AQ30 -> 49.99285962 | BE32: ='[4]Calc| Project Costs'!AR30 -> 57.24576984 | BF32: 244.398657 | BH32: ='[4]Calc| Project Costs'!BJ30 -> 0 | BI32: ='[4]Calc| Project Costs'!BK30 -> 0 | BJ32: ='[4]Calc| Project Costs'!BL30 -> 0 | BK32: ='[4]Calc| Project Costs'!BM30 -> 0 | BL32: ='[4]Calc| Project Costs'!BN30 -> 0 | BM32: ='[4]Calc| Project Costs'!BO30 -> 0 | BN32: ='[4]Calc| Project Costs'!BP30 -> 0 | BO32: 0 | BQ32: ='[4]Input| Projects'!Y30 -> 0.3737799772 | BR32: ='[4]Input| Projects'!Z30 -> 0.3886179709 | BS32: ='[4]Input| Projects'!AA30 -> 0.2376020519 | BT32: =+_xlfn.SWITCH(TRUE,LEN(L32)>0,IF(SUM(BQ32:BS32)<>1,1,0), 0) -> 0
D33: ='[4]Calc| Project Costs'!C31 -> Pole Reinforcement - HV | E33: JEN | F33: $'000s | G33: Real 2026 | H33: End Year | L33: ='[4]Calc| Project Costs'!D31 -> A32 | M33: ='[4]Input| JEN Mapping'!G31 -> Replacement | N33: ='[4]Input| JEN Mapping'!F31 -> Replacement | O33: ='[4]Input| Projects'!G31 -> Distribution system assets | P33: Replacement expenditure | S33: ='[4]Input| JEN Mapping'!H31 -> Non-IT | V33: ='[4]Calc| Project Costs'!V31 -> 285.0506656 | W33: ='[4]Calc| Project Costs'!W31 -> 326.9464313 | X33: ='[4]Calc| Project Costs'!X31 -> 286.1790331 | Y33: ='[4]Calc| Project Costs'!Y31 -> 309.6777127 | Z33: ='[4]Calc| Project Costs'!Z31 -> 312.1004899 | AA33: ='[4]Calc| Project Costs'!AA31 -> 315.0219322 | AB33: ='[4]Calc| Project Costs'!AB31 -> 317.7960423 | AC33: 2152.772307 | AD33: 2152.772307 | AF33: ='[4]Calc| Project Costs'!BR31 -> 332.0389531 | AG33: ='[4]Calc| Project Costs'!BS31 -> 369.4629461 | AH33: ='[4]Calc| Project Costs'!BT31 -> 319.8498076 | AI33: ='[4]Calc| Project Costs'!BU31 -> 346.5415905 | AJ33: ='[4]Calc| Project Costs'!BV31 -> 349.2783174 | AK33: ='[4]Calc| Project Costs'!BW31 -> 354.1698928 | AL33: ='[4]Calc| Project Costs'!BX31 -> 362.6198478 | AM33: 2433.961355 | AN33: 2433.961355 | AP33: ='[4]Calc| Project Costs'!AD31 -> 0 | AQ33: ='[4]Calc| Project Costs'!AE31 -> 0 | AR33: ='[4]Calc| Project Costs'!AF31 -> 0 | AS33: ='[4]Calc| Project Costs'!AG31 -> 0 | AT33: ='[4]Calc| Project Costs'!AH31 -> 0 | AU33: ='[4]Calc| Project Costs'!AI31 -> 0 | AV33: ='[4]Calc| Project Costs'!AJ31 -> 0 | AW33: 0 | AY33: ='[4]Calc| Project Costs'!AL31 -> 46.98828747 | AZ33: ='[4]Calc| Project Costs'!AM31 -> 42.51651488 | BA33: ='[4]Calc| Project Costs'!AN31 -> 33.6707745 | BB33: ='[4]Calc| Project Costs'!AO31 -> 36.86387784 | BC33: ='[4]Calc| Project Costs'!AP31 -> 37.17782748 | BD33: ='[4]Calc| Project Costs'!AQ31 -> 39.14796061 | BE33: ='[4]Calc| Project Costs'!AR31 -> 44.82380552 | BF33: 191.6842459 | BH33: ='[4]Calc| Project Costs'!BJ31 -> 0 | BI33: ='[4]Calc| Project Costs'!BK31 -> 0 | BJ33: ='[4]Calc| Project Costs'!BL31 -> 0 | BK33: ='[4]Calc| Project Costs'!BM31 -> 0 | BL33: ='[4]Calc| Project Costs'!BN31 -> 0 | BM33: ='[4]Calc| Project Costs'!BO31 -> 0 | BN33: ='[4]Calc| Project Costs'!BP31 -> 0 | BO33: 0 | BQ33: ='[4]Input| Projects'!Y31 -> 0.04441947681 | BR33: ='[4]Input| Projects'!Z31 -> 0.7104697726 | BS33: ='[4]Input| Projects'!AA31 -> 0.2451107506 | BT33: =+_xlfn.SWITCH(TRUE,LEN(L33)>0,IF(SUM(BQ33:BS33)<>1,1,0), 0) -> 0
D34: ='[4]Calc| Project Costs'!C32 -> Pole Reinforcement - LV | E34: JEN | F34: $'000s | G34: Real 2026 | H34: End Year | L34: ='[4]Calc| Project Costs'!D32 -> A175 | M34: ='[4]Input| JEN Mapping'!G32 -> Replacement | N34: ='[4]Input| JEN Mapping'!F32 -> Replacement | O34: ='[4]Input| Projects'!G32 -> Distribution system assets | P34: Replacement expenditure | S34: ='[4]Input| JEN Mapping'!H32 -> Non-IT | V34: ='[4]Calc| Project Costs'!V32 -> 517.2894926 | W34: ='[4]Calc| Project Costs'!W32 -> 521.4776606 | X34: ='[4]Calc| Project Costs'!X32 -> 524.4941534 | Y34: ='[4]Calc| Project Costs'!Y32 -> 527.2264961 | Z34: ='[4]Calc| Project Costs'!Z32 -> 530.6068682 | AA34: ='[4]Calc| Project Costs'!AA32 -> 534.683001 | AB34: ='[4]Calc| Project Costs'!AB32 -> 538.5535691 | AC34: 3694.331241 | AD34: 3694.331241 | AF34: ='[4]Calc| Project Costs'!BR32 -> 602.5604648 | AG34: ='[4]Calc| Project Costs'!BS32 -> 589.2912551 | AH34: ='[4]Calc| Project Costs'!BT32 -> 586.2042101 | AI34: ='[4]Calc| Project Costs'!BU32 -> 589.9872708 | AJ34: ='[4]Calc| Project Costs'!BV32 -> 593.8134674 | AK34: ='[4]Calc| Project Costs'!BW32 -> 601.1283717 | AL34: ='[4]Calc| Project Costs'!BX32 -> 614.5143025 | AM34: 4177.499342 | AN34: 4177.499342 | AP34: ='[4]Calc| Project Costs'!AD32 -> 0 | AQ34: ='[4]Calc| Project Costs'!AE32 -> 0 | AR34: ='[4]Calc| Project Costs'!AF32 -> 0 | AS34: ='[4]Calc| Project Costs'!AG32 -> 0 | AT34: ='[4]Calc| Project Costs'!AH32 -> 0 | AU34: ='[4]Calc| Project Costs'!AI32 -> 0 | AV34: ='[4]Calc| Project Costs'!AJ32 -> 0 | AW34: 0 | AY34: ='[4]Calc| Project Costs'!AL32 -> 85.27097219 | AZ34: ='[4]Calc| Project Costs'!AM32 -> 67.81359451 | BA34: ='[4]Calc| Project Costs'!AN32 -> 61.71005673 | BB34: ='[4]Calc| Project Costs'!AO32 -> 62.76077467 | BC34: ='[4]Calc| Project Costs'!AP32 -> 63.20659929 | BD34: ='[4]Calc| Project Costs'!AQ32 -> 66.4453707 | BE34: ='[4]Calc| Project Costs'!AR32 -> 75.96073339 | BF34: 330.0835348 | BH34: ='[4]Calc| Project Costs'!BJ32 -> 0 | BI34: ='[4]Calc| Project Costs'!BK32 -> 0 | BJ34: ='[4]Calc| Project Costs'!BL32 -> 0 | BK34: ='[4]Calc| Project Costs'!BM32 -> 0 | BL34: ='[4]Calc| Project Costs'!BN32 -> 0 | BM34: ='[4]Calc| Project Costs'!BO32 -> 0 | BN34: ='[4]Calc| Project Costs'!BP32 -> 0 | BO34: 0 | BQ34: ='[4]Input| Projects'!Y32 -> 0.08258288944 | BR34: ='[4]Input| Projects'!Z32 -> 0.5323199852 | BS34: ='[4]Input| Projects'!AA32 -> 0.3850971254 | BT34: =+_xlfn.SWITCH(TRUE,LEN(L34)>0,IF(SUM(BQ34:BS34)<>1,1,0), 0) -> 0
D35: ='[4]Calc| Project Costs'!C33 -> Pole Reinforcement - ST | E35: JEN | F35: $'000s | G35: Real 2026 | H35: End Year | L35: ='[4]Calc| Project Costs'!D33 -> A177 | M35: ='[4]Input| JEN Mapping'!G33 -> Replacement | N35: ='[4]Input| JEN Mapping'!F33 -> Replacement | O35: ='[4]Input| Projects'!G33 -> Subtransmission | P35: Replacement expenditure | S35: ='[4]Input| JEN Mapping'!H33 -> Non-IT | V35: ='[4]Calc| Project Costs'!V33 -> 68.79356823 | W35: ='[4]Calc| Project Costs'!W33 -> 56.58948307 | X35: ='[4]Calc| Project Costs'!X33 -> 46.03558095 | Y35: ='[4]Calc| Project Costs'!Y33 -> 46.33012449 | Z35: ='[4]Calc| Project Costs'!Z33 -> 46.69452486 | AA35: ='[4]Calc| Project Costs'!AA33 -> 47.13392749 | AB35: ='[4]Calc| Project Costs'!AB33 -> 47.55117046 | AC35: 359.1283795 | AD35: 359.1283795 | AF35: ='[4]Calc| Project Costs'!BR33 -> 80.13362931 | AG35: ='[4]Calc| Project Costs'!BS33 -> 63.94844884 | AH35: ='[4]Calc| Project Costs'!BT33 -> 51.45195842 | AI35: ='[4]Calc| Project Costs'!BU33 -> 51.84523901 | AJ35: ='[4]Calc| Project Costs'!BV33 -> 52.25683907 | AK35: ='[4]Calc| Project Costs'!BW33 -> 52.99128835 | AL35: ='[4]Calc| Project Costs'!BX33 -> 54.25806461 | AM35: 406.8854676 | AN35: 406.8854676 | AP35: ='[4]Calc| Project Costs'!AD33 -> 0 | AQ35: ='[4]Calc| Project Costs'!AE33 -> 0 | AR35: ='[4]Calc| Project Costs'!AF33 -> 0 | AS35: ='[4]Calc| Project Costs'!AG33 -> 0 | AT35: ='[4]Calc| Project Costs'!AH33 -> 0 | AU35: ='[4]Calc| Project Costs'!AI33 -> 0 | AV35: ='[4]Calc| Project Costs'!AJ33 -> 0 | AW35: 0 | AY35: ='[4]Calc| Project Costs'!AL33 -> 11.34006108 | AZ35: ='[4]Calc| Project Costs'!AM33 -> 7.358965778 | BA35: ='[4]Calc| Project Costs'!AN33 -> 5.416377464 | BB35: ='[4]Calc| Project Costs'!AO33 -> 5.515114519 | BC35: ='[4]Calc| Project Costs'!AP33 -> 5.562314209 | BD35: ='[4]Calc| Project Costs'!AQ33 -> 5.857360863 | BE35: ='[4]Calc| Project Costs'!AR33 -> 6.706894149 | BF35: 29.0580612 | BH35: ='[4]Calc| Project Costs'!BJ33 -> 0 | BI35: ='[4]Calc| Project Costs'!BK33 -> 0 | BJ35: ='[4]Calc| Project Costs'!BL33 -> 0 | BK35: ='[4]Calc| Project Costs'!BM33 -> 0 | BL35: ='[4]Calc| Project Costs'!BN33 -> 0 | BM35: ='[4]Calc| Project Costs'!BO33 -> 0 | BN35: ='[4]Calc| Project Costs'!BP33 -> 0 | BO35: 0 | BQ35: ='[4]Input| Projects'!Y33 -> 0.5909219026 | BR35: ='[4]Input| Projects'!Z33 -> 0.1681333579 | BS35: ='[4]Input| Projects'!AA33 -> 0.2409447395 | BT35: =+_xlfn.SWITCH(TRUE,LEN(L35)>0,IF(SUM(BQ35:BS35)<>1,1,0), 0) -> 0
D36: ='[4]Calc| Project Costs'!C34 -> HV U/G Cable Replacement | E36: JEN | F36: $'000s | G36: Real 2026 | H36: End Year | L36: ='[4]Calc| Project Costs'!D34 -> A208 | M36: ='[4]Input| JEN Mapping'!G34 -> Replacement | N36: ='[4]Input| JEN Mapping'!F34 -> Replacement | O36: ='[4]Input| Projects'!G34 -> Distribution system assets | P36: Replacement expenditure | S36: ='[4]Input| JEN Mapping'!H34 -> Non-IT | V36: ='[4]Calc| Project Costs'!V34 -> 20.93166595 | W36: ='[4]Calc| Project Costs'!W34 -> 24.02464514 | X36: ='[4]Calc| Project Costs'!X34 -> 185.4505098 | Y36: ='[4]Calc| Project Costs'!Y34 -> 182.9537206 | Z36: ='[4]Calc| Project Costs'!Z34 -> 188.2723947 | AA36: ='[4]Calc| Project Costs'!AA34 -> 186.3266695 | AB36: ='[4]Calc| Project Costs'!AB34 -> 191.9409243 | AC36: 979.90053 | AD36: 979.90053 | AF36: ='[4]Calc| Project Costs'!BR34 -> 24.38208111 | AG36: ='[4]Calc| Project Costs'!BS34 -> 27.14883945 | AH36: ='[4]Calc| Project Costs'!BT34 -> 207.2699361 | AI36: ='[4]Calc| Project Costs'!BU34 -> 204.7324387 | AJ36: ='[4]Calc| Project Costs'!BV34 -> 210.699654 | AK36: ='[4]Calc| Project Costs'!BW34 -> 209.4815942 | AL36: ='[4]Calc| Project Costs'!BX34 -> 219.0133906 | AM36: 1102.727934 | AN36: 1102.727934 | AP36: ='[4]Calc| Project Costs'!AD34 -> 0 | AQ36: ='[4]Calc| Project Costs'!AE34 -> 0 | AR36: ='[4]Calc| Project Costs'!AF34 -> 0 | AS36: ='[4]Calc| Project Costs'!AG34 -> 0 | AT36: ='[4]Calc| Project Costs'!AH34 -> 0 | AU36: ='[4]Calc| Project Costs'!AI34 -> 0 | AV36: ='[4]Calc| Project Costs'!AJ34 -> 0 | AW36: 0 | AY36: ='[4]Calc| Project Costs'!AL34 -> 3.450415157 | AZ36: ='[4]Calc| Project Costs'!AM34 -> 3.124194317 | BA36: ='[4]Calc| Project Costs'!AN34 -> 21.81942622 | BB36: ='[4]Calc| Project Costs'!AO34 -> 21.77871809 | BC36: ='[4]Calc| Project Costs'!AP34 -> 22.42725928 | BD36: ='[4]Calc| Project Costs'!AQ34 -> 23.1549247 | BE36: ='[4]Calc| Project Costs'!AR34 -> 27.07246635 | BF36: 116.2527946 | BH36: ='[4]Calc| Project Costs'!BJ34 -> 0 | BI36: ='[4]Calc| Project Costs'!BK34 -> 0 | BJ36: ='[4]Calc| Project Costs'!BL34 -> 0 | BK36: ='[4]Calc| Project Costs'!BM34 -> 0 | BL36: ='[4]Calc| Project Costs'!BN34 -> 0 | BM36: ='[4]Calc| Project Costs'!BO34 -> 0 | BN36: ='[4]Calc| Project Costs'!BP34 -> 0 | BO36: 0 | BQ36: ='[4]Input| Projects'!Y34 -> 0.3762186697 | BR36: ='[4]Input| Projects'!Z34 -> 0.4320969138 | BS36: ='[4]Input| Projects'!AA34 -> 0.1916844165 | BT36: =+_xlfn.SWITCH(TRUE,LEN(L36)>0,IF(SUM(BQ36:BS36)<>1,1,0), 0) -> 0
D37: ='[4]Calc| Project Costs'!C35 -> LV U/G Cable Replacement | E37: JEN | F37: $'000s | G37: Real 2026 | H37: End Year | L37: ='[4]Calc| Project Costs'!D35 -> A210 | M37: ='[4]Input| JEN Mapping'!G35 -> Replacement | N37: ='[4]Input| JEN Mapping'!F35 -> Replacement | O37: ='[4]Input| Projects'!G35 -> Distribution system assets | P37: Replacement expenditure | S37: ='[4]Input| JEN Mapping'!H35 -> Non-IT | V37: ='[4]Calc| Project Costs'!V35 -> 124.5489623 | W37: ='[4]Calc| Project Costs'!W35 -> 143.3772665 | X37: ='[4]Calc| Project Costs'!X35 -> 141.7005466 | Y37: ='[4]Calc| Project Costs'!Y35 -> 142.665823 | Z37: ='[4]Calc| Project Costs'!Z35 -> 143.8600339 | AA37: ='[4]Calc| Project Costs'!AA35 -> 145.3000418 | AB37: ='[4]Calc| Project Costs'!AB35 -> 146.6674281 | AC37: 988.1201022 | AD37: 988.1201022 | AF37: ='[4]Calc| Project Costs'!BR35 -> 145.0798473 | AG37: ='[4]Calc| Project Costs'!BS35 -> 162.022222 | AH37: ='[4]Calc| Project Costs'!BT35 -> 158.3725127 | AI37: ='[4]Calc| Project Costs'!BU35 -> 159.6486902 | AJ37: ='[4]Calc| Project Costs'!BV35 -> 160.9968334 | AK37: ='[4]Calc| Project Costs'!BW35 -> 163.3565634 | AL37: ='[4]Calc| Project Costs'!BX35 -> 167.3542568 | AM37: 1116.830926 | AN37: 1116.830926 | AP37: ='[4]Calc| Project Costs'!AD35 -> 0 | AQ37: ='[4]Calc| Project Costs'!AE35 -> 0 | AR37: ='[4]Calc| Project Costs'!AF35 -> 0 | AS37: ='[4]Calc| Project Costs'!AG35 -> 0 | AT37: ='[4]Calc| Project Costs'!AH35 -> 0 | AU37: ='[4]Calc| Project Costs'!AI35 -> 0 | AV37: ='[4]Calc| Project Costs'!AJ35 -> 0 | AW37: 0 | AY37: ='[4]Calc| Project Costs'!AL35 -> 20.53088503 | AZ37: ='[4]Calc| Project Costs'!AM35 -> 18.64495557 | BA37: ='[4]Calc| Project Costs'!AN35 -> 16.67196615 | BB37: ='[4]Calc| Project Costs'!AO35 -> 16.98286721 | BC37: ='[4]Calc| Project Costs'!AP35 -> 17.13679951 | BD37: ='[4]Calc| Project Costs'!AQ35 -> 18.05652157 | BE37: ='[4]Calc| Project Costs'!AR35 -> 20.68682866 | BF37: 89.53498309 | BH37: ='[4]Calc| Project Costs'!BJ35 -> 0 | BI37: ='[4]Calc| Project Costs'!BK35 -> 0 | BJ37: ='[4]Calc| Project Costs'!BL35 -> 0 | BK37: ='[4]Calc| Project Costs'!BM35 -> 0 | BL37: ='[4]Calc| Project Costs'!BN35 -> 0 | BM37: ='[4]Calc| Project Costs'!BO35 -> 0 | BN37: ='[4]Calc| Project Costs'!BP35 -> 0 | BO37: 0 | BQ37: ='[4]Input| Projects'!Y35 -> 0.3682398135 | BR37: ='[4]Input| Projects'!Z35 -> 0.4413561595 | BS37: ='[4]Input| Projects'!AA35 -> 0.1904040271 | BT37: =+_xlfn.SWITCH(TRUE,LEN(L37)>0,IF(SUM(BQ37:BS37)<>1,1,0), 0) -> 0
D38: ='[4]Calc| Project Costs'!C36 -> Pillar to Pillar | E38: JEN | F38: $'000s | G38: Real 2026 | H38: End Year | L38: ='[4]Calc| Project Costs'!D36 -> A211 | M38: ='[4]Input| JEN Mapping'!G36 -> Replacement | N38: ='[4]Input| JEN Mapping'!F36 -> Replacement | O38: ='[4]Input| Projects'!G36 -> Distribution system assets | P38: Replacement expenditure | S38: ='[4]Input| JEN Mapping'!H36 -> Non-IT | V38: ='[4]Calc| Project Costs'!V36 -> 36.4129409 | W38: ='[4]Calc| Project Costs'!W36 -> 39.5965934 | X38: ='[4]Calc| Project Costs'!X36 -> 36.9609976 | Y38: ='[4]Calc| Project Costs'!Y36 -> 37.16884621 | Z38: ='[4]Calc| Project Costs'!Z36 -> 37.42599024 | AA38: ='[4]Calc| Project Costs'!AA36 -> 37.73606062 | AB38: ='[4]Calc| Project Costs'!AB36 -> 38.03049374 | AC38: 263.3319227 | AD38: 263.3319227 | AF38: ='[4]Calc| Project Costs'!BR36 -> 42.41531852 | AG38: ='[4]Calc| Project Costs'!BS36 -> 44.74578296 | AH38: ='[4]Calc| Project Costs'!BT36 -> 41.3096929 | AI38: ='[4]Calc| Project Costs'!BU36 -> 41.59340681 | AJ38: ='[4]Calc| Project Costs'!BV36 -> 41.88422422 | AK38: ='[4]Calc| Project Costs'!BW36 -> 42.42554305 | AL38: ='[4]Calc| Project Costs'!BX36 -> 43.39453618 | AM38: 297.7685046 | AN38: 297.7685046 | AP38: ='[4]Calc| Project Costs'!AD36 -> 0 | AQ38: ='[4]Calc| Project Costs'!AE36 -> 0 | AR38: ='[4]Calc| Project Costs'!AF36 -> 0 | AS38: ='[4]Calc| Project Costs'!AG36 -> 0 | AT38: ='[4]Calc| Project Costs'!AH36 -> 0 | AU38: ='[4]Calc| Project Costs'!AI36 -> 0 | AV38: ='[4]Calc| Project Costs'!AJ36 -> 0 | AW38: 0 | AY38: ='[4]Calc| Project Costs'!AL36 -> 6.002377615 | AZ38: ='[4]Calc| Project Costs'!AM36 -> 5.149189566 | BA38: ='[4]Calc| Project Costs'!AN36 -> 4.348695298 | BB38: ='[4]Calc| Project Costs'!AO36 -> 4.4245606 | BC38: ='[4]Calc| Project Costs'!AP36 -> 4.458233978 | BD38: ='[4]Calc| Project Costs'!AQ36 -> 4.689482426 | BE38: ='[4]Calc| Project Costs'!AR36 -> 5.364042431 | BF38: 23.28501473 | BH38: ='[4]Calc| Project Costs'!BJ36 -> 0 | BI38: ='[4]Calc| Project Costs'!BK36 -> 0 | BJ38: ='[4]Calc| Project Costs'!BL36 -> 0 | BK38: ='[4]Calc| Project Costs'!BM36 -> 0 | BL38: ='[4]Calc| Project Costs'!BN36 -> 0 | BM38: ='[4]Calc| Project Costs'!BO36 -> 0 | BN38: ='[4]Calc| Project Costs'!BP36 -> 0 | BO38: 0 | BQ38: ='[4]Input| Projects'!Y36 -> 0.2551456111 | BR38: ='[4]Input| Projects'!Z36 -> 0.4097941075 | BS38: ='[4]Input| Projects'!AA36 -> 0.3350602815 | BT38: =+_xlfn.SWITCH(TRUE,LEN(L38)>0,IF(SUM(BQ38:BS38)<>1,1,0), 0) -> 0
D39: ='[4]Calc| Project Costs'!C37 -> HV U/G Termination Replacement | E39: JEN | F39: $'000s | G39: Real 2026 | H39: End Year | L39: ='[4]Calc| Project Costs'!D37 -> A239 | M39: ='[4]Input| JEN Mapping'!G37 -> Replacement | N39: ='[4]Input| JEN Mapping'!F37 -> Replacement | O39: ='[4]Input| Projects'!G37 -> Distribution system assets | P39: Replacement expenditure | S39: ='[4]Input| JEN Mapping'!H37 -> Non-IT | V39: ='[4]Calc| Project Costs'!V37 -> 448.6286516 | W39: ='[4]Calc| Project Costs'!W37 -> 458.5302872 | X39: ='[4]Calc| Project Costs'!X37 -> 388.1932189 | Y39: ='[4]Calc| Project Costs'!Y37 -> 390.942761 | Z39: ='[4]Calc| Project Costs'!Z37 -> 394.3444115 | AA39: ='[4]Calc| Project Costs'!AA37 -> 398.4462024 | AB39: ='[4]Calc| Project Costs'!AB37 -> 402.3411346 | AC39: 2881.426667 | AD39: 2881.426667 | AF39: ='[4]Calc| Project Costs'!BR37 -> 522.5814418 | AG39: ='[4]Calc| Project Costs'!BS37 -> 518.1581281 | AH39: ='[4]Calc| Project Costs'!BT37 -> 433.866608 | AI39: ='[4]Calc| Project Costs'!BU37 -> 437.4803889 | AJ39: ='[4]Calc| Project Costs'!BV37 -> 441.3192448 | AK39: ='[4]Calc| Project Costs'!BW37 -> 447.9613461 | AL39: ='[4]Calc| Project Costs'!BX37 -> 459.0896725 | AM39: 3260.45683 | AN39: 3260.45683 | AP39: ='[4]Calc| Project Costs'!AD37 -> 0 | AQ39: ='[4]Calc| Project Costs'!AE37 -> 0 | AR39: ='[4]Calc| Project Costs'!AF37 -> 0 | AS39: ='[4]Calc| Project Costs'!AG37 -> 0 | AT39: ='[4]Calc| Project Costs'!AH37 -> 0 | AU39: ='[4]Calc| Project Costs'!AI37 -> 0 | AV39: ='[4]Calc| Project Costs'!AJ37 -> 0 | AW39: 0 | AY39: ='[4]Calc| Project Costs'!AL37 -> 73.95279013 | AZ39: ='[4]Calc| Project Costs'!AM37 -> 59.62784088 | BA39: ='[4]Calc| Project Costs'!AN37 -> 45.67338912 | BB39: ='[4]Calc| Project Costs'!AO37 -> 46.53762797 | BC39: ='[4]Calc| Project Costs'!AP37 -> 46.97483333 | BD39: ='[4]Calc| Project Costs'!AQ37 -> 49.51514368 | BE39: ='[4]Calc| Project Costs'!AR37 -> 56.74853795 | BF39: 245.4495321 | BH39: ='[4]Calc| Project Costs'!BJ37 -> 0 | BI39: ='[4]Calc| Project Costs'!BK37 -> 0 | BJ39: ='[4]Calc| Project Costs'!BL37 -> 0 | BK39: ='[4]Calc| Project Costs'!BM37 -> 0 | BL39: ='[4]Calc| Project Costs'!BN37 -> 0 | BM39: ='[4]Calc| Project Costs'!BO37 -> 0 | BN39: ='[4]Calc| Project Costs'!BP37 -> 0 | BO39: 0 | BQ39: ='[4]Input| Projects'!Y37 -> 0.5360096384 | BR39: ='[4]Input| Projects'!Z37 -> 0.3067535528 | BS39: ='[4]Input| Projects'!AA37 -> 0.1572368088 | BT39: =+_xlfn.SWITCH(TRUE,LEN(L39)>0,IF(SUM(BQ39:BS39)<>1,1,0), 0) -> 0
D40: ='[4]Calc| Project Costs'!C38 -> LV U/G Termination Replacement | E40: JEN | F40: $'000s | G40: Real 2026 | H40: End Year | L40: ='[4]Calc| Project Costs'!D38 -> A213 | M40: ='[4]Input| JEN Mapping'!G38 -> Replacement | N40: ='[4]Input| JEN Mapping'!F38 -> Replacement | O40: ='[4]Input| Projects'!G38 -> Distribution system assets | P40: Replacement expenditure | S40: ='[4]Input| JEN Mapping'!H38 -> Non-IT | V40: ='[4]Calc| Project Costs'!V38 -> 499.5540891 | W40: ='[4]Calc| Project Costs'!W38 -> 548.3273896 | X40: ='[4]Calc| Project Costs'!X38 -> 538.0863619 | Y40: ='[4]Calc| Project Costs'!Y38 -> 539.7405606 | Z40: ='[4]Calc| Project Costs'!Z38 -> 542.8957907 | AA40: ='[4]Calc| Project Costs'!AA38 -> 551.5822396 | AB40: ='[4]Calc| Project Costs'!AB38 -> 559.0505086 | AC40: 3779.23694 | AD40: 3779.23694 | AF40: ='[4]Calc| Project Costs'!BR38 -> 581.9015241 | AG40: ='[4]Calc| Project Costs'!BS38 -> 619.6325558 | AH40: ='[4]Calc| Project Costs'!BT38 -> 601.395628 | AI40: ='[4]Calc| Project Costs'!BU38 -> 603.9910031 | AJ40: ='[4]Calc| Project Costs'!BV38 -> 607.5662628 | AK40: ='[4]Calc| Project Costs'!BW38 -> 620.1276886 | AL40: ='[4]Calc| Project Costs'!BX38 -> 637.9022497 | AM40: 4272.516912 | AN40: 4272.516912 | AP40: ='[4]Calc| Project Costs'!AD38 -> 0 | AQ40: ='[4]Calc| Project Costs'!AE38 -> 0 | AR40: ='[4]Calc| Project Costs'!AF38 -> 0 | AS40: ='[4]Calc| Project Costs'!AG38 -> 0 | AT40: ='[4]Calc| Project Costs'!AH38 -> 0 | AU40: ='[4]Calc| Project Costs'!AI38 -> 0 | AV40: ='[4]Calc| Project Costs'!AJ38 -> 0 | AW40: 0 | AY40: ='[4]Calc| Project Costs'!AL38 -> 82.34743495 | AZ40: ='[4]Calc| Project Costs'!AM38 -> 71.3051662 | BA40: ='[4]Calc| Project Costs'!AN38 -> 63.30926609 | BB40: ='[4]Calc| Project Costs'!AO38 -> 64.25044256 | BC40: ='[4]Calc| Project Costs'!AP38 -> 64.67047217 | BD40: ='[4]Calc| Project Costs'!AQ38 -> 68.54544901 | BE40: ='[4]Calc| Project Costs'!AR38 -> 78.85174116 | BF40: 339.627371 | BH40: ='[4]Calc| Project Costs'!BJ38 -> 0 | BI40: ='[4]Calc| Project Costs'!BK38 -> 0 | BJ40: ='[4]Calc| Project Costs'!BL38 -> 0 | BK40: ='[4]Calc| Project Costs'!BM38 -> 0 | BL40: ='[4]Calc| Project Costs'!BN38 -> 0 | BM40: ='[4]Calc| Project Costs'!BO38 -> 0 | BN40: ='[4]Calc| Project Costs'!BP38 -> 0 | BO40: 0 | BQ40: ='[4]Input| Projects'!Y38 -> 0.4498815265 | BR40: ='[4]Input| Projects'!Z38 -> 0.4627821589 | BS40: ='[4]Input| Projects'!AA38 -> 0.08733631468 | BT40: =+_xlfn.SWITCH(TRUE,LEN(L40)>0,IF(SUM(BQ40:BS40)<>1,1,0), 0) -> 0
D41: ='[4]Calc| Project Costs'!C39 -> Surge Diverter Replacement | E41: JEN | F41: $'000s | G41: Real 2026 | H41: End Year | L41: ='[4]Calc| Project Costs'!D39 -> A216 | M41: ='[4]Input| JEN Mapping'!G39 -> Replacement | N41: ='[4]Input| JEN Mapping'!F39 -> Replacement | O41: ='[4]Input| Projects'!G39 -> Distribution system assets | P41: Replacement expenditure | S41: ='[4]Input| JEN Mapping'!H39 -> Non-IT | V41: ='[4]Calc| Project Costs'!V39 -> 97.69452819 | W41: ='[4]Calc| Project Costs'!W39 -> 127.906153 | X41: ='[4]Calc| Project Costs'!X39 -> 165.4418759 | Y41: ='[4]Calc| Project Costs'!Y39 -> 166.598208 | Z41: ='[4]Calc| Project Costs'!Z39 -> 168.0439413 | AA41: ='[4]Calc| Project Costs'!AA39 -> 169.8303152 | AB41: ='[4]Calc| Project Costs'!AB39 -> 171.5122421 | AC41: 1067.027264 | AD41: 1067.027264 | AF41: ='[4]Calc| Project Costs'!BR39 -> 113.7986778 | AG41: ='[4]Calc| Project Costs'!BS39 -> 144.539226 | AH41: ='[4]Calc| Project Costs'!BT39 -> 184.9071597 | AI41: ='[4]Calc| Project Costs'!BU39 -> 186.4299741 | AJ41: ='[4]Calc| Project Costs'!BV39 -> 188.0615602 | AK41: ='[4]Calc| Project Costs'!BW39 -> 190.9352282 | AL41: ='[4]Calc| Project Costs'!BX39 -> 195.7033281 | AM41: 1204.375154 | AN41: 1204.375154 | AP41: ='[4]Calc| Project Costs'!AD39 -> 0 | AQ41: ='[4]Calc| Project Costs'!AE39 -> 0 | AR41: ='[4]Calc| Project Costs'!AF39 -> 0 | AS41: ='[4]Calc| Project Costs'!AG39 -> 0 | AT41: ='[4]Calc| Project Costs'!AH39 -> 0 | AU41: ='[4]Calc| Project Costs'!AI39 -> 0 | AV41: ='[4]Calc| Project Costs'!AJ39 -> 0 | AW41: 0 | AY41: ='[4]Calc| Project Costs'!AL39 -> 16.10414964 | AZ41: ='[4]Calc| Project Costs'!AM39 -> 16.63307299 | BA41: ='[4]Calc| Project Costs'!AN39 -> 19.4652838 | BB41: ='[4]Calc| Project Costs'!AO39 -> 19.83176617 | BC41: ='[4]Calc| Project Costs'!AP39 -> 20.01761888 | BD41: ='[4]Calc| Project Costs'!AQ39 -> 21.10491305 | BE41: ='[4]Calc| Project Costs'!AR39 -> 24.19108598 | BF41: 104.6106679 | BH41: ='[4]Calc| Project Costs'!BJ39 -> 0 | BI41: ='[4]Calc| Project Costs'!BK39 -> 0 | BJ41: ='[4]Calc| Project Costs'!BL39 -> 0 | BK41: ='[4]Calc| Project Costs'!BM39 -> 0 | BL41: ='[4]Calc| Project Costs'!BN39 -> 0 | BM41: ='[4]Calc| Project Costs'!BO39 -> 0 | BN41: ='[4]Calc| Project Costs'!BP39 -> 0 | BO41: 0 | BQ41: ='[4]Input| Projects'!Y39 -> 0.6000179669 | BR41: ='[4]Input| Projects'!Z39 -> 0.2490257142 | BS41: ='[4]Input| Projects'!AA39 -> 0.1509563189 | BT41: =+_xlfn.SWITCH(TRUE,LEN(L41)>0,IF(SUM(BQ41:BS41)<>1,1,0), 0) -> 0
D42: ='[4]Calc| Project Costs'!C40 -> Fuse Unit Replacement | E42: JEN | F42: $'000s | G42: Real 2026 | H42: End Year | L42: ='[4]Calc| Project Costs'!D40 -> A217 | M42: ='[4]Input| JEN Mapping'!G40 -> Replacement | N42: ='[4]Input| JEN Mapping'!F40 -> Replacement | O42: ='[4]Input| Projects'!G40 -> Distribution system assets | P42: Replacement expenditure | S42: ='[4]Input| JEN Mapping'!H40 -> Non-IT | V42: ='[4]Calc| Project Costs'!V40 -> 77.36374764 | W42: ='[4]Calc| Project Costs'!W40 -> 76.83353966 | X42: ='[4]Calc| Project Costs'!X40 -> 78.80811045 | Y42: ='[4]Calc| Project Costs'!Y40 -> 79.09168161 | Z42: ='[4]Calc| Project Costs'!Z40 -> 79.54436202 | AA42: ='[4]Calc| Project Costs'!AA40 -> 80.37770483 | AB42: ='[4]Calc| Project Costs'!AB40 -> 81.07285755 | AC42: 553.0920038 | AD42: 553.0920038 | AF42: ='[4]Calc| Project Costs'!BR40 -> 90.11653321 | AG42: ='[4]Calc| Project Costs'!BS40 -> 86.82506739 | AH42: ='[4]Calc| Project Costs'!BT40 -> 88.08038343 | AI42: ='[4]Calc| Project Costs'!BU40 -> 88.50671527 | AJ42: ='[4]Calc| Project Costs'!BV40 -> 89.01979273 | AK42: ='[4]Calc| Project Costs'!BW40 -> 90.36628943 | AL42: ='[4]Calc| Project Costs'!BX40 -> 92.50784577 | AM42: 625.4226272 | AN42: 625.4226272 | AP42: ='[4]Calc| Project Costs'!AD40 -> 0 | AQ42: ='[4]Calc| Project Costs'!AE40 -> 0 | AR42: ='[4]Calc| Project Costs'!AF40 -> 0 | AS42: ='[4]Calc| Project Costs'!AG40 -> 0 | AT42: ='[4]Calc| Project Costs'!AH40 -> 0 | AU42: ='[4]Calc| Project Costs'!AI40 -> 0 | AV42: ='[4]Calc| Project Costs'!AJ40 -> 0 | AW42: 0 | AY42: ='[4]Calc| Project Costs'!AL40 -> 12.75278557 | AZ42: ='[4]Calc| Project Costs'!AM40 -> 9.991527725 | BA42: ='[4]Calc| Project Costs'!AN40 -> 9.27227298 | BB42: ='[4]Calc| Project Costs'!AO40 -> 9.415033661 | BC42: ='[4]Calc| Project Costs'!AP40 -> 9.475430715 | BD42: ='[4]Calc| Project Costs'!AQ40 -> 9.988584606 | BE42: ='[4]Calc| Project Costs'!AR40 -> 11.43498822 | BF42: 49.58631018 | BH42: ='[4]Calc| Project Costs'!BJ40 -> 0 | BI42: ='[4]Calc| Project Costs'!BK40 -> 0 | BJ42: ='[4]Calc| Project Costs'!BL40 -> 0 | BK42: ='[4]Calc| Project Costs'!BM40 -> 0 | BL42: ='[4]Calc| Project Costs'!BN40 -> 0 | BM42: ='[4]Calc| Project Costs'!BO40 -> 0 | BN42: ='[4]Calc| Project Costs'!BP40 -> 0 | BO42: 0 | BQ42: ='[4]Input| Projects'!Y40 -> 0.6223630682 | BR42: ='[4]Input| Projects'!Z40 -> 0.04357332922 | BS42: ='[4]Input| Projects'!AA40 -> 0.3340636026 | BT42: =+_xlfn.SWITCH(TRUE,LEN(L42)>0,IF(SUM(BQ42:BS42)<>1,1,0), 0) -> 0
D43: ='[4]Calc| Project Costs'!C41 -> ST Insulators Replacement | E43: JEN | F43: $'000s | G43: Real 2026 | H43: End Year | L43: ='[4]Calc| Project Costs'!D41 -> A218 | M43: ='[4]Input| JEN Mapping'!G41 -> Replacement | N43: ='[4]Input| JEN Mapping'!F41 -> Replacement | O43: ='[4]Input| Projects'!G41 -> Subtransmission | P43: Replacement expenditure | S43: ='[4]Input| JEN Mapping'!H41 -> Non-IT | V43: ='[4]Calc| Project Costs'!V41 -> 18.97428251 | W43: ='[4]Calc| Project Costs'!W41 -> 26.57967012 | X43: ='[4]Calc| Project Costs'!X41 -> 35.80733506 | Y43: ='[4]Calc| Project Costs'!Y41 -> 36.00983416 | Z43: ='[4]Calc| Project Costs'!Z41 -> 36.26035993 | AA43: ='[4]Calc| Project Costs'!AA41 -> 36.56244985 | AB43: ='[4]Calc| Project Costs'!AB41 -> 36.84930498 | AC43: 227.0432366 | AD43: 227.0432366 | AF43: ='[4]Calc| Project Costs'!BR41 -> 22.1020389 | AG43: ='[4]Calc| Project Costs'!BS41 -> 30.03612301 | AH43: ='[4]Calc| Project Costs'!BT41 -> 40.02029466 | AI43: ='[4]Calc| Project Costs'!BU41 -> 40.29642655 | AJ43: ='[4]Calc| Project Costs'!BV41 -> 40.57974246 | AK43: ='[4]Calc| Project Costs'!BW41 -> 41.10608698 | AL43: ='[4]Calc| Project Costs'!BX41 -> 42.04674567 | AM43: 256.1874582 | AN43: 256.1874582 | AP43: ='[4]Calc| Project Costs'!AD41 -> 0 | AQ43: ='[4]Calc| Project Costs'!AE41 -> 0 | AR43: ='[4]Calc| Project Costs'!AF41 -> 0 | AS43: ='[4]Calc| Project Costs'!AG41 -> 0 | AT43: ='[4]Calc| Project Costs'!AH41 -> 0 | AU43: ='[4]Calc| Project Costs'!AI41 -> 0 | AV43: ='[4]Calc| Project Costs'!AJ41 -> 0 | AW43: 0 | AY43: ='[4]Calc| Project Costs'!AL41 -> 3.127756391 | AZ43: ='[4]Calc| Project Costs'!AM41 -> 3.456452898 | BA43: ='[4]Calc| Project Costs'!AN41 -> 4.212959599 | BB43: ='[4]Calc| Project Costs'!AO41 -> 4.286592392 | BC43: ='[4]Calc| Project Costs'!AP41 -> 4.319382537 | BD43: ='[4]Calc| Project Costs'!AQ41 -> 4.543637126 | BE43: ='[4]Calc| Project Costs'!AR41 -> 5.197440685 | BF43: 22.56001234 | BH43: ='[4]Calc| Project Costs'!BJ41 -> 0 | BI43: ='[4]Calc| Project Costs'!BK41 -> 0 | BJ43: ='[4]Calc| Project Costs'!BL41 -> 0 | BK43: ='[4]Calc| Project Costs'!BM41 -> 0 | BL43: ='[4]Calc| Project Costs'!BN41 -> 0 | BM43: ='[4]Calc| Project Costs'!BO41 -> 0 | BN43: ='[4]Calc| Project Costs'!BP41 -> 0 | BO43: 0 | BQ43: ='[4]Input| Projects'!Y41 -> 0.6068600518 | BR43: ='[4]Input| Projects'!Z41 -> 0.06192852467 | BS43: ='[4]Input| Projects'!AA41 -> 0.3312114236 | BT43: =+_xlfn.SWITCH(TRUE,LEN(L43)>0,IF(SUM(BQ43:BS43)<>1,1,0), 0) -> 0
D44: ='[4]Calc| Project Costs'!C42 -> HV Crossarms Replacement | E44: JEN | F44: $'000s | G44: Real 2026 | H44: End Year | L44: ='[4]Calc| Project Costs'!D42 -> A221 | M44: ='[4]Input| JEN Mapping'!G42 -> Replacement | N44: ='[4]Input| JEN Mapping'!F42 -> Replacement | O44: ='[4]Input| Projects'!G42 -> Distribution system assets | P44: Replacement expenditure | S44: ='[4]Input| JEN Mapping'!H42 -> Non-IT | V44: ='[4]Calc| Project Costs'!V42 -> 1589.160703 | W44: ='[4]Calc| Project Costs'!W42 -> 1666.019036 | X44: ='[4]Calc| Project Costs'!X42 -> 1819.026814 | Y44: ='[4]Calc| Project Costs'!Y42 -> 1831.624627 | Z44: ='[4]Calc| Project Costs'!Z42 -> 1847.210262 | AA44: ='[4]Calc| Project Costs'!AA42 -> 1866.00379 | AB44: ='[4]Calc| Project Costs'!AB42 -> 1883.849536 | AC44: 12502.89477 | AD44: 12502.89477 | AF44: ='[4]Calc| Project Costs'!BR42 -> 1851.120941 | AG44: ='[4]Calc| Project Costs'!BS42 -> 1882.670195 | AH44: ='[4]Calc| Project Costs'!BT42 -> 2033.046831 | AI44: ='[4]Calc| Project Costs'!BU42 -> 2049.660294 | AJ44: ='[4]Calc| Project Costs'!BV42 -> 2067.252417 | AK44: ='[4]Calc| Project Costs'!BW42 -> 2097.893177 | AL44: ='[4]Calc| Project Costs'!BX42 -> 2149.558651 | AM44: 14131.20251 | AN44: 14131.20251 | AP44: ='[4]Calc| Project Costs'!AD42 -> 0 | AQ44: ='[4]Calc| Project Costs'!AE42 -> 0 | AR44: ='[4]Calc| Project Costs'!AF42 -> 0 | AS44: ='[4]Calc| Project Costs'!AG42 -> 0 | AT44: ='[4]Calc| Project Costs'!AH42 -> 0 | AU44: ='[4]Calc| Project Costs'!AI42 -> 0 | AV44: ='[4]Calc| Project Costs'!AJ42 -> 0 | AW44: 0 | AY44: ='[4]Calc| Project Costs'!AL42 -> 261.9602371 | AZ44: ='[4]Calc| Project Costs'!AM42 -> 216.6511586 | BA44: ='[4]Calc| Project Costs'!AN42 -> 214.0200174 | BB44: ='[4]Calc| Project Costs'!AO42 -> 218.0356665 | BC44: ='[4]Calc| Project Costs'!AP42 -> 220.0421552 | BD44: ='[4]Calc| Project Costs'!AQ42 -> 231.8893874 | BE44: ='[4]Calc| Project Costs'!AR42 -> 265.7091152 | BF44: 1149.696342 | BH44: ='[4]Calc| Project Costs'!BJ42 -> 0 | BI44: ='[4]Calc| Project Costs'!BK42 -> 0 | BJ44: ='[4]Calc| Project Costs'!BL42 -> 0 | BK44: ='[4]Calc| Project Costs'!BM42 -> 0 | BL44: ='[4]Calc| Project Costs'!BN42 -> 0 | BM44: ='[4]Calc| Project Costs'!BO42 -> 0 | BN44: ='[4]Calc| Project Costs'!BP42 -> 0 | BO44: 0 | BQ44: ='[4]Input| Projects'!Y42 -> 0.5897413581 | BR44: ='[4]Input| Projects'!Z42 -> 0.2337437754 | BS44: ='[4]Input| Projects'!AA42 -> 0.1765148665 | BT44: =+_xlfn.SWITCH(TRUE,LEN(L44)>0,IF(SUM(BQ44:BS44)<>1,1,0), 0) -> 0
D45: ='[4]Calc| Project Costs'!C43 -> HV Insulators Replacement | E45: JEN | F45: $'000s | G45: Real 2026 | H45: End Year | L45: ='[4]Calc| Project Costs'!D43 -> A227 | M45: ='[4]Input| JEN Mapping'!G43 -> Replacement | N45: ='[4]Input| JEN Mapping'!F43 -> Replacement | O45: ='[4]Input| Projects'!G43 -> Distribution system assets | P45: Replacement expenditure | S45: ='[4]Input| JEN Mapping'!H43 -> Non-IT | V45: ='[4]Calc| Project Costs'!V43 -> 70.98715314 | W45: ='[4]Calc| Project Costs'!W43 -> 76.84013067 | X45: ='[4]Calc| Project Costs'!X43 -> 133.3314214 | Y45: ='[4]Calc| Project Costs'!Y43 -> 133.8066938 | Z45: ='[4]Calc| Project Costs'!Z43 -> 134.6021887 | AA45: ='[4]Calc| Project Costs'!AA43 -> 136.1481516 | AB45: ='[4]Calc| Project Costs'!AB43 -> 137.4200662 | AC45: 823.1358055 | AD45: 823.1358055 | AF45: ='[4]Calc| Project Costs'!BR43 -> 82.68880888 | AG45: ='[4]Calc| Project Costs'!BS43 -> 86.83251549 | AH45: ='[4]Calc| Project Costs'!BT43 -> 149.018707 | AI45: ='[4]Calc| Project Costs'!BU43 -> 149.7349748 | AJ45: ='[4]Calc| Project Costs'!BV43 -> 150.6361813 | AK45: ='[4]Calc| Project Costs'!BW43 -> 153.0673624 | AL45: ='[4]Calc| Project Costs'!BX43 -> 156.802593 | AM45: 928.7811429 | AN45: 928.7811429 | AP45: ='[4]Calc| Project Costs'!AD43 -> 0 | AQ45: ='[4]Calc| Project Costs'!AE43 -> 0 | AR45: ='[4]Calc| Project Costs'!AF43 -> 0 | AS45: ='[4]Calc| Project Costs'!AG43 -> 0 | AT45: ='[4]Calc| Project Costs'!AH43 -> 0 | AU45: ='[4]Calc| Project Costs'!AI43 -> 0 | AV45: ='[4]Calc| Project Costs'!AJ43 -> 0 | AW45: 0 | AY45: ='[4]Calc| Project Costs'!AL43 -> 11.70165574 | AZ45: ='[4]Calc| Project Costs'!AM43 -> 9.992384827 | BA45: ='[4]Calc| Project Costs'!AN43 -> 15.68728559 | BB45: ='[4]Calc| Project Costs'!AO43 -> 15.92828096 | BC45: ='[4]Calc| Project Costs'!AP43 -> 16.03399262 | BD45: ='[4]Calc| Project Costs'!AQ43 -> 16.9192108 | BE45: ='[4]Calc| Project Costs'!AR43 -> 19.38252685 | BF45: 83.95129681 | BH45: ='[4]Calc| Project Costs'!BJ43 -> 0 | BI45: ='[4]Calc| Project Costs'!BK43 -> 0 | BJ45: ='[4]Calc| Project Costs'!BL43 -> 0 | BK45: ='[4]Calc| Project Costs'!BM43 -> 0 | BL45: ='[4]Calc| Project Costs'!BN43 -> 0 | BM45: ='[4]Calc| Project Costs'!BO43 -> 0 | BN45: ='[4]Calc| Project Costs'!BP43 -> 0 | BO45: 0 | BQ45: ='[4]Input| Projects'!Y43 -> 0.6305420087 | BR45: ='[4]Input| Projects'!Z43 -> 0.08201257613 | BS45: ='[4]Input| Projects'!AA43 -> 0.2874454152 | BT45: =+_xlfn.SWITCH(TRUE,LEN(L45)>0,IF(SUM(BQ45:BS45)<>1,1,0), 0) -> 0
D46: ='[4]Calc| Project Costs'!C44 -> LV Crossarm Replacement | E46: JEN | F46: $'000s | G46: Real 2026 | H46: End Year | L46: ='[4]Calc| Project Costs'!D44 -> A228 | M46: ='[4]Input| JEN Mapping'!G44 -> Replacement | N46: ='[4]Input| JEN Mapping'!F44 -> Replacement | O46: ='[4]Input| Projects'!G44 -> Distribution system assets | P46: Replacement expenditure | S46: ='[4]Input| JEN Mapping'!H44 -> Non-IT | V46: ='[4]Calc| Project Costs'!V44 -> 3278.177975 | W46: ='[4]Calc| Project Costs'!W44 -> 3487.467322 | X46: ='[4]Calc| Project Costs'!X44 -> 5000.97083 | Y46: ='[4]Calc| Project Costs'!Y44 -> 7064.87906 | Z46: ='[4]Calc| Project Costs'!Z44 -> 7127.84448 | AA46: ='[4]Calc| Project Costs'!AA44 -> 7203.769679 | AB46: ='[4]Calc| Project Costs'!AB44 -> 7275.86587 | AC46: 40438.97522 | AD46: 40438.97522 | AF46: ='[4]Calc| Project Costs'!BR44 -> 3818.558993 | AG46: ='[4]Calc| Project Costs'!BS44 -> 3940.98185 | AH46: ='[4]Calc| Project Costs'!BT44 -> 5589.366699 | AI46: ='[4]Calc| Project Costs'!BU44 -> 7905.87868 | AJ46: ='[4]Calc| Project Costs'!BV44 -> 7976.922841 | AK46: ='[4]Calc| Project Costs'!BW44 -> 8098.98637 | AL46: ='[4]Calc| Project Costs'!BX44 -> 8302.096386 | AM46: 45632.79182 | AN46: 45632.79182 | AP46: ='[4]Calc| Project Costs'!AD44 -> 0 | AQ46: ='[4]Calc| Project Costs'!AE44 -> 0 | AR46: ='[4]Calc| Project Costs'!AF44 -> 0 | AS46: ='[4]Calc| Project Costs'!AG44 -> 0 | AT46: ='[4]Calc| Project Costs'!AH44 -> 0 | AU46: ='[4]Calc| Project Costs'!AI44 -> 0 | AV46: ='[4]Calc| Project Costs'!AJ44 -> 0 | AW46: 0 | AY46: ='[4]Calc| Project Costs'!AL44 -> 540.3810186 | AZ46: ='[4]Calc| Project Costs'!AM44 -> 453.5145276 | BA46: ='[4]Calc| Project Costs'!AN44 -> 588.3958698 | BB46: ='[4]Calc| Project Costs'!AO44 -> 840.9996197 | BC46: ='[4]Calc| Project Costs'!AP44 -> 849.0783609 | BD46: ='[4]Calc| Project Costs'!AQ44 -> 895.2166907 | BE46: ='[4]Calc| Project Costs'!AR44 -> 1026.230517 | BF46: 4199.921058 | BH46: ='[4]Calc| Project Costs'!BJ44 -> 0 | BI46: ='[4]Calc| Project Costs'!BK44 -> 0 | BJ46: ='[4]Calc| Project Costs'!BL44 -> 0 | BK46: ='[4]Calc| Project Costs'!BM44 -> 0 | BL46: ='[4]Calc| Project Costs'!BN44 -> 0 | BM46: ='[4]Calc| Project Costs'!BO44 -> 0 | BN46: ='[4]Calc| Project Costs'!BP44 -> 0 | BO46: 0 | BQ46: ='[4]Input| Projects'!Y44 -> 0.6154404693 | BR46: ='[4]Input| Projects'!Z44 -> 0.2485809004 | BS46: ='[4]Input| Projects'!AA44 -> 0.1359786302 | BT46: =+_xlfn.SWITCH(TRUE,LEN(L46)>0,IF(SUM(BQ46:BS46)<>1,1,0), 0) -> 0
D47: ='[4]Calc| Project Costs'!C45 -> ST Crossarm Replacement | E47: JEN | F47: $'000s | G47: Real 2026 | H47: End Year | L47: ='[4]Calc| Project Costs'!D45 -> A241 | M47: ='[4]Input| JEN Mapping'!G45 -> Replacement | N47: ='[4]Input| JEN Mapping'!F45 -> Replacement | O47: ='[4]Input| Projects'!G45 -> Subtransmission | P47: Replacement expenditure | S47: ='[4]Input| JEN Mapping'!H45 -> Non-IT | V47: ='[4]Calc| Project Costs'!V45 -> 45.26513387 | W47: ='[4]Calc| Project Costs'!W45 -> 63.87752631 | X47: ='[4]Calc| Project Costs'!X45 -> 115.2688844 | Y47: ='[4]Calc| Project Costs'!Y45 -> 184.4929884 | Z47: ='[4]Calc| Project Costs'!Z45 -> 185.660641 | AA47: ='[4]Calc| Project Costs'!AA45 -> 187.0686243 | AB47: ='[4]Calc| Project Costs'!AB45 -> 188.4056011 | AC47: 970.0393994 | AD47: 970.0393994 | AF47: ='[4]Calc| Project Costs'!BR45 -> 52.72672361 | AG47: ='[4]Calc| Project Costs'!BS45 -> 72.18423816 | AH47: ='[4]Calc| Project Costs'!BT45 -> 128.8309982 | AI47: ='[4]Calc| Project Costs'!BU45 -> 206.4549402 | AJ47: ='[4]Calc| Project Costs'!BV45 -> 207.7767847 | AK47: ='[4]Calc| Project Costs'!BW45 -> 210.3157521 | AL47: ='[4]Calc| Project Costs'!BX45 -> 214.9794248 | AM47: 1093.268862 | AN47: 1093.268862 | AP47: ='[4]Calc| Project Costs'!AD45 -> 0 | AQ47: ='[4]Calc| Project Costs'!AE45 -> 0 | AR47: ='[4]Calc| Project Costs'!AF45 -> 0 | AS47: ='[4]Calc| Project Costs'!AG45 -> 0 | AT47: ='[4]Calc| Project Costs'!AH45 -> 0 | AU47: ='[4]Calc| Project Costs'!AI45 -> 0 | AV47: ='[4]Calc| Project Costs'!AJ45 -> 0 | AW47: 0 | AY47: ='[4]Calc| Project Costs'!AL45 -> 7.461589741 | AZ47: ='[4]Calc| Project Costs'!AM45 -> 8.306711859 | BA47: ='[4]Calc| Project Costs'!AN45 -> 13.5621138 | BB47: ='[4]Calc| Project Costs'!AO45 -> 21.96195176 | BC47: ='[4]Calc| Project Costs'!AP45 -> 22.1161437 | BD47: ='[4]Calc| Project Costs'!AQ45 -> 23.24712785 | BE47: ='[4]Calc| Project Costs'!AR45 -> 26.57382376 | BF47: 107.4611609 | BH47: ='[4]Calc| Project Costs'!BJ45 -> 0 | BI47: ='[4]Calc| Project Costs'!BK45 -> 0 | BJ47: ='[4]Calc| Project Costs'!BL45 -> 0 | BK47: ='[4]Calc| Project Costs'!BM45 -> 0 | BL47: ='[4]Calc| Project Costs'!BN45 -> 0 | BM47: ='[4]Calc| Project Costs'!BO45 -> 0 | BN47: ='[4]Calc| Project Costs'!BP45 -> 0 | BO47: 0 | BQ47: ='[4]Input| Projects'!Y45 -> 0.4656291321 | BR47: ='[4]Input| Projects'!Z45 -> 0.1411337481 | BS47: ='[4]Input| Projects'!AA45 -> 0.3932371198 | BT47: =+_xlfn.SWITCH(TRUE,LEN(L47)>0,IF(SUM(BQ47:BS47)<>1,1,0), 0) -> 0
D48: ='[4]Calc| Project Costs'!C46 -> Overhead Line Fault Indicator Replacement | E48: JEN | F48: $'000s | G48: Real 2026 | H48: End Year | L48: ='[4]Calc| Project Costs'!D46 -> A381 | M48: ='[4]Input| JEN Mapping'!G46 -> Replacement | N48: ='[4]Input| JEN Mapping'!F46 -> Replacement | O48: ='[4]Input| Projects'!G46 -> Distribution system assets | P48: Replacement expenditure | S48: ='[4]Input| JEN Mapping'!H46 -> Non-IT | V48: ='[4]Calc| Project Costs'!V46 -> 58.74137677 | W48: ='[4]Calc| Project Costs'!W46 -> 0 | X48: ='[4]Calc| Project Costs'!X46 -> 0 | Y48: ='[4]Calc| Project Costs'!Y46 -> 0 | Z48: ='[4]Calc| Project Costs'!Z46 -> 182.7166626 | AA48: ='[4]Calc| Project Costs'!AA46 -> 323.888576 | AB48: ='[4]Calc| Project Costs'!AB46 -> 262.1869343 | AC48: 827.5335497 | AD48: 827.5335497 | AF48: ='[4]Calc| Project Costs'!BR46 -> 68.42441572 | AG48: ='[4]Calc| Project Costs'!BS46 -> 0 | AH48: ='[4]Calc| Project Costs'!BT46 -> 0 | AI48: ='[4]Calc| Project Costs'!BU46 -> 0 | AJ48: ='[4]Calc| Project Costs'!BV46 -> 204.4821156 | AK48: ='[4]Calc| Project Costs'!BW46 -> 364.1383997 | AL48: ='[4]Calc| Project Costs'!BX46 -> 299.1673072 | AM48: 936.2122382 | AN48: 936.2122382 | AP48: ='[4]Calc| Project Costs'!AD46 -> 0 | AQ48: ='[4]Calc| Project Costs'!AE46 -> 0 | AR48: ='[4]Calc| Project Costs'!AF46 -> 0 | AS48: ='[4]Calc| Project Costs'!AG46 -> 0 | AT48: ='[4]Calc| Project Costs'!AH46 -> 0 | AU48: ='[4]Calc| Project Costs'!AI46 -> 0 | AV48: ='[4]Calc| Project Costs'!AJ46 -> 0 | AW48: 0 | AY48: ='[4]Calc| Project Costs'!AL46 -> 9.683038951 | AZ48: ='[4]Calc| Project Costs'!AM46 -> 0 | BA48: ='[4]Calc| Project Costs'!AN46 -> 0 | BB48: ='[4]Calc| Project Costs'!AO46 -> 0 | BC48: ='[4]Calc| Project Costs'!AP46 -> 21.76545305 | BD48: ='[4]Calc| Project Costs'!AQ46 -> 40.24982365 | BE48: ='[4]Calc| Project Costs'!AR46 -> 36.9803729 | BF48: 98.9956496 | BH48: ='[4]Calc| Project Costs'!BJ46 -> 0 | BI48: ='[4]Calc| Project Costs'!BK46 ->  | BJ48: ='[4]Calc| Project Costs'!BL46 ->  | BK48: ='[4]Calc| Project Costs'!BM46 ->  | BL48: ='[4]Calc| Project Costs'!BN46 -> 0 | BM48: ='[4]Calc| Project Costs'!BO46 -> 0 | BN48: ='[4]Calc| Project Costs'!BP46 -> 0 | BO48: 0 | BQ48: ='[4]Input| Projects'!Y46 -> 0.2681975353 | BR48: ='[4]Input| Projects'!Z46 -> 0.3655552555 | BS48: ='[4]Input| Projects'!AA46 -> 0.3662472092 | BT48: =+_xlfn.SWITCH(TRUE,LEN(L48)>0,IF(SUM(BQ48:BS48)<>1,1,0), 0) -> 0
D49: ='[4]Calc| Project Costs'!C47 -> HV Line Clash Mitigation | E49: JEN | F49: $'000s | G49: Real 2026 | H49: End Year | L49: ='[4]Calc| Project Costs'!D47 -> A507 | M49: ='[4]Input| JEN Mapping'!G47 -> Replacement | N49: ='[4]Input| JEN Mapping'!F47 -> Replacement | O49: ='[4]Input| Projects'!G47 -> Distribution system assets | P49: Replacement expenditure | S49: ='[4]Input| JEN Mapping'!H47 -> Non-IT | V49: ='[4]Calc| Project Costs'!V47 -> 13.51272571 | W49: ='[4]Calc| Project Costs'!W47 -> 16.09312149 | X49: ='[4]Calc| Project Costs'!X47 -> 15.01109378 | Y49: ='[4]Calc| Project Costs'!Y47 -> 15.08574054 | Z49: ='[4]Calc| Project Costs'!Z47 -> 15.17809126 | AA49: ='[4]Calc| Project Costs'!AA47 -> 15.28944996 | AB49: ='[4]Calc| Project Costs'!AB47 -> 15.39519268 | AC49: 105.5654154 | AD49: 105.5654154 | AF49: ='[4]Calc| Project Costs'!BR47 -> 15.74018881 | AG49: ='[4]Calc| Project Costs'!BS47 -> 18.18589075 | AH49: ='[4]Calc| Project Costs'!BT47 -> 16.77724397 | AI49: ='[4]Calc| Project Costs'!BU47 -> 16.88153945 | AJ49: ='[4]Calc| Project Costs'!BV47 -> 16.98612578 | AK49: ='[4]Calc| Project Costs'!BW47 -> 17.18947888 | AL49: ='[4]Calc| Project Costs'!BX47 -> 17.56662036 | AM49: 119.327088 | AN49: 119.327088 | AP49: ='[4]Calc| Project Costs'!AD47 -> 0 | AQ49: ='[4]Calc| Project Costs'!AE47 -> 0 | AR49: ='[4]Calc| Project Costs'!AF47 -> 0 | AS49: ='[4]Calc| Project Costs'!AG47 -> 0 | AT49: ='[4]Calc| Project Costs'!AH47 -> 0 | AU49: ='[4]Calc| Project Costs'!AI47 -> 0 | AV49: ='[4]Calc| Project Costs'!AJ47 -> 0 | AW49: 0 | AY49: ='[4]Calc| Project Costs'!AL47 -> 2.227463102 | AZ49: ='[4]Calc| Project Costs'!AM47 -> 2.092769255 | BA49: ='[4]Calc| Project Costs'!AN47 -> 1.766150191 | BB49: ='[4]Calc| Project Costs'!AO47 -> 1.795798902 | BC49: ='[4]Calc| Project Costs'!AP47 -> 1.808034517 | BD49: ='[4]Calc| Project Costs'!AQ47 -> 1.90002893 | BE49: ='[4]Calc| Project Costs'!AR47 -> 2.171427679 | BF49: 9.441440219 | BH49: ='[4]Calc| Project Costs'!BJ47 -> 0 | BI49: ='[4]Calc| Project Costs'!BK47 -> 0 | BJ49: ='[4]Calc| Project Costs'!BL47 -> 0 | BK49: ='[4]Calc| Project Costs'!BM47 -> 0 | BL49: ='[4]Calc| Project Costs'!BN47 -> 0 | BM49: ='[4]Calc| Project Costs'!BO47 -> 0 | BN49: ='[4]Calc| Project Costs'!BP47 -> 0 | BO49: 0 | BQ49: ='[4]Input| Projects'!Y47 -> 0.5223787064 | BR49: ='[4]Input| Projects'!Z47 -> 0.06399266997 | BS49: ='[4]Input| Projects'!AA47 -> 0.4136286236 | BT49: =+_xlfn.SWITCH(TRUE,LEN(L49)>0,IF(SUM(BQ49:BS49)<>1,1,0), 0) -> 0
D50: ='[4]Calc| Project Costs'!C48 -> Underground Routine Connections > 100A lab | E50: JEN | F50: $'000s | G50: Real 2026 | H50: End Year | L50: ='[4]Calc| Project Costs'!D48 -> A496 | M50: ='[4]Input| JEN Mapping'!G48 -> Connections | N50: ='[4]Input| JEN Mapping'!F48 -> Connections | O50: ='[4]Input| Projects'!G48 -> Distribution system assets | P50: Connections | S50: ='[4]Input| JEN Mapping'!H48 -> Non-IT | V50: ='[4]Calc| Project Costs'!V48 -> 340.2867942 | W50: ='[4]Calc| Project Costs'!W48 -> 376.1067006 | X50: ='[4]Calc| Project Costs'!X48 -> 368.9796714 | Y50: ='[4]Calc| Project Costs'!Y48 -> 361.4204166 | Z50: ='[4]Calc| Project Costs'!Z48 -> 358.1563361 | AA50: ='[4]Calc| Project Costs'!AA48 -> 358.7988746 | AB50: ='[4]Calc| Project Costs'!AB48 -> 359.8331719 | AC50: 2523.581965 | AD50: 2523.581965 | AF50: ='[4]Calc| Project Costs'!BR48 -> 396.3803089 | AG50: ='[4]Calc| Project Costs'!BS48 -> 425.0160772 | AH50: ='[4]Calc| Project Costs'!BT48 -> 412.3924651 | AI50: ='[4]Calc| Project Costs'!BU48 -> 404.4437196 | AJ50: ='[4]Calc| Project Costs'!BV48 -> 400.8203976 | AK50: ='[4]Calc| Project Costs'!BW48 -> 403.3870216 | AL50: ='[4]Calc| Project Costs'!BX48 -> 410.5861391 | AM50: 2853.026129 | AN50: 2853.026129 | AP50: ='[4]Calc| Project Costs'!AD48 -> 146.3233215 | AQ50: ='[4]Calc| Project Costs'!AE48 -> 161.7258812 | AR50: ='[4]Calc| Project Costs'!AF48 -> 158.6612587 | AS50: ='[4]Calc| Project Costs'!AG48 -> 155.4107791 | AT50: ='[4]Calc| Project Costs'!AH48 -> 154.0072245 | AU50: ='[4]Calc| Project Costs'!AI48 -> 154.2835161 | AV50: ='[4]Calc| Project Costs'!AJ48 -> 154.7282639 | AW50: 777.0910424 | AY50: ='[4]Calc| Project Costs'!AL48 -> 56.09351472 | AZ50: ='[4]Calc| Project Costs'!AM48 -> 48.90937659 | BA50: ='[4]Calc| Project Costs'!AN48 -> 43.41279366 | BB50: ='[4]Calc| Project Costs'!AO48 -> 43.02330306 | BC50: ='[4]Calc| Project Costs'!AP48 -> 42.66406144 | BD50: ='[4]Calc| Project Costs'!AQ48 -> 44.58814697 | BE50: ='[4]Calc| Project Costs'!AR48 -> 50.75296722 | BF50: 224.4412723 | BH50: ='[4]Calc| Project Costs'!BJ48 -> 24.12021133 | BI50: ='[4]Calc| Project Costs'!BK48 -> 21.03103193 | BJ50: ='[4]Calc| Project Costs'!BL48 -> 18.66750127 | BK50: ='[4]Calc| Project Costs'!BM48 -> 18.50002032 | BL50: ='[4]Calc| Project Costs'!BN48 -> 18.34554642 | BM50: ='[4]Calc| Project Costs'!BO48 -> 19.1729032 | BN50: ='[4]Calc| Project Costs'!BP48 -> 21.8237759 | BO50: 96.50974711 | BQ50: ='[4]Input| Projects'!Y48 -> 0.0182494332 | BR50: ='[4]Input| Projects'!Z48 -> 0.1216925952 | BS50: ='[4]Input| Projects'!AA48 -> 0.8600579716 | BT50: =+_xlfn.SWITCH(TRUE,LEN(L50)>0,IF(SUM(BQ50:BS50)<>1,1,0), 0) -> 0
D51: ='[4]Calc| Project Costs'!C49 -> ACR Replacement | E51: JEN | F51: $'000s | G51: Real 2026 | H51: End Year | L51: ='[4]Calc| Project Costs'!D49 -> A469 | M51: ='[4]Input| JEN Mapping'!G49 -> Replacement | N51: ='[4]Input| JEN Mapping'!F49 -> Replacement | O51: ='[4]Input| Projects'!G49 -> Distribution system assets | P51: Replacement expenditure | S51: ='[4]Input| JEN Mapping'!H49 -> Non-IT | V51: ='[4]Calc| Project Costs'!V49 -> 0 | W51: ='[4]Calc| Project Costs'!W49 -> 0 | X51: ='[4]Calc| Project Costs'!X49 -> 227.8400614 | Y51: ='[4]Calc| Project Costs'!Y49 -> 229.3132127 | Z51: ='[4]Calc| Project Costs'!Z49 -> 231.135751 | AA51: ='[4]Calc| Project Costs'!AA49 -> 233.3334111 | AB51: ='[4]Calc| Project Costs'!AB49 -> 235.4202402 | AC51: 1157.042676 | AD51: 1157.042676 | AF51: ='[4]Calc| Project Costs'!BR49 -> 0 | AG51: ='[4]Calc| Project Costs'!BS49 -> 0 | AH51: ='[4]Calc| Project Costs'!BT49 -> 254.6468866 | AI51: ='[4]Calc| Project Costs'!BU49 -> 256.6105412 | AJ51: ='[4]Calc| Project Costs'!BV49 -> 258.6689506 | AK51: ='[4]Calc| Project Costs'!BW49 -> 262.3298912 | AL51: ='[4]Calc| Project Costs'!BX49 -> 268.6252826 | AM51: 1300.881552 | AN51: 1300.881552 | AP51: ='[4]Calc| Project Costs'!AD49 -> 0 | AQ51: ='[4]Calc| Project Costs'!AE49 -> 0 | AR51: ='[4]Calc| Project Costs'!AF49 -> 0 | AS51: ='[4]Calc| Project Costs'!AG49 -> 0 | AT51: ='[4]Calc| Project Costs'!AH49 -> 0 | AU51: ='[4]Calc| Project Costs'!AI49 -> 0 | AV51: ='[4]Calc| Project Costs'!AJ49 -> 0 | AW51: 0 | AY51: ='[4]Calc| Project Costs'!AL49 -> 0 | AZ51: ='[4]Calc| Project Costs'!AM49 -> 0 | BA51: ='[4]Calc| Project Costs'!AN49 -> 26.80682525 | BB51: ='[4]Calc| Project Costs'!AO49 -> 27.29732852 | BC51: ='[4]Calc| Project Costs'!AP49 -> 27.53319958 | BD51: ='[4]Calc| Project Costs'!AQ49 -> 28.99648009 | BE51: ='[4]Calc| Project Costs'!AR49 -> 33.20504241 | BF51: 143.8388758 | BH51: ='[4]Calc| Project Costs'!BJ49 ->  | BI51: ='[4]Calc| Project Costs'!BK49 ->  | BJ51: ='[4]Calc| Project Costs'!BL49 -> 0 | BK51: ='[4]Calc| Project Costs'!BM49 -> 0 | BL51: ='[4]Calc| Project Costs'!BN49 -> 0 | BM51: ='[4]Calc| Project Costs'!BO49 -> 0 | BN51: ='[4]Calc| Project Costs'!BP49 -> 0 | BO51: 0 | BQ51: ='[4]Input| Projects'!Y49 -> 0.5386705125 | BR51: ='[4]Input| Projects'!Z49 -> 0.2286211396 | BS51: ='[4]Input| Projects'!AA49 -> 0.2327083479 | BT51: =+_xlfn.SWITCH(TRUE,LEN(L51)>0,IF(SUM(BQ51:BS51)<>1,1,0), 0) -> 0
D52: ='[4]Calc| Project Costs'!C50 -> HV Isolator Replacement (Single) | E52: JEN | F52: $'000s | G52: Real 2026 | H52: End Year | L52: ='[4]Calc| Project Costs'!D50 -> A900 | M52: ='[4]Input| JEN Mapping'!G50 -> Replacement | N52: ='[4]Input| JEN Mapping'!F50 -> Replacement | O52: ='[4]Input| Projects'!G50 -> Distribution system assets | P52: Replacement expenditure | S52: ='[4]Input| JEN Mapping'!H50 -> Non-IT | V52: ='[4]Calc| Project Costs'!V50 -> 0 | W52: ='[4]Calc| Project Costs'!W50 -> 0 | X52: ='[4]Calc| Project Costs'!X50 -> 28.11911978 | Y52: ='[4]Calc| Project Costs'!Y50 -> 28.31860223 | Z52: ='[4]Calc| Project Costs'!Z50 -> 28.56539591 | AA52: ='[4]Calc| Project Costs'!AA50 -> 28.86298558 | AB52: ='[4]Calc| Project Costs'!AB50 -> 29.14556741 | AC52: 143.0116709 | AD52: 143.0116709 | AF52: ='[4]Calc| Project Costs'!BR50 -> 0 | AG52: ='[4]Calc| Project Costs'!BS50 -> 0 | AH52: ='[4]Calc| Project Costs'!BT50 -> 31.42751219 | AI52: ='[4]Calc| Project Costs'!BU50 -> 31.68963428 | AJ52: ='[4]Calc| Project Costs'!BV50 -> 31.96814405 | AK52: ='[4]Calc| Project Costs'!BW50 -> 32.44980576 | AL52: ='[4]Calc| Project Costs'!BX50 -> 33.25642806 | AM52: 160.7915243 | AN52: 160.7915243 | AP52: ='[4]Calc| Project Costs'!AD50 -> 0 | AQ52: ='[4]Calc| Project Costs'!AE50 -> 0 | AR52: ='[4]Calc| Project Costs'!AF50 -> 0 | AS52: ='[4]Calc| Project Costs'!AG50 -> 0 | AT52: ='[4]Calc| Project Costs'!AH50 -> 0 | AU52: ='[4]Calc| Project Costs'!AI50 -> 0 | AV52: ='[4]Calc| Project Costs'!AJ50 -> 0 | AW52: 0 | AY52: ='[4]Calc| Project Costs'!AL50 -> 0 | AZ52: ='[4]Calc| Project Costs'!AM50 -> 0 | BA52: ='[4]Calc| Project Costs'!AN50 -> 3.308392411 | BB52: ='[4]Calc| Project Costs'!AO50 -> 3.371032046 | BC52: ='[4]Calc| Project Costs'!AP50 -> 3.402748138 | BD52: ='[4]Calc| Project Costs'!AQ50 -> 3.586820177 | BE52: ='[4]Calc| Project Costs'!AR50 -> 4.110860651 | BF52: 17.77985342 | BH52: ='[4]Calc| Project Costs'!BJ50 ->  | BI52: ='[4]Calc| Project Costs'!BK50 ->  | BJ52: ='[4]Calc| Project Costs'!BL50 -> 0 | BK52: ='[4]Calc| Project Costs'!BM50 -> 0 | BL52: ='[4]Calc| Project Costs'!BN50 -> 0 | BM52: ='[4]Calc| Project Costs'!BO50 -> 0 | BN52: ='[4]Calc| Project Costs'!BP50 -> 0 | BO52: 0 | BQ52: ='[4]Input| Projects'!Y50 -> 0.768023652 | BR52: ='[4]Input| Projects'!Z50 -> 0.07612153082 | BS52: ='[4]Input| Projects'!AA50 -> 0.1558548172 | BT52: =+_xlfn.SWITCH(TRUE,LEN(L52)>0,IF(SUM(BQ52:BS52)<>1,1,0), 0) -> 0
D53: ='[4]Calc| Project Costs'!C51 -> Install Remote Control Gas Switch | E53: JEN | F53: $'000s | G53: Real 2026 | H53: End Year | L53: ='[4]Calc| Project Costs'!D51 -> A63 | M53: ='[4]Input| JEN Mapping'!G51 -> Augmentation | N53: ='[4]Input| JEN Mapping'!F51 -> Augmentation | O53: ='[4]Input| Projects'!G51 -> Distribution system assets | P53: Augmentation Expenditure | S53: ='[4]Input| JEN Mapping'!H51 -> Non-IT | V53: ='[4]Calc| Project Costs'!V51 -> 1735.511678 | W53: ='[4]Calc| Project Costs'!W51 -> 0 | X53: ='[4]Calc| Project Costs'!X51 -> 0 | Y53: ='[4]Calc| Project Costs'!Y51 -> 0 | Z53: ='[4]Calc| Project Costs'!Z51 -> 0 | AA53: ='[4]Calc| Project Costs'!AA51 -> 0 | AB53: ='[4]Calc| Project Costs'!AB51 -> 0 | AC53: 1735.511678 | AD53: 1735.511678 | AF53: ='[4]Calc| Project Costs'!BR51 -> 2021.596685 | AG53: ='[4]Calc| Project Costs'!BS51 -> 0 | AH53: ='[4]Calc| Project Costs'!BT51 -> 0 | AI53: ='[4]Calc| Project Costs'!BU51 -> 0 | AJ53: ='[4]Calc| Project Costs'!BV51 -> 0 | AK53: ='[4]Calc| Project Costs'!BW51 -> 0 | AL53: ='[4]Calc| Project Costs'!BX51 -> 0 | AM53: 2021.596685 | AN53: 2021.596685 | AP53: ='[4]Calc| Project Costs'!AD51 -> 0 | AQ53: ='[4]Calc| Project Costs'!AE51 -> 0 | AR53: ='[4]Calc| Project Costs'!AF51 -> 0 | AS53: ='[4]Calc| Project Costs'!AG51 -> 0 | AT53: ='[4]Calc| Project Costs'!AH51 -> 0 | AU53: ='[4]Calc| Project Costs'!AI51 -> 0 | AV53: ='[4]Calc| Project Costs'!AJ51 -> 0 | AW53: 0 | AY53: ='[4]Calc| Project Costs'!AL51 -> 286.0850068 | AZ53: ='[4]Calc| Project Costs'!AM51 -> 0 | BA53: ='[4]Calc| Project Costs'!AN51 -> 0 | BB53: ='[4]Calc| Project Costs'!AO51 -> 0 | BC53: ='[4]Calc| Project Costs'!AP51 -> 0 | BD53: ='[4]Calc| Project Costs'!AQ51 -> 0 | BE53: ='[4]Calc| Project Costs'!AR51 -> 0 | BF53: 0 | BH53: ='[4]Calc| Project Costs'!BJ51 -> 0 | BI53: ='[4]Calc| Project Costs'!BK51 ->  | BJ53: ='[4]Calc| Project Costs'!BL51 ->  | BK53: ='[4]Calc| Project Costs'!BM51 ->  | BL53: ='[4]Calc| Project Costs'!BN51 ->  | BM53: ='[4]Calc| Project Costs'!BO51 ->  | BN53: ='[4]Calc| Project Costs'!BP51 ->  | BO53: 0 | BQ53: ='[4]Input| Projects'!Y51 -> 0.6531587911 | BR53: ='[4]Input| Projects'!Z51 -> 0.03631740906 | BS53: ='[4]Input| Projects'!AA51 -> 0.3105237999 | BT53: =+_xlfn.SWITCH(TRUE,LEN(L53)>0,IF(SUM(BQ53:BS53)<>1,1,0), 0) -> 0
D54: ='[4]Calc| Project Costs'!C52 -> Pole to Pit Installed | E54: JEN | F54: $'000s | G54: Real 2026 | H54: End Year | L54: ='[4]Calc| Project Costs'!D52 -> A246 | M54: ='[4]Input| JEN Mapping'!G52 -> Connections | N54: ='[4]Input| JEN Mapping'!F52 -> Connections | O54: ='[4]Input| Projects'!G52 -> Distribution system assets | P54: Connections | S54: ='[4]Input| JEN Mapping'!H52 -> Non-IT | V54: ='[4]Calc| Project Costs'!V52 -> 9509.588521 | W54: ='[4]Calc| Project Costs'!W52 -> 9589.351027 | X54: ='[4]Calc| Project Costs'!X52 -> 12647.02714 | Y54: ='[4]Calc| Project Costs'!Y52 -> 11330.38597 | Z54: ='[4]Calc| Project Costs'!Z52 -> 11335.03391 | AA54: ='[4]Calc| Project Costs'!AA52 -> 11444.87366 | AB54: ='[4]Calc| Project Costs'!AB52 -> 11591.36379 | AC54: 77447.62402 | AD54: 77447.62402 | AF54: ='[4]Calc| Project Costs'!BR52 -> 11077.16697 | AG54: ='[4]Calc| Project Costs'!BS52 -> 10836.36199 | AH54: ='[4]Calc| Project Costs'!BT52 -> 14135.02993 | AI54: ='[4]Calc| Project Costs'!BU52 -> 12679.14937 | AJ54: ='[4]Calc| Project Costs'!BV52 -> 12685.2783 | AK54: ='[4]Calc| Project Costs'!BW52 -> 12867.13484 | AL54: ='[4]Calc| Project Costs'!BX52 -> 13226.27727 | AM54: 87506.39867 | AN54: 87506.39867 | AP54: ='[4]Calc| Project Costs'!AD52 -> 4089.123064 | AQ54: ='[4]Calc| Project Costs'!AE52 -> 4123.420941 | AR54: ='[4]Calc| Project Costs'!AF52 -> 5438.221672 | AS54: ='[4]Calc| Project Costs'!AG52 -> 4872.065966 | AT54: ='[4]Calc| Project Costs'!AH52 -> 4874.064581 | AU54: ='[4]Calc| Project Costs'!AI52 -> 4921.295675 | AV54: ='[4]Calc| Project Costs'!AJ52 -> 4984.286428 | AW54: 25089.93432 | AY54: ='[4]Calc| Project Costs'!AL52 -> 1567.578445 | AZ54: ='[4]Calc| Project Costs'!AM52 -> 1247.010968 | BA54: ='[4]Calc| Project Costs'!AN52 -> 1488.002788 | BB54: ='[4]Calc| Project Costs'!AO52 -> 1348.763398 | BC54: ='[4]Calc| Project Costs'!AP52 -> 1350.244389 | BD54: ='[4]Calc| Project Costs'!AQ52 -> 1422.261175 | BE54: ='[4]Calc| Project Costs'!AR52 -> 1634.913488 | BF54: 7244.185238 | BH54: ='[4]Calc| Project Costs'!BJ52 -> 674.0587313 | BI54: ='[4]Calc| Project Costs'!BK52 -> 536.2147161 | BJ54: ='[4]Calc| Project Costs'!BL52 -> 639.8411988 | BK54: ='[4]Calc| Project Costs'!BM52 -> 579.9682613 | BL54: ='[4]Calc| Project Costs'!BN52 -> 580.6050871 | BM54: ='[4]Calc| Project Costs'!BO52 -> 611.5723051 | BN54: ='[4]Calc| Project Costs'!BP52 -> 703.0127999 | BO54: 3114.999652 | BQ54: ='[4]Input| Projects'!Y52 -> 0.03374557443 | BR54: ='[4]Input| Projects'!Z52 -> 0.8388701447 | BS54: ='[4]Input| Projects'!AA52 -> 0.1273842808 | BT54: =+_xlfn.SWITCH(TRUE,LEN(L54)>0,IF(SUM(BQ54:BS54)<>1,1,0), 0) -> 0
D55: ='[4]Calc| Project Costs'!C53 -> Undersize Pole Replacement | E55: JEN | F55: $'000s | G55: Real 2026 | H55: End Year | L55: ='[4]Calc| Project Costs'!D53 -> A477 | M55: ='[4]Input| JEN Mapping'!G53 -> Replacement | N55: ='[4]Input| JEN Mapping'!F53 -> Replacement | O55: ='[4]Input| Projects'!G53 -> Distribution system assets | P55: Replacement expenditure | S55: ='[4]Input| JEN Mapping'!H53 -> Non-IT | V55: ='[4]Calc| Project Costs'!V53 -> 0 | W55: ='[4]Calc| Project Costs'!W53 -> 0 | X55: ='[4]Calc| Project Costs'!X53 -> 223.5937063 | Y55: ='[4]Calc| Project Costs'!Y53 -> 470.9494559 | Z55: ='[4]Calc| Project Costs'!Z53 -> 474.8838983 | AA55: ='[4]Calc| Project Costs'!AA53 -> 479.6281424 | AB55: ='[4]Calc| Project Costs'!AB53 -> 484.133128 | AC55: 2133.188331 | AD55: 2133.188331 | AF55: ='[4]Calc| Project Costs'!BR53 -> 0 | AG55: ='[4]Calc| Project Costs'!BS53 -> 0 | AH55: ='[4]Calc| Project Costs'!BT53 -> 249.900921 | AI55: ='[4]Calc| Project Costs'!BU53 -> 527.0110403 | AJ55: ='[4]Calc| Project Costs'!BV53 -> 531.452703 | AK55: ='[4]Calc| Project Costs'!BW53 -> 539.2318135 | AL55: ='[4]Calc| Project Costs'!BX53 -> 552.4180853 | AM55: 2400.014563 | AN55: 2400.014563 | AP55: ='[4]Calc| Project Costs'!AD53 -> 0 | AQ55: ='[4]Calc| Project Costs'!AE53 -> 0 | AR55: ='[4]Calc| Project Costs'!AF53 -> 0 | AS55: ='[4]Calc| Project Costs'!AG53 -> 0 | AT55: ='[4]Calc| Project Costs'!AH53 -> 0 | AU55: ='[4]Calc| Project Costs'!AI53 -> 0 | AV55: ='[4]Calc| Project Costs'!AJ53 -> 0 | AW55: 0 | AY55: ='[4]Calc| Project Costs'!AL53 -> 0 | AZ55: ='[4]Calc| Project Costs'!AM53 -> 0 | BA55: ='[4]Calc| Project Costs'!AN53 -> 26.3072147 | BB55: ='[4]Calc| Project Costs'!AO53 -> 56.06158435 | BC55: ='[4]Calc| Project Costs'!AP53 -> 56.56880465 | BD55: ='[4]Calc| Project Costs'!AQ53 -> 59.60367107 | BE55: ='[4]Calc| Project Costs'!AR53 -> 68.28495729 | BF55: 266.8262321 | BH55: ='[4]Calc| Project Costs'!BJ53 ->  | BI55: ='[4]Calc| Project Costs'!BK53 ->  | BJ55: ='[4]Calc| Project Costs'!BL53 -> 0 | BK55: ='[4]Calc| Project Costs'!BM53 -> 0 | BL55: ='[4]Calc| Project Costs'!BN53 -> 0 | BM55: ='[4]Calc| Project Costs'!BO53 -> 0 | BN55: ='[4]Calc| Project Costs'!BP53 -> 0 | BO55: 0 | BQ55: ='[4]Input| Projects'!Y53 -> 0.4967632744 | BR55: ='[4]Input| Projects'!Z53 -> 0.3111882358 | BS55: ='[4]Input| Projects'!AA53 -> 0.1920484898 | BT55: =+_xlfn.SWITCH(TRUE,LEN(L55)>0,IF(SUM(BQ55:BS55)<>1,1,0), 0) -> 0
D56: ='[4]Calc| Project Costs'!C54 -> Undersize Pole Reinforcement | E56: JEN | F56: $'000s | G56: Real 2026 | H56: End Year | L56: ='[4]Calc| Project Costs'!D54 -> A480 | M56: ='[4]Input| JEN Mapping'!G54 -> Replacement | N56: ='[4]Input| JEN Mapping'!F54 -> Replacement | O56: ='[4]Input| Projects'!G54 -> Distribution system assets | P56: Replacement expenditure | S56: ='[4]Input| JEN Mapping'!H54 -> Non-IT | V56: ='[4]Calc| Project Costs'!V54 -> 0 | W56: ='[4]Calc| Project Costs'!W54 -> 0 | X56: ='[4]Calc| Project Costs'!X54 -> 69.53339244 | Y56: ='[4]Calc| Project Costs'!Y54 -> 146.3931005 | Z56: ='[4]Calc| Project Costs'!Z54 -> 147.5384134 | AA56: ='[4]Calc| Project Costs'!AA54 -> 148.9194589 | AB56: ='[4]Calc| Project Costs'!AB54 -> 150.2308564 | AC56: 662.6152216 | AD56: 662.6152216 | AF56: ='[4]Calc| Project Costs'!BR54 -> 0 | AG56: ='[4]Calc| Project Costs'!BS54 -> 0 | AH56: ='[4]Calc| Project Costs'!BT54 -> 77.71443615 | AI56: ='[4]Calc| Project Costs'!BU54 -> 163.819661 | AJ56: ='[4]Calc| Project Costs'!BV54 -> 165.1133864 | AK56: ='[4]Calc| Project Costs'!BW54 -> 167.4257675 | AL56: ='[4]Calc| Project Costs'!BX54 -> 171.4202917 | AM56: 745.4935427 | AN56: 745.4935427 | AP56: ='[4]Calc| Project Costs'!AD54 -> 0 | AQ56: ='[4]Calc| Project Costs'!AE54 -> 0 | AR56: ='[4]Calc| Project Costs'!AF54 -> 0 | AS56: ='[4]Calc| Project Costs'!AG54 -> 0 | AT56: ='[4]Calc| Project Costs'!AH54 -> 0 | AU56: ='[4]Calc| Project Costs'!AI54 -> 0 | AV56: ='[4]Calc| Project Costs'!AJ54 -> 0 | AW56: 0 | AY56: ='[4]Calc| Project Costs'!AL54 -> 0 | AZ56: ='[4]Calc| Project Costs'!AM54 -> 0 | BA56: ='[4]Calc| Project Costs'!AN54 -> 8.181043705 | BB56: ='[4]Calc| Project Costs'!AO54 -> 17.42656043 | BC56: ='[4]Calc| Project Costs'!AP54 -> 17.57497299 | BD56: ='[4]Calc| Project Costs'!AQ54 -> 18.50630865 | BE56: ='[4]Calc| Project Costs'!AR54 -> 21.18943533 | BF56: 82.87832112 | BH56: ='[4]Calc| Project Costs'!BJ54 ->  | BI56: ='[4]Calc| Project Costs'!BK54 ->  | BJ56: ='[4]Calc| Project Costs'!BL54 -> 0 | BK56: ='[4]Calc| Project Costs'!BM54 -> 0 | BL56: ='[4]Calc| Project Costs'!BN54 -> 0 | BM56: ='[4]Calc| Project Costs'!BO54 -> 0 | BN56: ='[4]Calc| Project Costs'!BP54 -> 0 | BO56: 0 | BQ56: ='[4]Input| Projects'!Y54 -> 0.04441947681 | BR56: ='[4]Input| Projects'!Z54 -> 0.7104697726 | BS56: ='[4]Input| Projects'!AA54 -> 0.2451107506 | BT56: =+_xlfn.SWITCH(TRUE,LEN(L56)>0,IF(SUM(BQ56:BS56)<>1,1,0), 0) -> 0
D57: ='[4]Calc| Project Costs'!C55 -> Replace ILJIN and HV overhead GFB switches | E57: JEN | F57: $'000s | G57: Real 2026 | H57: End Year | L57: ='[4]Calc| Project Costs'!D55 -> A285 | M57: ='[4]Input| JEN Mapping'!G55 -> Replacement | N57: ='[4]Input| JEN Mapping'!F55 -> Replacement | O57: ='[4]Input| Projects'!G55 -> Distribution system assets | P57: Replacement expenditure | S57: ='[4]Input| JEN Mapping'!H55 -> Non-IT | V57: ='[4]Calc| Project Costs'!V55 -> 0 | W57: ='[4]Calc| Project Costs'!W55 -> 0 | X57: ='[4]Calc| Project Costs'!X55 -> 1120.535152 | Y57: ='[4]Calc| Project Costs'!Y55 -> 0 | Z57: ='[4]Calc| Project Costs'!Z55 -> 893.4846907 | AA57: ='[4]Calc| Project Costs'!AA55 -> 1883.043062 | AB57: ='[4]Calc| Project Costs'!AB55 -> 1896.173915 | AC57: 5793.23682 | AD57: 5793.23682 | AF57: ='[4]Calc| Project Costs'!BR55 -> 0 | AG57: ='[4]Calc| Project Costs'!BS55 -> 0 | AH57: ='[4]Calc| Project Costs'!BT55 -> 1252.373204 | AI57: ='[4]Calc| Project Costs'!BU55 -> 0 | AJ57: ='[4]Calc| Project Costs'!BV55 -> 999.9177812 | AK57: ='[4]Calc| Project Costs'!BW55 -> 2117.04993 | AL57: ='[4]Calc| Project Costs'!BX55 -> 2163.621332 | AM57: 6532.962248 | AN57: 6532.962248 | AP57: ='[4]Calc| Project Costs'!AD55 -> 0 | AQ57: ='[4]Calc| Project Costs'!AE55 -> 0 | AR57: ='[4]Calc| Project Costs'!AF55 -> 0 | AS57: ='[4]Calc| Project Costs'!AG55 -> 0 | AT57: ='[4]Calc| Project Costs'!AH55 -> 0 | AU57: ='[4]Calc| Project Costs'!AI55 -> 0 | AV57: ='[4]Calc| Project Costs'!AJ55 -> 0 | AW57: 0 | AY57: ='[4]Calc| Project Costs'!AL55 -> 0 | AZ57: ='[4]Calc| Project Costs'!AM55 -> 0 | BA57: ='[4]Calc| Project Costs'!AN55 -> 131.8380526 | BB57: ='[4]Calc| Project Costs'!AO55 -> 0 | BC57: ='[4]Calc| Project Costs'!AP55 -> 106.4330905 | BD57: ='[4]Calc| Project Costs'!AQ55 -> 234.0068678 | BE57: ='[4]Calc| Project Costs'!AR55 -> 267.4474174 | BF57: 739.7254283 | BH57: ='[4]Calc| Project Costs'!BJ55 ->  | BI57: ='[4]Calc| Project Costs'!BK55 ->  | BJ57: ='[4]Calc| Project Costs'!BL55 -> 0 | BK57: ='[4]Calc| Project Costs'!BM55 ->  | BL57: ='[4]Calc| Project Costs'!BN55 -> 0 | BM57: ='[4]Calc| Project Costs'!BO55 -> 0 | BN57: ='[4]Calc| Project Costs'!BP55 -> 0 | BO57: 0 | BQ57: ='[4]Input| Projects'!Y55 -> 0.4661741506 | BR57: ='[4]Input| Projects'!Z55 -> 0.1252386906 | BS57: ='[4]Input| Projects'!AA55 -> 0.4085871588 | BT57: =+_xlfn.SWITCH(TRUE,LEN(L57)>0,IF(SUM(BQ57:BS57)<>1,1,0), 0) -> 0
D58: ='[4]Calc| Project Costs'!C56 -> Service Rectification Program | E58: JEN | F58: $'000s | G58: Real 2026 | H58: End Year | L58: ='[4]Calc| Project Costs'!D56 -> A157 | M58: ='[4]Input| JEN Mapping'!G56 -> Replacement | N58: ='[4]Input| JEN Mapping'!F56 -> Replacement | O58: ='[4]Input| Projects'!G56 -> Distribution system assets | P58: Replacement expenditure | S58: ='[4]Input| JEN Mapping'!H56 -> Non-IT | V58: ='[4]Calc| Project Costs'!V56 -> 2004.581521 | W58: ='[4]Calc| Project Costs'!W56 -> 0 | X58: ='[4]Calc| Project Costs'!X56 -> 5445.524461 | Y58: ='[4]Calc| Project Costs'!Y56 -> 4746.498335 | Z58: ='[4]Calc| Project Costs'!Z56 -> 3831.457776 | AA58: ='[4]Calc| Project Costs'!AA56 -> 3872.768223 | AB58: ='[4]Calc| Project Costs'!AB56 -> 3911.995329 | AC58: 23812.82564 | AD58: 23812.82564 | AF58: ='[4]Calc| Project Costs'!BR56 -> 2335.020506 | AG58: ='[4]Calc| Project Costs'!BS56 -> 0 | AH58: ='[4]Calc| Project Costs'!BT56 -> 6086.224879 | AI58: ='[4]Calc| Project Costs'!BU56 -> 5311.519089 | AJ58: ='[4]Calc| Project Costs'!BV56 -> 4287.866147 | AK58: ='[4]Calc| Project Costs'!BW56 -> 4354.039406 | AL58: ='[4]Calc| Project Costs'!BX56 -> 4463.765945 | AM58: 26838.43597 | AN58: 26838.43597 | AP58: ='[4]Calc| Project Costs'!AD56 -> 0 | AQ58: ='[4]Calc| Project Costs'!AE56 -> 0 | AR58: ='[4]Calc| Project Costs'!AF56 -> 0 | AS58: ='[4]Calc| Project Costs'!AG56 -> 0 | AT58: ='[4]Calc| Project Costs'!AH56 -> 0 | AU58: ='[4]Calc| Project Costs'!AI56 -> 0 | AV58: ='[4]Calc| Project Costs'!AJ56 -> 0 | AW58: 0 | AY58: ='[4]Calc| Project Costs'!AL56 -> 330.4389854 | AZ58: ='[4]Calc| Project Costs'!AM56 -> 0 | BA58: ='[4]Calc| Project Costs'!AN56 -> 640.7004182 | BB58: ='[4]Calc| Project Costs'!AO56 -> 565.0207542 | BC58: ='[4]Calc| Project Costs'!AP56 -> 456.4083711 | BD58: ='[4]Calc| Project Costs'!AQ56 -> 481.2711826 | BE58: ='[4]Calc| Project Costs'!AR56 -> 551.7706154 | BF58: 2695.171341 | BH58: ='[4]Calc| Project Costs'!BJ56 -> 0 | BI58: ='[4]Calc| Project Costs'!BK56 ->  | BJ58: ='[4]Calc| Project Costs'!BL56 -> 0 | BK58: ='[4]Calc| Project Costs'!BM56 -> 0 | BL58: ='[4]Calc| Project Costs'!BN56 -> 0 | BM58: ='[4]Calc| Project Costs'!BO56 -> 0 | BN58: ='[4]Calc| Project Costs'!BP56 -> 0 | BO58: 0 | BQ58: ='[4]Input| Projects'!Y56 -> 0.3128564302 | BR58: ='[4]Input| Projects'!Z56 -> 0.5622215209 | BS58: ='[4]Input| Projects'!AA56 -> 0.1249220489 | BT58: =+_xlfn.SWITCH(TRUE,LEN(L58)>0,IF(SUM(BQ58:BS58)<>1,1,0), 0) -> 0
D59: ='[4]Calc| Project Costs'!C57 -> Business Supply >10kVA | E59: JEN | F59: $'000s | G59: Real 2026 | H59: End Year | L59: ='[4]Calc| Project Costs'!D57 -> A1 | M59: ='[4]Input| JEN Mapping'!G57 -> Connections | N59: ='[4]Input| JEN Mapping'!F57 -> Connections | O59: ='[4]Input| Projects'!G57 -> Distribution system assets | P59: Connections | S59: ='[4]Input| JEN Mapping'!H57 -> Non-IT | V59: ='[4]Calc| Project Costs'!V57 -> 2006.409888 | W59: ='[4]Calc| Project Costs'!W57 -> 2299.056012 | X59: ='[4]Calc| Project Costs'!X57 -> 2334.537819 | Y59: ='[4]Calc| Project Costs'!Y57 -> 2316.54571 | Z59: ='[4]Calc| Project Costs'!Z57 -> 2279.161055 | AA59: ='[4]Calc| Project Costs'!AA57 -> 2250.576756 | AB59: ='[4]Calc| Project Costs'!AB57 -> 2242.934657 | AC59: 15729.2219 | AD59: 15729.2219 | AF59: ='[4]Calc| Project Costs'!BR57 -> 2337.150265 | AG59: ='[4]Calc| Project Costs'!BS57 -> 2598.028075 | AH59: ='[4]Calc| Project Costs'!BT57 -> 2609.210969 | AI59: ='[4]Calc| Project Costs'!BU57 -> 2592.306136 | AJ59: ='[4]Calc| Project Costs'!BV57 -> 2550.657766 | AK59: ='[4]Calc| Project Costs'!BW57 -> 2530.257251 | AL59: ='[4]Calc| Project Costs'!BX57 -> 2559.29123 | AM59: 17776.90169 | AN59: 17776.90169 | AP59: ='[4]Calc| Project Costs'!AD57 -> 862.7562518 | AQ59: ='[4]Calc| Project Costs'!AE57 -> 988.5940851 | AR59: ='[4]Calc| Project Costs'!AF57 -> 1003.851262 | AS59: ='[4]Calc| Project Costs'!AG57 -> 996.1146552 | AT59: ='[4]Calc| Project Costs'!AH57 -> 980.0392537 | AU59: ='[4]Calc| Project Costs'!AI57 -> 967.7480049 | AV59: ='[4]Calc| Project Costs'!AJ57 -> 964.4619024 | AW59: 4912.215079 | AY59: ='[4]Calc| Project Costs'!AL57 -> 330.7403769 | AZ59: ='[4]Calc| Project Costs'!AM57 -> 298.9720633 | BA59: ='[4]Calc| Project Costs'!AN57 -> 274.67315 | BB59: ='[4]Calc| Project Costs'!AO57 -> 275.7604263 | BC59: ='[4]Calc| Project Costs'!AP57 -> 271.496711 | BD59: ='[4]Calc| Project Costs'!AQ57 -> 279.6804958 | BE59: ='[4]Calc| Project Costs'!AR57 -> 316.356573 | BF59: 1417.967356 | BH59: ='[4]Calc| Project Costs'!BJ57 -> 142.2183621 | BI59: ='[4]Calc| Project Costs'!BK57 -> 128.5579872 | BJ59: ='[4]Calc| Project Costs'!BL57 -> 118.1094545 | BK59: ='[4]Calc| Project Costs'!BM57 -> 118.5769833 | BL59: ='[4]Calc| Project Costs'!BN57 -> 116.7435857 | BM59: ='[4]Calc| Project Costs'!BO57 -> 120.2626132 | BN59: ='[4]Calc| Project Costs'!BP57 -> 136.0333264 | BO59: 609.7259631 | BQ59: ='[4]Input| Projects'!Y57 -> 0.2796398347 | BR59: ='[4]Input| Projects'!Z57 -> 0.4480339349 | BS59: ='[4]Input| Projects'!AA57 -> 0.2723262304 | BT59: =+_xlfn.SWITCH(TRUE,LEN(L59)>0,IF(SUM(BQ59:BS59)<>1,1,0), 0) -> 0
D60: ='[4]Calc| Project Costs'!C58 -> DC02 - West Footscray (Stage 3) | E60: JEN | F60: $'000s | G60: Real 2026 | H60: End Year | L60: ='[4]Calc| Project Costs'!D58 -> A956 | M60: ='[4]Input| JEN Mapping'!G58 -> Connections | N60: ='[4]Input| JEN Mapping'!F58 -> Connections | O60: ='[4]Input| Projects'!G58 -> Distribution system assets | P60: Connections | S60: ='[4]Input| JEN Mapping'!H58 -> Non-IT | V60: ='[4]Calc| Project Costs'!V58 -> 6053.788312 | W60: ='[4]Calc| Project Costs'!W58 -> 16987.18256 | X60: ='[4]Calc| Project Costs'!X58 -> 17058.48391 | Y60: ='[4]Calc| Project Costs'!Y58 -> 0 | Z60: ='[4]Calc| Project Costs'!Z58 -> 0 | AA60: ='[4]Calc| Project Costs'!AA58 -> 0 | AB60: ='[4]Calc| Project Costs'!AB58 -> 0 | AC60: 40099.45479 | AD60: 40099.45479 | AF60: ='[4]Calc| Project Costs'!BR58 -> 7051.706155 | AG60: ='[4]Calc| Project Costs'!BS58 -> 19196.21662 | AH60: ='[4]Calc| Project Costs'!BT58 -> 19065.52251 | AI60: ='[4]Calc| Project Costs'!BU58 -> 0 | AJ60: ='[4]Calc| Project Costs'!BV58 -> 0 | AK60: ='[4]Calc| Project Costs'!BW58 -> 0 | AL60: ='[4]Calc| Project Costs'!BX58 -> 0 | AM60: 45313.44528 | AN60: 45313.44528 | AP60: ='[4]Calc| Project Costs'!AD58 -> 4413.211679 | AQ60: ='[4]Calc| Project Costs'!AE58 -> 12383.65609 | AR60: ='[4]Calc| Project Costs'!AF58 -> 12435.63477 | AS60: ='[4]Calc| Project Costs'!AG58 -> 0 | AT60: ='[4]Calc| Project Costs'!AH58 -> 0 | AU60: ='[4]Calc| Project Costs'!AI58 -> 0 | AV60: ='[4]Calc| Project Costs'!AJ58 -> 0 | AW60: 12435.63477 | AY60: ='[4]Calc| Project Costs'!AL58 -> 997.9178433 | AZ60: ='[4]Calc| Project Costs'!AM58 -> 2209.034053 | BA60: ='[4]Calc| Project Costs'!AN58 -> 2007.038598 | BB60: ='[4]Calc| Project Costs'!AO58 -> 0 | BC60: ='[4]Calc| Project Costs'!AP58 -> 0 | BD60: ='[4]Calc| Project Costs'!AQ58 -> 0 | BE60: ='[4]Calc| Project Costs'!AR58 -> 0 | BF60: 2007.038598 | BH60: ='[4]Calc| Project Costs'!BJ58 -> 727.4821078 | BI60: ='[4]Calc| Project Costs'!BK58 -> 1610.385825 | BJ60: ='[4]Calc| Project Costs'!BL58 -> 1463.131138 | BK60: ='[4]Calc| Project Costs'!BM58 ->  | BL60: ='[4]Calc| Project Costs'!BN58 ->  | BM60: ='[4]Calc| Project Costs'!BO58 ->  | BN60: ='[4]Calc| Project Costs'!BP58 ->  | BO60: 1463.131138 | BQ60: ='[4]Input| Projects'!Y58 -> 0.2796398347 | BR60: ='[4]Input| Projects'!Z58 -> 0.4480339349 | BS60: ='[4]Input| Projects'!AA58 -> 0.2723262304 | BT60: =+_xlfn.SWITCH(TRUE,LEN(L60)>0,IF(SUM(BQ60:BS60)<>1,1,0), 0) -> 0
D61: ='[4]Calc| Project Costs'!C59 -> Waste to Energy Plant | E61: JEN | F61: $'000s | G61: Real 2026 | H61: End Year | L61: ='[4]Calc| Project Costs'!D59 -> A265 | M61: ='[4]Input| JEN Mapping'!G59 -> Connections | N61: ='[4]Input| JEN Mapping'!F59 -> Connections | O61: ='[4]Input| Projects'!G59 -> Distribution system assets | P61: Connections | S61: ='[4]Input| JEN Mapping'!H59 -> Non-IT | V61: ='[4]Calc| Project Costs'!V59 -> 293.0206925 | W61: ='[4]Calc| Project Costs'!W59 -> 0 | X61: ='[4]Calc| Project Costs'!X59 -> 10122.60181 | Y61: ='[4]Calc| Project Costs'!Y59 -> 0 | Z61: ='[4]Calc| Project Costs'!Z59 -> 0 | AA61: ='[4]Calc| Project Costs'!AA59 -> 0 | AB61: ='[4]Calc| Project Costs'!AB59 -> 0 | AC61: 10415.6225 | AD61: 10415.6225 | AF61: ='[4]Calc| Project Costs'!BR59 -> 341.3227742 | AG61: ='[4]Calc| Project Costs'!BS59 -> 0 | AH61: ='[4]Calc| Project Costs'!BT59 -> 11313.58998 | AI61: ='[4]Calc| Project Costs'!BU59 -> 0 | AJ61: ='[4]Calc| Project Costs'!BV59 -> 0 | AK61: ='[4]Calc| Project Costs'!BW59 -> 0 | AL61: ='[4]Calc| Project Costs'!BX59 -> 0 | AM61: 11654.91275 | AN61: 11654.91275 | AP61: ='[4]Calc| Project Costs'!AD59 -> 293.0206925 | AQ61: ='[4]Calc| Project Costs'!AE59 -> 0 | AR61: ='[4]Calc| Project Costs'!AF59 -> 10122.60181 | AS61: ='[4]Calc| Project Costs'!AG59 -> 0 | AT61: ='[4]Calc| Project Costs'!AH59 -> 0 | AU61: ='[4]Calc| Project Costs'!AI59 -> 0 | AV61: ='[4]Calc| Project Costs'!AJ59 -> 0 | AW61: 10122.60181 | AY61: ='[4]Calc| Project Costs'!AL59 -> 48.30208168 | AZ61: ='[4]Calc| Project Costs'!AM59 -> 0 | BA61: ='[4]Calc| Project Costs'!AN59 -> 1190.98817 | BB61: ='[4]Calc| Project Costs'!AO59 -> 0 | BC61: ='[4]Calc| Project Costs'!AP59 -> 0 | BD61: ='[4]Calc| Project Costs'!AQ59 -> 0 | BE61: ='[4]Calc| Project Costs'!AR59 -> 0 | BF61: 1190.98817 | BH61: ='[4]Calc| Project Costs'!BJ59 -> 48.30208168 | BI61: ='[4]Calc| Project Costs'!BK59 ->  | BJ61: ='[4]Calc| Project Costs'!BL59 -> 1190.98817 | BK61: ='[4]Calc| Project Costs'!BM59 ->  | BL61: ='[4]Calc| Project Costs'!BN59 ->  | BM61: ='[4]Calc| Project Costs'!BO59 ->  | BN61: ='[4]Calc| Project Costs'!BP59 ->  | BO61: 1190.98817 | BQ61: ='[4]Input| Projects'!Y59 -> 0.2796398347 | BR61: ='[4]Input| Projects'!Z59 -> 0.4480339349 | BS61: ='[4]Input| Projects'!AA59 -> 0.2723262304 | BT61: =+_xlfn.SWITCH(TRUE,LEN(L61)>0,IF(SUM(BQ61:BS61)<>1,1,0), 0) -> 0
D62: ='[4]Calc| Project Costs'!C60 -> Medium Density Housing LV ext | E62: JEN | F62: $'000s | G62: Real 2026 | H62: End Year | L62: ='[4]Calc| Project Costs'!D60 -> A3 | M62: ='[4]Input| JEN Mapping'!G60 -> Connections | N62: ='[4]Input| JEN Mapping'!F60 -> Connections | O62: ='[4]Input| Projects'!G60 -> Distribution system assets | P62: Connections | S62: ='[4]Input| JEN Mapping'!H60 -> Non-IT | V62: ='[4]Calc| Project Costs'!V60 -> 1284.586613 | W62: ='[4]Calc| Project Costs'!W60 -> 1658.984649 | X62: ='[4]Calc| Project Costs'!X60 -> 1636.810485 | Y62: ='[4]Calc| Project Costs'!Y60 -> 1610.073184 | Z62: ='[4]Calc| Project Costs'!Z60 -> 1604.240992 | AA62: ='[4]Calc| Project Costs'!AA60 -> 1612.717026 | AB62: ='[4]Calc| Project Costs'!AB60 -> 1621.729552 | AC62: 11029.1425 | AD62: 11029.1425 | AF62: ='[4]Calc| Project Costs'!BR60 -> 1496.340285 | AG62: ='[4]Calc| Project Costs'!BS60 -> 1874.721048 | AH62: ='[4]Calc| Project Costs'!BT60 -> 1829.391599 | AI62: ='[4]Calc| Project Costs'!BU60 -> 1801.735479 | AJ62: ='[4]Calc| Project Costs'!BV60 -> 1795.340323 | AK62: ='[4]Calc| Project Costs'!BW60 -> 1813.130318 | AL62: ='[4]Calc| Project Costs'!BX60 -> 1850.467737 | AM62: 12461.12679 | AN62: 12461.12679 | AP62: ='[4]Calc| Project Costs'!AD60 -> 191.7544946 | AQ62: ='[4]Calc| Project Costs'!AE60 -> 247.6421283 | AR62: ='[4]Calc| Project Costs'!AF60 -> 244.3321175 | AS62: ='[4]Calc| Project Costs'!AG60 -> 240.340952 | AT62: ='[4]Calc| Project Costs'!AH60 -> 239.4703615 | AU62: ='[4]Calc| Project Costs'!AI60 -> 240.735607 | AV62: ='[4]Calc| Project Costs'!AJ60 -> 242.0809366 | AW62: 1206.959975 | AY62: ='[4]Calc| Project Costs'!AL60 -> 211.7536717 | AZ62: ='[4]Calc| Project Costs'!AM60 -> 215.7363983 | BA62: ='[4]Calc| Project Costs'!AN60 -> 192.5811132 | BB62: ='[4]Calc| Project Costs'!AO60 -> 191.6622951 | BC62: ='[4]Calc| Project Costs'!AP60 -> 191.0993311 | BD62: ='[4]Calc| Project Costs'!AQ60 -> 200.4132924 | BE62: ='[4]Calc| Project Costs'!AR60 -> 228.7381854 | BF62: 1004.494217 | BH62: ='[4]Calc| Project Costs'!BJ60 -> 31.60917128 | BI62: ='[4]Calc| Project Costs'!BK60 -> 32.20368607 | BJ62: ='[4]Calc| Project Costs'!BL60 -> 28.74722003 | BK62: ='[4]Calc| Project Costs'!BM60 -> 28.61006501 | BL62: ='[4]Calc| Project Costs'!BN60 -> 28.52602951 | BM62: ='[4]Calc| Project Costs'!BO60 -> 29.91635533 | BN62: ='[4]Calc| Project Costs'!BP60 -> 34.14450584 | BO62: 149.9441757 | BQ62: ='[4]Input| Projects'!Y60 -> 0.1714312583 | BR62: ='[4]Input| Projects'!Z60 -> 0.3027264619 | BS62: ='[4]Input| Projects'!AA60 -> 0.5258422798 | BT62: =+_xlfn.SWITCH(TRUE,LEN(L62)>0,IF(SUM(BQ62:BS62)<>1,1,0), 0) -> 0
D63: ='[4]Calc| Project Costs'!C61 -> P2P Back Office Supp Costs SCS | E63: JEN | F63: $'000s | G63: Real 2026 | H63: End Year | L63: ='[4]Calc| Project Costs'!D61 -> A397 | M63: ='[4]Input| JEN Mapping'!G61 -> Connections | N63: ='[4]Input| JEN Mapping'!F61 -> Connections | O63: ='[4]Input| Projects'!G61 -> Distribution system assets | P63: Connections | S63: ='[4]Input| JEN Mapping'!H61 -> Non-IT | V63: ='[4]Calc| Project Costs'!V61 -> 280.7015201 | W63: ='[4]Calc| Project Costs'!W61 -> 283.0032885 | X63: ='[4]Calc| Project Costs'!X61 -> 227.8250606 | Y63: ='[4]Calc| Project Costs'!Y61 -> 229.4941415 | Z63: ='[4]Calc| Project Costs'!Z61 -> 231.559078 | AA63: ='[4]Calc| Project Costs'!AA61 -> 234.0490274 | AB63: ='[4]Calc| Project Costs'!AB61 -> 236.4134054 | AC63: 1723.045522 | AD63: 1723.045522 | AF63: ='[4]Calc| Project Costs'!BR61 -> 280.7015201 | AG63: ='[4]Calc| Project Costs'!BS61 -> 283.0032885 | AH63: ='[4]Calc| Project Costs'!BT61 -> 227.8250606 | AI63: ='[4]Calc| Project Costs'!BU61 -> 229.4941415 | AJ63: ='[4]Calc| Project Costs'!BV61 -> 231.559078 | AK63: ='[4]Calc| Project Costs'!BW61 -> 234.0490274 | AL63: ='[4]Calc| Project Costs'!BX61 -> 236.4134054 | AM63: 1723.045522 | AN63: 1723.045522 | AP63: ='[4]Calc| Project Costs'!AD61 -> 0 | AQ63: ='[4]Calc| Project Costs'!AE61 -> 0 | AR63: ='[4]Calc| Project Costs'!AF61 -> 0 | AS63: ='[4]Calc| Project Costs'!AG61 -> 0 | AT63: ='[4]Calc| Project Costs'!AH61 -> 0 | AU63: ='[4]Calc| Project Costs'!AI61 -> 0 | AV63: ='[4]Calc| Project Costs'!AJ61 -> 0 | AW63: 0 | AY63: ='[4]Calc| Project Costs'!AL61 -> 0 | AZ63: ='[4]Calc| Project Costs'!AM61 -> 0 | BA63: ='[4]Calc| Project Costs'!AN61 -> 0 | BB63: ='[4]Calc| Project Costs'!AO61 -> 0 | BC63: ='[4]Calc| Project Costs'!AP61 -> 0 | BD63: ='[4]Calc| Project Costs'!AQ61 -> 0 | BE63: ='[4]Calc| Project Costs'!AR61 -> 0 | BF63: 0 | BH63: ='[4]Calc| Project Costs'!BJ61 -> 0 | BI63: ='[4]Calc| Project Costs'!BK61 -> 0 | BJ63: ='[4]Calc| Project Costs'!BL61 -> 0 | BK63: ='[4]Calc| Project Costs'!BM61 -> 0 | BL63: ='[4]Calc| Project Costs'!BN61 -> 0 | BM63: ='[4]Calc| Project Costs'!BO61 -> 0 | BN63: ='[4]Calc| Project Costs'!BP61 -> 0 | BO63: 0 | BQ63: ='[4]Input| Projects'!Y61 -> 0.03374557443 | BR63: ='[4]Input| Projects'!Z61 -> 0.8388701447 | BS63: ='[4]Input| Projects'!AA61 -> 0.1273842808 | BT63: =+_xlfn.SWITCH(TRUE,LEN(L63)>0,IF(SUM(BQ63:BS63)<>1,1,0), 0) -> 0
D64: ='[4]Calc| Project Costs'!C62 -> CAPITAL/REC WORKS - SUBTRANS ASSET | E64: JEN | F64: $'000s | G64: Real 2026 | H64: End Year | L64: ='[4]Calc| Project Costs'!D62 -> A318 | M64: ='[4]Input| JEN Mapping'!G62 -> Replacement | N64: ='[4]Input| JEN Mapping'!F62 -> Replacement | O64: ='[4]Input| Projects'!G62 -> Subtransmission | P64: Replacement expenditure | S64: ='[4]Input| JEN Mapping'!H62 -> Non-IT | V64: ='[4]Calc| Project Costs'!V62 -> 1072.600185 | W64: ='[4]Calc| Project Costs'!W62 -> 1789.972685 | X64: ='[4]Calc| Project Costs'!X62 -> 1748.220201 | Y64: ='[4]Calc| Project Costs'!Y62 -> 1689.93483 | Z64: ='[4]Calc| Project Costs'!Z62 -> 1637.941766 | AA64: ='[4]Calc| Project Costs'!AA62 -> 1599.098011 | AB64: ='[4]Calc| Project Costs'!AB62 -> 1576.968591 | AC64: 11114.73627 | AD64: 11114.73627 | AF64: ='[4]Calc| Project Costs'!BR62 -> 1249.409615 | AG64: ='[4]Calc| Project Costs'!BS62 -> 2022.742928 | AH64: ='[4]Calc| Project Costs'!BT62 -> 1953.909372 | AI64: ='[4]Calc| Project Costs'!BU62 -> 1891.103815 | AJ64: ='[4]Calc| Project Costs'!BV62 -> 1833.055579 | AK64: ='[4]Calc| Project Costs'!BW62 -> 1797.81886 | AL64: ='[4]Calc| Project Costs'!BX62 -> 1799.39343 | AM64: 12547.4336 | AN64: 12547.4336 | AP64: ='[4]Calc| Project Costs'!AD62 -> 961.4529712 | AQ64: ='[4]Calc| Project Costs'!AE62 -> 1604.488402 | AR64: ='[4]Calc| Project Costs'!AF62 -> 1567.062481 | AS64: ='[4]Calc| Project Costs'!AG62 -> 1514.816878 | AT64: ='[4]Calc| Project Costs'!AH62 -> 1468.211548 | AU64: ='[4]Calc| Project Costs'!AI62 -> 1433.392941 | AV64: ='[4]Calc| Project Costs'!AJ62 -> 1413.556663 | AW64: 7397.040512 | AY64: ='[4]Calc| Project Costs'!AL62 -> 176.8094304 | AZ64: ='[4]Calc| Project Costs'!AM62 -> 232.7702431 | BA64: ='[4]Calc| Project Costs'!AN62 -> 205.6891713 | BB64: ='[4]Calc| Project Costs'!AO62 -> 201.168985 | BC64: ='[4]Calc| Project Costs'!AP62 -> 195.1138123 | BD64: ='[4]Calc| Project Costs'!AQ62 -> 198.7208494 | BE64: ='[4]Calc| Project Costs'!AR62 -> 222.4248387 | BF64: 1023.117657 | BH64: ='[4]Calc| Project Costs'!BJ62 -> 158.4877148 | BI64: ='[4]Calc| Project Costs'!BK62 -> 208.6496395 | BJ64: ='[4]Calc| Project Costs'!BL62 -> 184.374819 | BK64: ='[4]Calc| Project Costs'!BM62 -> 180.3230328 | BL64: ='[4]Calc| Project Costs'!BN62 -> 174.8953219 | BM64: ='[4]Calc| Project Costs'!BO62 -> 178.128583 | BN64: ='[4]Calc| Project Costs'!BP62 -> 199.3762681 | BO64: 917.0980249 | BQ64: ='[4]Input| Projects'!Y62 -> 0.2143618329 | BR64: ='[4]Input| Projects'!Z62 -> 0.2119454131 | BS64: ='[4]Input| Projects'!AA62 -> 0.573692754 | BT64: =+_xlfn.SWITCH(TRUE,LEN(L64)>0,IF(SUM(BQ64:BS64)<>1,1,0), 0) -> 0
D65: ='[4]Calc| Project Costs'!C63 -> CAP REC WORKS - IN LINE POLES / STAYS | E65: JEN | F65: $'000s | G65: Real 2026 | H65: End Year | L65: ='[4]Calc| Project Costs'!D63 -> A319 | M65: ='[4]Input| JEN Mapping'!G63 -> Replacement | N65: ='[4]Input| JEN Mapping'!F63 -> Replacement | O65: ='[4]Input| Projects'!G63 -> Distribution system assets | P65: Replacement expenditure | S65: ='[4]Input| JEN Mapping'!H63 -> Non-IT | V65: ='[4]Calc| Project Costs'!V63 -> 2308.04111 | W65: ='[4]Calc| Project Costs'!W63 -> 3162.027694 | X65: ='[4]Calc| Project Costs'!X63 -> 3095.409236 | Y65: ='[4]Calc| Project Costs'!Y63 -> 2998.411441 | Z65: ='[4]Calc| Project Costs'!Z63 -> 2913.538987 | AA65: ='[4]Calc| Project Costs'!AA63 -> 2853.044571 | AB65: ='[4]Calc| Project Costs'!AB63 -> 2821.531953 | AC65: 20152.00499 | AD65: 20152.00499 | AF65: ='[4]Calc| Project Costs'!BR63 -> 2688.502944 | AG65: ='[4]Calc| Project Costs'!BS63 -> 3573.221653 | AH65: ='[4]Calc| Project Costs'!BT63 -> 3459.603724 | AI65: ='[4]Calc| Project Costs'!BU63 -> 3355.340819 | AJ65: ='[4]Calc| Project Costs'!BV63 -> 3260.603645 | AK65: ='[4]Calc| Project Costs'!BW63 -> 3207.594096 | AL65: ='[4]Calc| Project Costs'!BX63 -> 3219.49726 | AM65: 22764.36414 | AN65: 22764.36414 | AP65: ='[4]Calc| Project Costs'!AD63 -> 1291.953132 | AQ65: ='[4]Calc| Project Costs'!AE63 -> 1769.982157 | AR65: ='[4]Calc| Project Costs'!AF63 -> 1732.691693 | AS65: ='[4]Calc| Project Costs'!AG63 -> 1678.396037 | AT65: ='[4]Calc| Project Costs'!AH63 -> 1630.887684 | AU65: ='[4]Calc| Project Costs'!AI63 -> 1597.025223 | AV65: ='[4]Calc| Project Costs'!AJ63 -> 1579.385665 | AW65: 8218.386303 | AY65: ='[4]Calc| Project Costs'!AL63 -> 380.4618344 | AZ65: ='[4]Calc| Project Costs'!AM63 -> 411.1939592 | BA65: ='[4]Calc| Project Costs'!AN63 -> 364.1944878 | BB65: ='[4]Calc| Project Costs'!AO63 -> 356.9293771 | BC65: ='[4]Calc| Project Costs'!AP63 -> 347.064658 | BD65: ='[4]Calc| Project Costs'!AQ63 -> 354.5495251 | BE65: ='[4]Calc| Project Costs'!AR63 -> 397.965307 | BF65: 1820.703355 | BH65: ='[4]Calc| Project Costs'!BJ63 -> 212.9679825 | BI65: ='[4]Calc| Project Costs'!BK63 -> 230.1706504 | BJ65: ='[4]Calc| Project Costs'!BL63 -> 203.8621441 | BK65: ='[4]Calc| Project Costs'!BM63 -> 199.795413 | BL65: ='[4]Calc| Project Costs'!BN63 -> 194.2735206 | BM65: ='[4]Calc| Project Costs'!BO63 -> 198.4632629 | BN65: ='[4]Calc| Project Costs'!BP63 -> 222.7657569 | BO65: 1019.160097 | BQ65: ='[4]Input| Projects'!Y63 -> 0.4952704176 | BR65: ='[4]Input| Projects'!Z63 -> 0.180924558 | BS65: ='[4]Input| Projects'!AA63 -> 0.3238050244 | BT65: =+_xlfn.SWITCH(TRUE,LEN(L65)>0,IF(SUM(BQ65:BS65)<>1,1,0), 0) -> 0
D66: ='[4]Calc| Project Costs'!C64 -> CAP REC WORKS - SUBS. MODIFICATION | E66: JEN | F66: $'000s | G66: Real 2026 | H66: End Year | L66: ='[4]Calc| Project Costs'!D64 -> A322 | M66: ='[4]Input| JEN Mapping'!G64 -> Replacement | N66: ='[4]Input| JEN Mapping'!F64 -> Replacement | O66: ='[4]Input| Projects'!G64 -> Distribution system assets | P66: Replacement expenditure | S66: ='[4]Input| JEN Mapping'!H64 -> Non-IT | V66: ='[4]Calc| Project Costs'!V64 -> 379.5564555 | W66: ='[4]Calc| Project Costs'!W64 -> 533.24303 | X66: ='[4]Calc| Project Costs'!X64 -> 521.5414211 | Y66: ='[4]Calc| Project Costs'!Y64 -> 504.7934503 | Z66: ='[4]Calc| Project Costs'!Z64 -> 490.0242121 | AA66: ='[4]Calc| Project Costs'!AA64 -> 479.2908583 | AB66: ='[4]Calc| Project Costs'!AB64 -> 473.4806102 | AC66: 3381.930038 | AD66: 3381.930038 | AF66: ='[4]Calc| Project Costs'!BR64 -> 442.123255 | AG66: ='[4]Calc| Project Costs'!BS64 -> 602.5866075 | AH66: ='[4]Calc| Project Costs'!BT64 -> 582.9040702 | AI66: ='[4]Calc| Project Costs'!BU64 -> 564.8838066 | AJ66: ='[4]Calc| Project Costs'!BV64 -> 548.3965512 | AK66: ='[4]Calc| Project Costs'!BW64 -> 538.8526149 | AL66: ='[4]Calc| Project Costs'!BX64 -> 540.2630743 | AM66: 3820.00998 | AN66: 3820.00998 | AP66: ='[4]Calc| Project Costs'!AD64 -> 363.1508693 | AQ66: ='[4]Calc| Project Costs'!AE64 -> 510.1946418 | AR66: ='[4]Calc| Project Costs'!AF64 -> 498.9988122 | AS66: ='[4]Calc| Project Costs'!AG64 -> 482.9747397 | AT66: ='[4]Calc| Project Costs'!AH64 -> 468.843873 | AU66: ='[4]Calc| Project Costs'!AI64 -> 458.5744474 | AV66: ='[4]Calc| Project Costs'!AJ64 -> 453.0153359 | AW66: 2362.407208 | AY66: ='[4]Calc| Project Costs'!AL64 -> 62.5667995 | AZ66: ='[4]Calc| Project Costs'!AM64 -> 69.34357757 | BA66: ='[4]Calc| Project Costs'!AN64 -> 61.36264909 | BB66: ='[4]Calc| Project Costs'!AO64 -> 60.09035628 | BC66: ='[4]Calc| Project Costs'!AP64 -> 58.37233907 | BD66: ='[4]Calc| Project Costs'!AQ64 -> 59.56175658 | BE66: ='[4]Calc| Project Costs'!AR64 -> 66.78246411 | BF66: 306.1695651 | BH66: ='[4]Calc| Project Costs'!BJ64 -> 59.86247184 | BI66: ='[4]Calc| Project Costs'!BK64 -> 66.34633692 | BJ66: ='[4]Calc| Project Costs'!BL64 -> 58.71036847 | BK66: ='[4]Calc| Project Costs'!BM64 -> 57.49306803 | BL66: ='[4]Calc| Project Costs'!BN64 -> 55.84930876 | BM66: ='[4]Calc| Project Costs'!BO64 -> 56.98731602 | BN66: ='[4]Calc| Project Costs'!BP64 -> 63.89592258 | BO66: 292.9359839 | BQ66: ='[4]Input| Projects'!Y64 -> 0.5788445138 | BR66: ='[4]Input| Projects'!Z64 -> 0 | BS66: ='[4]Input| Projects'!AA64 -> 0.4211554862 | BT66: =+_xlfn.SWITCH(TRUE,LEN(L66)>0,IF(SUM(BQ66:BS66)<>1,1,0), 0) -> 0
D67: ='[4]Calc| Project Costs'!C65 -> CAP REC WORKS - UNDERGROUNDING OF ASSETS | E67: JEN | F67: $'000s | G67: Real 2026 | H67: End Year | L67: ='[4]Calc| Project Costs'!D65 -> A323 | M67: ='[4]Input| JEN Mapping'!G65 -> Replacement | N67: ='[4]Input| JEN Mapping'!F65 -> Replacement | O67: ='[4]Input| Projects'!G65 -> Distribution system assets | P67: Replacement expenditure | S67: ='[4]Input| JEN Mapping'!H65 -> Non-IT | V67: ='[4]Calc| Project Costs'!V65 -> 2594.429311 | W67: ='[4]Calc| Project Costs'!W65 -> 2254.126334 | X67: ='[4]Calc| Project Costs'!X65 -> 2207.732164 | Y67: ='[4]Calc| Project Costs'!Y65 -> 2139.501108 | Z67: ='[4]Calc| Project Costs'!Z65 -> 2080.068989 | AA67: ='[4]Calc| Project Costs'!AA65 -> 2038.191884 | AB67: ='[4]Calc| Project Costs'!AB65 -> 2016.891516 | AC67: 15330.9413 | AD67: 15330.9413 | AF67: ='[4]Calc| Project Costs'!BR65 -> 3022.099914 | AG67: ='[4]Calc| Project Costs'!BS65 -> 2547.255687 | AH67: ='[4]Calc| Project Costs'!BT65 -> 2467.485826 | AI67: ='[4]Calc| Project Costs'!BU65 -> 2394.186234 | AJ67: ='[4]Calc| Project Costs'!BV65 -> 2327.849587 | AK67: ='[4]Calc| Project Costs'!BW65 -> 2291.479186 | AL67: ='[4]Calc| Project Costs'!BX65 -> 2301.365647 | AM67: 17351.72208 | AN67: 17351.72208 | AP67: ='[4]Calc| Project Costs'!AD65 -> 1808.974238 | AQ67: ='[4]Calc| Project Costs'!AE65 -> 1571.696886 | AR67: ='[4]Calc| Project Costs'!AF65 -> 1539.348401 | AS67: ='[4]Calc| Project Costs'!AG65 -> 1491.774076 | AT67: ='[4]Calc| Project Costs'!AH65 -> 1450.334838 | AU67: ='[4]Calc| Project Costs'!AI65 -> 1421.135891 | AV67: ='[4]Calc| Project Costs'!AJ65 -> 1406.284141 | AW67: 7308.877347 | AY67: ='[4]Calc| Project Costs'!AL65 -> 427.6706037 | AZ67: ='[4]Calc| Project Costs'!AM65 -> 293.1293529 | BA67: ='[4]Calc| Project Costs'!AN65 -> 259.7536621 | BB67: ='[4]Calc| Project Costs'!AO65 -> 254.6851266 | BC67: ='[4]Calc| Project Costs'!AP65 -> 247.780598 | BD67: ='[4]Calc| Project Costs'!AQ65 -> 253.2873029 | BE67: ='[4]Calc| Project Costs'!AR65 -> 284.4741312 | BF67: 1299.980821 | BH67: ='[4]Calc| Project Costs'!BJ65 -> 298.1947134 | BI67: ='[4]Calc| Project Costs'!BK65 -> 204.3853905 | BJ67: ='[4]Calc| Project Costs'!BL65 -> 181.1140821 | BK67: ='[4]Calc| Project Costs'!BM65 -> 177.5800293 | BL67: ='[4]Calc| Project Costs'!BN65 -> 172.7658243 | BM67: ='[4]Calc| Project Costs'!BO65 -> 176.6053922 | BN67: ='[4]Calc| Project Costs'!BP65 -> 198.3505092 | BO67: 906.4158371 | BQ67: ='[4]Input| Projects'!Y65 -> 0.334094034 | BR67: ='[4]Input| Projects'!Z65 -> 0.3963700305 | BS67: ='[4]Input| Projects'!AA65 -> 0.2695359355 | BT67: =+_xlfn.SWITCH(TRUE,LEN(L67)>0,IF(SUM(BQ67:BS67)<>1,1,0), 0) -> 0
D68: ='[4]Calc| Project Costs'!C66 -> Replace Metal Trifurcating Boxes | E68: JEN | F68: $'000s | G68: Real 2026 | H68: End Year | L68: ='[4]Calc| Project Costs'!D66 -> A209 | M68: ='[4]Input| JEN Mapping'!G66 -> Replacement | N68: ='[4]Input| JEN Mapping'!F66 -> Replacement | O68: ='[4]Input| Projects'!G66 -> Distribution system assets | P68: Replacement expenditure | S68: ='[4]Input| JEN Mapping'!H66 -> Non-IT | V68: ='[4]Calc| Project Costs'!V66 -> 434.7229554 | W68: ='[4]Calc| Project Costs'!W66 -> 0 | X68: ='[4]Calc| Project Costs'!X66 -> 0 | Y68: ='[4]Calc| Project Costs'!Y66 -> 1397.350123 | Z68: ='[4]Calc| Project Costs'!Z66 -> 988.8051216 | AA68: ='[4]Calc| Project Costs'!AA66 -> 1033.209304 | AB68: ='[4]Calc| Project Costs'!AB66 -> 465.7460566 | AC68: 4319.83356 | AD68: 4319.83356 | AF68: ='[4]Calc| Project Costs'!BR66 -> 506.3835044 | AG68: ='[4]Calc| Project Costs'!BS66 -> 0 | AH68: ='[4]Calc| Project Costs'!BT66 -> 0 | AI68: ='[4]Calc| Project Costs'!BU66 -> 1563.689972 | AJ68: ='[4]Calc| Project Costs'!BV66 -> 1106.592909 | AK68: ='[4]Calc| Project Costs'!BW66 -> 1161.606831 | AL68: ='[4]Calc| Project Costs'!BX66 -> 531.4375941 | AM68: 4869.710811 | AN68: 4869.710811 | AP68: ='[4]Calc| Project Costs'!AD66 -> 0 | AQ68: ='[4]Calc| Project Costs'!AE66 -> 0 | AR68: ='[4]Calc| Project Costs'!AF66 -> 0 | AS68: ='[4]Calc| Project Costs'!AG66 -> 0 | AT68: ='[4]Calc| Project Costs'!AH66 -> 0 | AU68: ='[4]Calc| Project Costs'!AI66 -> 0 | AV68: ='[4]Calc| Project Costs'!AJ66 -> 0 | AW68: 0 | AY68: ='[4]Calc| Project Costs'!AL66 -> 71.66054902 | AZ68: ='[4]Calc| Project Costs'!AM66 -> 0 | BA68: ='[4]Calc| Project Costs'!AN66 -> 0 | BB68: ='[4]Calc| Project Costs'!AO66 -> 166.3398498 | BC68: ='[4]Calc| Project Costs'!AP66 -> 117.7877876 | BD68: ='[4]Calc| Project Costs'!AQ66 -> 128.3975272 | BE68: ='[4]Calc| Project Costs'!AR66 -> 65.69153759 | BF68: 478.2167023 | BH68: ='[4]Calc| Project Costs'!BJ66 -> 0 | BI68: ='[4]Calc| Project Costs'!BK66 ->  | BJ68: ='[4]Calc| Project Costs'!BL66 ->  | BK68: ='[4]Calc| Project Costs'!BM66 -> 0 | BL68: ='[4]Calc| Project Costs'!BN66 -> 0 | BM68: ='[4]Calc| Project Costs'!BO66 -> 0 | BN68: ='[4]Calc| Project Costs'!BP66 -> 0 | BO68: 0 | BQ68: ='[4]Input| Projects'!Y66 -> 0.3762186697 | BR68: ='[4]Input| Projects'!Z66 -> 0.4320969138 | BS68: ='[4]Input| Projects'!AA66 -> 0.1916844165 | BT68: =+_xlfn.SWITCH(TRUE,LEN(L68)>0,IF(SUM(BQ68:BS68)<>1,1,0), 0) -> 0
D69: ='[4]Calc| Project Costs'!C67 -> Asset Relocations - Work Package 1 | E69: JEN | F69: $'000s | G69: Real 2026 | H69: End Year | L69: ='[4]Calc| Project Costs'!D67 -> A47 | M69: ='[4]Input| JEN Mapping'!G67 -> Replacement | N69: ='[4]Input| JEN Mapping'!F67 -> Replacement | O69: ='[4]Input| Projects'!G67 -> Subtransmission | P69: Replacement expenditure | S69: ='[4]Input| JEN Mapping'!H67 -> Non-IT | V69: ='[4]Calc| Project Costs'!V67 -> 0 | W69: ='[4]Calc| Project Costs'!W67 -> 0 | X69: ='[4]Calc| Project Costs'!X67 -> 0 | Y69: ='[4]Calc| Project Costs'!Y67 -> 0 | Z69: ='[4]Calc| Project Costs'!Z67 -> 491.5946942 | AA69: ='[4]Calc| Project Costs'!AA67 -> 456.2211976 | AB69: ='[4]Calc| Project Costs'!AB67 -> 0 | AC69: 947.8158918 | AD69: 947.8158918 | AF69: ='[4]Calc| Project Costs'!BR67 -> 0 | AG69: ='[4]Calc| Project Costs'!BS67 -> 0 | AH69: ='[4]Calc| Project Costs'!BT67 -> 0 | AI69: ='[4]Calc| Project Costs'!BU67 -> 0 | AJ69: ='[4]Calc| Project Costs'!BV67 -> 550.1541112 | AK69: ='[4]Calc| Project Costs'!BW67 -> 512.9160739 | AL69: ='[4]Calc| Project Costs'!BX67 -> 0 | AM69: 1063.070185 | AN69: 1063.070185 | AP69: ='[4]Calc| Project Costs'!AD67 -> 0 | AQ69: ='[4]Calc| Project Costs'!AE67 -> 0 | AR69: ='[4]Calc| Project Costs'!AF67 -> 0 | AS69: ='[4]Calc| Project Costs'!AG67 -> 0 | AT69: ='[4]Calc| Project Costs'!AH67 -> 491.5946942 | AU69: ='[4]Calc| Project Costs'!AI67 -> 456.2211976 | AV69: ='[4]Calc| Project Costs'!AJ67 -> 0 | AW69: 947.8158918 | AY69: ='[4]Calc| Project Costs'!AL67 -> 0 | AZ69: ='[4]Calc| Project Costs'!AM67 -> 0 | BA69: ='[4]Calc| Project Costs'!AN67 -> 0 | BB69: ='[4]Calc| Project Costs'!AO67 -> 0 | BC69: ='[4]Calc| Project Costs'!AP67 -> 58.55941699 | BD69: ='[4]Calc| Project Costs'!AQ67 -> 56.69487628 | BE69: ='[4]Calc| Project Costs'!AR67 -> 0 | BF69: 115.2542933 | BH69: ='[4]Calc| Project Costs'!BJ67 ->  | BI69: ='[4]Calc| Project Costs'!BK67 ->  | BJ69: ='[4]Calc| Project Costs'!BL67 ->  | BK69: ='[4]Calc| Project Costs'!BM67 ->  | BL69: ='[4]Calc| Project Costs'!BN67 -> 58.55941699 | BM69: ='[4]Calc| Project Costs'!BO67 -> 56.69487628 | BN69: ='[4]Calc| Project Costs'!BP67 ->  | BO69: 115.2542933 | BQ69: ='[4]Input| Projects'!Y67 -> 0.2143618329 | BR69: ='[4]Input| Projects'!Z67 -> 0.2119454131 | BS69: ='[4]Input| Projects'!AA67 -> 0.573692754 | BT69: =+_xlfn.SWITCH(TRUE,LEN(L69)>0,IF(SUM(BQ69:BS69)<>1,1,0), 0) -> 0
D70: ='[4]Calc| Project Costs'!C68 -> DC01 - Tullamarine (Stage 3) | E70: JEN | F70: $'000s | G70: Real 2026 | H70: End Year | L70: ='[4]Calc| Project Costs'!D68 -> A65 | M70: ='[4]Input| JEN Mapping'!G68 -> Connections | N70: ='[4]Input| JEN Mapping'!F68 -> Connections | O70: ='[4]Input| Projects'!G68 -> Distribution system assets | P70: Connections | S70: ='[4]Input| JEN Mapping'!H68 -> Non-IT | V70: ='[4]Calc| Project Costs'!V68 -> 477.1688663 | W70: ='[4]Calc| Project Costs'!W68 -> 840.358111 | X70: ='[4]Calc| Project Costs'!X68 -> 769.9531351 | Y70: ='[4]Calc| Project Costs'!Y68 -> 0 | Z70: ='[4]Calc| Project Costs'!Z68 -> 0 | AA70: ='[4]Calc| Project Costs'!AA68 -> 0 | AB70: ='[4]Calc| Project Costs'!AB68 -> 0 | AC70: 2087.480112 | AD70: 2087.480112 | AF70: ='[4]Calc| Project Costs'!BR68 -> 555.826279 | AG70: ='[4]Calc| Project Costs'!BS68 -> 949.6393103 | AH70: ='[4]Calc| Project Costs'!BT68 -> 860.5429946 | AI70: ='[4]Calc| Project Costs'!BU68 -> 0 | AJ70: ='[4]Calc| Project Costs'!BV68 -> 0 | AK70: ='[4]Calc| Project Costs'!BW68 -> 0 | AL70: ='[4]Calc| Project Costs'!BX68 -> 0 | AM70: 2366.008584 | AN70: 2366.008584 | AP70: ='[4]Calc| Project Costs'!AD68 -> 347.8561035 | AQ70: ='[4]Calc| Project Costs'!AE68 -> 612.6210629 | AR70: ='[4]Calc| Project Costs'!AF68 -> 561.2958355 | AS70: ='[4]Calc| Project Costs'!AG68 -> 0 | AT70: ='[4]Calc| Project Costs'!AH68 -> 0 | AU70: ='[4]Calc| Project Costs'!AI68 -> 0 | AV70: ='[4]Calc| Project Costs'!AJ68 -> 0 | AW70: 561.2958355 | AY70: ='[4]Calc| Project Costs'!AL68 -> 78.65741275 | AZ70: ='[4]Calc| Project Costs'!AM68 -> 109.2811993 | BA70: ='[4]Calc| Project Costs'!AN68 -> 90.58985947 | BB70: ='[4]Calc| Project Costs'!AO68 -> 0 | BC70: ='[4]Calc| Project Costs'!AP68 -> 0 | BD70: ='[4]Calc| Project Costs'!AQ68 -> 0 | BE70: ='[4]Calc| Project Costs'!AR68 -> 0 | BF70: 90.58985947 | BH70: ='[4]Calc| Project Costs'!BJ68 -> 57.34125389 | BI70: ='[4]Calc| Project Costs'!BK68 -> 79.66599432 | BJ70: ='[4]Calc| Project Costs'!BL68 -> 66.04000755 | BK70: ='[4]Calc| Project Costs'!BM68 ->  | BL70: ='[4]Calc| Project Costs'!BN68 ->  | BM70: ='[4]Calc| Project Costs'!BO68 ->  | BN70: ='[4]Calc| Project Costs'!BP68 ->  | BO70: 66.04000755 | BQ70: ='[4]Input| Projects'!Y68 -> 0.2796398347 | BR70: ='[4]Input| Projects'!Z68 -> 0.4480339349 | BS70: ='[4]Input| Projects'!AA68 -> 0.2723262304 | BT70: =+_xlfn.SWITCH(TRUE,LEN(L70)>0,IF(SUM(BQ70:BS70)<>1,1,0), 0) -> 0
D71: ='[4]Calc| Project Costs'!C69 -> Hospital Supply Upgrade | E71: JEN | F71: $'000s | G71: Real 2026 | H71: End Year | L71: ='[4]Calc| Project Costs'!D69 -> A146 | M71: ='[4]Input| JEN Mapping'!G69 -> Connections | N71: ='[4]Input| JEN Mapping'!F69 -> Connections | O71: ='[4]Input| Projects'!G69 -> Distribution system assets | P71: Connections | S71: ='[4]Input| JEN Mapping'!H69 -> Non-IT | V71: ='[4]Calc| Project Costs'!V69 -> 19.03957243 | W71: ='[4]Calc| Project Costs'!W69 -> 0 | X71: ='[4]Calc| Project Costs'!X69 -> 0 | Y71: ='[4]Calc| Project Costs'!Y69 -> 0 | Z71: ='[4]Calc| Project Costs'!Z69 -> 0 | AA71: ='[4]Calc| Project Costs'!AA69 -> 0 | AB71: ='[4]Calc| Project Costs'!AB69 -> 0 | AC71: 19.03957243 | AD71: 19.03957243 | AF71: ='[4]Calc| Project Costs'!BR69 -> 22.17809133 | AG71: ='[4]Calc| Project Costs'!BS69 -> 0 | AH71: ='[4]Calc| Project Costs'!BT69 -> 0 | AI71: ='[4]Calc| Project Costs'!BU69 -> 0 | AJ71: ='[4]Calc| Project Costs'!BV69 -> 0 | AK71: ='[4]Calc| Project Costs'!BW69 -> 0 | AL71: ='[4]Calc| Project Costs'!BX69 -> 0 | AM71: 22.17809133 | AN71: 22.17809133 | AP71: ='[4]Calc| Project Costs'!AD69 -> 15.67147207 | AQ71: ='[4]Calc| Project Costs'!AE69 -> 0 | AR71: ='[4]Calc| Project Costs'!AF69 -> 0 | AS71: ='[4]Calc| Project Costs'!AG69 -> 0 | AT71: ='[4]Calc| Project Costs'!AH69 -> 0 | AU71: ='[4]Calc| Project Costs'!AI69 -> 0 | AV71: ='[4]Calc| Project Costs'!AJ69 -> 0 | AW71: 0 | AY71: ='[4]Calc| Project Costs'!AL69 -> 3.138518904 | AZ71: ='[4]Calc| Project Costs'!AM69 -> 0 | BA71: ='[4]Calc| Project Costs'!AN69 -> 0 | BB71: ='[4]Calc| Project Costs'!AO69 -> 0 | BC71: ='[4]Calc| Project Costs'!AP69 -> 0 | BD71: ='[4]Calc| Project Costs'!AQ69 -> 0 | BE71: ='[4]Calc| Project Costs'!AR69 -> 0 | BF71: 0 | BH71: ='[4]Calc| Project Costs'!BJ69 -> 2.58331491 | BI71: ='[4]Calc| Project Costs'!BK69 ->  | BJ71: ='[4]Calc| Project Costs'!BL69 ->  | BK71: ='[4]Calc| Project Costs'!BM69 ->  | BL71: ='[4]Calc| Project Costs'!BN69 ->  | BM71: ='[4]Calc| Project Costs'!BO69 ->  | BN71: ='[4]Calc| Project Costs'!BP69 ->  | BO71: 0 | BQ71: ='[4]Input| Projects'!Y69 -> 0.3219499292 | BR71: ='[4]Input| Projects'!Z69 -> 0.3380492413 | BS71: ='[4]Input| Projects'!AA69 -> 0.3400008295 | BT71: =+_xlfn.SWITCH(TRUE,LEN(L71)>0,IF(SUM(BQ71:BS71)<>1,1,0), 0) -> 0
D72: ='[4]Calc| Project Costs'!C70 -> DC02 - West Footscray (Stage 2) | E72: JEN | F72: $'000s | G72: Real 2026 | H72: End Year | L72: ='[4]Calc| Project Costs'!D70 -> A181 | M72: ='[4]Input| JEN Mapping'!G70 -> Connections | N72: ='[4]Input| JEN Mapping'!F70 -> Connections | O72: ='[4]Input| Projects'!G70 -> Distribution system assets | P72: Connections | S72: ='[4]Input| JEN Mapping'!H70 -> Non-IT | V72: ='[4]Calc| Project Costs'!V70 -> 4028.901114 | W72: ='[4]Calc| Project Costs'!W70 -> 0 | X72: ='[4]Calc| Project Costs'!X70 -> 0 | Y72: ='[4]Calc| Project Costs'!Y70 -> 0 | Z72: ='[4]Calc| Project Costs'!Z70 -> 0 | AA72: ='[4]Calc| Project Costs'!AA70 -> 0 | AB72: ='[4]Calc| Project Costs'!AB70 -> 0 | AC72: 4028.901114 | AD72: 4028.901114 | AF72: ='[4]Calc| Project Costs'!BR70 -> 4693.032746 | AG72: ='[4]Calc| Project Costs'!BS70 -> 0 | AH72: ='[4]Calc| Project Costs'!BT70 -> 0 | AI72: ='[4]Calc| Project Costs'!BU70 -> 0 | AJ72: ='[4]Calc| Project Costs'!BV70 -> 0 | AK72: ='[4]Calc| Project Costs'!BW70 -> 0 | AL72: ='[4]Calc| Project Costs'!BX70 -> 0 | AM72: 4693.032746 | AN72: 4693.032746 | AP72: ='[4]Calc| Project Costs'!AD70 -> 2937.068912 | AQ72: ='[4]Calc| Project Costs'!AE70 -> 0 | AR72: ='[4]Calc| Project Costs'!AF70 -> 0 | AS72: ='[4]Calc| Project Costs'!AG70 -> 0 | AT72: ='[4]Calc| Project Costs'!AH70 -> 0 | AU72: ='[4]Calc| Project Costs'!AI70 -> 0 | AV72: ='[4]Calc| Project Costs'!AJ70 -> 0 | AW72: 0 | AY72: ='[4]Calc| Project Costs'!AL70 -> 664.1316318 | AZ72: ='[4]Calc| Project Costs'!AM70 -> 0 | BA72: ='[4]Calc| Project Costs'!AN70 -> 0 | BB72: ='[4]Calc| Project Costs'!AO70 -> 0 | BC72: ='[4]Calc| Project Costs'!AP70 -> 0 | BD72: ='[4]Calc| Project Costs'!AQ70 -> 0 | BE72: ='[4]Calc| Project Costs'!AR70 -> 0 | BF72: 0 | BH72: ='[4]Calc| Project Costs'!BJ70 -> 484.1519596 | BI72: ='[4]Calc| Project Costs'!BK70 ->  | BJ72: ='[4]Calc| Project Costs'!BL70 ->  | BK72: ='[4]Calc| Project Costs'!BM70 ->  | BL72: ='[4]Calc| Project Costs'!BN70 ->  | BM72: ='[4]Calc| Project Costs'!BO70 ->  | BN72: ='[4]Calc| Project Costs'!BP70 ->  | BO72: 0 | BQ72: ='[4]Input| Projects'!Y70 -> 0.2796398347 | BR72: ='[4]Input| Projects'!Z70 -> 0.4480339349 | BS72: ='[4]Input| Projects'!AA70 -> 0.2723262304 | BT72: =+_xlfn.SWITCH(TRUE,LEN(L72)>0,IF(SUM(BQ72:BS72)<>1,1,0), 0) -> 0
D73: ='[4]Calc| Project Costs'!C71 -> Rectification of Damaged Assets | E73: JEN | F73: $'000s | G73: Real 2026 | H73: End Year | L73: ='[4]Calc| Project Costs'!D71 -> A6 | M73: ='[4]Input| JEN Mapping'!G71 -> Replacement | N73: ='[4]Input| JEN Mapping'!F71 -> Replacement | O73: ='[4]Input| Projects'!G71 -> Distribution system assets | P73: Replacement expenditure | S73: ='[4]Input| JEN Mapping'!H71 -> Non-IT | V73: ='[4]Calc| Project Costs'!V71 -> 3087.547889 | W73: ='[4]Calc| Project Costs'!W71 -> 3916.914718 | X73: ='[4]Calc| Project Costs'!X71 -> 3838.988649 | Y73: ='[4]Calc| Project Costs'!Y71 -> 3722.6749 | Z73: ='[4]Calc| Project Costs'!Z71 -> 3622.031501 | AA73: ='[4]Calc| Project Costs'!AA71 -> 3552.326225 | AB73: ='[4]Calc| Project Costs'!AB71 -> 3518.171126 | AC73: 25258.65501 | AD73: 25258.65501 | AF73: ='[4]Calc| Project Costs'!BR71 -> 3596.505086 | AG73: ='[4]Calc| Project Costs'!BS71 -> 4426.275111 | AH73: ='[4]Calc| Project Costs'!BT71 -> 4290.669961 | AI73: ='[4]Calc| Project Costs'!BU71 -> 4165.820232 | AJ73: ='[4]Calc| Project Costs'!BV71 -> 4053.492734 | AK73: ='[4]Calc| Project Costs'!BW71 -> 3993.775892 | AL73: ='[4]Calc| Project Costs'!BX71 -> 4014.394481 | AM73: 28540.9335 | AN73: 28540.9335 | AP73: ='[4]Calc| Project Costs'!AD71 -> 0 | AQ73: ='[4]Calc| Project Costs'!AE71 -> 0 | AR73: ='[4]Calc| Project Costs'!AF71 -> 0 | AS73: ='[4]Calc| Project Costs'!AG71 -> 0 | AT73: ='[4]Calc| Project Costs'!AH71 -> 0 | AU73: ='[4]Calc| Project Costs'!AI71 -> 0 | AV73: ='[4]Calc| Project Costs'!AJ71 -> 0 | AW73: 0 | AY73: ='[4]Calc| Project Costs'!AL71 -> 508.957197 | AZ73: ='[4]Calc| Project Costs'!AM71 -> 509.3603935 | BA73: ='[4]Calc| Project Costs'!AN71 -> 451.6813119 | BB73: ='[4]Calc| Project Costs'!AO71 -> 443.1453318 | BC73: ='[4]Calc| Project Costs'!AP71 -> 431.4612332 | BD73: ='[4]Calc| Project Costs'!AQ71 -> 441.4496672 | BE73: ='[4]Calc| Project Costs'!AR71 -> 496.223355 | BF73: 2263.960899 | BH73: ='[4]Calc| Project Costs'!BJ71 -> 0 | BI73: ='[4]Calc| Project Costs'!BK71 -> 0 | BJ73: ='[4]Calc| Project Costs'!BL71 -> 0 | BK73: ='[4]Calc| Project Costs'!BM71 -> 0 | BL73: ='[4]Calc| Project Costs'!BN71 -> 0 | BM73: ='[4]Calc| Project Costs'!BO71 -> 0 | BN73: ='[4]Calc| Project Costs'!BP71 -> 0 | BO73: 0 | BQ73: ='[4]Input| Projects'!Y71 -> 0.3901566125 | BR73: ='[4]Input| Projects'!Z71 -> 0.4172367565 | BS73: ='[4]Input| Projects'!AA71 -> 0.192606631 | BT73: =+_xlfn.SWITCH(TRUE,LEN(L73)>0,IF(SUM(BQ73:BS73)<>1,1,0), 0) -> 0
D74: ='[4]Calc| Project Costs'!C72 -> Recoverable Works (emergency) | E74: JEN | F74: $'000s | G74: Real 2026 | H74: End Year | L74: ='[4]Calc| Project Costs'!D72 -> A231 | M74: ='[4]Input| JEN Mapping'!G72 -> Replacement | N74: ='[4]Input| JEN Mapping'!F72 -> Replacement | O74: ='[4]Input| Projects'!G72 -> Distribution system assets | P74: Replacement expenditure | S74: ='[4]Input| JEN Mapping'!H72 -> Non-IT | V74: ='[4]Calc| Project Costs'!V72 -> 135.4883762 | W74: ='[4]Calc| Project Costs'!W72 -> 137.4930059 | X74: ='[4]Calc| Project Costs'!X72 -> 138.3887374 | Y74: ='[4]Calc| Project Costs'!Y72 -> 139.4732816 | Z74: ='[4]Calc| Project Costs'!Z72 -> 140.9287534 | AA74: ='[4]Calc| Project Costs'!AA72 -> 142.3357464 | AB74: ='[4]Calc| Project Costs'!AB72 -> 143.6717829 | AC74: 977.7796838 | AD74: 977.7796838 | AF74: ='[4]Calc| Project Costs'!BR72 -> 157.8225348 | AG74: ='[4]Calc| Project Costs'!BS72 -> 155.372765 | AH74: ='[4]Calc| Project Costs'!BT72 -> 154.6710482 | AI74: ='[4]Calc| Project Costs'!BU72 -> 156.0761103 | AJ74: ='[4]Calc| Project Costs'!BV72 -> 157.7163748 | AK74: ='[4]Calc| Project Costs'!BW72 -> 160.0238932 | AL74: ='[4]Calc| Project Costs'!BX72 -> 163.9360883 | AM74: 1105.618815 | AN74: 1105.618815 | AP74: ='[4]Calc| Project Costs'!AD72 -> 0 | AQ74: ='[4]Calc| Project Costs'!AE72 -> 0 | AR74: ='[4]Calc| Project Costs'!AF72 -> 0 | AS74: ='[4]Calc| Project Costs'!AG72 -> 0 | AT74: ='[4]Calc| Project Costs'!AH72 -> 0 | AU74: ='[4]Calc| Project Costs'!AI72 -> 0 | AV74: ='[4]Calc| Project Costs'!AJ72 -> 0 | AW74: 0 | AY74: ='[4]Calc| Project Costs'!AL72 -> 22.33415858 | AZ74: ='[4]Calc| Project Costs'!AM72 -> 17.87975911 | BA74: ='[4]Calc| Project Costs'!AN72 -> 16.28231083 | BB74: ='[4]Calc| Project Costs'!AO72 -> 16.60282869 | BC74: ='[4]Calc| Project Costs'!AP72 -> 16.78762146 | BD74: ='[4]Calc| Project Costs'!AQ72 -> 17.68814684 | BE74: ='[4]Calc| Project Costs'!AR72 -> 20.2643054 | BF74: 87.62521322 | BH74: ='[4]Calc| Project Costs'!BJ72 -> 0 | BI74: ='[4]Calc| Project Costs'!BK72 -> 0 | BJ74: ='[4]Calc| Project Costs'!BL72 -> 0 | BK74: ='[4]Calc| Project Costs'!BM72 -> 0 | BL74: ='[4]Calc| Project Costs'!BN72 -> 0 | BM74: ='[4]Calc| Project Costs'!BO72 -> 0 | BN74: ='[4]Calc| Project Costs'!BP72 -> 0 | BO74: 0 | BQ74: ='[4]Input| Projects'!Y72 -> 0.3901566125 | BR74: ='[4]Input| Projects'!Z72 -> 0.4172367565 | BS74: ='[4]Input| Projects'!AA72 -> 0.192606631 | BT74: =+_xlfn.SWITCH(TRUE,LEN(L74)>0,IF(SUM(BQ74:BS74)<>1,1,0), 0) -> 0
D75: ='[4]Calc| Project Costs'!C73 -> Asset Relocations - Yallambie Package | E75: JEN | F75: $'000s | G75: Real 2026 | H75: End Year | L75: ='[4]Calc| Project Costs'!D73 -> A372 | M75: ='[4]Input| JEN Mapping'!G73 -> Replacement | N75: ='[4]Input| JEN Mapping'!F73 -> Replacement | O75: ='[4]Input| Projects'!G73 -> Subtransmission | P75: Replacement expenditure | S75: ='[4]Input| JEN Mapping'!H73 -> Non-IT | V75: ='[4]Calc| Project Costs'!V73 -> 989.1448512 | W75: ='[4]Calc| Project Costs'!W73 -> 1976.225522 | X75: ='[4]Calc| Project Costs'!X73 -> 0 | Y75: ='[4]Calc| Project Costs'!Y73 -> 0 | Z75: ='[4]Calc| Project Costs'!Z73 -> 0 | AA75: ='[4]Calc| Project Costs'!AA73 -> 0 | AB75: ='[4]Calc| Project Costs'!AB73 -> 0 | AC75: 2965.370373 | AD75: 2965.370373 | AF75: ='[4]Calc| Project Costs'!BR73 -> 1152.197348 | AG75: ='[4]Calc| Project Costs'!BS73 -> 2233.216313 | AH75: ='[4]Calc| Project Costs'!BT73 -> 0 | AI75: ='[4]Calc| Project Costs'!BU73 -> 0 | AJ75: ='[4]Calc| Project Costs'!BV73 -> 0 | AK75: ='[4]Calc| Project Costs'!BW73 -> 0 | AL75: ='[4]Calc| Project Costs'!BX73 -> 0 | AM75: 3385.41366 | AN75: 3385.41366 | AP75: ='[4]Calc| Project Costs'!AD73 -> 494.5724256 | AQ75: ='[4]Calc| Project Costs'!AE73 -> 988.1127611 | AR75: ='[4]Calc| Project Costs'!AF73 -> 0 | AS75: ='[4]Calc| Project Costs'!AG73 -> 0 | AT75: ='[4]Calc| Project Costs'!AH73 -> 0 | AU75: ='[4]Calc| Project Costs'!AI73 -> 0 | AV75: ='[4]Calc| Project Costs'!AJ73 -> 0 | AW75: 0 | AY75: ='[4]Calc| Project Costs'!AL73 -> 163.0524963 | AZ75: ='[4]Calc| Project Costs'!AM73 -> 256.9907905 | BA75: ='[4]Calc| Project Costs'!AN73 -> 0 | BB75: ='[4]Calc| Project Costs'!AO73 -> 0 | BC75: ='[4]Calc| Project Costs'!AP73 -> 0 | BD75: ='[4]Calc| Project Costs'!AQ73 -> 0 | BE75: ='[4]Calc| Project Costs'!AR73 -> 0 | BF75: 0 | BH75: ='[4]Calc| Project Costs'!BJ73 -> 81.52624817 | BI75: ='[4]Calc| Project Costs'!BK73 -> 128.4953953 | BJ75: ='[4]Calc| Project Costs'!BL73 ->  | BK75: ='[4]Calc| Project Costs'!BM73 ->  | BL75: ='[4]Calc| Project Costs'!BN73 ->  | BM75: ='[4]Calc| Project Costs'!BO73 ->  | BN75: ='[4]Calc| Project Costs'!BP73 ->  | BO75: 0 | BQ75: ='[4]Input| Projects'!Y73 -> 0.2143618329 | BR75: ='[4]Input| Projects'!Z73 -> 0.2119454131 | BS75: ='[4]Input| Projects'!AA73 -> 0.573692754 | BT75: =+_xlfn.SWITCH(TRUE,LEN(L75)>0,IF(SUM(BQ75:BS75)<>1,1,0), 0) -> 0
D76: ='[4]Calc| Project Costs'!C74 -> Recoverable Works (Roads) | E76: JEN | F76: =+Thousands -> $'000s | G76: =+Submission_Dollars -> Real 2026 | H76: =+End_Year -> End Year | L76: ='[4]Calc| Project Costs'!D74 -> A234 | M76: ='[4]Input| JEN Mapping'!G74 -> Replacement | N76: ='[4]Input| JEN Mapping'!F74 -> Replacement | O76: ='[4]Input| Projects'!G74 -> Distribution system assets | P76: Replacement expenditure | S76: ='[4]Input| JEN Mapping'!H74 -> Non-IT | V76: ='[4]Calc| Project Costs'!V74 -> 579.3288045 | W76: ='[4]Calc| Project Costs'!W74 -> 333.1447999 | X76: ='[4]Calc| Project Costs'!X74 -> 72.04918539 | Y76: ='[4]Calc| Project Costs'!Y74 -> 71.53234031 | Z76: ='[4]Calc| Project Costs'!Z74 -> 70.85558495 | AA76: ='[4]Calc| Project Costs'!AA74 -> 70.34291452 | AB76: ='[4]Calc| Project Costs'!AB74 -> 70.20341053 | AC76: 1267.45704 | AD76: 1267.45704 | AF76: ='[4]Calc| Project Costs'!BR74 -> 674.8264535 | AG76: ='[4]Calc| Project Costs'!BS74 -> 376.4673582 | AH76: ='[4]Calc| Project Costs'!BT74 -> 80.52622806 | AI76: ='[4]Calc| Project Costs'!BU74 -> 80.04751382 | AJ76: ='[4]Calc| Project Costs'!BV74 -> 79.29599693 | AK76: ='[4]Calc| Project Costs'!BW74 -> 79.08446984 | AL76: ='[4]Calc| Project Costs'!BX74 -> 80.10530861 | AM76: 1450.353329 | AN76: 1450.353329 | AP76: ='[4]Calc| Project Costs'!AD74 -> 579.3288045 | AQ76: ='[4]Calc| Project Costs'!AE74 -> 333.1447999 | AR76: ='[4]Calc| Project Costs'!AF74 -> 72.04918539 | AS76: ='[4]Calc| Project Costs'!AG74 -> 71.53234031 | AT76: ='[4]Calc| Project Costs'!AH74 -> 70.85558495 | AU76: ='[4]Calc| Project Costs'!AI74 -> 70.34291452 | AV76: ='[4]Calc| Project Costs'!AJ74 -> 70.20341053 | AW76: 354.9834357 | AY76: ='[4]Calc| Project Costs'!AL74 -> 95.49764897 | AZ76: ='[4]Calc| Project Costs'!AM74 -> 43.32255834 | BA76: ='[4]Calc| Project Costs'!AN74 -> 8.477042669 | BB76: ='[4]Calc| Project Costs'!AO74 -> 8.515173507 | BC76: ='[4]Calc| Project Costs'!AP74 -> 8.440411978 | BD76: ='[4]Calc| Project Costs'!AQ74 -> 8.741555319 | BE76: ='[4]Calc| Project Costs'!AR74 -> 9.901898078 | BF76: 44.07608155 | BH76: ='[4]Calc| Project Costs'!BJ74 -> 95.49764897 | BI76: ='[4]Calc| Project Costs'!BK74 -> 43.32255834 | BJ76: ='[4]Calc| Project Costs'!BL74 -> 8.477042669 | BK76: ='[4]Calc| Project Costs'!BM74 -> 8.515173507 | BL76: ='[4]Calc| Project Costs'!BN74 -> 8.440411978 | BM76: ='[4]Calc| Project Costs'!BO74 -> 8.741555319 | BN76: ='[4]Calc| Project Costs'!BP74 -> 9.901898078 | BO76: 44.07608155 | BQ76: ='[4]Input| Projects'!Y74 -> 0.3782296043 | BR76: ='[4]Input| Projects'!Z74 -> 0.07631810519 | BS76: ='[4]Input| Projects'!AA74 -> 0.5454522905 | BT76: =+_xlfn.SWITCH(TRUE,LEN(L76)>0,IF(SUM(BQ76:BS76)<>1,1,0), 0) -> 0
D77: ='[4]Calc| Project Costs'!C75 -> Low Density/Small Business Supplies <10kVA | E77: JEN | F77: $'000s | G77: Real 2026 | H77: End Year | L77: ='[4]Calc| Project Costs'!D75 -> A8 | M77: ='[4]Input| JEN Mapping'!G75 -> Connections | N77: ='[4]Input| JEN Mapping'!F75 -> Connections | O77: ='[4]Input| Projects'!G75 -> Distribution system assets | P77: Connections | S77: ='[4]Input| JEN Mapping'!H75 -> Non-IT | V77: ='[4]Calc| Project Costs'!V75 -> 0 | W77: ='[4]Calc| Project Costs'!W75 -> 0 | X77: ='[4]Calc| Project Costs'!X75 -> 68.65105636 | Y77: ='[4]Calc| Project Costs'!Y75 -> 69.01941094 | Z77: ='[4]Calc| Project Costs'!Z75 -> 69.4751281 | AA77: ='[4]Calc| Project Costs'!AA75 -> 70.02464269 | AB77: ='[4]Calc| Project Costs'!AB75 -> 70.54644453 | AC77: =SUM(V77:AB77) -> 347.7166826 | AD77: =+SUMIFS(AC$12:AC$1011,$L$12:$L$1011,$L77) -> 347.7166826 | AF77: ='[4]Calc| Project Costs'!BR75 -> 0 | AG77: ='[4]Calc| Project Costs'!BS75 -> 0 | AH77: ='[4]Calc| Project Costs'!BT75 -> 76.72828764 | AI77: ='[4]Calc| Project Costs'!BU75 -> 77.2354466 | AJ77: ='[4]Calc| Project Costs'!BV75 -> 77.75109822 | AK77: ='[4]Calc| Project Costs'!BW75 -> 78.72664618 | AL77: ='[4]Calc| Project Costs'!BX75 -> 80.49672612 | AM77: =SUM(AF77:AL77) -> 390.9382048 | AN77: =+SUMIFS(AM$12:AM$1011,$L$12:$L$1011,$L77) -> 390.9382048 | AP77: ='[4]Calc| Project Costs'!AD75 -> 0 | AQ77: ='[4]Calc| Project Costs'!AE75 -> 0 | AR77: ='[4]Calc| Project Costs'!AF75 -> 48.05573945 | AS77: ='[4]Calc| Project Costs'!AG75 -> 48.31358765 | AT77: ='[4]Calc| Project Costs'!AH75 -> 48.63258967 | AU77: ='[4]Calc| Project Costs'!AI75 -> 49.01724988 | AV77: ='[4]Calc| Project Costs'!AJ75 -> 49.38251117 | AW77: =SUM(AR77:AV77) -> 243.4016778 | AY77: ='[4]Calc| Project Costs'!AL75 -> 0 | AZ77: ='[4]Calc| Project Costs'!AM75 -> 0 | BA77: ='[4]Calc| Project Costs'!AN75 -> 8.077231281 | BB77: ='[4]Calc| Project Costs'!AO75 -> 8.216035669 | BC77: ='[4]Calc| Project Costs'!AP75 -> 8.275970114 | BD77: ='[4]Calc| Project Costs'!AQ75 -> 8.702003491 | BE77: ='[4]Calc| Project Costs'!AR75 -> 9.950281591 | BF77: =SUM(BA77:BE77) -> 43.22152214 | BH77: ='[4]Calc| Project Costs'!BJ75 ->  | BI77: ='[4]Calc| Project Costs'!BK75 ->  | BJ77: ='[4]Calc| Project Costs'!BL75 -> 5.654061897 | BK77: ='[4]Calc| Project Costs'!BM75 -> 5.751224968 | BL77: ='[4]Calc| Project Costs'!BN75 -> 5.79317908 | BM77: ='[4]Calc| Project Costs'!BO75 -> 6.091402444 | BN77: ='[4]Calc| Project Costs'!BP75 -> 6.965197114 | BO77: =SUM(BJ77:BN77) -> 30.2550655 | BQ77: ='[4]Input| Projects'!Y75 -> 0.2681975353 | BR77: ='[4]Input| Projects'!Z75 -> 0.3655552555 | BS77: ='[4]Input| Projects'!AA75 -> 0.3662472092 | BT77: =+_xlfn.SWITCH(TRUE,LEN(L77)>0,IF(SUM(BQ77:BS77)<>1,1,0), 0) -> 0
D78: ='[4]Calc| Project Costs'!C76 -> Augment BTS-NS 22kV loop | E78: JEN | F78: $'000s | G78: Real 2026 | H78: End Year | L78: ='[4]Calc| Project Costs'!D76 -> A9 | M78: ='[4]Input| JEN Mapping'!G76 -> Augmentation | N78: ='[4]Input| JEN Mapping'!F76 -> Augmentation | O78: ='[4]Input| Projects'!G76 -> Subtransmission | P78: Augmentation Expenditure | S78: ='[4]Input| JEN Mapping'!H76 -> Non-IT | V78: ='[4]Calc| Project Costs'!V76 -> 0 | W78: ='[4]Calc| Project Costs'!W76 -> 0 | X78: ='[4]Calc| Project Costs'!X76 -> 0 | Y78: ='[4]Calc| Project Costs'!Y76 -> 0 | Z78: ='[4]Calc| Project Costs'!Z76 -> 1036.12392 | AA78: ='[4]Calc| Project Costs'!AA76 -> 1179.508008 | AB78: ='[4]Calc| Project Costs'!AB76 -> 0 | AC78: 2215.631928 | AD78: 2215.631928 | AF78: ='[4]Calc| Project Costs'!BR76 -> 0 | AG78: ='[4]Calc| Project Costs'!BS76 -> 0 | AH78: ='[4]Calc| Project Costs'!BT76 -> 0 | AI78: ='[4]Calc| Project Costs'!BU76 -> 0 | AJ78: ='[4]Calc| Project Costs'!BV76 -> 1159.548386 | AK78: ='[4]Calc| Project Costs'!BW76 -> 1326.086161 | AL78: ='[4]Calc| Project Costs'!BX76 -> 0 | AM78: 2485.634547 | AN78: 2485.634547 | AP78: ='[4]Calc| Project Costs'!AD76 -> 0 | AQ78: ='[4]Calc| Project Costs'!AE76 -> 0 | AR78: ='[4]Calc| Project Costs'!AF76 -> 0 | AS78: ='[4]Calc| Project Costs'!AG76 -> 0 | AT78: ='[4]Calc| Project Costs'!AH76 -> 0 | AU78: ='[4]Calc| Project Costs'!AI76 -> 0 | AV78: ='[4]Calc| Project Costs'!AJ76 -> 0 | AW78: 0 | AY78: ='[4]Calc| Project Costs'!AL76 -> 0 | AZ78: ='[4]Calc| Project Costs'!AM76 -> 0 | BA78: ='[4]Calc| Project Costs'!AN76 -> 0 | BB78: ='[4]Calc| Project Costs'!AO76 -> 0 | BC78: ='[4]Calc| Project Costs'!AP76 -> 123.4244661 | BD78: ='[4]Calc| Project Costs'!AQ76 -> 146.5781532 | BE78: ='[4]Calc| Project Costs'!AR76 -> 0 | BF78: 270.0026193 | BH78: ='[4]Calc| Project Costs'!BJ76 ->  | BI78: ='[4]Calc| Project Costs'!BK76 ->  | BJ78: ='[4]Calc| Project Costs'!BL76 ->  | BK78: ='[4]Calc| Project Costs'!BM76 ->  | BL78: ='[4]Calc| Project Costs'!BN76 -> 0 | BM78: ='[4]Calc| Project Costs'!BO76 -> 0 | BN78: ='[4]Calc| Project Costs'!BP76 ->  | BO78: 0 | BQ78: ='[4]Input| Projects'!Y76 -> 0.307410853 | BR78: ='[4]Input| Projects'!Z76 -> 0.460150208 | BS78: ='[4]Input| Projects'!AA76 -> 0.2324389389 | BT78: =+_xlfn.SWITCH(TRUE,LEN(L78)>0,IF(SUM(BQ78:BS78)<>1,1,0), 0) -> 0
D79: ='[4]Calc| Project Costs'!C77 -> Underground Routine Connections > 100A Back Office | E79: JEN | F79: $'000s | G79: Real 2026 | H79: End Year | L79: ='[4]Calc| Project Costs'!D77 -> A970 | M79: ='[4]Input| JEN Mapping'!G77 -> Connections | N79: ='[4]Input| JEN Mapping'!F77 -> Connections | O79: ='[4]Input| Projects'!G77 -> Distribution system assets | P79: Connections | S79: ='[4]Input| JEN Mapping'!H77 -> Non-IT | V79: ='[4]Calc| Project Costs'!V77 -> 40.85302187 | W79: ='[4]Calc| Project Costs'!W77 -> 40.94937374 | X79: ='[4]Calc| Project Costs'!X77 -> 24.47188972 | Y79: ='[4]Calc| Project Costs'!Y77 -> 24.50139848 | Z79: ='[4]Calc| Project Costs'!Z77 -> 24.53790581 | AA79: ='[4]Calc| Project Costs'!AA77 -> 24.58192723 | AB79: ='[4]Calc| Project Costs'!AB77 -> 24.62372859 | AC79: 204.5192454 | AD79: 204.5192454 | AF79: ='[4]Calc| Project Costs'!BR77 -> 40.85302187 | AG79: ='[4]Calc| Project Costs'!BS77 -> 40.94937374 | AH79: ='[4]Calc| Project Costs'!BT77 -> 24.47188972 | AI79: ='[4]Calc| Project Costs'!BU77 -> 24.50139848 | AJ79: ='[4]Calc| Project Costs'!BV77 -> 24.53790581 | AK79: ='[4]Calc| Project Costs'!BW77 -> 24.58192723 | AL79: ='[4]Calc| Project Costs'!BX77 -> 24.62372859 | AM79: 204.5192454 | AN79: 204.5192454 | AP79: ='[4]Calc| Project Costs'!AD77 -> 17.56679941 | AQ79: ='[4]Calc| Project Costs'!AE77 -> 17.60823071 | AR79: ='[4]Calc| Project Costs'!AF77 -> 10.52291258 | AS79: ='[4]Calc| Project Costs'!AG77 -> 10.53560134 | AT79: ='[4]Calc| Project Costs'!AH77 -> 10.5512995 | AU79: ='[4]Calc| Project Costs'!AI77 -> 10.57022871 | AV79: ='[4]Calc| Project Costs'!AJ77 -> 10.58820329 | AW79: 52.76824543 | AY79: ='[4]Calc| Project Costs'!AL77 -> 0 | AZ79: ='[4]Calc| Project Costs'!AM77 -> 0 | BA79: ='[4]Calc| Project Costs'!AN77 -> 0 | BB79: ='[4]Calc| Project Costs'!AO77 -> 0 | BC79: ='[4]Calc| Project Costs'!AP77 -> 0 | BD79: ='[4]Calc| Project Costs'!AQ77 -> 0 | BE79: ='[4]Calc| Project Costs'!AR77 -> 0 | BF79: 0 | BH79: ='[4]Calc| Project Costs'!BJ77 -> 0 | BI79: ='[4]Calc| Project Costs'!BK77 -> 0 | BJ79: ='[4]Calc| Project Costs'!BL77 -> 0 | BK79: ='[4]Calc| Project Costs'!BM77 -> 0 | BL79: ='[4]Calc| Project Costs'!BN77 -> 0 | BM79: ='[4]Calc| Project Costs'!BO77 -> 0 | BN79: ='[4]Calc| Project Costs'!BP77 -> 0 | BO79: 0 | BQ79: ='[4]Input| Projects'!Y77 -> 0.0182494332 | BR79: ='[4]Input| Projects'!Z77 -> 0.1216925952 | BS79: ='[4]Input| Projects'!AA77 -> 0.8600579716 | BT79: =+_xlfn.SWITCH(TRUE,LEN(L79)>0,IF(SUM(BQ79:BS79)<>1,1,0), 0) -> 0
D80: ='[4]Calc| Project Costs'!C78 -> Reconfigure Feeder - SBY24 | E80: JEN | F80: $'000s | G80: Real 2026 | H80: End Year | L80: ='[4]Calc| Project Costs'!D78 -> A11 | M80: ='[4]Input| JEN Mapping'!G78 -> Augmentation | N80: ='[4]Input| JEN Mapping'!F78 -> Augmentation | O80: ='[4]Input| Projects'!G78 -> Distribution system assets | P80: Augmentation Expenditure | S80: ='[4]Input| JEN Mapping'!H78 -> Non-IT | V80: ='[4]Calc| Project Costs'!V78 -> 824.3707194 | W80: ='[4]Calc| Project Costs'!W78 -> 0 | X80: ='[4]Calc| Project Costs'!X78 -> 0 | Y80: ='[4]Calc| Project Costs'!Y78 -> 0 | Z80: ='[4]Calc| Project Costs'!Z78 -> 0 | AA80: ='[4]Calc| Project Costs'!AA78 -> 0 | AB80: ='[4]Calc| Project Costs'!AB78 -> 0 | AC80: 824.3707194 | AD80: 824.3707194 | AF80: ='[4]Calc| Project Costs'!BR78 -> 960.2615382 | AG80: ='[4]Calc| Project Costs'!BS78 -> 0 | AH80: ='[4]Calc| Project Costs'!BT78 -> 0 | AI80: ='[4]Calc| Project Costs'!BU78 -> 0 | AJ80: ='[4]Calc| Project Costs'!BV78 -> 0 | AK80: ='[4]Calc| Project Costs'!BW78 -> 0 | AL80: ='[4]Calc| Project Costs'!BX78 -> 0 | AM80: 960.2615382 | AN80: 960.2615382 | AP80: ='[4]Calc| Project Costs'!AD78 -> 0 | AQ80: ='[4]Calc| Project Costs'!AE78 -> 0 | AR80: ='[4]Calc| Project Costs'!AF78 -> 0 | AS80: ='[4]Calc| Project Costs'!AG78 -> 0 | AT80: ='[4]Calc| Project Costs'!AH78 -> 0 | AU80: ='[4]Calc| Project Costs'!AI78 -> 0 | AV80: ='[4]Calc| Project Costs'!AJ78 -> 0 | AW80: 0 | AY80: ='[4]Calc| Project Costs'!AL78 -> 135.8908188 | AZ80: ='[4]Calc| Project Costs'!AM78 -> 0 | BA80: ='[4]Calc| Project Costs'!AN78 -> 0 | BB80: ='[4]Calc| Project Costs'!AO78 -> 0 | BC80: ='[4]Calc| Project Costs'!AP78 -> 0 | BD80: ='[4]Calc| Project Costs'!AQ78 -> 0 | BE80: ='[4]Calc| Project Costs'!AR78 -> 0 | BF80: 0 | BH80: ='[4]Calc| Project Costs'!BJ78 -> 0 | BI80: ='[4]Calc| Project Costs'!BK78 ->  | BJ80: ='[4]Calc| Project Costs'!BL78 ->  | BK80: ='[4]Calc| Project Costs'!BM78 ->  | BL80: ='[4]Calc| Project Costs'!BN78 ->  | BM80: ='[4]Calc| Project Costs'!BO78 ->  | BN80: ='[4]Calc| Project Costs'!BP78 ->  | BO80: 0 | BQ80: ='[4]Input| Projects'!Y78 -> 0.2687910969 | BR80: ='[4]Input| Projects'!Z78 -> 0.2883524789 | BS80: ='[4]Input| Projects'!AA78 -> 0.4428564243 | BT80: =+_xlfn.SWITCH(TRUE,LEN(L80)>0,IF(SUM(BQ80:BS80)<>1,1,0), 0) -> 0
D81: ='[4]Calc| Project Costs'!C79 -> Coolaroo No.2 bus feeders | E81: JEN | F81: $'000s | G81: Real 2026 | H81: End Year | L81: ='[4]Calc| Project Costs'!D79 -> A518 | M81: ='[4]Input| JEN Mapping'!G79 -> Augmentation | N81: ='[4]Input| JEN Mapping'!F79 -> Augmentation | O81: ='[4]Input| Projects'!G79 -> Distribution system assets | P81: Augmentation Expenditure | S81: ='[4]Input| JEN Mapping'!H79 -> Non-IT | V81: ='[4]Calc| Project Costs'!V79 -> 0 | W81: ='[4]Calc| Project Costs'!W79 -> 0 | X81: ='[4]Calc| Project Costs'!X79 -> 789.9777234 | Y81: ='[4]Calc| Project Costs'!Y79 -> 895.0393644 | Z81: ='[4]Calc| Project Costs'!Z79 -> 0 | AA81: ='[4]Calc| Project Costs'!AA79 -> 0 | AB81: ='[4]Calc| Project Costs'!AB79 -> 0 | AC81: 1685.017088 | AD81: 1685.017088 | AF81: ='[4]Calc| Project Costs'!BR79 -> 0 | AG81: ='[4]Calc| Project Costs'!BS79 -> 0 | AH81: ='[4]Calc| Project Costs'!BT79 -> 882.9236024 | AI81: ='[4]Calc| Project Costs'!BU79 -> 1001.584396 | AJ81: ='[4]Calc| Project Costs'!BV79 -> 0 | AK81: ='[4]Calc| Project Costs'!BW79 -> 0 | AL81: ='[4]Calc| Project Costs'!BX79 -> 0 | AM81: 1884.507999 | AN81: 1884.507999 | AP81: ='[4]Calc| Project Costs'!AD79 -> 0 | AQ81: ='[4]Calc| Project Costs'!AE79 -> 0 | AR81: ='[4]Calc| Project Costs'!AF79 -> 0 | AS81: ='[4]Calc| Project Costs'!AG79 -> 0 | AT81: ='[4]Calc| Project Costs'!AH79 -> 0 | AU81: ='[4]Calc| Project Costs'!AI79 -> 0 | AV81: ='[4]Calc| Project Costs'!AJ79 -> 0 | AW81: 0 | AY81: ='[4]Calc| Project Costs'!AL79 -> 0 | AZ81: ='[4]Calc| Project Costs'!AM79 -> 0 | BA81: ='[4]Calc| Project Costs'!AN79 -> 92.94587901 | BB81: ='[4]Calc| Project Costs'!AO79 -> 106.5450319 | BC81: ='[4]Calc| Project Costs'!AP79 -> 0 | BD81: ='[4]Calc| Project Costs'!AQ79 -> 0 | BE81: ='[4]Calc| Project Costs'!AR79 -> 0 | BF81: 199.490911 | BH81: ='[4]Calc| Project Costs'!BJ79 ->  | BI81: ='[4]Calc| Project Costs'!BK79 ->  | BJ81: ='[4]Calc| Project Costs'!BL79 -> 0 | BK81: ='[4]Calc| Project Costs'!BM79 -> 0 | BL81: ='[4]Calc| Project Costs'!BN79 ->  | BM81: ='[4]Calc| Project Costs'!BO79 ->  | BN81: ='[4]Calc| Project Costs'!BP79 ->  | BO81: 0 | BQ81: ='[4]Input| Projects'!Y79 -> 0.2687910969 | BR81: ='[4]Input| Projects'!Z79 -> 0.2883524789 | BS81: ='[4]Input| Projects'!AA79 -> 0.4428564243 | BT81: =+_xlfn.SWITCH(TRUE,LEN(L81)>0,IF(SUM(BQ81:BS81)<>1,1,0), 0) -> 0
D82: ='[4]Calc| Project Costs'!C80 -> Augment steel section - SBY24 | E82: JEN | F82: $'000s | G82: Real 2026 | H82: End Year | L82: ='[4]Calc| Project Costs'!D80 -> A23 | M82: ='[4]Input| JEN Mapping'!G80 -> Augmentation | N82: ='[4]Input| JEN Mapping'!F80 -> Augmentation | O82: ='[4]Input| Projects'!G80 -> Distribution system assets | P82: Augmentation Expenditure | S82: ='[4]Input| JEN Mapping'!H80 -> Non-IT | V82: ='[4]Calc| Project Costs'!V80 -> 0 | W82: ='[4]Calc| Project Costs'!W80 -> 0 | X82: ='[4]Calc| Project Costs'!X80 -> 0 | Y82: ='[4]Calc| Project Costs'!Y80 -> 0 | Z82: ='[4]Calc| Project Costs'!Z80 -> 531.9393786 | AA82: ='[4]Calc| Project Costs'!AA80 -> 604.0347007 | AB82: ='[4]Calc| Project Costs'!AB80 -> 0 | AC82: 1135.974079 | AD82: 1135.974079 | AF82: ='[4]Calc| Project Costs'!BR80 -> 0 | AG82: ='[4]Calc| Project Costs'!BS80 -> 0 | AH82: ='[4]Calc| Project Costs'!BT80 -> 0 | AI82: ='[4]Calc| Project Costs'!BU80 -> 0 | AJ82: ='[4]Calc| Project Costs'!BV80 -> 595.3047083 | AK82: ='[4]Calc| Project Costs'!BW80 -> 679.0984478 | AL82: ='[4]Calc| Project Costs'!BX80 -> 0 | AM82: 1274.403156 | AN82: 1274.403156 | AP82: ='[4]Calc| Project Costs'!AD80 -> 0 | AQ82: ='[4]Calc| Project Costs'!AE80 -> 0 | AR82: ='[4]Calc| Project Costs'!AF80 -> 0 | AS82: ='[4]Calc| Project Costs'!AG80 -> 0 | AT82: ='[4]Calc| Project Costs'!AH80 -> 0 | AU82: ='[4]Calc| Project Costs'!AI80 -> 0 | AV82: ='[4]Calc| Project Costs'!AJ80 -> 0 | AW82: 0 | AY82: ='[4]Calc| Project Costs'!AL80 -> 0 | AZ82: ='[4]Calc| Project Costs'!AM80 -> 0 | BA82: ='[4]Calc| Project Costs'!AN80 -> 0 | BB82: ='[4]Calc| Project Costs'!AO80 -> 0 | BC82: ='[4]Calc| Project Costs'!AP80 -> 63.36532972 | BD82: ='[4]Calc| Project Costs'!AQ80 -> 75.06374716 | BE82: ='[4]Calc| Project Costs'!AR80 -> 0 | BF82: 138.4290769 | BH82: ='[4]Calc| Project Costs'!BJ80 ->  | BI82: ='[4]Calc| Project Costs'!BK80 ->  | BJ82: ='[4]Calc| Project Costs'!BL80 ->  | BK82: ='[4]Calc| Project Costs'!BM80 ->  | BL82: ='[4]Calc| Project Costs'!BN80 -> 0 | BM82: ='[4]Calc| Project Costs'!BO80 -> 0 | BN82: ='[4]Calc| Project Costs'!BP80 ->  | BO82: 0 | BQ82: ='[4]Input| Projects'!Y80 -> 0.2687910969 | BR82: ='[4]Input| Projects'!Z80 -> 0.2883524789 | BS82: ='[4]Input| Projects'!AA80 -> 0.4428564243 | BT82: =+_xlfn.SWITCH(TRUE,LEN(L82)>0,IF(SUM(BQ82:BS82)<>1,1,0), 0) -> 0
D83: ='[4]Calc| Project Costs'!C81 -> Establish tie-line between SBY23 and SBY13 | E83: JEN | F83: $'000s | G83: Real 2026 | H83: End Year | L83: ='[4]Calc| Project Costs'!D81 -> A35 | M83: ='[4]Input| JEN Mapping'!G81 -> Augmentation | N83: ='[4]Input| JEN Mapping'!F81 -> Augmentation | O83: ='[4]Input| Projects'!G81 -> Distribution system assets | P83: Augmentation Expenditure | S83: ='[4]Input| JEN Mapping'!H81 -> Non-IT | V83: ='[4]Calc| Project Costs'!V81 -> 0 | W83: ='[4]Calc| Project Costs'!W81 -> 0 | X83: ='[4]Calc| Project Costs'!X81 -> 719.8208241 | Y83: ='[4]Calc| Project Costs'!Y81 -> 1041.851508 | Z83: ='[4]Calc| Project Costs'!Z81 -> 0 | AA83: ='[4]Calc| Project Costs'!AA81 -> 0 | AB83: ='[4]Calc| Project Costs'!AB81 -> 0 | AC83: 1761.672332 | AD83: 1761.672332 | AF83: ='[4]Calc| Project Costs'!BR81 -> 0 | AG83: ='[4]Calc| Project Costs'!BS81 -> 0 | AH83: ='[4]Calc| Project Costs'!BT81 -> 804.5122999 | AI83: ='[4]Calc| Project Costs'!BU81 -> 1165.872983 | AJ83: ='[4]Calc| Project Costs'!BV81 -> 0 | AK83: ='[4]Calc| Project Costs'!BW81 -> 0 | AL83: ='[4]Calc| Project Costs'!BX81 -> 0 | AM83: 1970.385283 | AN83: 1970.385283 | AP83: ='[4]Calc| Project Costs'!AD81 -> 0 | AQ83: ='[4]Calc| Project Costs'!AE81 -> 0 | AR83: ='[4]Calc| Project Costs'!AF81 -> 0 | AS83: ='[4]Calc| Project Costs'!AG81 -> 0 | AT83: ='[4]Calc| Project Costs'!AH81 -> 0 | AU83: ='[4]Calc| Project Costs'!AI81 -> 0 | AV83: ='[4]Calc| Project Costs'!AJ81 -> 0 | AW83: 0 | AY83: ='[4]Calc| Project Costs'!AL81 -> 0 | AZ83: ='[4]Calc| Project Costs'!AM81 -> 0 | BA83: ='[4]Calc| Project Costs'!AN81 -> 84.69147578 | BB83: ='[4]Calc| Project Costs'!AO81 -> 124.021475 | BC83: ='[4]Calc| Project Costs'!AP81 -> 0 | BD83: ='[4]Calc| Project Costs'!AQ81 -> 0 | BE83: ='[4]Calc| Project Costs'!AR81 -> 0 | BF83: 208.7129508 | BH83: ='[4]Calc| Project Costs'!BJ81 ->  | BI83: ='[4]Calc| Project Costs'!BK81 ->  | BJ83: ='[4]Calc| Project Costs'!BL81 -> 0 | BK83: ='[4]Calc| Project Costs'!BM81 -> 0 | BL83: ='[4]Calc| Project Costs'!BN81 ->  | BM83: ='[4]Calc| Project Costs'!BO81 ->  | BN83: ='[4]Calc| Project Costs'!BP81 ->  | BO83: 0 | BQ83: ='[4]Input| Projects'!Y81 -> 0.394734169 | BR83: ='[4]Input| Projects'!Z81 -> 0.2920561711 | BS83: ='[4]Input| Projects'!AA81 -> 0.3132096599 | BT83: =+_xlfn.SWITCH(TRUE,LEN(L83)>0,IF(SUM(BQ83:BS83)<>1,1,0), 0) -> 0
D84: ='[4]Calc| Project Costs'!C82 -> DC12 – Tullamarine (Stage 2) | E84: JEN | F84: $'000s | G84: Real 2026 | H84: End Year | L84: ='[4]Calc| Project Costs'!D82 -> A37 | M84: ='[4]Input| JEN Mapping'!G82 -> Connections | N84: ='[4]Input| JEN Mapping'!F82 -> Connections | O84: ='[4]Input| Projects'!G82 -> Distribution system assets | P84: Connections | S84: ='[4]Input| JEN Mapping'!H82 -> Non-IT | V84: ='[4]Calc| Project Costs'!V82 -> 4999.979828 | W84: ='[4]Calc| Project Costs'!W82 -> 11872.6006 | X84: ='[4]Calc| Project Costs'!X82 -> 6697.426368 | Y84: ='[4]Calc| Project Costs'!Y82 -> 0 | Z84: ='[4]Calc| Project Costs'!Z82 -> 0 | AA84: ='[4]Calc| Project Costs'!AA82 -> 0 | AB84: ='[4]Calc| Project Costs'!AB82 -> 0 | AC84: 23570.0068 | AD84: 23570.0068 | AF84: ='[4]Calc| Project Costs'!BR82 -> 5824.1859 | AG84: ='[4]Calc| Project Costs'!BS82 -> 13416.52815 | AH84: ='[4]Calc| Project Costs'!BT82 -> 7485.420969 | AI84: ='[4]Calc| Project Costs'!BU82 -> 0 | AJ84: ='[4]Calc| Project Costs'!BV82 -> 0 | AK84: ='[4]Calc| Project Costs'!BW82 -> 0 | AL84: ='[4]Calc| Project Costs'!BX82 -> 0 | AM84: 26726.13502 | AN84: 26726.13502 | AP84: ='[4]Calc| Project Costs'!AD82 -> 3644.985295 | AQ84: ='[4]Calc| Project Costs'!AE82 -> 8655.12584 | AR84: ='[4]Calc| Project Costs'!AF82 -> 4882.423822 | AS84: ='[4]Calc| Project Costs'!AG82 -> 0 | AT84: ='[4]Calc| Project Costs'!AH82 -> 0 | AU84: ='[4]Calc| Project Costs'!AI82 -> 0 | AV84: ='[4]Calc| Project Costs'!AJ82 -> 0 | AW84: 4882.423822 | AY84: ='[4]Calc| Project Costs'!AL82 -> 824.2060722 | AZ84: ='[4]Calc| Project Costs'!AM82 -> 1543.927543 | BA84: ='[4]Calc| Project Costs'!AN82 -> 787.9946009 | BB84: ='[4]Calc| Project Costs'!AO82 -> 0 | BC84: ='[4]Calc| Project Costs'!AP82 -> 0 | BD84: ='[4]Calc| Project Costs'!AQ82 -> 0 | BE84: ='[4]Calc| Project Costs'!AR82 -> 0 | BF84: 787.9946009 | BH84: ='[4]Calc| Project Costs'!BJ82 -> 600.8462267 | BI84: ='[4]Calc| Project Costs'!BK82 -> 1125.523179 | BJ84: ='[4]Calc| Project Costs'!BL82 -> 574.4480641 | BK84: ='[4]Calc| Project Costs'!BM82 ->  | BL84: ='[4]Calc| Project Costs'!BN82 ->  | BM84: ='[4]Calc| Project Costs'!BO82 ->  | BN84: ='[4]Calc| Project Costs'!BP82 ->  | BO84: 574.4480641 | BQ84: ='[4]Input| Projects'!Y82 -> 0.2796398347 | BR84: ='[4]Input| Projects'!Z82 -> 0.4480339349 | BS84: ='[4]Input| Projects'!AA82 -> 0.2723262304 | BT84: =+_xlfn.SWITCH(TRUE,LEN(L84)>0,IF(SUM(BQ84:BS84)<>1,1,0), 0) -> 0
D85: ='[4]Calc| Project Costs'!C83 -> Install regulator - SBY13 | E85: JEN | F85: $'000s | G85: Real 2026 | H85: End Year | L85: ='[4]Calc| Project Costs'!D83 -> A39 | M85: ='[4]Input| JEN Mapping'!G83 -> Augmentation | N85: ='[4]Input| JEN Mapping'!F83 -> Augmentation | O85: ='[4]Input| Projects'!G83 -> Distribution system assets | P85: Augmentation Expenditure | S85: ='[4]Input| JEN Mapping'!H83 -> Non-IT | V85: ='[4]Calc| Project Costs'!V83 -> 0 | W85: ='[4]Calc| Project Costs'!W83 -> 96.89652907 | X85: ='[4]Calc| Project Costs'!X83 -> 178.6237567 | Y85: ='[4]Calc| Project Costs'!Y83 -> 0 | Z85: ='[4]Calc| Project Costs'!Z83 -> 0 | AA85: ='[4]Calc| Project Costs'!AA83 -> 0 | AB85: ='[4]Calc| Project Costs'!AB83 -> 0 | AC85: 275.5202857 | AD85: 275.5202857 | AF85: ='[4]Calc| Project Costs'!BR83 -> 0 | AG85: ='[4]Calc| Project Costs'!BS83 -> 109.4970725 | AH85: ='[4]Calc| Project Costs'!BT83 -> 199.6399722 | AI85: ='[4]Calc| Project Costs'!BU83 -> 0 | AJ85: ='[4]Calc| Project Costs'!BV83 -> 0 | AK85: ='[4]Calc| Project Costs'!BW83 -> 0 | AL85: ='[4]Calc| Project Costs'!BX83 -> 0 | AM85: 309.1370447 | AN85: 309.1370447 | AP85: ='[4]Calc| Project Costs'!AD83 -> 0 | AQ85: ='[4]Calc| Project Costs'!AE83 -> 0 | AR85: ='[4]Calc| Project Costs'!AF83 -> 0 | AS85: ='[4]Calc| Project Costs'!AG83 -> 0 | AT85: ='[4]Calc| Project Costs'!AH83 -> 0 | AU85: ='[4]Calc| Project Costs'!AI83 -> 0 | AV85: ='[4]Calc| Project Costs'!AJ83 -> 0 | AW85: 0 | AY85: ='[4]Calc| Project Costs'!AL83 -> 0 | AZ85: ='[4]Calc| Project Costs'!AM83 -> 12.60054347 | BA85: ='[4]Calc| Project Costs'!AN83 -> 21.0162155 | BB85: ='[4]Calc| Project Costs'!AO83 -> 0 | BC85: ='[4]Calc| Project Costs'!AP83 -> 0 | BD85: ='[4]Calc| Project Costs'!AQ83 -> 0 | BE85: ='[4]Calc| Project Costs'!AR83 -> 0 | BF85: 21.0162155 | BH85: ='[4]Calc| Project Costs'!BJ83 ->  | BI85: ='[4]Calc| Project Costs'!BK83 -> 0 | BJ85: ='[4]Calc| Project Costs'!BL83 -> 0 | BK85: ='[4]Calc| Project Costs'!BM83 ->  | BL85: ='[4]Calc| Project Costs'!BN83 ->  | BM85: ='[4]Calc| Project Costs'!BO83 ->  | BN85: ='[4]Calc| Project Costs'!BP83 ->  | BO85: 0 | BQ85: ='[4]Input| Projects'!Y83 -> 0.2687910969 | BR85: ='[4]Input| Projects'!Z83 -> 0.2883524789 | BS85: ='[4]Input| Projects'!AA83 -> 0.4428564243 | BT85: =+_xlfn.SWITCH(TRUE,LEN(L85)>0,IF(SUM(BQ85:BS85)<>1,1,0), 0) -> 0
D86: ='[4]Calc| Project Costs'!C84 -> Install Regulator - SBY23 | E86: JEN | F86: $'000s | G86: Real 2026 | H86: End Year | L86: ='[4]Calc| Project Costs'!D84 -> A40 | M86: ='[4]Input| JEN Mapping'!G84 -> Augmentation | N86: ='[4]Input| JEN Mapping'!F84 -> Augmentation | O86: ='[4]Input| Projects'!G84 -> Distribution system assets | P86: Augmentation Expenditure | S86: ='[4]Input| JEN Mapping'!H84 -> Non-IT | V86: ='[4]Calc| Project Costs'!V84 -> 0 | W86: ='[4]Calc| Project Costs'!W84 -> 0 | X86: ='[4]Calc| Project Costs'!X84 -> 0 | Y86: ='[4]Calc| Project Costs'!Y84 -> 0 | Z86: ='[4]Calc| Project Costs'!Z84 -> 0 | AA86: ='[4]Calc| Project Costs'!AA84 -> 149.9891904 | AB86: ='[4]Calc| Project Costs'!AB84 -> 198.1197998 | AC86: 348.1089902 | AD86: 348.1089902 | AF86: ='[4]Calc| Project Costs'!BR84 -> 0 | AG86: ='[4]Calc| Project Costs'!BS84 -> 0 | AH86: ='[4]Calc| Project Costs'!BT84 -> 0 | AI86: ='[4]Calc| Project Costs'!BU84 -> 0 | AJ86: ='[4]Calc| Project Costs'!BV84 -> 0 | AK86: ='[4]Calc| Project Costs'!BW84 -> 168.6284352 | AL86: ='[4]Calc| Project Costs'!BX84 -> 226.0637707 | AM86: 394.6922059 | AN86: 394.6922059 | AP86: ='[4]Calc| Project Costs'!AD84 -> 0 | AQ86: ='[4]Calc| Project Costs'!AE84 -> 0 | AR86: ='[4]Calc| Project Costs'!AF84 -> 0 | AS86: ='[4]Calc| Project Costs'!AG84 -> 0 | AT86: ='[4]Calc| Project Costs'!AH84 -> 0 | AU86: ='[4]Calc| Project Costs'!AI84 -> 0 | AV86: ='[4]Calc| Project Costs'!AJ84 -> 0 | AW86: 0 | AY86: ='[4]Calc| Project Costs'!AL84 -> 0 | AZ86: ='[4]Calc| Project Costs'!AM84 -> 0 | BA86: ='[4]Calc| Project Costs'!AN84 -> 0 | BB86: ='[4]Calc| Project Costs'!AO84 -> 0 | BC86: ='[4]Calc| Project Costs'!AP84 -> 0 | BD86: ='[4]Calc| Project Costs'!AQ84 -> 18.63924482 | BE86: ='[4]Calc| Project Costs'!AR84 -> 27.94397095 | BF86: 46.58321577 | BH86: ='[4]Calc| Project Costs'!BJ84 ->  | BI86: ='[4]Calc| Project Costs'!BK84 ->  | BJ86: ='[4]Calc| Project Costs'!BL84 ->  | BK86: ='[4]Calc| Project Costs'!BM84 ->  | BL86: ='[4]Calc| Project Costs'!BN84 ->  | BM86: ='[4]Calc| Project Costs'!BO84 -> 0 | BN86: ='[4]Calc| Project Costs'!BP84 -> 0 | BO86: 0 | BQ86: ='[4]Input| Projects'!Y84 -> 0.2687910969 | BR86: ='[4]Input| Projects'!Z84 -> 0.2883524789 | BS86: ='[4]Input| Projects'!AA84 -> 0.4428564243 | BT86: =+_xlfn.SWITCH(TRUE,LEN(L86)>0,IF(SUM(BQ86:BS86)<>1,1,0), 0) -> 0
D87: ='[4]Calc| Project Costs'!C85 -> New feeder KLO-023 | E87: JEN | F87: $'000s | G87: Real 2026 | H87: End Year | L87: ='[4]Calc| Project Costs'!D85 -> A515 | M87: ='[4]Input| JEN Mapping'!G85 -> Augmentation | N87: ='[4]Input| JEN Mapping'!F85 -> Augmentation | O87: ='[4]Input| Projects'!G85 -> Distribution system assets | P87: Augmentation Expenditure | S87: ='[4]Input| JEN Mapping'!H85 -> Non-IT | V87: ='[4]Calc| Project Costs'!V85 -> 0 | W87: ='[4]Calc| Project Costs'!W85 -> 523.0581302 | X87: ='[4]Calc| Project Costs'!X85 -> 588.9734681 | Y87: ='[4]Calc| Project Costs'!Y85 -> 0 | Z87: ='[4]Calc| Project Costs'!Z85 -> 0 | AA87: ='[4]Calc| Project Costs'!AA85 -> 0 | AB87: ='[4]Calc| Project Costs'!AB85 -> 0 | AC87: 1112.031598 | AD87: 1112.031598 | AF87: ='[4]Calc| Project Costs'!BR85 -> 0 | AG87: ='[4]Calc| Project Costs'!BS85 -> 591.0772509 | AH87: ='[4]Calc| Project Costs'!BT85 -> 658.2699243 | AI87: ='[4]Calc| Project Costs'!BU85 -> 0 | AJ87: ='[4]Calc| Project Costs'!BV85 -> 0 | AK87: ='[4]Calc| Project Costs'!BW85 -> 0 | AL87: ='[4]Calc| Project Costs'!BX85 -> 0 | AM87: 1249.347175 | AN87: 1249.347175 | AP87: ='[4]Calc| Project Costs'!AD85 -> 0 | AQ87: ='[4]Calc| Project Costs'!AE85 -> 0 | AR87: ='[4]Calc| Project Costs'!AF85 -> 0 | AS87: ='[4]Calc| Project Costs'!AG85 -> 0 | AT87: ='[4]Calc| Project Costs'!AH85 -> 0 | AU87: ='[4]Calc| Project Costs'!AI85 -> 0 | AV87: ='[4]Calc| Project Costs'!AJ85 -> 0 | AW87: 0 | AY87: ='[4]Calc| Project Costs'!AL85 -> 0 | AZ87: ='[4]Calc| Project Costs'!AM85 -> 68.01912072 | BA87: ='[4]Calc| Project Costs'!AN85 -> 69.2964562 | BB87: ='[4]Calc| Project Costs'!AO85 -> 0 | BC87: ='[4]Calc| Project Costs'!AP85 -> 0 | BD87: ='[4]Calc| Project Costs'!AQ85 -> 0 | BE87: ='[4]Calc| Project Costs'!AR85 -> 0 | BF87: 69.2964562 | BH87: ='[4]Calc| Project Costs'!BJ85 ->  | BI87: ='[4]Calc| Project Costs'!BK85 -> 0 | BJ87: ='[4]Calc| Project Costs'!BL85 -> 0 | BK87: ='[4]Calc| Project Costs'!BM85 ->  | BL87: ='[4]Calc| Project Costs'!BN85 ->  | BM87: ='[4]Calc| Project Costs'!BO85 ->  | BN87: ='[4]Calc| Project Costs'!BP85 ->  | BO87: 0 | BQ87: ='[4]Input| Projects'!Y85 -> 0.2687910969 | BR87: ='[4]Input| Projects'!Z85 -> 0.2883524789 | BS87: ='[4]Input| Projects'!AA85 -> 0.4428564243 | BT87: =+_xlfn.SWITCH(TRUE,LEN(L87)>0,IF(SUM(BQ87:BS87)<>1,1,0), 0) -> 0
D88: ='[4]Calc| Project Costs'!C86 -> Establish new Craigieburn (CBN) zone substation - HV feeder works | E88: JEN | F88: $'000s | G88: Real 2026 | H88: End Year | L88: ='[4]Calc| Project Costs'!D86 -> A42 | M88: ='[4]Input| JEN Mapping'!G86 -> Augmentation | N88: ='[4]Input| JEN Mapping'!F86 -> Augmentation | O88: ='[4]Input| Projects'!G86 -> Distribution system assets | P88: Augmentation Expenditure | S88: ='[4]Input| JEN Mapping'!H86 -> Non-IT | V88: ='[4]Calc| Project Costs'!V86 -> 0 | W88: ='[4]Calc| Project Costs'!W86 -> 0 | X88: ='[4]Calc| Project Costs'!X86 -> 2746.969274 | Y88: ='[4]Calc| Project Costs'!Y86 -> 3112.297424 | Z88: ='[4]Calc| Project Costs'!Z86 -> 0 | AA88: ='[4]Calc| Project Costs'!AA86 -> 0 | AB88: ='[4]Calc| Project Costs'!AB86 -> 0 | AC88: 5859.266698 | AD88: 5859.266698 | AF88: ='[4]Calc| Project Costs'!BR86 -> 0 | AG88: ='[4]Calc| Project Costs'!BS86 -> 0 | AH88: ='[4]Calc| Project Costs'!BT86 -> 3070.167595 | AI88: ='[4]Calc| Project Costs'!BU86 -> 3482.78373 | AJ88: ='[4]Calc| Project Costs'!BV86 -> 0 | AK88: ='[4]Calc| Project Costs'!BW86 -> 0 | AL88: ='[4]Calc| Project Costs'!BX86 -> 0 | AM88: 6552.951326 | AN88: 6552.951326 | AP88: ='[4]Calc| Project Costs'!AD86 -> 0 | AQ88: ='[4]Calc| Project Costs'!AE86 -> 0 | AR88: ='[4]Calc| Project Costs'!AF86 -> 0 | AS88: ='[4]Calc| Project Costs'!AG86 -> 0 | AT88: ='[4]Calc| Project Costs'!AH86 -> 0 | AU88: ='[4]Calc| Project Costs'!AI86 -> 0 | AV88: ='[4]Calc| Project Costs'!AJ86 -> 0 | AW88: 0 | AY88: ='[4]Calc| Project Costs'!AL86 -> 0 | AZ88: ='[4]Calc| Project Costs'!AM86 -> 0 | BA88: ='[4]Calc| Project Costs'!AN86 -> 323.198321 | BB88: ='[4]Calc| Project Costs'!AO86 -> 370.4863067 | BC88: ='[4]Calc| Project Costs'!AP86 -> 0 | BD88: ='[4]Calc| Project Costs'!AQ86 -> 0 | BE88: ='[4]Calc| Project Costs'!AR86 -> 0 | BF88: 693.6846277 | BH88: ='[4]Calc| Project Costs'!BJ86 ->  | BI88: ='[4]Calc| Project Costs'!BK86 ->  | BJ88: ='[4]Calc| Project Costs'!BL86 -> 0 | BK88: ='[4]Calc| Project Costs'!BM86 -> 0 | BL88: ='[4]Calc| Project Costs'!BN86 ->  | BM88: ='[4]Calc| Project Costs'!BO86 ->  | BN88: ='[4]Calc| Project Costs'!BP86 ->  | BO88: 0 | BQ88: ='[4]Input| Projects'!Y86 -> 0.2687910969 | BR88: ='[4]Input| Projects'!Z86 -> 0.2883524789 | BS88: ='[4]Input| Projects'!AA86 -> 0.4428564243 | BT88: =+_xlfn.SWITCH(TRUE,LEN(L88)>0,IF(SUM(BQ88:BS88)<>1,1,0), 0) -> 0
D89: ='[4]Calc| Project Costs'!C87 -> New feeder FT0-025 | E89: JEN | F89: $'000s | G89: Real 2026 | H89: End Year | L89: ='[4]Calc| Project Costs'!D87 -> A44 | M89: ='[4]Input| JEN Mapping'!G87 -> Augmentation | N89: ='[4]Input| JEN Mapping'!F87 -> Augmentation | O89: ='[4]Input| Projects'!G87 -> Distribution system assets | P89: Augmentation Expenditure | S89: ='[4]Input| JEN Mapping'!H87 -> Non-IT | V89: ='[4]Calc| Project Costs'!V87 -> 0 | W89: ='[4]Calc| Project Costs'!W87 -> 1885.987171 | X89: ='[4]Calc| Project Costs'!X87 -> 0 | Y89: ='[4]Calc| Project Costs'!Y87 -> 0 | Z89: ='[4]Calc| Project Costs'!Z87 -> 0 | AA89: ='[4]Calc| Project Costs'!AA87 -> 0 | AB89: ='[4]Calc| Project Costs'!AB87 -> 0 | AC89: 1885.987171 | AD89: 1885.987171 | AF89: ='[4]Calc| Project Costs'!BR87 -> 0 | AG89: ='[4]Calc| Project Costs'!BS87 -> 2131.243256 | AH89: ='[4]Calc| Project Costs'!BT87 -> 0 | AI89: ='[4]Calc| Project Costs'!BU87 -> 0 | AJ89: ='[4]Calc| Project Costs'!BV87 -> 0 | AK89: ='[4]Calc| Project Costs'!BW87 -> 0 | AL89: ='[4]Calc| Project Costs'!BX87 -> 0 | AM89: 2131.243256 | AN89: 2131.243256 | AP89: ='[4]Calc| Project Costs'!AD87 -> 0 | AQ89: ='[4]Calc| Project Costs'!AE87 -> 0 | AR89: ='[4]Calc| Project Costs'!AF87 -> 0 | AS89: ='[4]Calc| Project Costs'!AG87 -> 0 | AT89: ='[4]Calc| Project Costs'!AH87 -> 0 | AU89: ='[4]Calc| Project Costs'!AI87 -> 0 | AV89: ='[4]Calc| Project Costs'!AJ87 -> 0 | AW89: 0 | AY89: ='[4]Calc| Project Costs'!AL87 -> 0 | AZ89: ='[4]Calc| Project Costs'!AM87 -> 245.2560847 | BA89: ='[4]Calc| Project Costs'!AN87 -> 0 | BB89: ='[4]Calc| Project Costs'!AO87 -> 0 | BC89: ='[4]Calc| Project Costs'!AP87 -> 0 | BD89: ='[4]Calc| Project Costs'!AQ87 -> 0 | BE89: ='[4]Calc| Project Costs'!AR87 -> 0 | BF89: 0 | BH89: ='[4]Calc| Project Costs'!BJ87 ->  | BI89: ='[4]Calc| Project Costs'!BK87 -> 0 | BJ89: ='[4]Calc| Project Costs'!BL87 ->  | BK89: ='[4]Calc| Project Costs'!BM87 ->  | BL89: ='[4]Calc| Project Costs'!BN87 ->  | BM89: ='[4]Calc| Project Costs'!BO87 ->  | BN89: ='[4]Calc| Project Costs'!BP87 ->  | BO89: 0 | BQ89: ='[4]Input| Projects'!Y87 -> 0.2687910969 | BR89: ='[4]Input| Projects'!Z87 -> 0.2883524789 | BS89: ='[4]Input| Projects'!AA87 -> 0.4428564243 | BT89: =+_xlfn.SWITCH(TRUE,LEN(L89)>0,IF(SUM(BQ89:BS89)<>1,1,0), 0) -> 0
D90: ='[4]Calc| Project Costs'!C88 -> Solar Farm | E90: JEN | F90: $'000s | G90: Real 2026 | H90: End Year | L90: ='[4]Calc| Project Costs'!D88 -> A56 | M90: ='[4]Input| JEN Mapping'!G88 -> Connections | N90: ='[4]Input| JEN Mapping'!F88 -> Connections | O90: ='[4]Input| Projects'!G88 -> Distribution system assets | P90: Connections | S90: ='[4]Input| JEN Mapping'!H88 -> Non-IT | V90: ='[4]Calc| Project Costs'!V88 -> 1198.886777 | W90: ='[4]Calc| Project Costs'!W88 -> 0 | X90: ='[4]Calc| Project Costs'!X88 -> 17872.92952 | Y90: ='[4]Calc| Project Costs'!Y88 -> 0 | Z90: ='[4]Calc| Project Costs'!Z88 -> 0 | AA90: ='[4]Calc| Project Costs'!AA88 -> 0 | AB90: ='[4]Calc| Project Costs'!AB88 -> 0 | AC90: 19071.8163 | AD90: 19071.8163 | AF90: ='[4]Calc| Project Costs'!BR88 -> 1396.513526 | AG90: ='[4]Calc| Project Costs'!BS88 -> 0 | AH90: ='[4]Calc| Project Costs'!BT88 -> 19975.7928 | AI90: ='[4]Calc| Project Costs'!BU88 -> 0 | AJ90: ='[4]Calc| Project Costs'!BV88 -> 0 | AK90: ='[4]Calc| Project Costs'!BW88 -> 0 | AL90: ='[4]Calc| Project Costs'!BX88 -> 0 | AM90: 21372.30633 | AN90: 21372.30633 | AP90: ='[4]Calc| Project Costs'!AD88 -> 1198.886777 | AQ90: ='[4]Calc| Project Costs'!AE88 -> 0 | AR90: ='[4]Calc| Project Costs'!AF88 -> 17872.92952 | AS90: ='[4]Calc| Project Costs'!AG88 -> 0 | AT90: ='[4]Calc| Project Costs'!AH88 -> 0 | AU90: ='[4]Calc| Project Costs'!AI88 -> 0 | AV90: ='[4]Calc| Project Costs'!AJ88 -> 0 | AW90: 17872.92952 | AY90: ='[4]Calc| Project Costs'!AL88 -> 197.6267495 | AZ90: ='[4]Calc| Project Costs'!AM88 -> 0 | BA90: ='[4]Calc| Project Costs'!AN88 -> 2102.863278 | BB90: ='[4]Calc| Project Costs'!AO88 -> 0 | BC90: ='[4]Calc| Project Costs'!AP88 -> 0 | BD90: ='[4]Calc| Project Costs'!AQ88 -> 0 | BE90: ='[4]Calc| Project Costs'!AR88 -> 0 | BF90: 2102.863278 | BH90: ='[4]Calc| Project Costs'!BJ88 -> 197.6267495 | BI90: ='[4]Calc| Project Costs'!BK88 ->  | BJ90: ='[4]Calc| Project Costs'!BL88 -> 2102.863278 | BK90: ='[4]Calc| Project Costs'!BM88 ->  | BL90: ='[4]Calc| Project Costs'!BN88 ->  | BM90: ='[4]Calc| Project Costs'!BO88 ->  | BN90: ='[4]Calc| Project Costs'!BP88 ->  | BO90: 2102.863278 | BQ90: ='[4]Input| Projects'!Y88 -> 0.2796398347 | BR90: ='[4]Input| Projects'!Z88 -> 0.4480339349 | BS90: ='[4]Input| Projects'!AA88 -> 0.2723262304 | BT90: =+_xlfn.SWITCH(TRUE,LEN(L90)>0,IF(SUM(BQ90:BS90)<>1,1,0), 0) -> 0
D91: ='[4]Calc| Project Costs'!C89 -> Craigieburn Park (South) | E91: JEN | F91: $'000s | G91: Real 2026 | H91: End Year | L91: ='[4]Calc| Project Costs'!D89 -> A382 | M91: ='[4]Input| JEN Mapping'!G89 -> Connections | N91: ='[4]Input| JEN Mapping'!F89 -> Connections | O91: ='[4]Input| Projects'!G89 -> Distribution system assets | P91: Connections | S91: ='[4]Input| JEN Mapping'!H89 -> Non-IT | V91: ='[4]Calc| Project Costs'!V89 -> 476.3044743 | W91: ='[4]Calc| Project Costs'!W89 -> 0 | X91: ='[4]Calc| Project Costs'!X89 -> 0 | Y91: ='[4]Calc| Project Costs'!Y89 -> 0 | Z91: ='[4]Calc| Project Costs'!Z89 -> 0 | AA91: ='[4]Calc| Project Costs'!AA89 -> 0 | AB91: ='[4]Calc| Project Costs'!AB89 -> 0 | AC91: 476.3044743 | AD91: 476.3044743 | AF91: ='[4]Calc| Project Costs'!BR89 -> 554.819399 | AG91: ='[4]Calc| Project Costs'!BS89 -> 0 | AH91: ='[4]Calc| Project Costs'!BT89 -> 0 | AI91: ='[4]Calc| Project Costs'!BU89 -> 0 | AJ91: ='[4]Calc| Project Costs'!BV89 -> 0 | AK91: ='[4]Calc| Project Costs'!BW89 -> 0 | AL91: ='[4]Calc| Project Costs'!BX89 -> 0 | AM91: 554.819399 | AN91: 554.819399 | AP91: ='[4]Calc| Project Costs'!AD89 -> 392.0462128 | AQ91: ='[4]Calc| Project Costs'!AE89 -> 0 | AR91: ='[4]Calc| Project Costs'!AF89 -> 0 | AS91: ='[4]Calc| Project Costs'!AG89 -> 0 | AT91: ='[4]Calc| Project Costs'!AH89 -> 0 | AU91: ='[4]Calc| Project Costs'!AI89 -> 0 | AV91: ='[4]Calc| Project Costs'!AJ89 -> 0 | AW91: 0 | AY91: ='[4]Calc| Project Costs'!AL89 -> 78.51492475 | AZ91: ='[4]Calc| Project Costs'!AM89 -> 0 | BA91: ='[4]Calc| Project Costs'!AN89 -> 0 | BB91: ='[4]Calc| Project Costs'!AO89 -> 0 | BC91: ='[4]Calc| Project Costs'!AP89 -> 0 | BD91: ='[4]Calc| Project Costs'!AQ89 -> 0 | BE91: ='[4]Calc| Project Costs'!AR89 -> 0 | BF91: 0 | BH91: ='[4]Calc| Project Costs'!BJ89 -> 64.62563456 | BI91: ='[4]Calc| Project Costs'!BK89 ->  | BJ91: ='[4]Calc| Project Costs'!BL89 ->  | BK91: ='[4]Calc| Project Costs'!BM89 ->  | BL91: ='[4]Calc| Project Costs'!BN89 ->  | BM91: ='[4]Calc| Project Costs'!BO89 ->  | BN91: ='[4]Calc| Project Costs'!BP89 ->  | BO91: 0 | BQ91: ='[4]Input| Projects'!Y89 -> 0.2796398347 | BR91: ='[4]Input| Projects'!Z89 -> 0.4480339349 | BS91: ='[4]Input| Projects'!AA89 -> 0.2723262304 | BT91: =+_xlfn.SWITCH(TRUE,LEN(L91)>0,IF(SUM(BQ91:BS91)<>1,1,0), 0) -> 0
D92: ='[4]Calc| Project Costs'!C90 -> DC10 - Westmeadows | E92: JEN | F92: $'000s | G92: Real 2026 | H92: End Year | L92: ='[4]Calc| Project Costs'!D90 -> A214 | M92: ='[4]Input| JEN Mapping'!G90 -> Connections | N92: ='[4]Input| JEN Mapping'!F90 -> Connections | O92: ='[4]Input| Projects'!G90 -> Distribution system assets | P92: Connections | S92: ='[4]Input| JEN Mapping'!H90 -> Non-IT | V92: ='[4]Calc| Project Costs'!V90 -> 683.0769564 | W92: ='[4]Calc| Project Costs'!W90 -> 6554.70572 | X92: ='[4]Calc| Project Costs'!X90 -> 12076.21759 | Y92: ='[4]Calc| Project Costs'!Y90 -> 5808.28038 | Z92: ='[4]Calc| Project Costs'!Z90 -> 12817.59974 | AA92: ='[4]Calc| Project Costs'!AA90 -> 6182.604993 | AB92: ='[4]Calc| Project Costs'!AB90 -> 0 | AC92: 44122.48538 | AD92: 44122.48538 | AF92: ='[4]Calc| Project Costs'!BR90 -> 795.6766457 | AG92: ='[4]Calc| Project Costs'!BS90 -> 7407.08769 | AH92: ='[4]Calc| Project Costs'!BT90 -> 13497.06103 | AI92: ='[4]Calc| Project Costs'!BU90 -> 6499.69513 | AJ92: ='[4]Calc| Project Costs'!BV90 -> 14344.44935 | AK92: ='[4]Calc| Project Costs'!BW90 -> 6950.920948 | AL92: ='[4]Calc| Project Costs'!BX90 -> 0 | AM92: 49494.89079 | AN92: 49494.89079 | AP92: ='[4]Calc| Project Costs'!AD90 -> 497.9631012 | AQ92: ='[4]Calc| Project Costs'!AE90 -> 4778.38047 | AR92: ='[4]Calc| Project Costs'!AF90 -> 8803.562626 | AS92: ='[4]Calc| Project Costs'!AG90 -> 4234.236397 | AT92: ='[4]Calc| Project Costs'!AH90 -> 9344.030208 | AU92: ='[4]Calc| Project Costs'!AI90 -> 4507.11904 | AV92: ='[4]Calc| Project Costs'!AJ90 -> 0 | AW92: 26888.94827 | AY92: ='[4]Calc| Project Costs'!AL90 -> 112.5996893 | AZ92: ='[4]Calc| Project Costs'!AM90 -> 852.3819704 | BA92: ='[4]Calc| Project Costs'!AN90 -> 1420.843432 | BB92: ='[4]Calc| Project Costs'!AO90 -> 691.4147502 | BC92: ='[4]Calc| Project Costs'!AP90 -> 1526.849611 | BD92: ='[4]Calc| Project Costs'!AQ90 -> 768.3159551 | BE92: ='[4]Calc| Project Costs'!AR90 -> 0 | BF92: 4407.423748 | BH92: ='[4]Calc| Project Costs'!BJ90 -> 82.08517352 | BI92: ='[4]Calc| Project Costs'!BK90 -> 621.3864564 | BJ92: ='[4]Calc| Project Costs'!BL90 -> 1035.794862 | BK92: ='[4]Calc| Project Costs'!BM90 -> 504.0413529 | BL92: ='[4]Calc| Project Costs'!BN90 -> 1113.073367 | BM92: ='[4]Calc| Project Costs'!BO90 -> 560.1023313 | BN92: ='[4]Calc| Project Costs'!BP90 ->  | BO92: 3213.011913 | BQ92: ='[4]Input| Projects'!Y90 -> 0.2796398347 | BR92: ='[4]Input| Projects'!Z90 -> 0.4480339349 | BS92: ='[4]Input| Projects'!AA90 -> 0.2723262304 | BT92: =+_xlfn.SWITCH(TRUE,LEN(L92)>0,IF(SUM(BQ92:BS92)<>1,1,0), 0) -> 0
D93: ='[4]Calc| Project Costs'!C91 -> Craigieburn Park (North) | E93: JEN | F93: $'000s | G93: Real 2026 | H93: End Year | L93: ='[4]Calc| Project Costs'!D91 -> A50 | M93: ='[4]Input| JEN Mapping'!G91 -> Connections | N93: ='[4]Input| JEN Mapping'!F91 -> Connections | O93: ='[4]Input| Projects'!G91 -> Distribution system assets | P93: Connections | S93: ='[4]Input| JEN Mapping'!H91 -> Non-IT | V93: ='[4]Calc| Project Costs'!V91 -> 1039.85216 | W93: ='[4]Calc| Project Costs'!W91 -> 707.3253204 | X93: ='[4]Calc| Project Costs'!X91 -> 0 | Y93: ='[4]Calc| Project Costs'!Y91 -> 0 | Z93: ='[4]Calc| Project Costs'!Z91 -> 0 | AA93: ='[4]Calc| Project Costs'!AA91 -> 0 | AB93: ='[4]Calc| Project Costs'!AB91 -> 0 | AC93: 1747.17748 | AD93: 1747.17748 | AF93: ='[4]Calc| Project Costs'!BR91 -> 1211.263344 | AG93: ='[4]Calc| Project Costs'!BS91 -> 799.3067725 | AH93: ='[4]Calc| Project Costs'!BT91 -> 0 | AI93: ='[4]Calc| Project Costs'!BU91 -> 0 | AJ93: ='[4]Calc| Project Costs'!BV91 -> 0 | AK93: ='[4]Calc| Project Costs'!BW91 -> 0 | AL93: ='[4]Calc| Project Costs'!BX91 -> 0 | AM93: 2010.570117 | AN93: 2010.570117 | AP93: ='[4]Calc| Project Costs'!AD91 -> 855.9023128 | AQ93: ='[4]Calc| Project Costs'!AE91 -> 582.1994712 | AR93: ='[4]Calc| Project Costs'!AF91 -> 0 | AS93: ='[4]Calc| Project Costs'!AG91 -> 0 | AT93: ='[4]Calc| Project Costs'!AH91 -> 0 | AU93: ='[4]Calc| Project Costs'!AI91 -> 0 | AV93: ='[4]Calc| Project Costs'!AJ91 -> 0 | AW93: 0 | AY93: ='[4]Calc| Project Costs'!AL91 -> 171.4111844 | AZ93: ='[4]Calc| Project Costs'!AM91 -> 91.98145211 | BA93: ='[4]Calc| Project Costs'!AN91 -> 0 | BB93: ='[4]Calc| Project Costs'!AO91 -> 0 | BC93: ='[4]Calc| Project Costs'!AP91 -> 0 | BD93: ='[4]Calc| Project Costs'!AQ91 -> 0 | BE93: ='[4]Calc| Project Costs'!AR91 -> 0 | BF93: 0 | BH93: ='[4]Calc| Project Costs'!BJ91 -> 141.0885459 | BI93: ='[4]Calc| Project Costs'!BK91 -> 75.70993323 | BJ93: ='[4]Calc| Project Costs'!BL91 ->  | BK93: ='[4]Calc| Project Costs'!BM91 ->  | BL93: ='[4]Calc| Project Costs'!BN91 ->  | BM93: ='[4]Calc| Project Costs'!BO91 ->  | BN93: ='[4]Calc| Project Costs'!BP91 ->  | BO93: 0 | BQ93: ='[4]Input| Projects'!Y91 -> 0.2796398347 | BR93: ='[4]Input| Projects'!Z91 -> 0.4480339349 | BS93: ='[4]Input| Projects'!AA91 -> 0.2723262304 | BT93: =+_xlfn.SWITCH(TRUE,LEN(L93)>0,IF(SUM(BQ93:BS93)<>1,1,0), 0) -> 0
D94: ='[4]Calc| Project Costs'!C92 -> DC10 - MAT-MDT 66kV line extension to MDW | E94: JEN | F94: $'000s | G94: Real 2026 | H94: End Year | L94: ='[4]Calc| Project Costs'!D92 -> A54 | M94: ='[4]Input| JEN Mapping'!G92 -> Connections | N94: ='[4]Input| JEN Mapping'!F92 -> Connections | O94: ='[4]Input| Projects'!G92 -> Distribution system assets | P94: Connections | S94: ='[4]Input| JEN Mapping'!H92 -> Non-IT | V94: ='[4]Calc| Project Costs'!V92 -> 0 | W94: ='[4]Calc| Project Costs'!W92 -> 905.8122254 | X94: ='[4]Calc| Project Costs'!X92 -> 2163.783483 | Y94: ='[4]Calc| Project Costs'!Y92 -> 1227.268266 | Z94: ='[4]Calc| Project Costs'!Z92 -> 2296.622299 | AA94: ='[4]Calc| Project Costs'!AA92 -> 1306.361679 | AB94: ='[4]Calc| Project Costs'!AB92 -> 0 | AC94: 7899.847952 | AD94: 7899.847952 | AF94: ='[4]Calc| Project Costs'!BR92 -> 0 | AG94: ='[4]Calc| Project Costs'!BS92 -> 1023.605158 | AH94: ='[4]Calc| Project Costs'!BT92 -> 2418.366305 | AI94: ='[4]Calc| Project Costs'!BU92 -> 1373.361657 | AJ94: ='[4]Calc| Project Costs'!BV92 -> 2570.199016 | AK94: ='[4]Calc| Project Costs'!BW92 -> 1468.704012 | AL94: ='[4]Calc| Project Costs'!BX92 -> 0 | AM94: 8854.236149 | AN94: 8854.236149 | AP94: ='[4]Calc| Project Costs'!AD92 -> 0 | AQ94: ='[4]Calc| Project Costs'!AE92 -> 660.3371123 | AR94: ='[4]Calc| Project Costs'!AF92 -> 1577.398159 | AS94: ='[4]Calc| Project Costs'!AG92 -> 894.6785657 | AT94: ='[4]Calc| Project Costs'!AH92 -> 1674.237656 | AU94: ='[4]Calc| Project Costs'!AI92 -> 952.3376637 | AV94: ='[4]Calc| Project Costs'!AJ92 -> 0 | AW94: 5098.652044 | AY94: ='[4]Calc| Project Costs'!AL92 -> 0 | AZ94: ='[4]Calc| Project Costs'!AM92 -> 117.7929327 | BA94: ='[4]Calc| Project Costs'!AN92 -> 254.5828217 | BB94: ='[4]Calc| Project Costs'!AO92 -> 146.0933918 | BC94: ='[4]Calc| Project Costs'!AP92 -> 273.5767177 | BD94: ='[4]Calc| Project Costs'!AQ92 -> 162.3423334 | BE94: ='[4]Calc| Project Costs'!AR92 -> 0 | BF94: 836.5952645 | BH94: ='[4]Calc| Project Costs'!BJ92 ->  | BI94: ='[4]Calc| Project Costs'!BK92 -> 85.87104791 | BJ94: ='[4]Calc| Project Costs'!BL92 -> 185.590877 | BK94: ='[4]Calc| Project Costs'!BM92 -> 106.5020826 | BL94: ='[4]Calc| Project Costs'!BN92 -> 199.4374272 | BM94: ='[4]Calc| Project Costs'!BO92 -> 118.347561 | BN94: ='[4]Calc| Project Costs'!BP92 ->  | BO94: 609.8779478 | BQ94: ='[4]Input| Projects'!Y92 -> 0.2796398347 | BR94: ='[4]Input| Projects'!Z92 -> 0.4480339349 | BS94: ='[4]Input| Projects'!AA92 -> 0.2723262304 | BT94: =+_xlfn.SWITCH(TRUE,LEN(L94)>0,IF(SUM(BQ94:BS94)<>1,1,0), 0) -> 0
D95: ='[4]Calc| Project Costs'!C93 -> DC04 - Tullamarine (Stage 1) | E95: JEN | F95: $'000s | G95: Real 2026 | H95: End Year | L95: ='[4]Calc| Project Costs'!D93 -> A193 | M95: ='[4]Input| JEN Mapping'!G93 -> Connections | N95: ='[4]Input| JEN Mapping'!F93 -> Connections | O95: ='[4]Input| Projects'!G93 -> Distribution system assets | P95: Connections | S95: ='[4]Input| JEN Mapping'!H93 -> Non-IT | V95: ='[4]Calc| Project Costs'!V93 -> 17344.70748 | W95: ='[4]Calc| Project Costs'!W93 -> 5786.152113 | X95: ='[4]Calc| Project Costs'!X93 -> 0 | Y95: ='[4]Calc| Project Costs'!Y93 -> 0 | Z95: ='[4]Calc| Project Costs'!Z93 -> 0 | AA95: ='[4]Calc| Project Costs'!AA93 -> 0 | AB95: ='[4]Calc| Project Costs'!AB93 -> 0 | AC95: 23130.85959 | AD95: 23130.85959 | AF95: ='[4]Calc| Project Costs'!BR93 -> 20203.84165 | AG95: ='[4]Calc| Project Costs'!BS93 -> 6538.59043 | AH95: ='[4]Calc| Project Costs'!BT93 -> 0 | AI95: ='[4]Calc| Project Costs'!BU93 -> 0 | AJ95: ='[4]Calc| Project Costs'!BV93 -> 0 | AK95: ='[4]Calc| Project Costs'!BW93 -> 0 | AL95: ='[4]Calc| Project Costs'!BX93 -> 0 | AM95: 26742.43209 | AN95: 26742.43209 | AP95: ='[4]Calc| Project Costs'!AD93 -> 12644.29175 | AQ95: ='[4]Calc| Project Costs'!AE93 -> 4218.104891 | AR95: ='[4]Calc| Project Costs'!AF93 -> 0 | AS95: ='[4]Calc| Project Costs'!AG93 -> 0 | AT95: ='[4]Calc| Project Costs'!AH93 -> 0 | AU95: ='[4]Calc| Project Costs'!AI93 -> 0 | AV95: ='[4]Calc| Project Costs'!AJ93 -> 0 | AW95: 0 | AY95: ='[4]Calc| Project Costs'!AL93 -> 2859.134179 | AZ95: ='[4]Calc| Project Costs'!AM93 -> 752.4383168 | BA95: ='[4]Calc| Project Costs'!AN93 -> 0 | BB95: ='[4]Calc| Project Costs'!AO93 -> 0 | BC95: ='[4]Calc| Project Costs'!AP93 -> 0 | BD95: ='[4]Calc| Project Costs'!AQ93 -> 0 | BE95: ='[4]Calc| Project Costs'!AR93 -> 0 | BF95: 0 | BH95: ='[4]Calc| Project Costs'!BJ93 -> 2084.308817 | BI95: ='[4]Calc| Project Costs'!BK93 -> 548.527533 | BJ95: ='[4]Calc| Project Costs'!BL93 ->  | BK95: ='[4]Calc| Project Costs'!BM93 ->  | BL95: ='[4]Calc| Project Costs'!BN93 ->  | BM95: ='[4]Calc| Project Costs'!BO93 ->  | BN95: ='[4]Calc| Project Costs'!BP93 ->  | BO95: 0 | BQ95: ='[4]Input| Projects'!Y93 -> 0.2796398347 | BR95: ='[4]Input| Projects'!Z93 -> 0.4480339349 | BS95: ='[4]Input| Projects'!AA93 -> 0.2723262304 | BT95: =+_xlfn.SWITCH(TRUE,LEN(L95)>0,IF(SUM(BQ95:BS95)<>1,1,0), 0) -> 0
D96: ='[4]Calc| Project Costs'!C94 -> DC Growth Projects – Connection component [Future Major Customers Projects] | E96: JEN | F96: $'000s | G96: Real 2026 | H96: End Year | L96: ='[4]Calc| Project Costs'!D94 -> A59 | M96: ='[4]Input| JEN Mapping'!G94 -> Connections | N96: ='[4]Input| JEN Mapping'!F94 -> Connections | O96: ='[4]Input| Projects'!G94 -> Distribution system assets | P96: Connections | S96: ='[4]Input| JEN Mapping'!H94 -> Non-IT | V96: ='[4]Calc| Project Costs'!V94 -> 0 | W96: ='[4]Calc| Project Costs'!W94 -> 0 | X96: ='[4]Calc| Project Costs'!X94 -> 0 | Y96: ='[4]Calc| Project Costs'!Y94 -> 69860.54456 | Z96: ='[4]Calc| Project Costs'!Z94 -> 118206.1505 | AA96: ='[4]Calc| Project Costs'!AA94 -> 73871.19778 | AB96: ='[4]Calc| Project Costs'!AB94 -> 52900.41926 | AC96: 314838.3121 | AD96: 314838.3121 | AF96: ='[4]Calc| Project Costs'!BR94 -> 0 | AG96: ='[4]Calc| Project Costs'!BS94 -> 0 | AH96: ='[4]Calc| Project Costs'!BT94 -> 0 | AI96: ='[4]Calc| Project Costs'!BU94 -> 78176.70835 | AJ96: ='[4]Calc| Project Costs'!BV94 -> 132287.0251 | AK96: ='[4]Calc| Project Costs'!BW94 -> 83051.21493 | AL96: ='[4]Calc| Project Costs'!BX94 -> 60361.80263 | AM96: 353876.751 | AN96: 353876.751 | AP96: ='[4]Calc| Project Costs'!AD94 -> 0 | AQ96: ='[4]Calc| Project Costs'!AE94 -> 0 | AR96: ='[4]Calc| Project Costs'!AF94 -> 0 | AS96: ='[4]Calc| Project Costs'!AG94 -> 50928.33699 | AT96: ='[4]Calc| Project Costs'!AH94 -> 86172.2837 | AU96: ='[4]Calc| Project Costs'!AI94 -> 53852.10318 | AV96: ='[4]Calc| Project Costs'!AJ94 -> 38564.40564 | AW96: 229517.1295 | AY96: ='[4]Calc| Project Costs'!AL94 -> 0 | AZ96: ='[4]Calc| Project Costs'!AM94 -> 0 | BA96: ='[4]Calc| Project Costs'!AN94 -> 0 | BB96: ='[4]Calc| Project Costs'!AO94 -> 8316.163789 | BC96: ='[4]Calc| Project Costs'!AP94 -> 14080.87463 | BD96: ='[4]Calc| Project Costs'!AQ94 -> 9180.017152 | BE96: ='[4]Calc| Project Costs'!AR94 -> 7461.383369 | BF96: 39038.43894 | BH96: ='[4]Calc| Project Costs'!BJ94 ->  | BI96: ='[4]Calc| Project Costs'!BK94 ->  | BJ96: ='[4]Calc| Project Costs'!BL94 ->  | BK96: ='[4]Calc| Project Costs'!BM94 -> 6062.483402 | BL96: ='[4]Calc| Project Costs'!BN94 -> 10264.9576 | BM96: ='[4]Calc| Project Costs'!BO94 -> 6692.232504 | BN96: ='[4]Calc| Project Costs'!BP94 -> 5439.348476 | BO96: 28459.02199 | BQ96: ='[4]Input| Projects'!Y94 -> 0.2796398347 | BR96: ='[4]Input| Projects'!Z94 -> 0.4480339349 | BS96: ='[4]Input| Projects'!AA94 -> 0.2723262304 | BT96: =+_xlfn.SWITCH(TRUE,LEN(L96)>0,IF(SUM(BQ96:BS96)<>1,1,0), 0) -> 0
D97: ='[4]Calc| Project Costs'!C95 -> New MAT2 ZSS 66kV Supplies | E97: JEN | F97: $'000s | G97: Real 2026 | H97: End Year | L97: ='[4]Calc| Project Costs'!D95 -> A60 | M97: ='[4]Input| JEN Mapping'!G95 -> Connections | N97: ='[4]Input| JEN Mapping'!F95 -> Connections | O97: ='[4]Input| Projects'!G95 -> Distribution system assets | P97: Connections | S97: ='[4]Input| JEN Mapping'!H95 -> Non-IT | V97: ='[4]Calc| Project Costs'!V95 -> 243.5583019 | W97: ='[4]Calc| Project Costs'!W95 -> 2719.573861 | X97: ='[4]Calc| Project Costs'!X95 -> 6130.459168 | Y97: ='[4]Calc| Project Costs'!Y95 -> 3897.215309 | Z97: ='[4]Calc| Project Costs'!Z95 -> 0 | AA97: ='[4]Calc| Project Costs'!AA95 -> 0 | AB97: ='[4]Calc| Project Costs'!AB95 -> 0 | AC97: 12990.80664 | AD97: 12990.80664 | AF97: ='[4]Calc| Project Costs'!BR95 -> 283.7069102 | AG97: ='[4]Calc| Project Costs'!BS95 -> 3073.230581 | AH97: ='[4]Calc| Project Costs'!BT95 -> 6851.74649 | AI97: ='[4]Calc| Project Costs'!BU95 -> 4361.137843 | AJ97: ='[4]Calc| Project Costs'!BV95 -> 0 | AK97: ='[4]Calc| Project Costs'!BW95 -> 0 | AL97: ='[4]Calc| Project Costs'!BX95 -> 0 | AM97: 14569.82182 | AN97: 14569.82182 | AP97: ='[4]Calc| Project Costs'!AD95 -> 121.779151 | AQ97: ='[4]Calc| Project Costs'!AE95 -> 1359.786931 | AR97: ='[4]Calc| Project Costs'!AF95 -> 3065.229584 | AS97: ='[4]Calc| Project Costs'!AG95 -> 1948.607655 | AT97: ='[4]Calc| Project Costs'!AH95 -> 0 | AU97: ='[4]Calc| Project Costs'!AI95 -> 0 | AV97: ='[4]Calc| Project Costs'!AJ95 -> 0 | AW97: 5013.837239 | AY97: ='[4]Calc| Project Costs'!AL95 -> 40.14860825 | AZ97: ='[4]Calc| Project Costs'!AM95 -> 353.6567201 | BA97: ='[4]Calc| Project Costs'!AN95 -> 721.2873215 | BB97: ='[4]Calc| Project Costs'!AO95 -> 463.9225336 | BC97: ='[4]Calc| Project Costs'!AP95 -> 0 | BD97: ='[4]Calc| Project Costs'!AQ95 -> 0 | BE97: ='[4]Calc| Project Costs'!AR95 -> 0 | BF97: 1185.209855 | BH97: ='[4]Calc| Project Costs'!BJ95 -> 20.07430413 | BI97: ='[4]Calc| Project Costs'!BK95 -> 176.8283601 | BJ97: ='[4]Calc| Project Costs'!BL95 -> 360.6436608 | BK97: ='[4]Calc| Project Costs'!BM95 -> 231.9612668 | BL97: ='[4]Calc| Project Costs'!BN95 ->  | BM97: ='[4]Calc| Project Costs'!BO95 ->  | BN97: ='[4]Calc| Project Costs'!BP95 ->  | BO97: 592.6049276 | BQ97: ='[4]Input| Projects'!Y95 -> 0.2796398347 | BR97: ='[4]Input| Projects'!Z95 -> 0.4480339349 | BS97: ='[4]Input| Projects'!AA95 -> 0.2723262304 | BT97: =+_xlfn.SWITCH(TRUE,LEN(L97)>0,IF(SUM(BQ97:BS97)<>1,1,0), 0) -> 0
D98: ='[4]Calc| Project Costs'!C96 -> Community Batteries for Household Solar Program | E98: JEN | F98: $'000s | G98: Real 2026 | H98: End Year | L98: ='[4]Calc| Project Costs'!D96 -> A160 | M98: ='[4]Input| JEN Mapping'!G96 -> Augmentation | N98: ='[4]Input| JEN Mapping'!F96 -> Augmentation | O98: ='[4]Input| Projects'!G96 -> Distribution system assets | P98: Augmentation Expenditure | S98: ='[4]Input| JEN Mapping'!H96 -> Non-IT | V98: ='[4]Calc| Project Costs'!V96 -> 600.9158841 | W98: ='[4]Calc| Project Costs'!W96 -> 0 | X98: ='[4]Calc| Project Costs'!X96 -> 0 | Y98: ='[4]Calc| Project Costs'!Y96 -> 0 | Z98: ='[4]Calc| Project Costs'!Z96 -> 0 | AA98: ='[4]Calc| Project Costs'!AA96 -> 0 | AB98: ='[4]Calc| Project Costs'!AB96 -> 0 | AC98: 600.9158841 | AD98: 600.9158841 | AF98: ='[4]Calc| Project Costs'!BR96 -> 699.9719879 | AG98: ='[4]Calc| Project Costs'!BS96 -> 0 | AH98: ='[4]Calc| Project Costs'!BT96 -> 0 | AI98: ='[4]Calc| Project Costs'!BU96 -> 0 | AJ98: ='[4]Calc| Project Costs'!BV96 -> 0 | AK98: ='[4]Calc| Project Costs'!BW96 -> 0 | AL98: ='[4]Calc| Project Costs'!BX96 -> 0 | AM98: 699.9719879 | AN98: 699.9719879 | AP98: ='[4]Calc| Project Costs'!AD96 -> 0 | AQ98: ='[4]Calc| Project Costs'!AE96 -> 0 | AR98: ='[4]Calc| Project Costs'!AF96 -> 0 | AS98: ='[4]Calc| Project Costs'!AG96 -> 0 | AT98: ='[4]Calc| Project Costs'!AH96 -> 0 | AU98: ='[4]Calc| Project Costs'!AI96 -> 0 | AV98: ='[4]Calc| Project Costs'!AJ96 -> 0 | AW98: 0 | AY98: ='[4]Calc| Project Costs'!AL96 -> 99.05610375 | AZ98: ='[4]Calc| Project Costs'!AM96 -> 0 | BA98: ='[4]Calc| Project Costs'!AN96 -> 0 | BB98: ='[4]Calc| Project Costs'!AO96 -> 0 | BC98: ='[4]Calc| Project Costs'!AP96 -> 0 | BD98: ='[4]Calc| Project Costs'!AQ96 -> 0 | BE98: ='[4]Calc| Project Costs'!AR96 -> 0 | BF98: 0 | BH98: ='[4]Calc| Project Costs'!BJ96 -> 0 | BI98: ='[4]Calc| Project Costs'!BK96 ->  | BJ98: ='[4]Calc| Project Costs'!BL96 ->  | BK98: ='[4]Calc| Project Costs'!BM96 ->  | BL98: ='[4]Calc| Project Costs'!BN96 ->  | BM98: ='[4]Calc| Project Costs'!BO96 ->  | BN98: ='[4]Calc| Project Costs'!BP96 ->  | BO98: 0 | BQ98: ='[4]Input| Projects'!Y96 -> 0.2681975353 | BR98: ='[4]Input| Projects'!Z96 -> 0.3655552555 | BS98: ='[4]Input| Projects'!AA96 -> 0.3662472092 | BT98: =+_xlfn.SWITCH(TRUE,LEN(L98)>0,IF(SUM(BQ98:BS98)<>1,1,0), 0) -> 0
D99: ='[4]Calc| Project Costs'!C97 -> Supply Quality/Reliability - LV Overhead Augmentation | E99: JEN | F99: $'000s | G99: Real 2026 | H99: End Year | L99: ='[4]Calc| Project Costs'!D97 -> A66 | M99: ='[4]Input| JEN Mapping'!G97 -> Augmentation | N99: ='[4]Input| JEN Mapping'!F97 -> Augmentation | O99: ='[4]Input| Projects'!G97 -> Distribution system assets | P99: Augmentation Expenditure | S99: ='[4]Input| JEN Mapping'!H97 -> Non-IT | V99: ='[4]Calc| Project Costs'!V97 -> 589.7127732 | W99: ='[4]Calc| Project Costs'!W97 -> 1677.515484 | X99: ='[4]Calc| Project Costs'!X97 -> 2178.671653 | Y99: ='[4]Calc| Project Costs'!Y97 -> 2190.361548 | Z99: ='[4]Calc| Project Costs'!Z97 -> 2204.823934 | AA99: ='[4]Calc| Project Costs'!AA97 -> 2222.263023 | AB99: ='[4]Calc| Project Costs'!AB97 -> 2238.822635 | AC99: 13302.17105 | AD99: 13302.17105 | AF99: ='[4]Calc| Project Costs'!BR97 -> 686.9221351 | AG99: ='[4]Calc| Project Costs'!BS97 -> 1895.661654 | AH99: ='[4]Calc| Project Costs'!BT97 -> 2435.006162 | AI99: ='[4]Calc| Project Costs'!BU97 -> 2451.101076 | AJ99: ='[4]Calc| Project Costs'!BV97 -> 2467.465508 | AK99: ='[4]Calc| Project Costs'!BW97 -> 2498.424955 | AL99: ='[4]Calc| Project Costs'!BX97 -> 2554.599225 | AM99: 14989.18071 | AN99: 14989.18071 | AP99: ='[4]Calc| Project Costs'!AD97 -> 0 | AQ99: ='[4]Calc| Project Costs'!AE97 -> 0 | AR99: ='[4]Calc| Project Costs'!AF97 -> 0 | AS99: ='[4]Calc| Project Costs'!AG97 -> 0 | AT99: ='[4]Calc| Project Costs'!AH97 -> 0 | AU99: ='[4]Calc| Project Costs'!AI97 -> 0 | AV99: ='[4]Calc| Project Costs'!AJ97 -> 0 | AW99: 0 | AY99: ='[4]Calc| Project Costs'!AL97 -> 97.20936189 | AZ99: ='[4]Calc| Project Costs'!AM97 -> 218.1461707 | BA99: ='[4]Calc| Project Costs'!AN97 -> 256.334509 | BB99: ='[4]Calc| Project Costs'!AO97 -> 260.7395277 | BC99: ='[4]Calc| Project Costs'!AP97 -> 262.6415738 | BD99: ='[4]Calc| Project Costs'!AQ97 -> 276.1619316 | BE99: ='[4]Calc| Project Costs'!AR97 -> 315.7765895 | BF99: 1371.654132 | BH99: ='[4]Calc| Project Costs'!BJ97 -> 0 | BI99: ='[4]Calc| Project Costs'!BK97 -> 0 | BJ99: ='[4]Calc| Project Costs'!BL97 -> 0 | BK99: ='[4]Calc| Project Costs'!BM97 -> 0 | BL99: ='[4]Calc| Project Costs'!BN97 -> 0 | BM99: ='[4]Calc| Project Costs'!BO97 -> 0 | BN99: ='[4]Calc| Project Costs'!BP97 -> 0 | BO99: 0 | BQ99: ='[4]Input| Projects'!Y97 -> 0.2681975353 | BR99: ='[4]Input| Projects'!Z97 -> 0.3655552555 | BS99: ='[4]Input| Projects'!AA97 -> 0.3662472092 | BT99: =+_xlfn.SWITCH(TRUE,LEN(L99)>0,IF(SUM(BQ99:BS99)<>1,1,0), 0) -> 0
D100: ='[4]Calc| Project Costs'!C98 -> New feeder SBY-014 | E100: JEN | F100: $'000s | G100: Real 2026 | H100: End Year | L100: ='[4]Calc| Project Costs'!D98 -> A451 | M100: ='[4]Input| JEN Mapping'!G98 -> Augmentation | N100: ='[4]Input| JEN Mapping'!F98 -> Augmentation | O100: ='[4]Input| Projects'!G98 -> Distribution system assets | P100: Augmentation Expenditure | S100: ='[4]Input| JEN Mapping'!H98 -> Non-IT | V100: ='[4]Calc| Project Costs'!V98 -> 0 | W100: ='[4]Calc| Project Costs'!W98 -> 2430.903277 | X100: ='[4]Calc| Project Costs'!X98 -> 2755.620285 | Y100: ='[4]Calc| Project Costs'!Y98 -> 0 | Z100: ='[4]Calc| Project Costs'!Z98 -> 0 | AA100: ='[4]Calc| Project Costs'!AA98 -> 0 | AB100: ='[4]Calc| Project Costs'!AB98 -> 0 | AC100: 5186.523562 | AD100: 5186.523562 | AF100: ='[4]Calc| Project Costs'!BR98 -> 0 | AG100: ='[4]Calc| Project Costs'!BS98 -> 2747.020921 | AH100: ='[4]Calc| Project Costs'!BT98 -> 3079.836452 | AI100: ='[4]Calc| Project Costs'!BU98 -> 0 | AJ100: ='[4]Calc| Project Costs'!BV98 -> 0 | AK100: ='[4]Calc| Project Costs'!BW98 -> 0 | AL100: ='[4]Calc| Project Costs'!BX98 -> 0 | AM100: 5826.857373 | AN100: 5826.857373 | AP100: ='[4]Calc| Project Costs'!AD98 -> 0 | AQ100: ='[4]Calc| Project Costs'!AE98 -> 0 | AR100: ='[4]Calc| Project Costs'!AF98 -> 0 | AS100: ='[4]Calc| Project Costs'!AG98 -> 0 | AT100: ='[4]Calc| Project Costs'!AH98 -> 0 | AU100: ='[4]Calc| Project Costs'!AI98 -> 0 | AV100: ='[4]Calc| Project Costs'!AJ98 -> 0 | AW100: 0 | AY100: ='[4]Calc| Project Costs'!AL98 -> 0 | AZ100: ='[4]Calc| Project Costs'!AM98 -> 316.1176434 | BA100: ='[4]Calc| Project Costs'!AN98 -> 324.2161672 | BB100: ='[4]Calc| Project Costs'!AO98 -> 0 | BC100: ='[4]Calc| Project Costs'!AP98 -> 0 | BD100: ='[4]Calc| Project Costs'!AQ98 -> 0 | BE100: ='[4]Calc| Project Costs'!AR98 -> 0 | BF100: 324.2161672 | BH100: ='[4]Calc| Project Costs'!BJ98 ->  | BI100: ='[4]Calc| Project Costs'!BK98 -> 0 | BJ100: ='[4]Calc| Project Costs'!BL98 -> 0 | BK100: ='[4]Calc| Project Costs'!BM98 ->  | BL100: ='[4]Calc| Project Costs'!BN98 ->  | BM100: ='[4]Calc| Project Costs'!BO98 ->  | BN100: ='[4]Calc| Project Costs'!BP98 ->  | BO100: 0 | BQ100: ='[4]Input| Projects'!Y98 -> 0.2687910969 | BR100: ='[4]Input| Projects'!Z98 -> 0.2883524789 | BS100: ='[4]Input| Projects'!AA98 -> 0.4428564243 | BT100: =+_xlfn.SWITCH(TRUE,LEN(L100)>0,IF(SUM(BQ100:BS100)<>1,1,0), 0) -> 0
D101: ='[4]Calc| Project Costs'!C99 -> New feeder SBY-022 | E101: JEN | F101: $'000s | G101: Real 2026 | H101: End Year | L101: ='[4]Calc| Project Costs'!D99 -> A103 | M101: ='[4]Input| JEN Mapping'!G99 -> Augmentation | N101: ='[4]Input| JEN Mapping'!F99 -> Augmentation | O101: ='[4]Input| Projects'!G99 -> Distribution system assets | P101: Augmentation Expenditure | S101: ='[4]Input| JEN Mapping'!H99 -> Non-IT | V101: ='[4]Calc| Project Costs'!V99 -> 0 | W101: ='[4]Calc| Project Costs'!W99 -> 0 | X101: ='[4]Calc| Project Costs'!X99 -> 0 | Y101: ='[4]Calc| Project Costs'!Y99 -> 0 | Z101: ='[4]Calc| Project Costs'!Z99 -> 617.4202614 | AA101: ='[4]Calc| Project Costs'!AA99 -> 1243.462259 | AB101: ='[4]Calc| Project Costs'!AB99 -> 625.8245951 | AC101: 2486.707116 | AD101: 2486.707116 | AF101: ='[4]Calc| Project Costs'!BR99 -> 0 | AG101: ='[4]Calc| Project Costs'!BS99 -> 0 | AH101: ='[4]Calc| Project Costs'!BT99 -> 0 | AI101: ='[4]Calc| Project Costs'!BU99 -> 0 | AJ101: ='[4]Calc| Project Costs'!BV99 -> 690.9681881 | AK101: ='[4]Calc| Project Costs'!BW99 -> 1397.988045 | AL101: ='[4]Calc| Project Costs'!BX99 -> 714.0945425 | AM101: 2803.050775 | AN101: 2803.050775 | AP101: ='[4]Calc| Project Costs'!AD99 -> 0 | AQ101: ='[4]Calc| Project Costs'!AE99 -> 0 | AR101: ='[4]Calc| Project Costs'!AF99 -> 0 | AS101: ='[4]Calc| Project Costs'!AG99 -> 0 | AT101: ='[4]Calc| Project Costs'!AH99 -> 0 | AU101: ='[4]Calc| Project Costs'!AI99 -> 0 | AV101: ='[4]Calc| Project Costs'!AJ99 -> 0 | AW101: 0 | AY101: ='[4]Calc| Project Costs'!AL99 -> 0 | AZ101: ='[4]Calc| Project Costs'!AM99 -> 0 | BA101: ='[4]Calc| Project Costs'!AN99 -> 0 | BB101: ='[4]Calc| Project Costs'!AO99 -> 0 | BC101: ='[4]Calc| Project Costs'!AP99 -> 73.54792672 | BD101: ='[4]Calc| Project Costs'!AQ99 -> 154.5257856 | BE101: ='[4]Calc| Project Costs'!AR99 -> 88.26994741 | BF101: 316.3436597 | BH101: ='[4]Calc| Project Costs'!BJ99 ->  | BI101: ='[4]Calc| Project Costs'!BK99 ->  | BJ101: ='[4]Calc| Project Costs'!BL99 ->  | BK101: ='[4]Calc| Project Costs'!BM99 ->  | BL101: ='[4]Calc| Project Costs'!BN99 -> 0 | BM101: ='[4]Calc| Project Costs'!BO99 -> 0 | BN101: ='[4]Calc| Project Costs'!BP99 -> 0 | BO101: 0 | BQ101: ='[4]Input| Projects'!Y99 -> 0.2687910969 | BR101: ='[4]Input| Projects'!Z99 -> 0.2883524789 | BS101: ='[4]Input| Projects'!AA99 -> 0.4428564243 | BT101: =+_xlfn.SWITCH(TRUE,LEN(L101)>0,IF(SUM(BQ101:BS101)<>1,1,0), 0) -> 0
D102: ='[4]Calc| Project Costs'!C100 -> Install reactors at COO - 2 x 4MVAr | E102: JEN | F102: $'000s | G102: Real 2026 | H102: End Year | L102: ='[4]Calc| Project Costs'!D100 -> A369 | M102: ='[4]Input| JEN Mapping'!G100 -> Augmentation | N102: ='[4]Input| JEN Mapping'!F100 -> Augmentation | O102: ='[4]Input| Projects'!G100 -> Subtransmission | P102: Augmentation Expenditure | S102: ='[4]Input| JEN Mapping'!H100 -> Non-IT | V102: ='[4]Calc| Project Costs'!V100 -> 0 | W102: ='[4]Calc| Project Costs'!W100 -> 0 | X102: ='[4]Calc| Project Costs'!X100 -> 0 | Y102: ='[4]Calc| Project Costs'!Y100 -> 0 | Z102: ='[4]Calc| Project Costs'!Z100 -> 624.4861064 | AA102: ='[4]Calc| Project Costs'!AA100 -> 1260.884853 | AB102: ='[4]Calc| Project Costs'!AB100 -> 636.0983617 | AC102: 2521.469321 | AD102: 2521.469321 | AF102: ='[4]Calc| Project Costs'!BR100 -> 0 | AG102: ='[4]Calc| Project Costs'!BS100 -> 0 | AH102: ='[4]Calc| Project Costs'!BT100 -> 0 | AI102: ='[4]Calc| Project Costs'!BU100 -> 0 | AJ102: ='[4]Calc| Project Costs'!BV100 -> 698.875726 | AK102: ='[4]Calc| Project Costs'!BW100 -> 1417.575755 | AL102: ='[4]Calc| Project Costs'!BX100 -> 725.817381 | AM102: 2842.268862 | AN102: 2842.268862 | AP102: ='[4]Calc| Project Costs'!AD100 -> 0 | AQ102: ='[4]Calc| Project Costs'!AE100 -> 0 | AR102: ='[4]Calc| Project Costs'!AF100 -> 0 | AS102: ='[4]Calc| Project Costs'!AG100 -> 0 | AT102: ='[4]Calc| Project Costs'!AH100 -> 0 | AU102: ='[4]Calc| Project Costs'!AI100 -> 0 | AV102: ='[4]Calc| Project Costs'!AJ100 -> 0 | AW102: 0 | AY102: ='[4]Calc| Project Costs'!AL100 -> 0 | AZ102: ='[4]Calc| Project Costs'!AM100 -> 0 | BA102: ='[4]Calc| Project Costs'!AN100 -> 0 | BB102: ='[4]Calc| Project Costs'!AO100 -> 0 | BC102: ='[4]Calc| Project Costs'!AP100 -> 74.38961962 | BD102: ='[4]Calc| Project Costs'!AQ100 -> 156.6909016 | BE102: ='[4]Calc| Project Costs'!AR100 -> 89.71901931 | BF102: 320.7995405 | BH102: ='[4]Calc| Project Costs'!BJ100 ->  | BI102: ='[4]Calc| Project Costs'!BK100 ->  | BJ102: ='[4]Calc| Project Costs'!BL100 ->  | BK102: ='[4]Calc| Project Costs'!BM100 ->  | BL102: ='[4]Calc| Project Costs'!BN100 -> 0 | BM102: ='[4]Calc| Project Costs'!BO100 -> 0 | BN102: ='[4]Calc| Project Costs'!BP100 -> 0 | BO102: 0 | BQ102: ='[4]Input| Projects'!Y100 -> 0.243627358 | BR102: ='[4]Input| Projects'!Z100 -> 0.5261770848 | BS102: ='[4]Input| Projects'!AA100 -> 0.2301955572 | BT102: =+_xlfn.SWITCH(TRUE,LEN(L102)>0,IF(SUM(BQ102:BS102)<>1,1,0), 0) -> 0
D103: ='[4]Calc| Project Costs'!C101 -> Augment section of NH0-002 | E103: JEN | F103: $'000s | G103: Real 2026 | H103: End Year | L103: ='[4]Calc| Project Costs'!D101 -> A317 | M103: ='[4]Input| JEN Mapping'!G101 -> Augmentation | N103: ='[4]Input| JEN Mapping'!F101 -> Augmentation | O103: ='[4]Input| Projects'!G101 -> Distribution system assets | P103: Augmentation Expenditure | S103: ='[4]Input| JEN Mapping'!H101 -> Non-IT | V103: ='[4]Calc| Project Costs'!V101 -> 0 | W103: ='[4]Calc| Project Costs'!W101 -> 0 | X103: ='[4]Calc| Project Costs'!X101 -> 0 | Y103: ='[4]Calc| Project Costs'!Y101 -> 0 | Z103: ='[4]Calc| Project Costs'!Z101 -> 0 | AA103: ='[4]Calc| Project Costs'!AA101 -> 0 | AB103: ='[4]Calc| Project Costs'!AB101 -> 1018.467732 | AC103: 1018.467732 | AD103: 1018.467732 | AF103: ='[4]Calc| Project Costs'!BR101 -> 0 | AG103: ='[4]Calc| Project Costs'!BS101 -> 0 | AH103: ='[4]Calc| Project Costs'!BT101 -> 0 | AI103: ='[4]Calc| Project Costs'!BU101 -> 0 | AJ103: ='[4]Calc| Project Costs'!BV101 -> 0 | AK103: ='[4]Calc| Project Costs'!BW101 -> 0 | AL103: ='[4]Calc| Project Costs'!BX101 -> 1162.118355 | AM103: 1162.118355 | AN103: 1162.118355 | AP103: ='[4]Calc| Project Costs'!AD101 -> 0 | AQ103: ='[4]Calc| Project Costs'!AE101 -> 0 | AR103: ='[4]Calc| Project Costs'!AF101 -> 0 | AS103: ='[4]Calc| Project Costs'!AG101 -> 0 | AT103: ='[4]Calc| Project Costs'!AH101 -> 0 | AU103: ='[4]Calc| Project Costs'!AI101 -> 0 | AV103: ='[4]Calc| Project Costs'!AJ101 -> 0 | AW103: 0 | AY103: ='[4]Calc| Project Costs'!AL101 -> 0 | AZ103: ='[4]Calc| Project Costs'!AM101 -> 0 | BA103: ='[4]Calc| Project Costs'!AN101 -> 0 | BB103: ='[4]Calc| Project Costs'!AO101 -> 0 | BC103: ='[4]Calc| Project Costs'!AP101 -> 0 | BD103: ='[4]Calc| Project Costs'!AQ101 -> 0 | BE103: ='[4]Calc| Project Costs'!AR101 -> 143.6506233 | BF103: 143.6506233 | BH103: ='[4]Calc| Project Costs'!BJ101 ->  | BI103: ='[4]Calc| Project Costs'!BK101 ->  | BJ103: ='[4]Calc| Project Costs'!BL101 ->  | BK103: ='[4]Calc| Project Costs'!BM101 ->  | BL103: ='[4]Calc| Project Costs'!BN101 ->  | BM103: ='[4]Calc| Project Costs'!BO101 ->  | BN103: ='[4]Calc| Project Costs'!BP101 -> 0 | BO103: 0 | BQ103: ='[4]Input| Projects'!Y101 -> 0.2687910969 | BR103: ='[4]Input| Projects'!Z101 -> 0.2883524789 | BS103: ='[4]Input| Projects'!AA101 -> 0.4428564243 | BT103: =+_xlfn.SWITCH(TRUE,LEN(L103)>0,IF(SUM(BQ103:BS103)<>1,1,0), 0) -> 0
D104: ='[4]Calc| Project Costs'!C102 -> Augment feeder FT0-021 | E104: JEN | F104: $'000s | G104: Real 2026 | H104: End Year | L104: ='[4]Calc| Project Costs'!D102 -> A121 | M104: ='[4]Input| JEN Mapping'!G102 -> Augmentation | N104: ='[4]Input| JEN Mapping'!F102 -> Augmentation | O104: ='[4]Input| Projects'!G102 -> Distribution system assets | P104: Augmentation Expenditure | S104: ='[4]Input| JEN Mapping'!H102 -> Non-IT | V104: ='[4]Calc| Project Costs'!V102 -> 0 | W104: ='[4]Calc| Project Costs'!W102 -> 0 | X104: ='[4]Calc| Project Costs'!X102 -> 0 | Y104: ='[4]Calc| Project Costs'!Y102 -> 0 | Z104: ='[4]Calc| Project Costs'!Z102 -> 97.19535487 | AA104: ='[4]Calc| Project Costs'!AA102 -> 252.6296377 | AB104: ='[4]Calc| Project Costs'!AB102 -> 0 | AC104: 349.8249926 | AD104: 349.8249926 | AF104: ='[4]Calc| Project Costs'!BR102 -> 0 | AG104: ='[4]Calc| Project Costs'!BS102 -> 0 | AH104: ='[4]Calc| Project Costs'!BT102 -> 0 | AI104: ='[4]Calc| Project Costs'!BU102 -> 0 | AJ104: ='[4]Calc| Project Costs'!BV102 -> 108.7733954 | AK104: ='[4]Calc| Project Costs'!BW102 -> 284.0240712 | AL104: ='[4]Calc| Project Costs'!BX102 -> 0 | AM104: 392.7974666 | AN104: 392.7974666 | AP104: ='[4]Calc| Project Costs'!AD102 -> 0 | AQ104: ='[4]Calc| Project Costs'!AE102 -> 0 | AR104: ='[4]Calc| Project Costs'!AF102 -> 0 | AS104: ='[4]Calc| Project Costs'!AG102 -> 0 | AT104: ='[4]Calc| Project Costs'!AH102 -> 0 | AU104: ='[4]Calc| Project Costs'!AI102 -> 0 | AV104: ='[4]Calc| Project Costs'!AJ102 -> 0 | AW104: 0 | AY104: ='[4]Calc| Project Costs'!AL102 -> 0 | AZ104: ='[4]Calc| Project Costs'!AM102 -> 0 | BA104: ='[4]Calc| Project Costs'!AN102 -> 0 | BB104: ='[4]Calc| Project Costs'!AO102 -> 0 | BC104: ='[4]Calc| Project Costs'!AP102 -> 11.57804057 | BD104: ='[4]Calc| Project Costs'!AQ102 -> 31.39443351 | BE104: ='[4]Calc| Project Costs'!AR102 -> 0 | BF104: 42.97247409 | BH104: ='[4]Calc| Project Costs'!BJ102 ->  | BI104: ='[4]Calc| Project Costs'!BK102 ->  | BJ104: ='[4]Calc| Project Costs'!BL102 ->  | BK104: ='[4]Calc| Project Costs'!BM102 ->  | BL104: ='[4]Calc| Project Costs'!BN102 -> 0 | BM104: ='[4]Calc| Project Costs'!BO102 -> 0 | BN104: ='[4]Calc| Project Costs'!BP102 ->  | BO104: 0 | BQ104: ='[4]Input| Projects'!Y102 -> 0.2687910969 | BR104: ='[4]Input| Projects'!Z102 -> 0.2883524789 | BS104: ='[4]Input| Projects'!AA102 -> 0.4428564243 | BT104: =+_xlfn.SWITCH(TRUE,LEN(L104)>0,IF(SUM(BQ104:BS104)<>1,1,0), 0) -> 0
D105: ='[4]Calc| Project Costs'!C103 -> CotF (Stage 2) | E105: JEN | F105: $'000s | G105: Real 2026 | H105: End Year | L105: ='[4]Calc| Project Costs'!D103 -> A123 | M105: ='[4]Input| JEN Mapping'!G103 -> Connections | N105: ='[4]Input| JEN Mapping'!F103 -> Connections | O105: ='[4]Input| Projects'!G103 -> Distribution system assets | P105: Connections | S105: ='[4]Input| JEN Mapping'!H103 -> Non-IT | V105: ='[4]Calc| Project Costs'!V103 -> 1.348872726 | W105: ='[4]Calc| Project Costs'!W103 -> 6309.332425 | X105: ='[4]Calc| Project Costs'!X103 -> 17811.63257 | Y105: ='[4]Calc| Project Costs'!Y103 -> 11368.29497 | Z105: ='[4]Calc| Project Costs'!Z103 -> 0 | AA105: ='[4]Calc| Project Costs'!AA103 -> 0 | AB105: ='[4]Calc| Project Costs'!AB103 -> 0 | AC105: 35490.60884 | AD105: 35490.60884 | AF105: ='[4]Calc| Project Costs'!BR103 -> 1.571223441 | AG105: ='[4]Calc| Project Costs'!BS103 -> 7129.805751 | AH105: ='[4]Calc| Project Costs'!BT103 -> 19907.28388 | AI105: ='[4]Calc| Project Costs'!BU103 -> 12721.57104 | AJ105: ='[4]Calc| Project Costs'!BV103 -> 0 | AK105: ='[4]Calc| Project Costs'!BW103 -> 0 | AL105: ='[4]Calc| Project Costs'!BX103 -> 0 | AM105: 39760.23189 | AN105: 39760.23189 | AP105: ='[4]Calc| Project Costs'!AD103 -> 1.110257141 | AQ105: ='[4]Calc| Project Costs'!AE103 -> 5193.211519 | AR105: ='[4]Calc| Project Costs'!AF103 -> 14660.75477 | AS105: ='[4]Calc| Project Costs'!AG103 -> 9357.243589 | AT105: ='[4]Calc| Project Costs'!AH103 -> 0 | AU105: ='[4]Calc| Project Costs'!AI103 -> 0 | AV105: ='[4]Calc| Project Costs'!AJ103 -> 0 | AW105: 24017.99836 | AY105: ='[4]Calc| Project Costs'!AL103 -> 0.2223507153 | AZ105: ='[4]Calc| Project Costs'!AM103 -> 820.4733261 | BA105: ='[4]Calc| Project Costs'!AN103 -> 2095.651304 | BB105: ='[4]Calc| Project Costs'!AO103 -> 1353.276067 | BC105: ='[4]Calc| Project Costs'!AP103 -> 0 | BD105: ='[4]Calc| Project Costs'!AQ103 -> 0 | BE105: ='[4]Calc| Project Costs'!AR103 -> 0 | BF105: 3448.927371 | BH105: ='[4]Calc| Project Costs'!BJ103 -> 0.1830168738 | BI105: ='[4]Calc| Project Costs'!BK103 -> 675.3315947 | BJ105: ='[4]Calc| Project Costs'!BL103 -> 1724.930588 | BK105: ='[4]Calc| Project Costs'!BM103 -> 1113.88153 | BL105: ='[4]Calc| Project Costs'!BN103 ->  | BM105: ='[4]Calc| Project Costs'!BO103 ->  | BN105: ='[4]Calc| Project Costs'!BP103 ->  | BO105: 2838.812119 | BQ105: ='[4]Input| Projects'!Y103 -> 0.2796398347 | BR105: ='[4]Input| Projects'!Z103 -> 0.4480339349 | BS105: ='[4]Input| Projects'!AA103 -> 0.2723262304 | BT105: =+_xlfn.SWITCH(TRUE,LEN(L105)>0,IF(SUM(BQ105:BS105)<>1,1,0), 0) -> 0
D106: ='[4]Calc| Project Costs'!C104 -> Distribution Substation Augmentation - Load Related | E106: JEN | F106: $'000s | G106: Real 2026 | H106: End Year | L106: ='[4]Calc| Project Costs'!D104 -> A67 | M106: ='[4]Input| JEN Mapping'!G104 -> Augmentation | N106: ='[4]Input| JEN Mapping'!F104 -> Augmentation | O106: ='[4]Input| Projects'!G104 -> Distribution system assets | P106: Augmentation Expenditure | S106: ='[4]Input| JEN Mapping'!H104 -> Non-IT | V106: ='[4]Calc| Project Costs'!V104 -> 1993.462615 | W106: ='[4]Calc| Project Costs'!W104 -> 4023.846088 | X106: ='[4]Calc| Project Costs'!X104 -> 4050.438025 | Y106: ='[4]Calc| Project Costs'!Y104 -> 4074.525033 | Z106: ='[4]Calc| Project Costs'!Z104 -> 4104.324752 | AA106: ='[4]Calc| Project Costs'!AA104 -> 4140.257962 | AB106: ='[4]Calc| Project Costs'!AB104 -> 4174.379012 | AC106: 26561.23349 | AD106: 26561.23349 | AF106: ='[4]Calc| Project Costs'!BR104 -> 2322.06874 | AG106: ='[4]Calc| Project Costs'!BS104 -> 4547.111968 | AH106: ='[4]Calc| Project Costs'!BT104 -> 4526.997694 | AI106: ='[4]Calc| Project Costs'!BU104 -> 4559.554426 | AJ106: ='[4]Calc| Project Costs'!BV104 -> 4593.237402 | AK106: ='[4]Calc| Project Costs'!BW104 -> 4654.770251 | AL106: ='[4]Calc| Project Costs'!BX104 -> 4763.157751 | AM106: 29966.89823 | AN106: 29966.89823 | AP106: ='[4]Calc| Project Costs'!AD104 -> 0 | AQ106: ='[4]Calc| Project Costs'!AE104 -> 0 | AR106: ='[4]Calc| Project Costs'!AF104 -> 0 | AS106: ='[4]Calc| Project Costs'!AG104 -> 0 | AT106: ='[4]Calc| Project Costs'!AH104 -> 0 | AU106: ='[4]Calc| Project Costs'!AI104 -> 0 | AV106: ='[4]Calc| Project Costs'!AJ104 -> 0 | AW106: 0 | AY106: ='[4]Calc| Project Costs'!AL104 -> 328.6061242 | AZ106: ='[4]Calc| Project Costs'!AM104 -> 523.26588 | BA106: ='[4]Calc| Project Costs'!AN104 -> 476.5596693 | BB106: ='[4]Calc| Project Costs'!AO104 -> 485.0293932 | BC106: ='[4]Calc| Project Costs'!AP104 -> 488.9126499 | BD106: ='[4]Calc| Project Costs'!AQ104 -> 514.5122896 | BE106: ='[4]Calc| Project Costs'!AR104 -> 588.7787388 | BF106: 2553.792741 | BH106: ='[4]Calc| Project Costs'!BJ104 -> 0 | BI106: ='[4]Calc| Project Costs'!BK104 -> 0 | BJ106: ='[4]Calc| Project Costs'!BL104 -> 0 | BK106: ='[4]Calc| Project Costs'!BM104 -> 0 | BL106: ='[4]Calc| Project Costs'!BN104 -> 0 | BM106: ='[4]Calc| Project Costs'!BO104 -> 0 | BN106: ='[4]Calc| Project Costs'!BP104 -> 0 | BO106: 0 | BQ106: ='[4]Input| Projects'!Y104 -> 0.5017048507 | BR106: ='[4]Input| Projects'!Z104 -> 0.2024359704 | BS106: ='[4]Input| Projects'!AA104 -> 0.2958591788 | BT106: =+_xlfn.SWITCH(TRUE,LEN(L106)>0,IF(SUM(BQ106:BS106)<>1,1,0), 0) -> 0
D107: ='[4]Calc| Project Costs'!C105 -> Establish new Craigieburn (CBN) zone substation - zone substation works | E107: JEN | F107: $'000s | G107: Real 2026 | H107: End Year | L107: ='[4]Calc| Project Costs'!D105 -> A72 | M107: ='[4]Input| JEN Mapping'!G105 -> Augmentation | N107: ='[4]Input| JEN Mapping'!F105 -> Augmentation | O107: ='[4]Input| Projects'!G105 -> Subtransmission | P107: Augmentation Expenditure | S107: ='[4]Input| JEN Mapping'!H105 -> Non-IT | V107: ='[4]Calc| Project Costs'!V105 -> 0 | W107: ='[4]Calc| Project Costs'!W105 -> 0 | X107: ='[4]Calc| Project Costs'!X105 -> 15145.89568 | Y107: ='[4]Calc| Project Costs'!Y105 -> 9889.182405 | Z107: ='[4]Calc| Project Costs'!Z105 -> 0 | AA107: ='[4]Calc| Project Costs'!AA105 -> 0 | AB107: ='[4]Calc| Project Costs'!AB105 -> 0 | AC107: 25035.07809 | AD107: 25035.07809 | AF107: ='[4]Calc| Project Costs'!BR105 -> 0 | AG107: ='[4]Calc| Project Costs'!BS105 -> 0 | AH107: ='[4]Calc| Project Costs'!BT105 -> 16927.90617 | AI107: ='[4]Calc| Project Costs'!BU105 -> 11066.38566 | AJ107: ='[4]Calc| Project Costs'!BV105 -> 0 | AK107: ='[4]Calc| Project Costs'!BW105 -> 0 | AL107: ='[4]Calc| Project Costs'!BX105 -> 0 | AM107: 27994.29183 | AN107: 27994.29183 | AP107: ='[4]Calc| Project Costs'!AD105 -> 0 | AQ107: ='[4]Calc| Project Costs'!AE105 -> 0 | AR107: ='[4]Calc| Project Costs'!AF105 -> 0 | AS107: ='[4]Calc| Project Costs'!AG105 -> 0 | AT107: ='[4]Calc| Project Costs'!AH105 -> 0 | AU107: ='[4]Calc| Project Costs'!AI105 -> 0 | AV107: ='[4]Calc| Project Costs'!AJ105 -> 0 | AW107: 0 | AY107: ='[4]Calc| Project Costs'!AL105 -> 0 | AZ107: ='[4]Calc| Project Costs'!AM105 -> 0 | BA107: ='[4]Calc| Project Costs'!AN105 -> 1782.010487 | BB107: ='[4]Calc| Project Costs'!AO105 -> 1177.203257 | BC107: ='[4]Calc| Project Costs'!AP105 -> 0 | BD107: ='[4]Calc| Project Costs'!AQ105 -> 0 | BE107: ='[4]Calc| Project Costs'!AR105 -> 0 | BF107: 2959.213745 | BH107: ='[4]Calc| Project Costs'!BJ105 ->  | BI107: ='[4]Calc| Project Costs'!BK105 ->  | BJ107: ='[4]Calc| Project Costs'!BL105 -> 0 | BK107: ='[4]Calc| Project Costs'!BM105 -> 0 | BL107: ='[4]Calc| Project Costs'!BN105 ->  | BM107: ='[4]Calc| Project Costs'!BO105 ->  | BN107: ='[4]Calc| Project Costs'!BP105 ->  | BO107: 0 | BQ107: ='[4]Input| Projects'!Y105 -> 0.243627358 | BR107: ='[4]Input| Projects'!Z105 -> 0.5261770848 | BS107: ='[4]Input| Projects'!AA105 -> 0.2301955572 | BT107: =+_xlfn.SWITCH(TRUE,LEN(L107)>0,IF(SUM(BQ107:BS107)<>1,1,0), 0) -> 0
D108: ='[4]Calc| Project Costs'!C106 -> Install reactors at BD - 4 x 4MVAr reactors, two off 2 x 4MVAr capacitor banks | E108: JEN | F108: $'000s | G108: Real 2026 | H108: End Year | L108: ='[4]Calc| Project Costs'!D106 -> A370 | M108: ='[4]Input| JEN Mapping'!G106 -> Augmentation | N108: ='[4]Input| JEN Mapping'!F106 -> Augmentation | O108: ='[4]Input| Projects'!G106 -> Subtransmission | P108: Augmentation Expenditure | S108: ='[4]Input| JEN Mapping'!H106 -> Non-IT | V108: ='[4]Calc| Project Costs'!V106 -> 0 | W108: ='[4]Calc| Project Costs'!W106 -> 0 | X108: ='[4]Calc| Project Costs'!X106 -> 0 | Y108: ='[4]Calc| Project Costs'!Y106 -> 0 | Z108: ='[4]Calc| Project Costs'!Z106 -> 0 | AA108: ='[4]Calc| Project Costs'!AA106 -> 0 | AB108: ='[4]Calc| Project Costs'!AB106 -> 2268.013811 | AC108: 2268.013811 | AD108: 2268.013811 | AF108: ='[4]Calc| Project Costs'!BR106 -> 0 | AG108: ='[4]Calc| Project Costs'!BS106 -> 0 | AH108: ='[4]Calc| Project Costs'!BT106 -> 0 | AI108: ='[4]Calc| Project Costs'!BU106 -> 0 | AJ108: ='[4]Calc| Project Costs'!BV106 -> 0 | AK108: ='[4]Calc| Project Costs'!BW106 -> 0 | AL108: ='[4]Calc| Project Costs'!BX106 -> 2587.907694 | AM108: 2587.907694 | AN108: 2587.907694 | AP108: ='[4]Calc| Project Costs'!AD106 -> 0 | AQ108: ='[4]Calc| Project Costs'!AE106 -> 0 | AR108: ='[4]Calc| Project Costs'!AF106 -> 0 | AS108: ='[4]Calc| Project Costs'!AG106 -> 0 | AT108: ='[4]Calc| Project Costs'!AH106 -> 0 | AU108: ='[4]Calc| Project Costs'!AI106 -> 0 | AV108: ='[4]Calc| Project Costs'!AJ106 -> 0 | AW108: 0 | AY108: ='[4]Calc| Project Costs'!AL106 -> 0 | AZ108: ='[4]Calc| Project Costs'!AM106 -> 0 | BA108: ='[4]Calc| Project Costs'!AN106 -> 0 | BB108: ='[4]Calc| Project Costs'!AO106 -> 0 | BC108: ='[4]Calc| Project Costs'!AP106 -> 0 | BD108: ='[4]Calc| Project Costs'!AQ106 -> 0 | BE108: ='[4]Calc| Project Costs'!AR106 -> 319.893883 | BF108: 319.893883 | BH108: ='[4]Calc| Project Costs'!BJ106 ->  | BI108: ='[4]Calc| Project Costs'!BK106 ->  | BJ108: ='[4]Calc| Project Costs'!BL106 ->  | BK108: ='[4]Calc| Project Costs'!BM106 ->  | BL108: ='[4]Calc| Project Costs'!BN106 ->  | BM108: ='[4]Calc| Project Costs'!BO106 ->  | BN108: ='[4]Calc| Project Costs'!BP106 -> 0 | BO108: 0 | BQ108: ='[4]Input| Projects'!Y106 -> 0.243627358 | BR108: ='[4]Input| Projects'!Z106 -> 0.5261770848 | BS108: ='[4]Input| Projects'!AA106 -> 0.2301955572 | BT108: =+_xlfn.SWITCH(TRUE,LEN(L108)>0,IF(SUM(BQ108:BS108)<>1,1,0), 0) -> 0
D109: ='[4]Calc| Project Costs'!C107 -> Install reactors at ST - 2 x 4MVAr | E109: JEN | F109: $'000s | G109: Real 2026 | H109: End Year | L109: ='[4]Calc| Project Costs'!D107 -> A74 | M109: ='[4]Input| JEN Mapping'!G107 -> Augmentation | N109: ='[4]Input| JEN Mapping'!F107 -> Augmentation | O109: ='[4]Input| Projects'!G107 -> Subtransmission | P109: Augmentation Expenditure | S109: ='[4]Input| JEN Mapping'!H107 -> Non-IT | V109: ='[4]Calc| Project Costs'!V107 -> 0 | W109: ='[4]Calc| Project Costs'!W107 -> 0 | X109: ='[4]Calc| Project Costs'!X107 -> 0 | Y109: ='[4]Calc| Project Costs'!Y107 -> 0 | Z109: ='[4]Calc| Project Costs'!Z107 -> 0 | AA109: ='[4]Calc| Project Costs'!AA107 -> 672.5843 | AB109: ='[4]Calc| Project Costs'!AB107 -> 1357.236611 | AC109: 2029.820911 | AD109: 2029.820911 | AF109: ='[4]Calc| Project Costs'!BR107 -> 0 | AG109: ='[4]Calc| Project Costs'!BS107 -> 0 | AH109: ='[4]Calc| Project Costs'!BT107 -> 0 | AI109: ='[4]Calc| Project Costs'!BU107 -> 0 | AJ109: ='[4]Calc| Project Costs'!BV107 -> 0 | AK109: ='[4]Calc| Project Costs'!BW107 -> 756.1667462 | AL109: ='[4]Calc| Project Costs'!BX107 -> 1548.669171 | AM109: 2304.835917 | AN109: 2304.835917 | AP109: ='[4]Calc| Project Costs'!AD107 -> 0 | AQ109: ='[4]Calc| Project Costs'!AE107 -> 0 | AR109: ='[4]Calc| Project Costs'!AF107 -> 0 | AS109: ='[4]Calc| Project Costs'!AG107 -> 0 | AT109: ='[4]Calc| Project Costs'!AH107 -> 0 | AU109: ='[4]Calc| Project Costs'!AI107 -> 0 | AV109: ='[4]Calc| Project Costs'!AJ107 -> 0 | AW109: 0 | AY109: ='[4]Calc| Project Costs'!AL107 -> 0 | AZ109: ='[4]Calc| Project Costs'!AM107 -> 0 | BA109: ='[4]Calc| Project Costs'!AN107 -> 0 | BB109: ='[4]Calc| Project Costs'!AO107 -> 0 | BC109: ='[4]Calc| Project Costs'!AP107 -> 0 | BD109: ='[4]Calc| Project Costs'!AQ107 -> 83.58244615 | BE109: ='[4]Calc| Project Costs'!AR107 -> 191.4325599 | BF109: 275.0150061 | BH109: ='[4]Calc| Project Costs'!BJ107 ->  | BI109: ='[4]Calc| Project Costs'!BK107 ->  | BJ109: ='[4]Calc| Project Costs'!BL107 ->  | BK109: ='[4]Calc| Project Costs'!BM107 ->  | BL109: ='[4]Calc| Project Costs'!BN107 ->  | BM109: ='[4]Calc| Project Costs'!BO107 -> 0 | BN109: ='[4]Calc| Project Costs'!BP107 -> 0 | BO109: 0 | BQ109: ='[4]Input| Projects'!Y107 -> 0.243627358 | BR109: ='[4]Input| Projects'!Z107 -> 0.5261770848 | BS109: ='[4]Input| Projects'!AA107 -> 0.2301955572 | BT109: =+_xlfn.SWITCH(TRUE,LEN(L109)>0,IF(SUM(BQ109:BS109)<>1,1,0), 0) -> 0
D110: ='[4]Calc| Project Costs'!C108 -> Install reactors at SBY - 2 x 4MVAr | E110: JEN | F110: $'000s | G110: Real 2026 | H110: End Year | L110: ='[4]Calc| Project Costs'!D108 -> A75 | M110: ='[4]Input| JEN Mapping'!G108 -> Augmentation | N110: ='[4]Input| JEN Mapping'!F108 -> Augmentation | O110: ='[4]Input| Projects'!G108 -> Subtransmission | P110: Augmentation Expenditure | S110: ='[4]Input| JEN Mapping'!H108 -> Non-IT | V110: ='[4]Calc| Project Costs'!V108 -> 0 | W110: ='[4]Calc| Project Costs'!W108 -> 0 | X110: ='[4]Calc| Project Costs'!X108 -> 548.8962319 | Y110: ='[4]Calc| Project Costs'!Y108 -> 1104.913105 | Z110: ='[4]Calc| Project Costs'!Z108 -> 556.861274 | AA110: ='[4]Calc| Project Costs'!AA108 -> 0 | AB110: ='[4]Calc| Project Costs'!AB108 -> 0 | AC110: 2210.670611 | AD110: 2210.670611 | AF110: ='[4]Calc| Project Costs'!BR108 -> 0 | AG110: ='[4]Calc| Project Costs'!BS108 -> 0 | AH110: ='[4]Calc| Project Costs'!BT108 -> 613.4773477 | AI110: ='[4]Calc| Project Costs'!BU108 -> 1236.441401 | AJ110: ='[4]Calc| Project Costs'!BV108 -> 623.1953332 | AK110: ='[4]Calc| Project Costs'!BW108 -> 0 | AL110: ='[4]Calc| Project Costs'!BX108 -> 0 | AM110: 2473.114082 | AN110: 2473.114082 | AP110: ='[4]Calc| Project Costs'!AD108 -> 0 | AQ110: ='[4]Calc| Project Costs'!AE108 -> 0 | AR110: ='[4]Calc| Project Costs'!AF108 -> 0 | AS110: ='[4]Calc| Project Costs'!AG108 -> 0 | AT110: ='[4]Calc| Project Costs'!AH108 -> 0 | AU110: ='[4]Calc| Project Costs'!AI108 -> 0 | AV110: ='[4]Calc| Project Costs'!AJ108 -> 0 | AW110: 0 | AY110: ='[4]Calc| Project Costs'!AL108 -> 0 | AZ110: ='[4]Calc| Project Costs'!AM108 -> 0 | BA110: ='[4]Calc| Project Costs'!AN108 -> 64.58111571 | BB110: ='[4]Calc| Project Costs'!AO108 -> 131.5282956 | BC110: ='[4]Calc| Project Costs'!AP108 -> 66.33405921 | BD110: ='[4]Calc| Project Costs'!AQ108 -> 0 | BE110: ='[4]Calc| Project Costs'!AR108 -> 0 | BF110: 262.4434705 | BH110: ='[4]Calc| Project Costs'!BJ108 ->  | BI110: ='[4]Calc| Project Costs'!BK108 ->  | BJ110: ='[4]Calc| Project Costs'!BL108 -> 0 | BK110: ='[4]Calc| Project Costs'!BM108 -> 0 | BL110: ='[4]Calc| Project Costs'!BN108 -> 0 | BM110: ='[4]Calc| Project Costs'!BO108 ->  | BN110: ='[4]Calc| Project Costs'!BP108 ->  | BO110: 0 | BQ110: ='[4]Input| Projects'!Y108 -> 0.243627358 | BR110: ='[4]Input| Projects'!Z108 -> 0.5261770848 | BS110: ='[4]Input| Projects'!AA108 -> 0.2301955572 | BT110: =+_xlfn.SWITCH(TRUE,LEN(L110)>0,IF(SUM(BQ110:BS110)<>1,1,0), 0) -> 0
D111: ='[4]Calc| Project Costs'!C109 -> Install reactors at SHM - 2 x 4MVAr | E111: JEN | F111: $'000s | G111: Real 2026 | H111: End Year | L111: ='[4]Calc| Project Costs'!D109 -> A76 | M111: ='[4]Input| JEN Mapping'!G109 -> Augmentation | N111: ='[4]Input| JEN Mapping'!F109 -> Augmentation | O111: ='[4]Input| Projects'!G109 -> Subtransmission | P111: Augmentation Expenditure | S111: ='[4]Input| JEN Mapping'!H109 -> Non-IT | V111: ='[4]Calc| Project Costs'!V109 -> 0 | W111: ='[4]Calc| Project Costs'!W109 -> 0 | X111: ='[4]Calc| Project Costs'!X109 -> 0 | Y111: ='[4]Calc| Project Costs'!Y109 -> 612.9203133 | Z111: ='[4]Calc| Project Costs'!Z109 -> 1235.614221 | AA111: ='[4]Calc| Project Costs'!AA109 -> 623.6997269 | AB111: ='[4]Calc| Project Costs'!AB109 -> 0 | AC111: 2472.234261 | AD111: 2472.234261 | AF111: ='[4]Calc| Project Costs'!BR109 -> 0 | AG111: ='[4]Calc| Project Costs'!BS109 -> 0 | AH111: ='[4]Calc| Project Costs'!BT109 -> 0 | AI111: ='[4]Calc| Project Costs'!BU109 -> 685.8820365 | AJ111: ='[4]Calc| Project Costs'!BV109 -> 1382.802239 | AK111: ='[4]Calc| Project Costs'!BW109 -> 701.2072584 | AL111: ='[4]Calc| Project Costs'!BX109 -> 0 | AM111: 2769.891534 | AN111: 2769.891534 | AP111: ='[4]Calc| Project Costs'!AD109 -> 0 | AQ111: ='[4]Calc| Project Costs'!AE109 -> 0 | AR111: ='[4]Calc| Project Costs'!AF109 -> 0 | AS111: ='[4]Calc| Project Costs'!AG109 -> 0 | AT111: ='[4]Calc| Project Costs'!AH109 -> 0 | AU111: ='[4]Calc| Project Costs'!AI109 -> 0 | AV111: ='[4]Calc| Project Costs'!AJ109 -> 0 | AW111: 0 | AY111: ='[4]Calc| Project Costs'!AL109 -> 0 | AZ111: ='[4]Calc| Project Costs'!AM109 -> 0 | BA111: ='[4]Calc| Project Costs'!AN109 -> 0 | BB111: ='[4]Calc| Project Costs'!AO109 -> 72.9617232 | BC111: ='[4]Calc| Project Costs'!AP109 -> 147.1880174 | BD111: ='[4]Calc| Project Costs'!AQ109 -> 77.50753152 | BE111: ='[4]Calc| Project Costs'!AR109 -> 0 | BF111: 297.6572722 | BH111: ='[4]Calc| Project Costs'!BJ109 ->  | BI111: ='[4]Calc| Project Costs'!BK109 ->  | BJ111: ='[4]Calc| Project Costs'!BL109 ->  | BK111: ='[4]Calc| Project Costs'!BM109 -> 0 | BL111: ='[4]Calc| Project Costs'!BN109 -> 0 | BM111: ='[4]Calc| Project Costs'!BO109 -> 0 | BN111: ='[4]Calc| Project Costs'!BP109 ->  | BO111: 0 | BQ111: ='[4]Input| Projects'!Y109 -> 0.243627358 | BR111: ='[4]Input| Projects'!Z109 -> 0.5261770848 | BS111: ='[4]Input| Projects'!AA109 -> 0.2301955572 | BT111: =+_xlfn.SWITCH(TRUE,LEN(L111)>0,IF(SUM(BQ111:BS111)<>1,1,0), 0) -> 0
D112: ='[4]Calc| Project Costs'!C110 -> Installation of oil sampling points to OLTCs | E112: JEN | F112: $'000s | G112: Real 2026 | H112: End Year | L112: ='[4]Calc| Project Costs'!D110 -> A80 | M112: ='[4]Input| JEN Mapping'!G110 -> Replacement | N112: ='[4]Input| JEN Mapping'!F110 -> Replacement | O112: ='[4]Input| Projects'!G110 -> Subtransmission | P112: Replacement expenditure | S112: ='[4]Input| JEN Mapping'!H110 -> Non-IT | V112: ='[4]Calc| Project Costs'!V110 -> 0 | W112: ='[4]Calc| Project Costs'!W110 -> 0 | X112: ='[4]Calc| Project Costs'!X110 -> 0 | Y112: ='[4]Calc| Project Costs'!Y110 -> 0 | Z112: ='[4]Calc| Project Costs'!Z110 -> 0 | AA112: ='[4]Calc| Project Costs'!AA110 -> 0 | AB112: ='[4]Calc| Project Costs'!AB110 -> 82.46075312 | AC112: 82.46075312 | AD112: 82.46075312 | AF112: ='[4]Calc| Project Costs'!BR110 -> 0 | AG112: ='[4]Calc| Project Costs'!BS110 -> 0 | AH112: ='[4]Calc| Project Costs'!BT110 -> 0 | AI112: ='[4]Calc| Project Costs'!BU110 -> 0 | AJ112: ='[4]Calc| Project Costs'!BV110 -> 0 | AK112: ='[4]Calc| Project Costs'!BW110 -> 0 | AL112: ='[4]Calc| Project Costs'!BX110 -> 94.09149821 | AM112: 94.09149821 | AN112: 94.09149821 | AP112: ='[4]Calc| Project Costs'!AD110 -> 0 | AQ112: ='[4]Calc| Project Costs'!AE110 -> 0 | AR112: ='[4]Calc| Project Costs'!AF110 -> 0 | AS112: ='[4]Calc| Project Costs'!AG110 -> 0 | AT112: ='[4]Calc| Project Costs'!AH110 -> 0 | AU112: ='[4]Calc| Project Costs'!AI110 -> 0 | AV112: ='[4]Calc| Project Costs'!AJ110 -> 0 | AW112: 0 | AY112: ='[4]Calc| Project Costs'!AL110 -> 0 | AZ112: ='[4]Calc| Project Costs'!AM110 -> 0 | BA112: ='[4]Calc| Project Costs'!AN110 -> 0 | BB112: ='[4]Calc| Project Costs'!AO110 -> 0 | BC112: ='[4]Calc| Project Costs'!AP110 -> 0 | BD112: ='[4]Calc| Project Costs'!AQ110 -> 0 | BE112: ='[4]Calc| Project Costs'!AR110 -> 11.6307451 | BF112: 11.6307451 | BH112: ='[4]Calc| Project Costs'!BJ110 ->  | BI112: ='[4]Calc| Project Costs'!BK110 ->  | BJ112: ='[4]Calc| Project Costs'!BL110 ->  | BK112: ='[4]Calc| Project Costs'!BM110 ->  | BL112: ='[4]Calc| Project Costs'!BN110 ->  | BM112: ='[4]Calc| Project Costs'!BO110 ->  | BN112: ='[4]Calc| Project Costs'!BP110 -> 0 | BO112: 0 | BQ112: ='[4]Input| Projects'!Y110 -> 0.3347659094 | BR112: ='[4]Input| Projects'!Z110 -> 0.3646653344 | BS112: ='[4]Input| Projects'!AA110 -> 0.3005687561 | BT112: =+_xlfn.SWITCH(TRUE,LEN(L112)>0,IF(SUM(BQ112:BS112)<>1,1,0), 0) -> 0
D113: ='[4]Calc| Project Costs'!C111 -> Interlocked VAr controllers on 14 existing capacitor banks | E113: JEN | F113: $'000s | G113: Real 2026 | H113: End Year | L113: ='[4]Calc| Project Costs'!D111 -> A471 | M113: ='[4]Input| JEN Mapping'!G111 -> Augmentation | N113: ='[4]Input| JEN Mapping'!F111 -> Augmentation | O113: ='[4]Input| Projects'!G111 -> Subtransmission | P113: Augmentation Expenditure | S113: ='[4]Input| JEN Mapping'!H111 -> Non-IT | V113: ='[4]Calc| Project Costs'!V111 -> 0 | W113: ='[4]Calc| Project Costs'!W111 -> 0 | X113: ='[4]Calc| Project Costs'!X111 -> 307.2282757 | Y113: ='[4]Calc| Project Costs'!Y111 -> 618.4421179 | Z113: ='[4]Calc| Project Costs'!Z111 -> 623.3729404 | AA113: ='[4]Calc| Project Costs'!AA111 -> 629.3186433 | AB113: ='[4]Calc| Project Costs'!AB111 -> 634.9644965 | AC113: 2813.326474 | AD113: 2813.326474 | AF113: ='[4]Calc| Project Costs'!BR111 -> 0 | AG113: ='[4]Calc| Project Costs'!BS111 -> 0 | AH113: ='[4]Calc| Project Costs'!BT111 -> 343.3756269 | AI113: ='[4]Calc| Project Costs'!BU111 -> 692.0611539 | AJ113: ='[4]Calc| Project Costs'!BV111 -> 697.6299582 | AK113: ='[4]Calc| Project Costs'!BW111 -> 707.5244409 | AL113: ='[4]Calc| Project Costs'!BX111 -> 724.5235889 | AM113: 3165.114769 | AN113: 3165.114769 | AP113: ='[4]Calc| Project Costs'!AD111 -> 0 | AQ113: ='[4]Calc| Project Costs'!AE111 -> 0 | AR113: ='[4]Calc| Project Costs'!AF111 -> 0 | AS113: ='[4]Calc| Project Costs'!AG111 -> 0 | AT113: ='[4]Calc| Project Costs'!AH111 -> 0 | AU113: ='[4]Calc| Project Costs'!AI111 -> 0 | AV113: ='[4]Calc| Project Costs'!AJ111 -> 0 | AW113: 0 | AY113: ='[4]Calc| Project Costs'!AL111 -> 0 | AZ113: ='[4]Calc| Project Costs'!AM111 -> 0 | BA113: ='[4]Calc| Project Costs'!AN111 -> 36.14735112 | BB113: ='[4]Calc| Project Costs'!AO111 -> 73.61903602 | BC113: ='[4]Calc| Project Costs'!AP111 -> 74.2570178 | BD113: ='[4]Calc| Project Costs'!AQ111 -> 78.20579757 | BE113: ='[4]Calc| Project Costs'!AR111 -> 89.55909236 | BF113: 351.7882949 | BH113: ='[4]Calc| Project Costs'!BJ111 ->  | BI113: ='[4]Calc| Project Costs'!BK111 ->  | BJ113: ='[4]Calc| Project Costs'!BL111 -> 0 | BK113: ='[4]Calc| Project Costs'!BM111 -> 0 | BL113: ='[4]Calc| Project Costs'!BN111 -> 0 | BM113: ='[4]Calc| Project Costs'!BO111 -> 0 | BN113: ='[4]Calc| Project Costs'!BP111 -> 0 | BO113: 0 | BQ113: ='[4]Input| Projects'!Y111 -> 0.243627358 | BR113: ='[4]Input| Projects'!Z111 -> 0.5261770848 | BS113: ='[4]Input| Projects'!AA111 -> 0.2301955572 | BT113: =+_xlfn.SWITCH(TRUE,LEN(L113)>0,IF(SUM(BQ113:BS113)<>1,1,0), 0) -> 0
D114: ='[4]Calc| Project Costs'!C112 -> Upgrade SBY No.1 and No.3 transformers to 20/33MVA | E114: JEN | F114: $'000s | G114: Real 2026 | H114: End Year | L114: ='[4]Calc| Project Costs'!D112 -> A83 | M114: ='[4]Input| JEN Mapping'!G112 -> Augmentation | N114: ='[4]Input| JEN Mapping'!F112 -> Augmentation | O114: ='[4]Input| Projects'!G112 -> Subtransmission | P114: Augmentation Expenditure | S114: ='[4]Input| JEN Mapping'!H112 -> Non-IT | V114: ='[4]Calc| Project Costs'!V112 -> 0 | W114: ='[4]Calc| Project Costs'!W112 -> 0 | X114: ='[4]Calc| Project Costs'!X112 -> 4564.180796 | Y114: ='[4]Calc| Project Costs'!Y112 -> 6610.569476 | Z114: ='[4]Calc| Project Costs'!Z112 -> 0 | AA114: ='[4]Calc| Project Costs'!AA112 -> 0 | AB114: ='[4]Calc| Project Costs'!AB112 -> 0 | AC114: 11174.75027 | AD114: 11174.75027 | AF114: ='[4]Calc| Project Costs'!BR112 -> 0 | AG114: ='[4]Calc| Project Costs'!BS112 -> 0 | AH114: ='[4]Calc| Project Costs'!BT112 -> 5101.185554 | AI114: ='[4]Calc| Project Costs'!BU112 -> 7397.488313 | AJ114: ='[4]Calc| Project Costs'!BV112 -> 0 | AK114: ='[4]Calc| Project Costs'!BW112 -> 0 | AL114: ='[4]Calc| Project Costs'!BX112 -> 0 | AM114: 12498.67387 | AN114: 12498.67387 | AP114: ='[4]Calc| Project Costs'!AD112 -> 0 | AQ114: ='[4]Calc| Project Costs'!AE112 -> 0 | AR114: ='[4]Calc| Project Costs'!AF112 -> 0 | AS114: ='[4]Calc| Project Costs'!AG112 -> 0 | AT114: ='[4]Calc| Project Costs'!AH112 -> 0 | AU114: ='[4]Calc| Project Costs'!AI112 -> 0 | AV114: ='[4]Calc| Project Costs'!AJ112 -> 0 | AW114: 0 | AY114: ='[4]Calc| Project Costs'!AL112 -> 0 | AZ114: ='[4]Calc| Project Costs'!AM112 -> 0 | BA114: ='[4]Calc| Project Costs'!AN112 -> 537.0047579 | BB114: ='[4]Calc| Project Costs'!AO112 -> 786.9188373 | BC114: ='[4]Calc| Project Costs'!AP112 -> 0 | BD114: ='[4]Calc| Project Costs'!AQ112 -> 0 | BE114: ='[4]Calc| Project Costs'!AR112 -> 0 | BF114: 1323.923595 | BH114: ='[4]Calc| Project Costs'!BJ112 ->  | BI114: ='[4]Calc| Project Costs'!BK112 ->  | BJ114: ='[4]Calc| Project Costs'!BL112 -> 0 | BK114: ='[4]Calc| Project Costs'!BM112 -> 0 | BL114: ='[4]Calc| Project Costs'!BN112 ->  | BM114: ='[4]Calc| Project Costs'!BO112 ->  | BN114: ='[4]Calc| Project Costs'!BP112 ->  | BO114: 0 | BQ114: ='[4]Input| Projects'!Y112 -> 0.243627358 | BR114: ='[4]Input| Projects'!Z112 -> 0.5261770848 | BS114: ='[4]Input| Projects'!AA112 -> 0.2301955572 | BT114: =+_xlfn.SWITCH(TRUE,LEN(L114)>0,IF(SUM(BQ114:BS114)<>1,1,0), 0) -> 0
D115: ='[4]Calc| Project Costs'!C113 -> DC18 - Tullamarine (Stage 1) | E115: JEN | F115: $'000s | G115: Real 2026 | H115: End Year | L115: ='[4]Calc| Project Costs'!D113 -> A85 | M115: ='[4]Input| JEN Mapping'!G113 -> Connections | N115: ='[4]Input| JEN Mapping'!F113 -> Connections | O115: ='[4]Input| Projects'!G113 -> Distribution system assets | P115: Connections | S115: ='[4]Input| JEN Mapping'!H113 -> Non-IT | V115: ='[4]Calc| Project Costs'!V113 -> 2997.02394 | W115: ='[4]Calc| Project Costs'!W113 -> 11277.46756 | X115: ='[4]Calc| Project Costs'!X113 -> 10088.91941 | Y115: ='[4]Calc| Project Costs'!Y113 -> 0 | Z115: ='[4]Calc| Project Costs'!Z113 -> 0 | AA115: ='[4]Calc| Project Costs'!AA113 -> 0 | AB115: ='[4]Calc| Project Costs'!AB113 -> 0 | AC115: 24363.41091 | AD115: 24363.41091 | AF115: ='[4]Calc| Project Costs'!BR113 -> 3491.059 | AG115: ='[4]Calc| Project Costs'!BS113 -> 12744.00327 | AH115: ='[4]Calc| Project Costs'!BT113 -> 11275.94463 | AI115: ='[4]Calc| Project Costs'!BU113 -> 0 | AJ115: ='[4]Calc| Project Costs'!BV113 -> 0 | AK115: ='[4]Calc| Project Costs'!BW113 -> 0 | AL115: ='[4]Calc| Project Costs'!BX113 -> 0 | AM115: 27511.0069 | AN115: 27511.0069 | AP115: ='[4]Calc| Project Costs'!AD113 -> 2184.830453 | AQ115: ='[4]Calc| Project Costs'!AE113 -> 8221.273849 | AR115: ='[4]Calc| Project Costs'!AF113 -> 7354.822251 | AS115: ='[4]Calc| Project Costs'!AG113 -> 0 | AT115: ='[4]Calc| Project Costs'!AH113 -> 0 | AU115: ='[4]Calc| Project Costs'!AI113 -> 0 | AV115: ='[4]Calc| Project Costs'!AJ113 -> 0 | AW115: 7354.822251 | AY115: ='[4]Calc| Project Costs'!AL113 -> 494.0350592 | AZ115: ='[4]Calc| Project Costs'!AM113 -> 1466.535711 | BA115: ='[4]Calc| Project Costs'!AN113 -> 1187.025223 | BB115: ='[4]Calc| Project Costs'!AO113 -> 0 | BC115: ='[4]Calc| Project Costs'!AP113 -> 0 | BD115: ='[4]Calc| Project Costs'!AQ113 -> 0 | BE115: ='[4]Calc| Project Costs'!AR113 -> 0 | BF115: 1187.025223 | BH115: ='[4]Calc| Project Costs'!BJ113 -> 360.1515581 | BI115: ='[4]Calc| Project Costs'!BK113 -> 1069.104534 | BJ115: ='[4]Calc| Project Costs'!BL113 -> 865.3413874 | BK115: ='[4]Calc| Project Costs'!BM113 ->  | BL115: ='[4]Calc| Project Costs'!BN113 ->  | BM115: ='[4]Calc| Project Costs'!BO113 ->  | BN115: ='[4]Calc| Project Costs'!BP113 ->  | BO115: 865.3413874 | BQ115: ='[4]Input| Projects'!Y113 -> 0.2796398347 | BR115: ='[4]Input| Projects'!Z113 -> 0.4480339349 | BS115: ='[4]Input| Projects'!AA113 -> 0.2723262304 | BT115: =+_xlfn.SWITCH(TRUE,LEN(L115)>0,IF(SUM(BQ115:BS115)<>1,1,0), 0) -> 0
D116: ='[4]Calc| Project Costs'!C114 -> DC Craigieburn area - ST-SSS 66kV line extension | E116: JEN | F116: $'000s | G116: Real 2026 | H116: End Year | L116: ='[4]Calc| Project Costs'!D114 -> A445 | M116: ='[4]Input| JEN Mapping'!G114 -> Augmentation | N116: ='[4]Input| JEN Mapping'!F114 -> Augmentation | O116: ='[4]Input| Projects'!G114 -> Subtransmission | P116: Augmentation Expenditure | S116: ='[4]Input| JEN Mapping'!H114 -> Non-IT | V116: ='[4]Calc| Project Costs'!V114 -> 4261.357989 | W116: ='[4]Calc| Project Costs'!W114 -> 5747.991138 | X116: ='[4]Calc| Project Costs'!X114 -> 0 | Y116: ='[4]Calc| Project Costs'!Y114 -> 0 | Z116: ='[4]Calc| Project Costs'!Z114 -> 0 | AA116: ='[4]Calc| Project Costs'!AA114 -> 0 | AB116: ='[4]Calc| Project Costs'!AB114 -> 0 | AC116: 10009.34913 | AD116: 10009.34913 | AF116: ='[4]Calc| Project Costs'!BR114 -> 4963.808249 | AG116: ='[4]Calc| Project Costs'!BS114 -> 6495.466955 | AH116: ='[4]Calc| Project Costs'!BT114 -> 0 | AI116: ='[4]Calc| Project Costs'!BU114 -> 0 | AJ116: ='[4]Calc| Project Costs'!BV114 -> 0 | AK116: ='[4]Calc| Project Costs'!BW114 -> 0 | AL116: ='[4]Calc| Project Costs'!BX114 -> 0 | AM116: 11459.2752 | AN116: 11459.2752 | AP116: ='[4]Calc| Project Costs'!AD114 -> 0 | AQ116: ='[4]Calc| Project Costs'!AE114 -> 0 | AR116: ='[4]Calc| Project Costs'!AF114 -> 0 | AS116: ='[4]Calc| Project Costs'!AG114 -> 0 | AT116: ='[4]Calc| Project Costs'!AH114 -> 0 | AU116: ='[4]Calc| Project Costs'!AI114 -> 0 | AV116: ='[4]Calc| Project Costs'!AJ114 -> 0 | AW116: 0 | AY116: ='[4]Calc| Project Costs'!AL114 -> 702.45026 | AZ116: ='[4]Calc| Project Costs'!AM114 -> 747.4758168 | BA116: ='[4]Calc| Project Costs'!AN114 -> 0 | BB116: ='[4]Calc| Project Costs'!AO114 -> 0 | BC116: ='[4]Calc| Project Costs'!AP114 -> 0 | BD116: ='[4]Calc| Project Costs'!AQ114 -> 0 | BE116: ='[4]Calc| Project Costs'!AR114 -> 0 | BF116: 0 | BH116: ='[4]Calc| Project Costs'!BJ114 -> 0 | BI116: ='[4]Calc| Project Costs'!BK114 -> 0 | BJ116: ='[4]Calc| Project Costs'!BL114 ->  | BK116: ='[4]Calc| Project Costs'!BM114 ->  | BL116: ='[4]Calc| Project Costs'!BN114 ->  | BM116: ='[4]Calc| Project Costs'!BO114 ->  | BN116: ='[4]Calc| Project Costs'!BP114 ->  | BO116: 0 | BQ116: ='[4]Input| Projects'!Y114 -> 0.307410853 | BR116: ='[4]Input| Projects'!Z114 -> 0.460150208 | BS116: ='[4]Input| Projects'!AA114 -> 0.2324389389 | BT116: =+_xlfn.SWITCH(TRUE,LEN(L116)>0,IF(SUM(BQ116:BS116)<>1,1,0), 0) -> 0
D117: ='[4]Calc| Project Costs'!C115 -> New KTS-NDT 66kV Line | E117: JEN | F117: $'000s | G117: Real 2026 | H117: End Year | L117: ='[4]Calc| Project Costs'!D115 -> A446 | M117: ='[4]Input| JEN Mapping'!G115 -> Augmentation | N117: ='[4]Input| JEN Mapping'!F115 -> Augmentation | O117: ='[4]Input| Projects'!G115 -> Subtransmission | P117: Augmentation Expenditure | S117: ='[4]Input| JEN Mapping'!H115 -> Non-IT | V117: ='[4]Calc| Project Costs'!V115 -> 823.6410094 | W117: ='[4]Calc| Project Costs'!W115 -> 0 | X117: ='[4]Calc| Project Costs'!X115 -> 0 | Y117: ='[4]Calc| Project Costs'!Y115 -> 0 | Z117: ='[4]Calc| Project Costs'!Z115 -> 0 | AA117: ='[4]Calc| Project Costs'!AA115 -> 0 | AB117: ='[4]Calc| Project Costs'!AB115 -> 0 | AC117: 823.6410094 | AD117: 823.6410094 | AF117: ='[4]Calc| Project Costs'!BR115 -> 959.4115414 | AG117: ='[4]Calc| Project Costs'!BS115 -> 0 | AH117: ='[4]Calc| Project Costs'!BT115 -> 0 | AI117: ='[4]Calc| Project Costs'!BU115 -> 0 | AJ117: ='[4]Calc| Project Costs'!BV115 -> 0 | AK117: ='[4]Calc| Project Costs'!BW115 -> 0 | AL117: ='[4]Calc| Project Costs'!BX115 -> 0 | AM117: 959.4115414 | AN117: 959.4115414 | AP117: ='[4]Calc| Project Costs'!AD115 -> 0 | AQ117: ='[4]Calc| Project Costs'!AE115 -> 0 | AR117: ='[4]Calc| Project Costs'!AF115 -> 0 | AS117: ='[4]Calc| Project Costs'!AG115 -> 0 | AT117: ='[4]Calc| Project Costs'!AH115 -> 0 | AU117: ='[4]Calc| Project Costs'!AI115 -> 0 | AV117: ='[4]Calc| Project Costs'!AJ115 -> 0 | AW117: 0 | AY117: ='[4]Calc| Project Costs'!AL115 -> 135.770532 | AZ117: ='[4]Calc| Project Costs'!AM115 -> 0 | BA117: ='[4]Calc| Project Costs'!AN115 -> 0 | BB117: ='[4]Calc| Project Costs'!AO115 -> 0 | BC117: ='[4]Calc| Project Costs'!AP115 -> 0 | BD117: ='[4]Calc| Project Costs'!AQ115 -> 0 | BE117: ='[4]Calc| Project Costs'!AR115 -> 0 | BF117: 0 | BH117: ='[4]Calc| Project Costs'!BJ115 -> 0 | BI117: ='[4]Calc| Project Costs'!BK115 ->  | BJ117: ='[4]Calc| Project Costs'!BL115 ->  | BK117: ='[4]Calc| Project Costs'!BM115 ->  | BL117: ='[4]Calc| Project Costs'!BN115 ->  | BM117: ='[4]Calc| Project Costs'!BO115 ->  | BN117: ='[4]Calc| Project Costs'!BP115 ->  | BO117: 0 | BQ117: ='[4]Input| Projects'!Y115 -> 0.307410853 | BR117: ='[4]Input| Projects'!Z115 -> 0.460150208 | BS117: ='[4]Input| Projects'!AA115 -> 0.2324389389 | BT117: =+_xlfn.SWITCH(TRUE,LEN(L117)>0,IF(SUM(BQ117:BS117)<>1,1,0), 0) -> 0
D118: ='[4]Calc| Project Costs'!C116 -> AW Feeder Upgrade | E118: JEN | F118: $'000s | G118: Real 2026 | H118: End Year | L118: ='[4]Calc| Project Costs'!D116 -> A447 | M118: ='[4]Input| JEN Mapping'!G116 -> Connections | N118: ='[4]Input| JEN Mapping'!F116 -> Connections | O118: ='[4]Input| Projects'!G116 -> Distribution system assets | P118: Connections | S118: ='[4]Input| JEN Mapping'!H116 -> Non-IT | V118: ='[4]Calc| Project Costs'!V116 -> 21.51532129 | W118: ='[4]Calc| Project Costs'!W116 -> 0 | X118: ='[4]Calc| Project Costs'!X116 -> 2518.846049 | Y118: ='[4]Calc| Project Costs'!Y116 -> 0 | Z118: ='[4]Calc| Project Costs'!Z116 -> 0 | AA118: ='[4]Calc| Project Costs'!AA116 -> 0 | AB118: ='[4]Calc| Project Costs'!AB116 -> 0 | AC118: 2540.36137 | AD118: 2540.36137 | AF118: ='[4]Calc| Project Costs'!BR116 -> 25.06194728 | AG118: ='[4]Calc| Project Costs'!BS116 -> 0 | AH118: ='[4]Calc| Project Costs'!BT116 -> 2815.204229 | AI118: ='[4]Calc| Project Costs'!BU116 -> 0 | AJ118: ='[4]Calc| Project Costs'!BV116 -> 0 | AK118: ='[4]Calc| Project Costs'!BW116 -> 0 | AL118: ='[4]Calc| Project Costs'!BX116 -> 0 | AM118: 2840.266176 | AN118: 2840.266176 | AP118: ='[4]Calc| Project Costs'!AD116 -> 17.70926095 | AQ118: ='[4]Calc| Project Costs'!AE116 -> 0 | AR118: ='[4]Calc| Project Costs'!AF116 -> 2073.262183 | AS118: ='[4]Calc| Project Costs'!AG116 -> 0 | AT118: ='[4]Calc| Project Costs'!AH116 -> 0 | AU118: ='[4]Calc| Project Costs'!AI116 -> 0 | AV118: ='[4]Calc| Project Costs'!AJ116 -> 0 | AW118: 2073.262183 | AY118: ='[4]Calc| Project Costs'!AL116 -> 3.546625998 | AZ118: ='[4]Calc| Project Costs'!AM116 -> 0 | BA118: ='[4]Calc| Project Costs'!AN116 -> 296.3581797 | BB118: ='[4]Calc| Project Costs'!AO116 -> 0 | BC118: ='[4]Calc| Project Costs'!AP116 -> 0 | BD118: ='[4]Calc| Project Costs'!AQ116 -> 0 | BE118: ='[4]Calc| Project Costs'!AR116 -> 0 | BF118: 296.3581797 | BH118: ='[4]Calc| Project Costs'!BJ116 -> 2.919227859 | BI118: ='[4]Calc| Project Costs'!BK116 ->  | BJ118: ='[4]Calc| Project Costs'!BL116 -> 243.9324177 | BK118: ='[4]Calc| Project Costs'!BM116 ->  | BL118: ='[4]Calc| Project Costs'!BN116 ->  | BM118: ='[4]Calc| Project Costs'!BO116 ->  | BN118: ='[4]Calc| Project Costs'!BP116 ->  | BO118: 243.9324177 | BQ118: ='[4]Input| Projects'!Y116 -> 0.2796398347 | BR118: ='[4]Input| Projects'!Z116 -> 0.4480339349 | BS118: ='[4]Input| Projects'!AA116 -> 0.2723262304 | BT118: =+_xlfn.SWITCH(TRUE,LEN(L118)>0,IF(SUM(BQ118:BS118)<>1,1,0), 0) -> 0
D119: ='[4]Calc| Project Costs'!C117 -> DC18 - loop ADT into TMA-MAT 66kV line | E119: JEN | F119: $'000s | G119: Real 2026 | H119: End Year | L119: ='[4]Calc| Project Costs'!D117 -> A501 | M119: ='[4]Input| JEN Mapping'!G117 -> Connections | N119: ='[4]Input| JEN Mapping'!F117 -> Connections | O119: ='[4]Input| Projects'!G117 -> Distribution system assets | P119: Connections | S119: ='[4]Input| JEN Mapping'!H117 -> Non-IT | V119: ='[4]Calc| Project Costs'!V117 -> 0 | W119: ='[4]Calc| Project Costs'!W117 -> 1468.942206 | X119: ='[4]Calc| Project Costs'!X117 -> 1112.993086 | Y119: ='[4]Calc| Project Costs'!Y117 -> 0 | Z119: ='[4]Calc| Project Costs'!Z117 -> 0 | AA119: ='[4]Calc| Project Costs'!AA117 -> 0 | AB119: ='[4]Calc| Project Costs'!AB117 -> 0 | AC119: 2581.935292 | AD119: 2581.935292 | AF119: ='[4]Calc| Project Costs'!BR117 -> 0 | AG119: ='[4]Calc| Project Costs'!BS117 -> 1659.965252 | AH119: ='[4]Calc| Project Costs'!BT117 -> 1243.943766 | AI119: ='[4]Calc| Project Costs'!BU117 -> 0 | AJ119: ='[4]Calc| Project Costs'!BV117 -> 0 | AK119: ='[4]Calc| Project Costs'!BW117 -> 0 | AL119: ='[4]Calc| Project Costs'!BX117 -> 0 | AM119: 2903.909019 | AN119: 2903.909019 | AP119: ='[4]Calc| Project Costs'!AD117 -> 0 | AQ119: ='[4]Calc| Project Costs'!AE117 -> 1070.858869 | AR119: ='[4]Calc| Project Costs'!AF117 -> 811.3719595 | AS119: ='[4]Calc| Project Costs'!AG117 -> 0 | AT119: ='[4]Calc| Project Costs'!AH117 -> 0 | AU119: ='[4]Calc| Project Costs'!AI117 -> 0 | AV119: ='[4]Calc| Project Costs'!AJ117 -> 0 | AW119: 811.3719595 | AY119: ='[4]Calc| Project Costs'!AL117 -> 0 | AZ119: ='[4]Calc| Project Costs'!AM117 -> 191.023046 | BA119: ='[4]Calc| Project Costs'!AN117 -> 130.9506808 | BB119: ='[4]Calc| Project Costs'!AO117 -> 0 | BC119: ='[4]Calc| Project Costs'!AP117 -> 0 | BD119: ='[4]Calc| Project Costs'!AQ117 -> 0 | BE119: ='[4]Calc| Project Costs'!AR117 -> 0 | BF119: 130.9506808 | BH119: ='[4]Calc| Project Costs'!BJ117 ->  | BI119: ='[4]Calc| Project Costs'!BK117 -> 139.2558005 | BJ119: ='[4]Calc| Project Costs'!BL117 -> 95.46304629 | BK119: ='[4]Calc| Project Costs'!BM117 ->  | BL119: ='[4]Calc| Project Costs'!BN117 ->  | BM119: ='[4]Calc| Project Costs'!BO117 ->  | BN119: ='[4]Calc| Project Costs'!BP117 ->  | BO119: 95.46304629 | BQ119: ='[4]Input| Projects'!Y117 -> 0.2796398347 | BR119: ='[4]Input| Projects'!Z117 -> 0.4480339349 | BS119: ='[4]Input| Projects'!AA117 -> 0.2723262304 | BT119: =+_xlfn.SWITCH(TRUE,LEN(L119)>0,IF(SUM(BQ119:BS119)<>1,1,0), 0) -> 0
D120: ='[4]Calc| Project Costs'!C118 -> DC11 – Craigieburn | E120: JEN | F120: $'000s | G120: Real 2026 | H120: End Year | L120: ='[4]Calc| Project Costs'!D118 -> A101 | M120: ='[4]Input| JEN Mapping'!G118 -> Connections | N120: ='[4]Input| JEN Mapping'!F118 -> Connections | O120: ='[4]Input| Projects'!G118 -> Distribution system assets | P120: Connections | S120: ='[4]Input| JEN Mapping'!H118 -> Non-IT | V120: ='[4]Calc| Project Costs'!V118 -> 8307.513466 | W120: ='[4]Calc| Project Costs'!W118 -> 10128.40493 | X120: ='[4]Calc| Project Costs'!X118 -> 4171.942786 | Y120: ='[4]Calc| Project Costs'!Y118 -> 0 | Z120: ='[4]Calc| Project Costs'!Z118 -> 0 | AA120: ='[4]Calc| Project Costs'!AA118 -> 0 | AB120: ='[4]Calc| Project Costs'!AB118 -> 0 | AC120: 22607.86119 | AD120: 22607.86119 | AF120: ='[4]Calc| Project Costs'!BR118 -> 9676.9396 | AG120: ='[4]Calc| Project Costs'!BS118 -> 11445.51513 | AH120: ='[4]Calc| Project Costs'!BT118 -> 4662.79826 | AI120: ='[4]Calc| Project Costs'!BU118 -> 0 | AJ120: ='[4]Calc| Project Costs'!BV118 -> 0 | AK120: ='[4]Calc| Project Costs'!BW118 -> 0 | AL120: ='[4]Calc| Project Costs'!BX118 -> 0 | AM120: 25785.25299 | AN120: 25785.25299 | AP120: ='[4]Calc| Project Costs'!AD118 -> 6056.177317 | AQ120: ='[4]Calc| Project Costs'!AE118 -> 7383.607196 | AR120: ='[4]Calc| Project Costs'!AF118 -> 3041.346291 | AS120: ='[4]Calc| Project Costs'!AG118 -> 0 | AT120: ='[4]Calc| Project Costs'!AH118 -> 0 | AU120: ='[4]Calc| Project Costs'!AI118 -> 0 | AV120: ='[4]Calc| Project Costs'!AJ118 -> 0 | AW120: 3041.346291 | AY120: ='[4]Calc| Project Costs'!AL118 -> 1369.426134 | AZ120: ='[4]Calc| Project Costs'!AM118 -> 1317.110199 | BA120: ='[4]Calc| Project Costs'!AN118 -> 490.8554735 | BB120: ='[4]Calc| Project Costs'!AO118 -> 0 | BC120: ='[4]Calc| Project Costs'!AP118 -> 0 | BD120: ='[4]Calc| Project Costs'!AQ118 -> 0 | BE120: ='[4]Calc| Project Costs'!AR118 -> 0 | BF120: 490.8554735 | BH120: ='[4]Calc| Project Costs'!BJ118 -> 998.3116514 | BI120: ='[4]Calc| Project Costs'!BK118 -> 960.1733349 | BJ120: ='[4]Calc| Project Costs'!BL118 -> 357.8336402 | BK120: ='[4]Calc| Project Costs'!BM118 ->  | BL120: ='[4]Calc| Project Costs'!BN118 ->  | BM120: ='[4]Calc| Project Costs'!BO118 ->  | BN120: ='[4]Calc| Project Costs'!BP118 ->  | BO120: 357.8336402 | BQ120: ='[4]Input| Projects'!Y118 -> 0.2796398347 | BR120: ='[4]Input| Projects'!Z118 -> 0.4480339349 | BS120: ='[4]Input| Projects'!AA118 -> 0.2723262304 | BT120: =+_xlfn.SWITCH(TRUE,LEN(L120)>0,IF(SUM(BQ120:BS120)<>1,1,0), 0) -> 0
D121: ='[4]Calc| Project Costs'!C119 -> DC19 - new BLTS-HDY 66kV lines | E121: JEN | F121: $'000s | G121: Real 2026 | H121: End Year | L121: ='[4]Calc| Project Costs'!D119 -> A497 | M121: ='[4]Input| JEN Mapping'!G119 -> Connections | N121: ='[4]Input| JEN Mapping'!F119 -> Connections | O121: ='[4]Input| Projects'!G119 -> Distribution system assets | P121: Connections | S121: ='[4]Input| JEN Mapping'!H119 -> Non-IT | V121: ='[4]Calc| Project Costs'!V119 -> 0 | W121: ='[4]Calc| Project Costs'!W119 -> 0 | X121: ='[4]Calc| Project Costs'!X119 -> 1267.578231 | Y121: ='[4]Calc| Project Costs'!Y119 -> 3033.920596 | Z121: ='[4]Calc| Project Costs'!Z119 -> 1737.90145 | AA121: ='[4]Calc| Project Costs'!AA119 -> 0 | AB121: ='[4]Calc| Project Costs'!AB119 -> 0 | AC121: 6039.400278 | AD121: 6039.400278 | AF121: ='[4]Calc| Project Costs'!BR119 -> 0 | AG121: ='[4]Calc| Project Costs'!BS119 -> 0 | AH121: ='[4]Calc| Project Costs'!BT119 -> 1416.716833 | AI121: ='[4]Calc| Project Costs'!BU119 -> 3395.076965 | AJ121: ='[4]Calc| Project Costs'!BV119 -> 1944.922594 | AK121: ='[4]Calc| Project Costs'!BW119 -> 0 | AL121: ='[4]Calc| Project Costs'!BX119 -> 0 | AM121: 6756.716392 | AN121: 6756.716392 | AP121: ='[4]Calc| Project Costs'!AD119 -> 0 | AQ121: ='[4]Calc| Project Costs'!AE119 -> 0 | AR121: ='[4]Calc| Project Costs'!AF119 -> 924.0645307 | AS121: ='[4]Calc| Project Costs'!AG119 -> 2211.728115 | AT121: ='[4]Calc| Project Costs'!AH119 -> 1266.930157 | AU121: ='[4]Calc| Project Costs'!AI119 -> 0 | AV121: ='[4]Calc| Project Costs'!AJ119 -> 0 | AW121: 4402.722803 | AY121: ='[4]Calc| Project Costs'!AL119 -> 0 | AZ121: ='[4]Calc| Project Costs'!AM119 -> 0 | BA121: ='[4]Calc| Project Costs'!AN119 -> 149.1386016 | BB121: ='[4]Calc| Project Costs'!AO119 -> 361.1563689 | BC121: ='[4]Calc| Project Costs'!AP119 -> 207.0211435 | BD121: ='[4]Calc| Project Costs'!AQ119 -> 0 | BE121: ='[4]Calc| Project Costs'!AR119 -> 0 | BF121: 717.3161139 | BH121: ='[4]Calc| Project Costs'!BJ119 ->  | BI121: ='[4]Calc| Project Costs'!BK119 ->  | BJ121: ='[4]Calc| Project Costs'!BL119 -> 108.7220405 | BK121: ='[4]Calc| Project Costs'!BM119 -> 263.2829929 | BL121: ='[4]Calc| Project Costs'!BN119 -> 150.9184136 | BM121: ='[4]Calc| Project Costs'!BO119 ->  | BN121: ='[4]Calc| Project Costs'!BP119 ->  | BO121: 522.923447 | BQ121: ='[4]Input| Projects'!Y119 -> 0.2796398347 | BR121: ='[4]Input| Projects'!Z119 -> 0.4480339349 | BS121: ='[4]Input| Projects'!AA119 -> 0.2723262304 | BT121: =+_xlfn.SWITCH(TRUE,LEN(L121)>0,IF(SUM(BQ121:BS121)<>1,1,0), 0) -> 0
D122: ='[4]Calc| Project Costs'!C120 -> Effloresence in buildings (TMA and SHM) | E122: JEN | F122: $'000s | G122: Real 2026 | H122: End Year | L122: ='[4]Calc| Project Costs'!D120 -> A408 | M122: ='[4]Input| JEN Mapping'!G120 -> Replacement | N122: ='[4]Input| JEN Mapping'!F120 -> Replacement | O122: ='[4]Input| Projects'!G120 -> Subtransmission | P122: Replacement expenditure | S122: ='[4]Input| JEN Mapping'!H120 -> Non-IT | V122: ='[4]Calc| Project Costs'!V120 -> 0 | W122: ='[4]Calc| Project Costs'!W120 -> 0 | X122: ='[4]Calc| Project Costs'!X120 -> 0 | Y122: ='[4]Calc| Project Costs'!Y120 -> 0 | Z122: ='[4]Calc| Project Costs'!Z120 -> 0 | AA122: ='[4]Calc| Project Costs'!AA120 -> 410.8122823 | AB122: ='[4]Calc| Project Costs'!AB120 -> 452.3013077 | AC122: 863.1135899 | AD122: 863.1135899 | AF122: ='[4]Calc| Project Costs'!BR120 -> 0 | AG122: ='[4]Calc| Project Costs'!BS120 -> 0 | AH122: ='[4]Calc| Project Costs'!BT120 -> 0 | AI122: ='[4]Calc| Project Costs'!BU120 -> 0 | AJ122: ='[4]Calc| Project Costs'!BV120 -> 0 | AK122: ='[4]Calc| Project Costs'!BW120 -> 461.864166 | AL122: ='[4]Calc| Project Costs'!BX120 -> 516.0965195 | AM122: 977.9606855 | AN122: 977.9606855 | AP122: ='[4]Calc| Project Costs'!AD120 -> 0 | AQ122: ='[4]Calc| Project Costs'!AE120 -> 0 | AR122: ='[4]Calc| Project Costs'!AF120 -> 0 | AS122: ='[4]Calc| Project Costs'!AG120 -> 0 | AT122: ='[4]Calc| Project Costs'!AH120 -> 0 | AU122: ='[4]Calc| Project Costs'!AI120 -> 0 | AV122: ='[4]Calc| Project Costs'!AJ120 -> 0 | AW122: 0 | AY122: ='[4]Calc| Project Costs'!AL120 -> 0 | AZ122: ='[4]Calc| Project Costs'!AM120 -> 0 | BA122: ='[4]Calc| Project Costs'!AN120 -> 0 | BB122: ='[4]Calc| Project Costs'!AO120 -> 0 | BC122: ='[4]Calc| Project Costs'!AP120 -> 0 | BD122: ='[4]Calc| Project Costs'!AQ120 -> 51.0518837 | BE122: ='[4]Calc| Project Costs'!AR120 -> 63.79521187 | BF122: 114.8470956 | BH122: ='[4]Calc| Project Costs'!BJ120 ->  | BI122: ='[4]Calc| Project Costs'!BK120 ->  | BJ122: ='[4]Calc| Project Costs'!BL120 ->  | BK122: ='[4]Calc| Project Costs'!BM120 ->  | BL122: ='[4]Calc| Project Costs'!BN120 ->  | BM122: ='[4]Calc| Project Costs'!BO120 -> 0 | BN122: ='[4]Calc| Project Costs'!BP120 -> 0 | BO122: 0 | BQ122: ='[4]Input| Projects'!Y120 -> 0.3347659094 | BR122: ='[4]Input| Projects'!Z120 -> 0.3646653344 | BS122: ='[4]Input| Projects'!AA120 -> 0.3005687561 | BT122: =+_xlfn.SWITCH(TRUE,LEN(L122)>0,IF(SUM(BQ122:BS122)<>1,1,0), 0) -> 0
D123: ='[4]Calc| Project Costs'!C121 -> DC02 - loop NDW into BLTS-TH No.2 66kV Line | E123: JEN | F123: $'000s | G123: Real 2026 | H123: End Year | L123: ='[4]Calc| Project Costs'!D121 -> A481 | M123: ='[4]Input| JEN Mapping'!G121 -> Connections | N123: ='[4]Input| JEN Mapping'!F121 -> Connections | O123: ='[4]Input| Projects'!G121 -> Distribution system assets | P123: Connections | S123: ='[4]Input| JEN Mapping'!H121 -> Non-IT | V123: ='[4]Calc| Project Costs'!V121 -> 1137.544731 | W123: ='[4]Calc| Project Costs'!W121 -> 2667.070018 | X123: ='[4]Calc| Project Costs'!X121 -> 2158.575193 | Y123: ='[4]Calc| Project Costs'!Y121 -> 0 | Z123: ='[4]Calc| Project Costs'!Z121 -> 0 | AA123: ='[4]Calc| Project Costs'!AA121 -> 0 | AB123: ='[4]Calc| Project Costs'!AB121 -> 0 | AC123: 5963.189941 | AD123: 5963.189941 | AF123: ='[4]Calc| Project Costs'!BR121 -> 1325.059742 | AG123: ='[4]Calc| Project Costs'!BS121 -> 3013.899073 | AH123: ='[4]Calc| Project Costs'!BT121 -> 2412.545226 | AI123: ='[4]Calc| Project Costs'!BU121 -> 0 | AJ123: ='[4]Calc| Project Costs'!BV121 -> 0 | AK123: ='[4]Calc| Project Costs'!BW121 -> 0 | AL123: ='[4]Calc| Project Costs'!BX121 -> 0 | AM123: 6751.504042 | AN123: 6751.504042 | AP123: ='[4]Calc| Project Costs'!AD121 -> 829.2701087 | AQ123: ='[4]Calc| Project Costs'!AE121 -> 1944.294043 | AR123: ='[4]Calc| Project Costs'!AF121 -> 1573.601315 | AS123: ='[4]Calc| Project Costs'!AG121 -> 0 | AT123: ='[4]Calc| Project Costs'!AH121 -> 0 | AU123: ='[4]Calc| Project Costs'!AI121 -> 0 | AV123: ='[4]Calc| Project Costs'!AJ121 -> 0 | AW123: 1573.601315 | AY123: ='[4]Calc| Project Costs'!AL121 -> 187.5150114 | AZ123: ='[4]Calc| Project Costs'!AM121 -> 346.8290559 | BA123: ='[4]Calc| Project Costs'!AN121 -> 253.9700333 | BB123: ='[4]Calc| Project Costs'!AO121 -> 0 | BC123: ='[4]Calc| Project Costs'!AP121 -> 0 | BD123: ='[4]Calc| Project Costs'!AQ121 -> 0 | BE123: ='[4]Calc| Project Costs'!AR121 -> 0 | BF123: 253.9700333 | BH123: ='[4]Calc| Project Costs'!BJ121 -> 136.6984433 | BI123: ='[4]Calc| Project Costs'!BK121 -> 252.8383818 | BJ123: ='[4]Calc| Project Costs'!BL121 -> 185.1441543 | BK123: ='[4]Calc| Project Costs'!BM121 ->  | BL123: ='[4]Calc| Project Costs'!BN121 ->  | BM123: ='[4]Calc| Project Costs'!BO121 ->  | BN123: ='[4]Calc| Project Costs'!BP121 ->  | BO123: 185.1441543 | BQ123: ='[4]Input| Projects'!Y121 -> 0.2796398347 | BR123: ='[4]Input| Projects'!Z121 -> 0.4480339349 | BS123: ='[4]Input| Projects'!AA121 -> 0.2723262304 | BT123: =+_xlfn.SWITCH(TRUE,LEN(L123)>0,IF(SUM(BQ123:BS123)<>1,1,0), 0) -> 0
D124: ='[4]Calc| Project Costs'!C122 -> DC07 - new BLTS-BKN 66kV line | E124: JEN | F124: $'000s | G124: Real 2026 | H124: End Year | L124: ='[4]Calc| Project Costs'!D122 -> A235 | M124: ='[4]Input| JEN Mapping'!G122 -> Connections | N124: ='[4]Input| JEN Mapping'!F122 -> Connections | O124: ='[4]Input| Projects'!G122 -> Distribution system assets | P124: Connections | S124: ='[4]Input| JEN Mapping'!H122 -> Non-IT | V124: ='[4]Calc| Project Costs'!V122 -> 0 | W124: ='[4]Calc| Project Costs'!W122 -> 0 | X124: ='[4]Calc| Project Costs'!X122 -> 0 | Y124: ='[4]Calc| Project Costs'!Y122 -> 0 | Z124: ='[4]Calc| Project Costs'!Z122 -> 0 | AA124: ='[4]Calc| Project Costs'!AA122 -> 1982.117587 | AB124: ='[4]Calc| Project Costs'!AB122 -> 4875.543506 | AC124: 6857.661094 | AD124: 6857.661094 | AF124: ='[4]Calc| Project Costs'!BR122 -> 0 | AG124: ='[4]Calc| Project Costs'!BS122 -> 0 | AH124: ='[4]Calc| Project Costs'!BT122 -> 0 | AI124: ='[4]Calc| Project Costs'!BU122 -> 0 | AJ124: ='[4]Calc| Project Costs'!BV122 -> 0 | AK124: ='[4]Calc| Project Costs'!BW122 -> 2228.436505 | AL124: ='[4]Calc| Project Costs'!BX122 -> 5563.218571 | AM124: 7791.655075 | AN124: 7791.655075 | AP124: ='[4]Calc| Project Costs'!AD122 -> 0 | AQ124: ='[4]Calc| Project Costs'!AE122 -> 0 | AR124: ='[4]Calc| Project Costs'!AF122 -> 0 | AS124: ='[4]Calc| Project Costs'!AG122 -> 0 | AT124: ='[4]Calc| Project Costs'!AH122 -> 0 | AU124: ='[4]Calc| Project Costs'!AI122 -> 1444.963721 | AV124: ='[4]Calc| Project Costs'!AJ122 -> 3554.271216 | AW124: 4999.234937 | AY124: ='[4]Calc| Project Costs'!AL122 -> 0 | AZ124: ='[4]Calc| Project Costs'!AM122 -> 0 | BA124: ='[4]Calc| Project Costs'!AN122 -> 0 | BB124: ='[4]Calc| Project Costs'!AO122 -> 0 | BC124: ='[4]Calc| Project Costs'!AP122 -> 0 | BD124: ='[4]Calc| Project Costs'!AQ122 -> 246.3189172 | BE124: ='[4]Calc| Project Costs'!AR122 -> 687.6750646 | BF124: 933.9939818 | BH124: ='[4]Calc| Project Costs'!BJ122 ->  | BI124: ='[4]Calc| Project Costs'!BK122 ->  | BJ124: ='[4]Calc| Project Costs'!BL122 ->  | BK124: ='[4]Calc| Project Costs'!BM122 ->  | BL124: ='[4]Calc| Project Costs'!BN122 ->  | BM124: ='[4]Calc| Project Costs'!BO122 -> 179.5664906 | BN124: ='[4]Calc| Project Costs'!BP122 -> 501.3151221 | BO124: 680.8816127 | BQ124: ='[4]Input| Projects'!Y122 -> 0.2796398347 | BR124: ='[4]Input| Projects'!Z122 -> 0.4480339349 | BS124: ='[4]Input| Projects'!AA122 -> 0.2723262304 | BT124: =+_xlfn.SWITCH(TRUE,LEN(L124)>0,IF(SUM(BQ124:BS124)<>1,1,0), 0) -> 0
D125: ='[4]Calc| Project Costs'!C123 -> DC Footscray area - tie TH-FW 66kV loops | E125: JEN | F125: $'000s | G125: Real 2026 | H125: End Year | L125: ='[4]Calc| Project Costs'!D123 -> A326 | M125: ='[4]Input| JEN Mapping'!G123 -> Augmentation | N125: ='[4]Input| JEN Mapping'!F123 -> Augmentation | O125: ='[4]Input| Projects'!G123 -> Subtransmission | P125: Augmentation Expenditure | S125: ='[4]Input| JEN Mapping'!H123 -> Non-IT | V125: ='[4]Calc| Project Costs'!V123 -> 876.7341814 | W125: ='[4]Calc| Project Costs'!W123 -> 2159.944022 | X125: ='[4]Calc| Project Costs'!X123 -> 1283.532121 | Y125: ='[4]Calc| Project Costs'!Y123 -> 0 | Z125: ='[4]Calc| Project Costs'!Z123 -> 0 | AA125: ='[4]Calc| Project Costs'!AA123 -> 0 | AB125: ='[4]Calc| Project Costs'!AB123 -> 0 | AC125: 4320.210324 | AD125: 4320.210324 | AF125: ='[4]Calc| Project Costs'!BR123 -> 1021.256692 | AG125: ='[4]Calc| Project Costs'!BS123 -> 2440.825791 | AH125: ='[4]Calc| Project Costs'!BT123 -> 1434.547798 | AI125: ='[4]Calc| Project Costs'!BU123 -> 0 | AJ125: ='[4]Calc| Project Costs'!BV123 -> 0 | AK125: ='[4]Calc| Project Costs'!BW123 -> 0 | AL125: ='[4]Calc| Project Costs'!BX123 -> 0 | AM125: 4896.630281 | AN125: 4896.630281 | AP125: ='[4]Calc| Project Costs'!AD123 -> 0 | AQ125: ='[4]Calc| Project Costs'!AE123 -> 0 | AR125: ='[4]Calc| Project Costs'!AF123 -> 0 | AS125: ='[4]Calc| Project Costs'!AG123 -> 0 | AT125: ='[4]Calc| Project Costs'!AH123 -> 0 | AU125: ='[4]Calc| Project Costs'!AI123 -> 0 | AV125: ='[4]Calc| Project Costs'!AJ123 -> 0 | AW125: 0 | AY125: ='[4]Calc| Project Costs'!AL123 -> 144.5225103 | AZ125: ='[4]Calc| Project Costs'!AM123 -> 280.8817695 | BA125: ='[4]Calc| Project Costs'!AN123 -> 151.0156776 | BB125: ='[4]Calc| Project Costs'!AO123 -> 0 | BC125: ='[4]Calc| Project Costs'!AP123 -> 0 | BD125: ='[4]Calc| Project Costs'!AQ123 -> 0 | BE125: ='[4]Calc| Project Costs'!AR123 -> 0 | BF125: 151.0156776 | BH125: ='[4]Calc| Project Costs'!BJ123 -> 0 | BI125: ='[4]Calc| Project Costs'!BK123 -> 0 | BJ125: ='[4]Calc| Project Costs'!BL123 -> 0 | BK125: ='[4]Calc| Project Costs'!BM123 ->  | BL125: ='[4]Calc| Project Costs'!BN123 ->  | BM125: ='[4]Calc| Project Costs'!BO123 ->  | BN125: ='[4]Calc| Project Costs'!BP123 ->  | BO125: 0 | BQ125: ='[4]Input| Projects'!Y123 -> 0.307410853 | BR125: ='[4]Input| Projects'!Z123 -> 0.460150208 | BS125: ='[4]Input| Projects'!AA123 -> 0.2324389389 | BT125: =+_xlfn.SWITCH(TRUE,LEN(L125)>0,IF(SUM(BQ125:BS125)<>1,1,0), 0) -> 0
D126: ='[4]Calc| Project Costs'!C124 -> Replace all 66kV EE SRBP bushings | E126: JEN | F126: $'000s | G126: Real 2026 | H126: End Year | L126: ='[4]Calc| Project Costs'!D124 -> A327 | M126: ='[4]Input| JEN Mapping'!G124 -> Replacement | N126: ='[4]Input| JEN Mapping'!F124 -> Replacement | O126: ='[4]Input| Projects'!G124 -> Subtransmission | P126: Replacement expenditure | S126: ='[4]Input| JEN Mapping'!H124 -> Non-IT | V126: ='[4]Calc| Project Costs'!V124 -> 0 | W126: ='[4]Calc| Project Costs'!W124 -> 0 | X126: ='[4]Calc| Project Costs'!X124 -> 0 | Y126: ='[4]Calc| Project Costs'!Y124 -> 569.7213978 | Z126: ='[4]Calc| Project Costs'!Z124 -> 1183.204994 | AA126: ='[4]Calc| Project Costs'!AA124 -> 613.0341457 | AB126: ='[4]Calc| Project Costs'!AB124 -> 0 | AC126: 2365.960538 | AD126: 2365.960538 | AF126: ='[4]Calc| Project Costs'!BR124 -> 0 | AG126: ='[4]Calc| Project Costs'!BS124 -> 0 | AH126: ='[4]Calc| Project Costs'!BT124 -> 0 | AI126: ='[4]Calc| Project Costs'!BU124 -> 637.540744 | AJ126: ='[4]Calc| Project Costs'!BV124 -> 1324.149955 | AK126: ='[4]Calc| Project Costs'!BW124 -> 689.2162592 | AL126: ='[4]Calc| Project Costs'!BX124 -> 0 | AM126: 2650.906958 | AN126: 2650.906958 | AP126: ='[4]Calc| Project Costs'!AD124 -> 0 | AQ126: ='[4]Calc| Project Costs'!AE124 -> 0 | AR126: ='[4]Calc| Project Costs'!AF124 -> 0 | AS126: ='[4]Calc| Project Costs'!AG124 -> 0 | AT126: ='[4]Calc| Project Costs'!AH124 -> 0 | AU126: ='[4]Calc| Project Costs'!AI124 -> 0 | AV126: ='[4]Calc| Project Costs'!AJ124 -> 0 | AW126: 0 | AY126: ='[4]Calc| Project Costs'!AL124 -> 0 | AZ126: ='[4]Calc| Project Costs'!AM124 -> 0 | BA126: ='[4]Calc| Project Costs'!AN124 -> 0 | BB126: ='[4]Calc| Project Costs'!AO124 -> 67.81934621 | BC126: ='[4]Calc| Project Costs'!AP124 -> 140.9449603 | BD126: ='[4]Calc| Project Costs'!AQ124 -> 76.18211348 | BE126: ='[4]Calc| Project Costs'!AR124 -> 0 | BF126: 284.94642 | BH126: ='[4]Calc| Project Costs'!BJ124 ->  | BI126: ='[4]Calc| Project Costs'!BK124 ->  | BJ126: ='[4]Calc| Project Costs'!BL124 ->  | BK126: ='[4]Calc| Project Costs'!BM124 -> 0 | BL126: ='[4]Calc| Project Costs'!BN124 -> 0 | BM126: ='[4]Calc| Project Costs'!BO124 -> 0 | BN126: ='[4]Calc| Project Costs'!BP124 ->  | BO126: 0 | BQ126: ='[4]Input| Projects'!Y124 -> 0.3347659094 | BR126: ='[4]Input| Projects'!Z124 -> 0.3646653344 | BS126: ='[4]Input| Projects'!AA124 -> 0.3005687561 | BT126: =+_xlfn.SWITCH(TRUE,LEN(L126)>0,IF(SUM(BQ126:BS126)<>1,1,0), 0) -> 0
D127: ='[4]Calc| Project Costs'!C125 -> DC Footscray area - new 66kV line incomer at FW | E127: JEN | F127: $'000s | G127: Real 2026 | H127: End Year | L127: ='[4]Calc| Project Costs'!D125 -> A336 | M127: ='[4]Input| JEN Mapping'!G125 -> Augmentation | N127: ='[4]Input| JEN Mapping'!F125 -> Augmentation | O127: ='[4]Input| Projects'!G125 -> Subtransmission | P127: Augmentation Expenditure | S127: ='[4]Input| JEN Mapping'!H125 -> Non-IT | V127: ='[4]Calc| Project Costs'!V125 -> 0 | W127: ='[4]Calc| Project Costs'!W125 -> 1091.660452 | X127: ='[4]Calc| Project Costs'!X125 -> 1583.609071 | Y127: ='[4]Calc| Project Costs'!Y125 -> 0 | Z127: ='[4]Calc| Project Costs'!Z125 -> 0 | AA127: ='[4]Calc| Project Costs'!AA125 -> 0 | AB127: ='[4]Calc| Project Costs'!AB125 -> 0 | AC127: 2675.269522 | AD127: 2675.269522 | AF127: ='[4]Calc| Project Costs'!BR125 -> 0 | AG127: ='[4]Calc| Project Costs'!BS125 -> 1233.621316 | AH127: ='[4]Calc| Project Costs'!BT125 -> 1769.930701 | AI127: ='[4]Calc| Project Costs'!BU125 -> 0 | AJ127: ='[4]Calc| Project Costs'!BV125 -> 0 | AK127: ='[4]Calc| Project Costs'!BW125 -> 0 | AL127: ='[4]Calc| Project Costs'!BX125 -> 0 | AM127: 3003.552016 | AN127: 3003.552016 | AP127: ='[4]Calc| Project Costs'!AD125 -> 0 | AQ127: ='[4]Calc| Project Costs'!AE125 -> 0 | AR127: ='[4]Calc| Project Costs'!AF125 -> 0 | AS127: ='[4]Calc| Project Costs'!AG125 -> 0 | AT127: ='[4]Calc| Project Costs'!AH125 -> 0 | AU127: ='[4]Calc| Project Costs'!AI125 -> 0 | AV127: ='[4]Calc| Project Costs'!AJ125 -> 0 | AW127: 0 | AY127: ='[4]Calc| Project Costs'!AL125 -> 0 | AZ127: ='[4]Calc| Project Costs'!AM125 -> 141.9608639 | BA127: ='[4]Calc| Project Costs'!AN125 -> 186.32163 | BB127: ='[4]Calc| Project Costs'!AO125 -> 0 | BC127: ='[4]Calc| Project Costs'!AP125 -> 0 | BD127: ='[4]Calc| Project Costs'!AQ125 -> 0 | BE127: ='[4]Calc| Project Costs'!AR125 -> 0 | BF127: 186.32163 | BH127: ='[4]Calc| Project Costs'!BJ125 ->  | BI127: ='[4]Calc| Project Costs'!BK125 -> 0 | BJ127: ='[4]Calc| Project Costs'!BL125 -> 0 | BK127: ='[4]Calc| Project Costs'!BM125 ->  | BL127: ='[4]Calc| Project Costs'!BN125 ->  | BM127: ='[4]Calc| Project Costs'!BO125 ->  | BN127: ='[4]Calc| Project Costs'!BP125 ->  | BO127: 0 | BQ127: ='[4]Input| Projects'!Y125 -> 0.243627358 | BR127: ='[4]Input| Projects'!Z125 -> 0.5261770848 | BS127: ='[4]Input| Projects'!AA125 -> 0.2301955572 | BT127: =+_xlfn.SWITCH(TRUE,LEN(L127)>0,IF(SUM(BQ127:BS127)<>1,1,0), 0) -> 0
D128: ='[4]Calc| Project Costs'!C126 -> DC04 - new KTS-TMA 66kV line | E128: JEN | F128: $'000s | G128: Real 2026 | H128: End Year | L128: ='[4]Calc| Project Costs'!D126 -> A907 | M128: ='[4]Input| JEN Mapping'!G126 -> Connections | N128: ='[4]Input| JEN Mapping'!F126 -> Connections | O128: ='[4]Input| Projects'!G126 -> Distribution system assets | P128: Connections | S128: ='[4]Input| JEN Mapping'!H126 -> Non-IT | V128: ='[4]Calc| Project Costs'!V126 -> 2702.47446 | W128: ='[4]Calc| Project Costs'!W126 -> 4393.717131 | X128: ='[4]Calc| Project Costs'!X126 -> 965.422406 | Y128: ='[4]Calc| Project Costs'!Y126 -> 0 | Z128: ='[4]Calc| Project Costs'!Z126 -> 0 | AA128: ='[4]Calc| Project Costs'!AA126 -> 0 | AB128: ='[4]Calc| Project Costs'!AB126 -> 0 | AC128: 8061.613997 | AD128: 8061.613997 | AF128: ='[4]Calc| Project Costs'!BR126 -> 3147.955429 | AG128: ='[4]Calc| Project Costs'!BS126 -> 4965.081495 | AH128: ='[4]Calc| Project Costs'!BT126 -> 1079.010462 | AI128: ='[4]Calc| Project Costs'!BU126 -> 0 | AJ128: ='[4]Calc| Project Costs'!BV126 -> 0 | AK128: ='[4]Calc| Project Costs'!BW126 -> 0 | AL128: ='[4]Calc| Project Costs'!BX126 -> 0 | AM128: 9192.047387 | AN128: 9192.047387 | AP128: ='[4]Calc| Project Costs'!AD126 -> 1970.103882 | AQ128: ='[4]Calc| Project Costs'!AE126 -> 3203.019788 | AR128: ='[4]Calc| Project Costs'!AF126 -> 703.7929339 | AS128: ='[4]Calc| Project Costs'!AG126 -> 0 | AT128: ='[4]Calc| Project Costs'!AH126 -> 0 | AU128: ='[4]Calc| Project Costs'!AI126 -> 0 | AV128: ='[4]Calc| Project Costs'!AJ126 -> 0 | AW128: 703.7929339 | AY128: ='[4]Calc| Project Costs'!AL126 -> 445.4809693 | AZ128: ='[4]Calc| Project Costs'!AM126 -> 571.364364 | BA128: ='[4]Calc| Project Costs'!AN126 -> 113.5880563 | BB128: ='[4]Calc| Project Costs'!AO126 -> 0 | BC128: ='[4]Calc| Project Costs'!AP126 -> 0 | BD128: ='[4]Calc| Project Costs'!AQ126 -> 0 | BE128: ='[4]Calc| Project Costs'!AR126 -> 0 | BF128: 113.5880563 | BH128: ='[4]Calc| Project Costs'!BJ126 -> 324.7556266 | BI128: ='[4]Calc| Project Costs'!BK126 -> 416.5246214 | BJ128: ='[4]Calc| Project Costs'!BL126 -> 82.80569306 | BK128: ='[4]Calc| Project Costs'!BM126 ->  | BL128: ='[4]Calc| Project Costs'!BN126 ->  | BM128: ='[4]Calc| Project Costs'!BO126 ->  | BN128: ='[4]Calc| Project Costs'!BP126 ->  | BO128: 82.80569306 | BQ128: ='[4]Input| Projects'!Y126 -> 0.2796398347 | BR128: ='[4]Input| Projects'!Z126 -> 0.4480339349 | BS128: ='[4]Input| Projects'!AA126 -> 0.2723262304 | BT128: =+_xlfn.SWITCH(TRUE,LEN(L128)>0,IF(SUM(BQ128:BS128)<>1,1,0), 0) -> 0
D129: ='[4]Calc| Project Costs'!C127 -> Replace GOB bushings | E129: JEN | F129: $'000s | G129: Real 2026 | H129: End Year | L129: ='[4]Calc| Project Costs'!D127 -> A906 | M129: ='[4]Input| JEN Mapping'!G127 -> Replacement | N129: ='[4]Input| JEN Mapping'!F127 -> Replacement | O129: ='[4]Input| Projects'!G127 -> Subtransmission | P129: Replacement expenditure | S129: ='[4]Input| JEN Mapping'!H127 -> Non-IT | V129: ='[4]Calc| Project Costs'!V127 -> 0 | W129: ='[4]Calc| Project Costs'!W127 -> 0 | X129: ='[4]Calc| Project Costs'!X127 -> 0 | Y129: ='[4]Calc| Project Costs'!Y127 -> 0 | Z129: ='[4]Calc| Project Costs'!Z127 -> 0 | AA129: ='[4]Calc| Project Costs'!AA127 -> 666.0204961 | AB129: ='[4]Calc| Project Costs'!AB127 -> 1402.951635 | AC129: 2068.972131 | AD129: 2068.972131 | AF129: ='[4]Calc| Project Costs'!BR127 -> 0 | AG129: ='[4]Calc| Project Costs'!BS127 -> 0 | AH129: ='[4]Calc| Project Costs'!BT127 -> 0 | AI129: ='[4]Calc| Project Costs'!BU127 -> 0 | AJ129: ='[4]Calc| Project Costs'!BV127 -> 0 | AK129: ='[4]Calc| Project Costs'!BW127 -> 748.7872545 | AL129: ='[4]Calc| Project Costs'!BX127 -> 1600.832108 | AM129: 2349.619363 | AN129: 2349.619363 | AP129: ='[4]Calc| Project Costs'!AD127 -> 0 | AQ129: ='[4]Calc| Project Costs'!AE127 -> 0 | AR129: ='[4]Calc| Project Costs'!AF127 -> 0 | AS129: ='[4]Calc| Project Costs'!AG127 -> 0 | AT129: ='[4]Calc| Project Costs'!AH127 -> 0 | AU129: ='[4]Calc| Project Costs'!AI127 -> 0 | AV129: ='[4]Calc| Project Costs'!AJ127 -> 0 | AW129: 0 | AY129: ='[4]Calc| Project Costs'!AL127 -> 0 | AZ129: ='[4]Calc| Project Costs'!AM127 -> 0 | BA129: ='[4]Calc| Project Costs'!AN127 -> 0 | BB129: ='[4]Calc| Project Costs'!AO127 -> 0 | BC129: ='[4]Calc| Project Costs'!AP127 -> 0 | BD129: ='[4]Calc| Project Costs'!AQ127 -> 82.76675838 | BE129: ='[4]Calc| Project Costs'!AR127 -> 197.8804732 | BF129: 280.6472316 | BH129: ='[4]Calc| Project Costs'!BJ127 ->  | BI129: ='[4]Calc| Project Costs'!BK127 ->  | BJ129: ='[4]Calc| Project Costs'!BL127 ->  | BK129: ='[4]Calc| Project Costs'!BM127 ->  | BL129: ='[4]Calc| Project Costs'!BN127 ->  | BM129: ='[4]Calc| Project Costs'!BO127 -> 0 | BN129: ='[4]Calc| Project Costs'!BP127 -> 0 | BO129: 0 | BQ129: ='[4]Input| Projects'!Y127 -> 0.3347659094 | BR129: ='[4]Input| Projects'!Z127 -> 0.3646653344 | BS129: ='[4]Input| Projects'!AA127 -> 0.3005687561 | BT129: =+_xlfn.SWITCH(TRUE,LEN(L129)>0,IF(SUM(BQ129:BS129)<>1,1,0), 0) -> 0
